Workbook

Sheet 図面
B2: mm | D2: 910 | E2: 910 | F2: 910 | G2: 910 | H2: 910 | I2: 910 | J2: 910 | K2: 910 | L2: 910 | M2: 910 | N2: 910 | O2: 910 | P2: 910 | Q2: 910 | R2: 910 | S2: 910 | T2: 910 | U2: 910 | V2: 910 | W2: 910 | X2: 910 | Y2: 910 | Z2: 910 | AA2: ←数値入力(303〜1820まで） | AO2: 壁量単位：m
C3: 尺 | D3: =D2/303 -> 3.00330033 | E3: 3.00330033 | F3: 3.00330033 | G3: 3.00330033 | H3: 3.00330033 | I3: 3.00330033 | J3: =J2/303 -> 3.00330033 | K3: 3.00330033 | L3: 3.00330033 | M3: 3.00330033 | N3: 3.00330033 | O3: 3.00330033 | P3: 3.00330033 | Q3: 3.00330033 | R3: 3.00330033 | S3: 3.00330033 | T3: 3.00330033 | U3: 3.00330033 | V3: 3.00330033 | W3: =W2/303 -> 3.00330033 | X3: =X2/303 -> 3.00330033 | Y3: =Y2/303 -> 3.00330033 | Z3: =Z2/303 -> 3.00330033 | AJ3: 壁量計算 | AM3: 必要壁量 | AN3: 存在壁量 | AO3: 判定
B4: 910 | C4: =B4/303 -> 3.00330033 | AA4: =IF(COUNTIF(面積計算!AG4:AI4,1),"●"," ") ->  | AB4: ↓N | AE4: ㎡ | AG4: 坪 | AJ4: 桁行方向壁量 | AM4: =計算結果!AD10 -> 12.51 | AN4: =計算結果!AE10 -> 0 | AO4: =計算結果!AF10 -> 
B5: 910 | C5: =B5/303 -> 3.00330033 | AA5: =IF(COUNTIF(面積計算!AG5:AI5,1),"●"," ") ->  | AB5: ↓N | AE5: =sumColor(面積計算!$D$4:$Z$20,AD5) -> 0 | AG5: =AE5/3.3124 -> 0 | AJ5: 梁間方向壁量 | AM5: =計算結果!AD11 -> 26.33 | AN5: =計算結果!AE11 -> 0 | AO5: =計算結果!AF11 -> 
B6: 910 | C6: 3.00330033 | AA6: =IF(COUNTIF(面積計算!AG6:AI6,1),"●"," ") ->  | AB6: ↓N | AE6: =sumColor(面積計算!$D$4:$Z$20,AD6) -> 0 | AG6: 0 | AJ6: 存在壁量≧必要壁量
B7: 910 | C7: 3.00330033 | AA7: =IF(COUNTIF(面積計算!AG7:AI7,1),"●"," ") ->  | AB7: ↓N | AE7: =sumColor(面積計算!$D$4:$Z$20,AD7) -> 0 | AG7: 0 | AJ7: バランス計算 | AM7: 必要壁量 | AN7: 存在壁量 | AO7: 判定
B8: 910 | C8: 3.00330033 | AA8: =IF(COUNTIF(面積計算!AG8:AI8,1),"●"," ") ->  | AB8: ↓N | AE8: =sumColor(面積計算!$D$4:$Z$20,AD8) -> 0 | AG8: 0 | AJ8: バランス(上) | AM8: =計算結果!AE15 -> 0 | AN8: =計算結果!AE16 -> 0 | AO8: =計算結果!AF17 -> 
B9: 910 | C9: 3.00330033 | AA9: =IF(COUNTIF(面積計算!AG9:AI9,1),"●"," ") ->  | AB9: ↓N | AE9: =sumColor(面積計算!$D$4:$Z$20,AD9) -> 0 | AG9: 0 | AJ9: バランス(下) | AM9: =計算結果!AE20 -> 0 | AN9: =計算結果!AE21 -> 0 | AO9: =計算結果!AF22 -> 
B10: 910 | C10: 3.00330033 | AA10: =IF(COUNTIF(面積計算!AG10:AI10,1),"●"," ") ->  | AB10: ↓N | AC10: ↑ | AE10: =sumColor(面積計算!$D$4:$Z$20,AD10) -> 0 | AG10: 0 | AJ10: バランス(左) | AM10: =計算結果!AE25 -> 0 | AN10: =計算結果!AE26 -> 0 | AO10: =計算結果!AF27 -> 
B11: 910 | C11: 3.00330033 | AA11: =IF(COUNTIF(面積計算!AG11:AI11,1),"●"," ") ->  | AB11: ↓N | AC11: 梁間方向 | AE11: =sumColor(面積計算!$D$4:$Z$20,AD11) -> 0 | AG11: 0 | AJ11: バランス(右) | AM11: =計算結果!AE30 -> 0 | AN11: =計算結果!AE31 -> 0 | AO11: =計算結果!AF32 -> 
B12: 910 | C12: 3.00330033 | AA12: =IF(COUNTIF(面積計算!AG12:AI12,1),"●"," ") ->  | AB12: ↓N | AE12: =sumColor(面積計算!$D$4:$Z$20,AD12) -> 0 | AG12: 0 | AJ12: 存在壁量/必要壁量=充足率＞1.0 ※1
B13: 910 | C13: 3.00330033 | AA13: =IF(COUNTIF(面積計算!AG13:AI13,1),"●"," ") ->  | AB13: ↓N | AE13: =sumColor(面積計算!$D$4:$Z$20,AD13) -> 0 | AG13: 0 | AJ13: 壁率比 | AM13: 両端の値 小/大≧0.5 | AO13: 判定
B14: 910 | C14: 3.00330033 | AA14: =IF(COUNTIF(面積計算!AG14:AI14,1),"●"," ") ->  | AB14: ↓N | AC14: ↓ | AE14: =sumColor(面積計算!$D$4:$Z$20,AD14) -> 0 | AG14: 0 | AJ14: 上下壁率比 | AM14: =IF(AO14="計算不要","",計算結果!AD36) ->  | AO14: =計算結果!AF37 -> 
B15: 910 | C15: 3.00330033 | AA15: =IF(COUNTIF(面積計算!AG15:AI15,1),"●"," ") ->  | AB15: ↓N | AD15: 合 | AE15: =SUM(AE5:AE9) -> 0 | AG15: 0 | AJ15: 左右壁率比 | AM15: =IF(AO15="計算不要","",計算結果!AD40) ->  | AO15: =計算結果!AF41 -> 
B16: 910 | C16: 3.00330033 | AA16: =IF(COUNTIF(面積計算!AG16:AI16,1),"●"," ") ->  | AB16: ↓N | AD16: 計 | AJ16: ※1で両端のどちらか1.0未満の場合のみ計算
B17: 910 | C17: 3.00330033 | AA17: =IF(COUNTIF(面積計算!AG17:AI17,1),"●"," ") ->  | AB17: ↓N | AO17: 単位：㎡
B18: 910 | C18: =B18/303 -> 3.00330033 | AA18: =IF(COUNTIF(面積計算!AG18:AI18,1),"●"," ") ->  | AB18: ↓N | AD18: 耐力壁 | AE18: 入力 | AF18: 耐力壁の種類 | AJ18: 記号 | AK18: 倍率 | AM18: 見付面積(桁行方向)入力 | AO18: 25.02
B19: 910 | C19: =B19/303 -> 3.00330033 | AA19: =IF(COUNTIF(面積計算!AG19:AI19,1),"●"," ") ->  | AB19: ↓N | AE19: あ | AF19: 筋カイ45×90(右上) | AJ19: 右上 | AK19: 2 | AM19: 見付面積(梁間方向)入力 | AO19: 52.66
B20: 910 | C20: =B20/303 -> 3.00330033 | AA20: =IF(COUNTIF(面積計算!AG20:AI20,1),"●"," ") ->  | AE20: い | AF20: 筋カイ45×90(左上) | AJ20: 左上 | AK20: 2
D21: =IF(COUNTIF(面積計算!D27:D29,1),"●"," ") ->  | E21: =IF(COUNTIF(面積計算!E27:E29,1),"●"," ") ->  | F21: =IF(COUNTIF(面積計算!F27:F29,1),"●"," ") ->  | G21: =IF(COUNTIF(面積計算!G27:G29,1),"●"," ") ->  | H21: =IF(COUNTIF(面積計算!H27:H29,1),"●"," ") ->  | I21: =IF(COUNTIF(面積計算!I27:I29,1),"●"," ") ->  | J21: =IF(COUNTIF(面積計算!J27:J29,1),"●"," ") ->  | K21: =IF(COUNTIF(面積計算!K27:K29,1),"●"," ") ->  | L21: =IF(COUNTIF(面積計算!L27:L29,1),"●"," ") ->  | M21: =IF(COUNTIF(面積計算!M27:M29,1),"●"," ") ->  | N21: =IF(COUNTIF(面積計算!N27:N29,1),"●"," ") ->  | O21: =IF(COUNTIF(面積計算!O27:O29,1),"●"," ") ->  | P21: =IF(COUNTIF(面積計算!P27:P29,1),"●"," ") ->  | Q21: =IF(COUNTIF(面積計算!Q27:Q29,1),"●"," ") ->  | R21: =IF(COUNTIF(面積計算!R27:R29,1),"●"," ") ->  | S21: =IF(COUNTIF(面積計算!S27:S29,1),"●"," ") ->  | T21: =IF(COUNTIF(面積計算!T27:T29,1),"●"," ") ->  | U21: =IF(COUNTIF(面積計算!U27:U29,1),"●"," ") ->  | V21: =IF(COUNTIF(面積計算!V27:V29,1),"●"," ") ->  | W21: =IF(COUNTIF(面積計算!W27:W29,1),"●"," ") ->  | X21: =IF(COUNTIF(面積計算!X27:X29,1),"●"," ") ->  | Y21: =IF(COUNTIF(面積計算!Y27:Y29,1),"●"," ") ->  | Z21: =IF(COUNTIF(面積計算!Z27:Z29,1),"●"," ") ->  | AE21: う | AF21: 筋カイ45×90(タスキ) | AJ21: タスキ | AK21: 4 | AM21: 地震力係数入力 | AO21: 33
D22: → N | E22: → N | F22: → N | G22: → N | H22: → N | I22: → N | J22: → N | K22: → N | L22: → N | M22: → N | N22: → N | O22: → N | P22: → N | Q22: → N | R22: → N | S22: → N | T22: → N | U22: → N | V22: → N | W22: → N | X22: → N | Y22: → N | AA22: １階 | AE22: え | AF22: 耐力面材 | AJ22: 面材 | AK22: 2.5
M23: ← | N23: 桁行方向 | Q23: → | AE23: お | AF23: 筋45×90(右上)+面材 | AJ23: 右面 | AK23: 4.5 | AM23: 木算（もくさん）
H24: 910 | AE24: か | AF24: 筋45×90(左上)+面材 | AJ24: 左面 | AK24: 4.5
I25: ↑数値入力(455〜1000まで）
B27: １階入力用 | X27: ※計算結果の値は小数点以下の四捨五入、切り捨て、切り上げをしておりません。小数点以下2位までで非表示となっています。 Excelでは非表示にした桁を四捨五入して表示されます。

Sheet 図面2階
B2: mm | D2: =図面!D2 -> 910 | E2: =図面!E2 -> 910 | F2: =図面!F2 -> 910 | G2: =図面!G2 -> 910 | H2: =図面!H2 -> 910 | I2: =図面!I2 -> 910 | J2: =図面!J2 -> 910 | K2: =図面!K2 -> 910 | L2: =図面!L2 -> 910 | M2: =図面!M2 -> 910 | N2: =図面!N2 -> 910 | O2: =図面!O2 -> 910 | P2: =図面!P2 -> 910 | Q2: =図面!Q2 -> 910 | R2: =図面!R2 -> 910 | S2: =図面!S2 -> 910 | T2: =図面!T2 -> 910 | U2: =図面!U2 -> 910 | V2: =図面!V2 -> 910 | W2: =図面!W2 -> 910 | X2: =図面!X2 -> 910 | Y2: =図面!Y2 -> 910 | Z2: =図面!Z2 -> 910 | AO2: 壁量単位：m
C3: 尺 | D3: =D2/303 -> 3.00330033 | E3: 3.00330033 | F3: 3.00330033 | G3: 3.00330033 | H3: 3.00330033 | I3: 3.00330033 | J3: =J2/303 -> 3.00330033 | K3: 3.00330033 | L3: 3.00330033 | M3: 3.00330033 | N3: 3.00330033 | O3: 3.00330033 | P3: 3.00330033 | Q3: 3.00330033 | R3: 3.00330033 | S3: 3.00330033 | T3: 3.00330033 | U3: 3.00330033 | V3: 3.00330033 | W3: =W2/303 -> 3.00330033 | X3: =X2/303 -> 3.00330033 | Y3: =Y2/303 -> 3.00330033 | Z3: =Z2/303 -> 3.00330033 | AJ3: 壁量計算 | AM3: 必要壁量 | AN3: 存在壁量 | AO3: 判定
B4: =図面!B4 -> 910 | C4: =B4/303 -> 3.00330033 | AA4: =IF(COUNTIF(面積計算2階!AG4:AI4,1),"●"," ") ->  | AB4: ↓N | AE4: ㎡ | AG4: 坪 | AJ4: 桁行方向壁量 | AM4: =計算結果2階!AD10 -> 5.175 | AN4: =計算結果2階!AE10 -> 0 | AO4: =計算結果2階!AF10 -> 
B5: =図面!B5 -> 910 | C5: =B5/303 -> 3.00330033 | AA5: =IF(COUNTIF(面積計算2階!AG5:AI5,1),"●"," ") ->  | AB5: ↓N | AE5: =sumColor(面積計算2階!$D$4:$Z$20,AD5) -> 0 | AG5: =AE5/3.3124 -> 0 | AJ5: 梁間方向壁量 | AM5: =計算結果2階!AD11 -> 13.125 | AN5: =計算結果2階!AE11 -> 0 | AO5: =計算結果2階!AF11 -> 
B6: =図面!B6 -> 910 | C6: 3.00330033 | AA6: =IF(COUNTIF(面積計算2階!AG6:AI6,1),"●"," ") ->  | AB6: ↓N | AE6: =sumColor(面積計算2階!$D$4:$Z$20,AD6) -> 0 | AG6: 0 | AJ6: 存在壁量≧必要壁量
B7: =図面!B7 -> 910 | C7: 3.00330033 | AA7: =IF(COUNTIF(面積計算2階!AG7:AI7,1),"●"," ") ->  | AB7: ↓N | AE7: =sumColor(面積計算2階!$D$4:$Z$20,AD7) -> 0 | AG7: 0 | AJ7: バランス計算 | AM7: 必要壁量 | AN7: 存在壁量 | AO7: 判定
B8: =図面!B8 -> 910 | C8: 3.00330033 | AA8: =IF(COUNTIF(面積計算2階!AG8:AI8,1),"●"," ") ->  | AB8: ↓N | AE8: =sumColor(面積計算2階!$D$4:$Z$20,AD8) -> 0 | AG8: 0 | AJ8: バランス(上) | AM8: =計算結果2階!AE15 -> 0 | AN8: =計算結果2階!AE16 -> 0 | AO8: =計算結果2階!AF17 -> 
B9: =図面!B9 -> 910 | C9: 3.00330033 | AA9: =IF(COUNTIF(面積計算2階!AG9:AI9,1),"●"," ") ->  | AB9: ↓N | AE9: =sumColor(面積計算2階!$D$4:$Z$20,AD9) -> 0 | AG9: 0 | AJ9: バランス(下) | AM9: =計算結果2階!AE20 -> 0 | AN9: =計算結果2階!AE21 -> 0 | AO9: =計算結果2階!AF22 -> 
B10: =図面!B10 -> 910 | C10: 3.00330033 | AA10: =IF(COUNTIF(面積計算2階!AG10:AI10,1),"●"," ") ->  | AB10: ↓N | AC10: ↑ | AE10: =sumColor(面積計算2階!$D$4:$Z$20,AD10) -> 0 | AG10: 0 | AJ10: バランス(左) | AM10: =計算結果2階!AE25 -> 0 | AN10: =計算結果2階!AE26 -> 0 | AO10: =計算結果2階!AF27 -> 
B11: =図面!B11 -> 910 | C11: 3.00330033 | AA11: =IF(COUNTIF(面積計算2階!AG11:AI11,1),"●"," ") ->  | AB11: ↓N | AC11: 梁間方向 | AE11: =sumColor(面積計算2階!$D$4:$Z$20,AD11) -> 0 | AG11: 0 | AJ11: バランス(右) | AM11: =計算結果2階!AE30 -> 0 | AN11: =計算結果2階!AE31 -> 0 | AO11: =計算結果2階!AF32 -> 
B12: =図面!B12 -> 910 | C12: 3.00330033 | AA12: =IF(COUNTIF(面積計算2階!AG12:AI12,1),"●"," ") ->  | AB12: ↓N | AE12: =sumColor(面積計算2階!$D$4:$Z$20,AD12) -> 0 | AG12: 0 | AJ12: 存在壁量/必要壁量=充足率＞1.0 ※1
B13: =図面!B13 -> 910 | C13: 3.00330033 | AA13: =IF(COUNTIF(面積計算2階!AG13:AI13,1),"●"," ") ->  | AB13: ↓N | AE13: =sumColor(面積計算2階!$D$4:$Z$20,AD13) -> 0 | AG13: 0 | AJ13: 壁率比 | AM13: 両端の値 小/大≧0.5 | AO13: 判定
B14: =図面!B14 -> 910 | C14: 3.00330033 | AA14: =IF(COUNTIF(面積計算2階!AG14:AI14,1),"●"," ") ->  | AB14: ↓N | AC14: ↓ | AE14: =sumColor(面積計算2階!$D$4:$Z$20,AD14) -> 0 | AG14: 0 | AJ14: 上下壁率比 | AM14: =IF(AO14="計算不要","",計算結果!AD36) ->  | AO14: =計算結果2階!AF37 -> 
B15: =図面!B15 -> 910 | C15: 3.00330033 | AA15: =IF(COUNTIF(面積計算2階!AG15:AI15,1),"●"," ") ->  | AB15: ↓N | AD15: 合 | AE15: =SUM(AE5:AE9) -> 0 | AG15: 0 | AJ15: 左右壁率比 | AM15: =IF(AO15="計算不要","",計算結果!AD40) ->  | AO15: =計算結果2階!AF41 -> 
B16: =図面!B16 -> 910 | C16: 3.00330033 | AA16: =IF(COUNTIF(面積計算2階!AG16:AI16,1),"●"," ") ->  | AB16: ↓N | AD16: 計 | AJ16: ※1で両端のどちらか1.0未満の場合のみ計算
B17: =図面!B17 -> 910 | C17: 3.00330033 | AA17: =IF(COUNTIF(面積計算2階!AG17:AI17,1),"●"," ") ->  | AB17: ↓N | AO17: 単位：㎡
B18: =図面!B18 -> 910 | C18: =B18/303 -> 3.00330033 | AA18: =IF(COUNTIF(面積計算2階!AG18:AI18,1),"●"," ") ->  | AB18: ↓N | AD18: 耐力壁 | AE18: 入力 | AF18: 耐力壁の種類 | AJ18: 記号 | AK18: 倍率 | AM18: 見付面積(桁行方向)入力 | AO18: 10.35
B19: =図面!B19 -> 910 | C19: =B19/303 -> 3.00330033 | AA19: =IF(COUNTIF(面積計算2階!AG19:AI19,1),"●"," ") ->  | AB19: ↓N | AE19: あ | AF19: 筋カイ45×90(右上) | AJ19: 右上 | AK19: 2 | AM19: 見付面積(梁間方向)入力 | AO19: 26.25
B20: =図面!B20 -> 910 | C20: =B20/303 -> 3.00330033 | AA20: =IF(COUNTIF(面積計算!AG20:AI20,1),"●"," ") ->  | AE20: い | AF20: 筋カイ45×90(左上) | AJ20: 左上 | AK20: 2
D21: =IF(COUNTIF(面積計算2階!D27:D29,1),"●"," ") ->  | E21: =IF(COUNTIF(面積計算2階!E27:E29,1),"●"," ") ->  | F21: =IF(COUNTIF(面積計算2階!F27:F29,1),"●"," ") ->  | G21: =IF(COUNTIF(面積計算2階!G27:G29,1),"●"," ") ->  | H21: =IF(COUNTIF(面積計算2階!H27:H29,1),"●"," ") ->  | I21: =IF(COUNTIF(面積計算2階!I27:I29,1),"●"," ") ->  | J21: =IF(COUNTIF(面積計算2階!J27:J29,1),"●"," ") ->  | K21: =IF(COUNTIF(面積計算2階!K27:K29,1),"●"," ") ->  | L21: =IF(COUNTIF(面積計算2階!L27:L29,1),"●"," ") ->  | M21: =IF(COUNTIF(面積計算2階!M27:M29,1),"●"," ") ->  | N21: =IF(COUNTIF(面積計算2階!N27:N29,1),"●"," ") ->  | O21: =IF(COUNTIF(面積計算2階!O27:O29,1),"●"," ") ->  | P21: =IF(COUNTIF(面積計算2階!P27:P29,1),"●"," ") ->  | Q21: =IF(COUNTIF(面積計算2階!Q27:Q29,1),"●"," ") ->  | R21: =IF(COUNTIF(面積計算2階!R27:R29,1),"●"," ") ->  | S21: =IF(COUNTIF(面積計算2階!S27:S29,1),"●"," ") ->  | T21: =IF(COUNTIF(面積計算2階!T27:T29,1),"●"," ") ->  | U21: =IF(COUNTIF(面積計算2階!U27:U29,1),"●"," ") ->  | V21: =IF(COUNTIF(面積計算2階!V27:V29,1),"●"," ") ->  | W21: =IF(COUNTIF(面積計算2階!W27:W29,1),"●"," ") ->  | X21: =IF(COUNTIF(面積計算2階!X27:X29,1),"●"," ") ->  | Y21: =IF(COUNTIF(面積計算2階!Y27:Y29,1),"●"," ") ->  | Z21: =IF(COUNTIF(面積計算2階!Z27:Z29,1),"●"," ") ->  | AE21: う | AF21: 筋カイ45×90(タスキ) | AJ21: タスキ | AK21: 4 | AM21: 地震力係数入力 | AO21: 21
D22: → N | E22: → N | F22: → N | G22: → N | H22: → N | I22: → N | J22: → N | K22: → N | L22: → N | M22: → N | N22: → N | O22: → N | P22: → N | Q22: → N | R22: → N | S22: → N | T22: → N | U22: → N | V22: → N | W22: → N | X22: → N | Y22: → N | AA22: ２階 | AE22: え | AF22: 耐力面材 | AJ22: 面材 | AK22: 2.5
M23: ← | N23: 桁行方向 | Q23: → | AE23: お | AF23: 筋45×90(右上)+面材 | AJ23: 右面 | AK23: 4.5 | AM23: 木算（もくさん）
AE24: か | AF24: 筋45×90(左上)+面材 | AJ24: 左面 | AK24: 4.5
B27: ２階入力用 | Y27: ※計算結果の値は小数点以下の四捨五入、切り捨て、切り上げをしておりません。小数点以下2位までで非表示となっています。 Excelでは非表示にした桁を四捨五入して表示されます。

Sheet 計算結果
D3: =図面!D2 -> 910 | E3: =図面!E2 -> 910 | F3: =図面!F2 -> 910 | G3: =図面!G2 -> 910 | H3: =図面!H2 -> 910 | I3: =図面!I2 -> 910 | J3: =図面!J2 -> 910 | K3: =図面!K2 -> 910 | L3: =図面!L2 -> 910 | M3: =図面!M2 -> 910 | N3: =図面!N2 -> 910 | O3: =図面!O2 -> 910 | P3: =図面!P2 -> 910 | Q3: =図面!Q2 -> 910 | R3: =図面!R2 -> 910 | S3: =図面!S2 -> 910 | T3: =図面!T2 -> 910 | U3: =図面!U2 -> 910 | V3: =図面!V2 -> 910 | W3: =図面!W2 -> 910 | X3: =図面!X2 -> 910 | Y3: =図面!Y2 -> 910 | Z3: =図面!Z2 -> 910 | AF3: 壁量単位:m
C4: =図面!B4 -> 910 | D4: =IF(図面!D4="","",図面!D4) ->  | E4: =IF(図面!E4="","",図面!E4) ->  | F4: =IF(図面!F4="","",図面!F4) ->  | G4: =IF(図面!G4="","",図面!G4) ->  | H4: =IF(図面!H4="","",図面!H4) ->  | I4: =IF(図面!I4="","",図面!I4) ->  | J4: =IF(図面!J4="","",図面!J4) ->  | K4: =IF(図面!K4="","",図面!K4) ->  | L4: =IF(図面!L4="","",図面!L4) ->  | M4: =IF(図面!M4="","",図面!M4) ->  | N4: =IF(図面!N4="","",図面!N4) ->  | O4: =IF(図面!O4="","",図面!O4) ->  | P4: =IF(図面!P4="","",図面!P4) ->  | Q4: =IF(図面!Q4="","",図面!Q4) ->  | R4: =IF(図面!R4="","",図面!R4) ->  | S4: =IF(図面!S4="","",図面!S4) ->  | T4: =IF(図面!T4="","",図面!T4) ->  | U4: =IF(図面!U4="","",図面!U4) ->  | V4: =IF(図面!V4="","",図面!V4) ->  | W4: =IF(図面!W4="","",図面!W4) ->  | X4: =IF(図面!X4="","",図面!X4) ->  | Y4: =IF(図面!Y4="","",図面!Y4) ->  | Z4: =IF(図面!Z4="","",図面!Z4) ->  | AD4: 係数 | AE4: 必要壁量 | AF4: 判定
C5: =図面!B5 -> 910 | D5: =IF(図面!D5="","",図面!D5) ->  | E5: =IF(図面!E5="","",図面!E5) ->  | F5: =IF(図面!F5="","",図面!F5) ->  | G5: =IF(図面!G5="","",図面!G5) ->  | H5: =IF(図面!H5="","",図面!H5) ->  | I5: =IF(図面!I5="","",図面!I5) ->  | J5: =IF(図面!J5="","",図面!J5) ->  | K5: =IF(図面!K5="","",図面!K5) ->  | L5: =IF(図面!L5="","",図面!L5) ->  | M5: =IF(図面!M5="","",図面!M5) ->  | N5: =IF(図面!N5="","",図面!N5) ->  | O5: =IF(図面!O5="","",図面!O5) ->  | P5: =IF(図面!P5="","",図面!P5) ->  | Q5: =IF(図面!Q5="","",図面!Q5) ->  | R5: =IF(図面!R5="","",図面!R5) ->  | S5: =IF(図面!S5="","",図面!S5) ->  | T5: =IF(図面!T5="","",図面!T5) ->  | U5: =IF(図面!U5="","",図面!U5) ->  | V5: =IF(図面!V5="","",図面!V5) ->  | W5: =IF(図面!W5="","",図面!W5) ->  | X5: =IF(図面!X5="","",図面!X5) ->  | Y5: =IF(図面!Y5="","",図面!Y5) ->  | Z5: =IF(図面!Z5="","",図面!Z5) ->  | AB5: 延床面積 | AC5: =図面!AE15 -> 0 | AD5: =図面!AO21 -> 33 | AE5: =(AC5*AD5)/100 -> 0
C6: =図面!B6 -> 910 | D6: =IF(図面!D6="","",図面!D6) ->  | E6: =IF(図面!E6="","",図面!E6) ->  | F6: =IF(図面!F6="","",図面!F6) ->  | G6: =IF(図面!G6="","",図面!G6) ->  | H6: =IF(図面!H6="","",図面!H6) ->  | I6: =IF(図面!I6="","",図面!I6) ->  | J6: =IF(図面!J6="","",図面!J6) ->  | K6: =IF(図面!K6="","",図面!K6) ->  | L6: =IF(図面!L6="","",図面!L6) ->  | M6: =IF(図面!M6="","",図面!M6) ->  | N6: =IF(図面!N6="","",図面!N6) ->  | O6: =IF(図面!O6="","",図面!O6) ->  | P6: =IF(図面!P6="","",図面!P6) ->  | Q6: =IF(図面!Q6="","",図面!Q6) ->  | R6: =IF(図面!R6="","",図面!R6) ->  | S6: =IF(図面!S6="","",図面!S6) ->  | T6: =IF(図面!T6="","",図面!T6) ->  | U6: =IF(図面!U6="","",図面!U6) ->  | V6: =IF(図面!V6="","",図面!V6) ->  | W6: =IF(図面!W6="","",図面!W6) ->  | X6: =IF(図面!X6="","",図面!X6) ->  | Y6: =IF(図面!Y6="","",図面!Y6) ->  | Z6: =IF(図面!Z6="","",図面!Z6) ->  | AB6: 見付面積(桁行計算用） | AC6: =図面!AO18 -> 25.02 | AD6: 50 | AE6: =(AC6*AD6)/100 -> 12.51 | AF6: =IF(AE5>AE6,"床","見付") -> 見付 | AG6: 床面積と見付面積での計算値の大きい方
C7: =図面!B7 -> 910 | D7: =IF(図面!D7="","",図面!D7) ->  | E7: =IF(図面!E7="","",図面!E7) ->  | F7: =IF(図面!F7="","",図面!F7) ->  | G7: =IF(図面!G7="","",図面!G7) ->  | H7: =IF(図面!H7="","",図面!H7) ->  | I7: =IF(図面!I7="","",図面!I7) ->  | J7: =IF(図面!J7="","",図面!J7) ->  | K7: =IF(図面!K7="","",図面!K7) ->  | L7: =IF(図面!L7="","",図面!L7) ->  | M7: =IF(図面!M7="","",図面!M7) ->  | N7: =IF(図面!N7="","",図面!N7) ->  | O7: =IF(図面!O7="","",図面!O7) ->  | P7: =IF(図面!P7="","",図面!P7) ->  | Q7: =IF(図面!Q7="","",図面!Q7) ->  | R7: =IF(図面!R7="","",図面!R7) ->  | S7: =IF(図面!S7="","",図面!S7) ->  | T7: =IF(図面!T7="","",図面!T7) ->  | U7: =IF(図面!U7="","",図面!U7) ->  | V7: =IF(図面!V7="","",図面!V7) ->  | W7: =IF(図面!W7="","",図面!W7) ->  | X7: =IF(図面!X7="","",図面!X7) ->  | Y7: =IF(図面!Y7="","",図面!Y7) ->  | Z7: =IF(図面!Z7="","",図面!Z7) ->  | AB7: 見付面積(梁間計算用） | AC7: =図面!AO19 -> 52.66 | AD7: 50 | AE7: =(AC7*AD7)/100 -> 26.33 | AF7: =IF(AE5>AE7,"床","見付") -> 見付 | AG7: 床面積と見付面積での計算値の大きい方
C8: =図面!B8 -> 910 | D8: =IF(図面!D8="","",図面!D8) ->  | E8: =IF(図面!E8="","",図面!E8) ->  | F8: =IF(図面!F8="","",図面!F8) ->  | G8: =IF(図面!G8="","",図面!G8) ->  | H8: =IF(図面!H8="","",図面!H8) ->  | I8: =IF(図面!I8="","",図面!I8) ->  | J8: =IF(図面!J8="","",図面!J8) ->  | K8: =IF(図面!K8="","",図面!K8) ->  | L8: =IF(図面!L8="","",図面!L8) ->  | M8: =IF(図面!M8="","",図面!M8) ->  | N8: =IF(図面!N8="","",図面!N8) ->  | O8: =IF(図面!O8="","",図面!O8) ->  | P8: =IF(図面!P8="","",図面!P8) ->  | Q8: =IF(図面!Q8="","",図面!Q8) ->  | R8: =IF(図面!R8="","",図面!R8) ->  | S8: =IF(図面!S8="","",図面!S8) ->  | T8: =IF(図面!T8="","",図面!T8) ->  | U8: =IF(図面!U8="","",図面!U8) ->  | V8: =IF(図面!V8="","",図面!V8) ->  | W8: =IF(図面!W8="","",図面!W8) ->  | X8: =IF(図面!X8="","",図面!X8) ->  | Y8: =IF(図面!Y8="","",図面!Y8) ->  | Z8: =IF(図面!Z8="","",図面!Z8) -> 
C9: =図面!B9 -> 910 | D9: =IF(図面!D9="","",図面!D9) ->  | E9: =IF(図面!E9="","",図面!E9) ->  | F9: =IF(図面!F9="","",図面!F9) ->  | G9: =IF(図面!G9="","",図面!G9) ->  | H9: =IF(図面!H9="","",図面!H9) ->  | I9: =IF(図面!I9="","",図面!I9) ->  | J9: =IF(図面!J9="","",図面!J9) ->  | K9: =IF(図面!K9="","",図面!K9) ->  | L9: =IF(図面!L9="","",図面!L9) ->  | M9: =IF(図面!M9="","",図面!M9) ->  | N9: =IF(図面!N9="","",図面!N9) ->  | O9: =IF(図面!O9="","",図面!O9) ->  | P9: =IF(図面!P9="","",図面!P9) ->  | Q9: =IF(図面!Q9="","",図面!Q9) ->  | R9: =IF(図面!R9="","",図面!R9) ->  | S9: =IF(図面!S9="","",図面!S9) ->  | T9: =IF(図面!T9="","",図面!T9) ->  | U9: =IF(図面!U9="","",図面!U9) ->  | V9: =IF(図面!V9="","",図面!V9) ->  | W9: =IF(図面!W9="","",図面!W9) ->  | X9: =IF(図面!X9="","",図面!X9) ->  | Y9: =IF(図面!Y9="","",図面!Y9) ->  | Z9: =IF(図面!Z9="","",図面!Z9) ->  | AC9: 計算値大 | AD9: 必要壁量 | AE9: 存在壁量 | AF9: 判定
C10: =図面!B10 -> 910 | D10: =IF(図面!D10="","",図面!D10) ->  | E10: =IF(図面!E10="","",図面!E10) ->  | F10: =IF(図面!F10="","",図面!F10) ->  | G10: =IF(図面!G10="","",図面!G10) ->  | H10: =IF(図面!H10="","",図面!H10) ->  | I10: =IF(図面!I10="","",図面!I10) ->  | J10: =IF(図面!J10="","",図面!J10) ->  | K10: =IF(図面!K10="","",図面!K10) ->  | L10: =IF(図面!L10="","",図面!L10) ->  | M10: =IF(図面!M10="","",図面!M10) ->  | N10: =IF(図面!N10="","",図面!N10) ->  | O10: =IF(図面!O10="","",図面!O10) ->  | P10: =IF(図面!P10="","",図面!P10) ->  | Q10: =IF(図面!Q10="","",図面!Q10) ->  | R10: =IF(図面!R10="","",図面!R10) ->  | S10: =IF(図面!S10="","",図面!S10) ->  | T10: =IF(図面!T10="","",図面!T10) ->  | U10: =IF(図面!U10="","",図面!U10) ->  | V10: =IF(図面!V10="","",図面!V10) ->  | W10: =IF(図面!W10="","",図面!W10) ->  | X10: =IF(図面!X10="","",図面!X10) ->  | Y10: =IF(図面!Y10="","",図面!Y10) ->  | Z10: =IF(図面!Z10="","",図面!Z10) ->  | AB10: 桁行方向壁量 | AC10: =AF6 -> 見付 | AD10: =MAX(AE5,AE6) -> 12.51 | AE10: =壁量計算!AO21 -> 0 | AF10: =IF(AE10=0,"",IF(AE10>=MAX(AE5,AE6),("OK"),("NG"))) ->  | AG10: 必要壁量≦存在壁量
C11: =図面!B11 -> 910 | D11: =IF(図面!D11="","",図面!D11) ->  | E11: =IF(図面!E11="","",図面!E11) ->  | F11: =IF(図面!F11="","",図面!F11) ->  | G11: =IF(図面!G11="","",図面!G11) ->  | H11: =IF(図面!H11="","",図面!H11) ->  | I11: =IF(図面!I11="","",図面!I11) ->  | J11: =IF(図面!J11="","",図面!J11) ->  | K11: =IF(図面!K11="","",図面!K11) ->  | L11: =IF(図面!L11="","",図面!L11) ->  | M11: =IF(図面!M11="","",図面!M11) ->  | N11: =IF(図面!N11="","",図面!N11) ->  | O11: =IF(図面!O11="","",図面!O11) ->  | P11: =IF(図面!P11="","",図面!P11) ->  | Q11: =IF(図面!Q11="","",図面!Q11) ->  | R11: =IF(図面!R11="","",図面!R11) ->  | S11: =IF(図面!S11="","",図面!S11) ->  | T11: =IF(図面!T11="","",図面!T11) ->  | U11: =IF(図面!U11="","",図面!U11) ->  | V11: =IF(図面!V11="","",図面!V11) ->  | W11: =IF(図面!W11="","",図面!W11) ->  | X11: =IF(図面!X11="","",図面!X11) ->  | Y11: =IF(図面!Y11="","",図面!Y11) ->  | Z11: =IF(図面!Z11="","",図面!Z11) ->  | AB11: 梁間方向壁量 | AC11: =AF7 -> 見付 | AD11: =MAX(AE5,AE7) -> 26.33 | AE11: =壁量計算!AA35 -> 0 | AF11: =IF(AE11=0,"",IF(AE11>=MAX(AE5,AE7),("OK"),("NG"))) ->  | AG11: 必要壁量≦存在壁量
C12: =図面!B12 -> 910 | D12: =IF(図面!D12="","",図面!D12) ->  | E12: =IF(図面!E12="","",図面!E12) ->  | F12: =IF(図面!F12="","",図面!F12) ->  | G12: =IF(図面!G12="","",図面!G12) ->  | H12: =IF(図面!H12="","",図面!H12) ->  | I12: =IF(図面!I12="","",図面!I12) ->  | J12: =IF(図面!J12="","",図面!J12) ->  | K12: =IF(図面!K12="","",図面!K12) ->  | L12: =IF(図面!L12="","",図面!L12) ->  | M12: =IF(図面!M12="","",図面!M12) ->  | N12: =IF(図面!N12="","",図面!N12) ->  | O12: =IF(図面!O12="","",図面!O12) ->  | P12: =IF(図面!P12="","",図面!P12) ->  | Q12: =IF(図面!Q12="","",図面!Q12) ->  | R12: =IF(図面!R12="","",図面!R12) ->  | S12: =IF(図面!S12="","",図面!S12) ->  | T12: =IF(図面!T12="","",図面!T12) ->  | U12: =IF(図面!U12="","",図面!U12) ->  | V12: =IF(図面!V12="","",図面!V12) ->  | W12: =IF(図面!W12="","",図面!W12) ->  | X12: =IF(図面!X12="","",図面!X12) ->  | Y12: =IF(図面!Y12="","",図面!Y12) ->  | Z12: =IF(図面!Z12="","",図面!Z12) -> 
C13: =図面!B13 -> 910 | D13: =IF(図面!D13="","",図面!D13) ->  | E13: =IF(図面!E13="","",図面!E13) ->  | F13: =IF(図面!F13="","",図面!F13) ->  | G13: =IF(図面!G13="","",図面!G13) ->  | H13: =IF(図面!H13="","",図面!H13) ->  | I13: =IF(図面!I13="","",図面!I13) ->  | J13: =IF(図面!J13="","",図面!J13) ->  | K13: =IF(図面!K13="","",図面!K13) ->  | L13: =IF(図面!L13="","",図面!L13) ->  | M13: =IF(図面!M13="","",図面!M13) ->  | N13: =IF(図面!N13="","",図面!N13) ->  | O13: =IF(図面!O13="","",図面!O13) ->  | P13: =IF(図面!P13="","",図面!P13) ->  | Q13: =IF(図面!Q13="","",図面!Q13) ->  | R13: =IF(図面!R13="","",図面!R13) ->  | S13: =IF(図面!S13="","",図面!S13) ->  | T13: =IF(図面!T13="","",図面!T13) ->  | U13: =IF(図面!U13="","",図面!U13) ->  | V13: =IF(図面!V13="","",図面!V13) ->  | W13: =IF(図面!W13="","",図面!W13) ->  | X13: =IF(図面!X13="","",図面!X13) ->  | Y13: =IF(図面!Y13="","",図面!Y13) ->  | Z13: =IF(図面!Z13="","",図面!Z13) ->  | AB13: バランス計算 | AF13: 壁量単位:cm
C14: =図面!B14 -> 910 | D14: =IF(図面!D14="","",図面!D14) ->  | E14: =IF(図面!E14="","",図面!E14) ->  | F14: =IF(図面!F14="","",図面!F14) ->  | G14: =IF(図面!G14="","",図面!G14) ->  | H14: =IF(図面!H14="","",図面!H14) ->  | I14: =IF(図面!I14="","",図面!I14) ->  | J14: =IF(図面!J14="","",図面!J14) ->  | K14: =IF(図面!K14="","",図面!K14) ->  | L14: =IF(図面!L14="","",図面!L14) ->  | M14: =IF(図面!M14="","",図面!M14) ->  | N14: =IF(図面!N14="","",図面!N14) ->  | O14: =IF(図面!O14="","",図面!O14) ->  | P14: =IF(図面!P14="","",図面!P14) ->  | Q14: =IF(図面!Q14="","",図面!Q14) ->  | R14: =IF(図面!R14="","",図面!R14) ->  | S14: =IF(図面!S14="","",図面!S14) ->  | T14: =IF(図面!T14="","",図面!T14) ->  | U14: =IF(図面!U14="","",図面!U14) ->  | V14: =IF(図面!V14="","",図面!V14) ->  | W14: =IF(図面!W14="","",図面!W14) ->  | X14: =IF(図面!X14="","",図面!X14) ->  | Y14: =IF(図面!Y14="","",図面!Y14) ->  | Z14: =IF(図面!Z14="","",図面!Z14) ->  | AB14: (上) | AC14: 分割面積 | AD14: 係数 | AE14: 壁量 | AF14: 判定
C15: =図面!B15 -> 910 | D15: =IF(図面!D15="","",図面!D15) ->  | E15: =IF(図面!E15="","",図面!E15) ->  | F15: =IF(図面!F15="","",図面!F15) ->  | G15: =IF(図面!G15="","",図面!G15) ->  | H15: =IF(図面!H15="","",図面!H15) ->  | I15: =IF(図面!I15="","",図面!I15) ->  | J15: =IF(図面!J15="","",図面!J15) ->  | K15: =IF(図面!K15="","",図面!K15) ->  | L15: =IF(図面!L15="","",図面!L15) ->  | M15: =IF(図面!M15="","",図面!M15) ->  | N15: =IF(図面!N15="","",図面!N15) ->  | O15: =IF(図面!O15="","",図面!O15) ->  | P15: =IF(図面!P15="","",図面!P15) ->  | Q15: =IF(図面!Q15="","",図面!Q15) ->  | R15: =IF(図面!R15="","",図面!R15) ->  | S15: =IF(図面!S15="","",図面!S15) ->  | T15: =IF(図面!T15="","",図面!T15) ->  | U15: =IF(図面!U15="","",図面!U15) ->  | V15: =IF(図面!V15="","",図面!V15) ->  | W15: =IF(図面!W15="","",図面!W15) ->  | X15: =IF(図面!X15="","",図面!X15) ->  | Y15: =IF(図面!Y15="","",図面!Y15) ->  | Z15: =IF(図面!Z15="","",図面!Z15) ->  | AB15: 必要壁量 | AC15: =面積計算!AK21 -> 0 | AD15: =図面!$AO$21 -> 33 | AE15: =(AC15*AD15)/100 -> 0
C16: =図面!B16 -> 910 | D16: =IF(図面!D16="","",図面!D16) ->  | E16: =IF(図面!E16="","",図面!E16) ->  | F16: =IF(図面!F16="","",図面!F16) ->  | G16: =IF(図面!G16="","",図面!G16) ->  | H16: =IF(図面!H16="","",図面!H16) ->  | I16: =IF(図面!I16="","",図面!I16) ->  | J16: =IF(図面!J16="","",図面!J16) ->  | K16: =IF(図面!K16="","",図面!K16) ->  | L16: =IF(図面!L16="","",図面!L16) ->  | M16: =IF(図面!M16="","",図面!M16) ->  | N16: =IF(図面!N16="","",図面!N16) ->  | O16: =IF(図面!O16="","",図面!O16) ->  | P16: =IF(図面!P16="","",図面!P16) ->  | Q16: =IF(図面!Q16="","",図面!Q16) ->  | R16: =IF(図面!R16="","",図面!R16) ->  | S16: =IF(図面!S16="","",図面!S16) ->  | T16: =IF(図面!T16="","",図面!T16) ->  | U16: =IF(図面!U16="","",図面!U16) ->  | V16: =IF(図面!V16="","",図面!V16) ->  | W16: =IF(図面!W16="","",図面!W16) ->  | X16: =IF(図面!X16="","",図面!X16) ->  | Y16: =IF(図面!Y16="","",図面!Y16) ->  | Z16: =IF(図面!Z16="","",図面!Z16) ->  | AB16: 存在壁量 | AE16: =壁量計算!AT21 -> 0
C17: =図面!B17 -> 910 | D17: =IF(図面!D17="","",図面!D17) ->  | E17: =IF(図面!E17="","",図面!E17) ->  | F17: =IF(図面!F17="","",図面!F17) ->  | G17: =IF(図面!G17="","",図面!G17) ->  | H17: =IF(図面!H17="","",図面!H17) ->  | I17: =IF(図面!I17="","",図面!I17) ->  | J17: =IF(図面!J17="","",図面!J17) ->  | K17: =IF(図面!K17="","",図面!K17) ->  | L17: =IF(図面!L17="","",図面!L17) ->  | M17: =IF(図面!M17="","",図面!M17) ->  | N17: =IF(図面!N17="","",図面!N17) ->  | O17: =IF(図面!O17="","",図面!O17) ->  | P17: =IF(図面!P17="","",図面!P17) ->  | Q17: =IF(図面!Q17="","",図面!Q17) ->  | R17: =IF(図面!R17="","",図面!R17) ->  | S17: =IF(図面!S17="","",図面!S17) ->  | T17: =IF(図面!T17="","",図面!T17) ->  | U17: =IF(図面!U17="","",図面!U17) ->  | V17: =IF(図面!V17="","",図面!V17) ->  | W17: =IF(図面!W17="","",図面!W17) ->  | X17: =IF(図面!X17="","",図面!X17) ->  | Y17: =IF(図面!Y17="","",図面!Y17) ->  | Z17: =IF(図面!Z17="","",図面!Z17) ->  | AB17: 壁量充足率 | AE17: =IFERROR(AE16/AE15,"") ->  | AF17: =IF(AE17="","",IF(AE16/AE15>1,("OK"),("NG"))) ->  | AG17: 存在壁量/必要壁量>1
C18: =図面!B18 -> 910 | D18: =IF(図面!D18="","",図面!D18) ->  | E18: =IF(図面!E18="","",図面!E18) ->  | F18: =IF(図面!F18="","",図面!F18) ->  | G18: =IF(図面!G18="","",図面!G18) ->  | H18: =IF(図面!H18="","",図面!H18) ->  | I18: =IF(図面!I18="","",図面!I18) ->  | J18: =IF(図面!J18="","",図面!J18) ->  | K18: =IF(図面!K18="","",図面!K18) ->  | L18: =IF(図面!L18="","",図面!L18) ->  | M18: =IF(図面!M18="","",図面!M18) ->  | N18: =IF(図面!N18="","",図面!N18) ->  | O18: =IF(図面!O18="","",図面!O18) ->  | P18: =IF(図面!P18="","",図面!P18) ->  | Q18: =IF(図面!Q18="","",図面!Q18) ->  | R18: =IF(図面!R18="","",図面!R18) ->  | S18: =IF(図面!S18="","",図面!S18) ->  | T18: =IF(図面!T18="","",図面!T18) ->  | U18: =IF(図面!U18="","",図面!U18) ->  | V18: =IF(図面!V18="","",図面!V18) ->  | W18: =IF(図面!W18="","",図面!W18) ->  | X18: =IF(図面!X18="","",図面!X18) ->  | Y18: =IF(図面!Y18="","",図面!Y18) ->  | Z18: =IF(図面!Z18="","",図面!Z18) -> 
C19: =図面!B19 -> 910 | D19: =IF(図面!D19="","",図面!D19) ->  | E19: =IF(図面!E19="","",図面!E19) ->  | F19: =IF(図面!F19="","",図面!F19) ->  | G19: =IF(図面!G19="","",図面!G19) ->  | H19: =IF(図面!H19="","",図面!H19) ->  | I19: =IF(図面!I19="","",図面!I19) ->  | J19: =IF(図面!J19="","",図面!J19) ->  | K19: =IF(図面!K19="","",図面!K19) ->  | L19: =IF(図面!L19="","",図面!L19) ->  | M19: =IF(図面!M19="","",図面!M19) ->  | N19: =IF(図面!N19="","",図面!N19) ->  | O19: =IF(図面!O19="","",図面!O19) ->  | P19: =IF(図面!P19="","",図面!P19) ->  | Q19: =IF(図面!Q19="","",図面!Q19) ->  | R19: =IF(図面!R19="","",図面!R19) ->  | S19: =IF(図面!S19="","",図面!S19) ->  | T19: =IF(図面!T19="","",図面!T19) ->  | U19: =IF(図面!U19="","",図面!U19) ->  | V19: =IF(図面!V19="","",図面!V19) ->  | W19: =IF(図面!W19="","",図面!W19) ->  | X19: =IF(図面!X19="","",図面!X19) ->  | Y19: =IF(図面!Y19="","",図面!Y19) ->  | Z19: =IF(図面!Z19="","",図面!Z19) ->  | AB19: (下) | AC19: 分割面積 | AD19: 係数 | AE19: 壁量 | AF19: 判定
C20: =図面!B20 -> 910 | D20: =IF(図面!D20="","",図面!D20) ->  | E20: =IF(図面!E20="","",図面!E20) ->  | F20: =IF(図面!F20="","",図面!F20) ->  | G20: =IF(図面!G20="","",図面!G20) ->  | H20: =IF(図面!H20="","",図面!H20) ->  | I20: =IF(図面!I20="","",図面!I20) ->  | J20: =IF(図面!J20="","",図面!J20) ->  | K20: =IF(図面!K20="","",図面!K20) ->  | L20: =IF(図面!L20="","",図面!L20) ->  | M20: =IF(図面!M20="","",図面!M20) ->  | N20: =IF(図面!N20="","",図面!N20) ->  | O20: =IF(図面!O20="","",図面!O20) ->  | P20: =IF(図面!P20="","",図面!P20) ->  | Q20: =IF(図面!Q20="","",図面!Q20) ->  | R20: =IF(図面!R20="","",図面!R20) ->  | S20: =IF(図面!S20="","",図面!S20) ->  | T20: =IF(図面!T20="","",図面!T20) ->  | U20: =IF(図面!U20="","",図面!U20) ->  | V20: =IF(図面!V20="","",図面!V20) ->  | W20: =IF(図面!W20="","",図面!W20) ->  | X20: =IF(図面!X20="","",図面!X20) ->  | Y20: =IF(図面!Y20="","",図面!Y20) ->  | Z20: =IF(図面!Z20="","",図面!Z20) ->  | AB20: 必要壁量 | AC20: =面積計算!AL21 -> 0 | AD20: =図面!$AO$21 -> 33 | AE20: =(AC20*AD20)/100 -> 0
AB21: 存在壁量 | AE21: =壁量計算!AW21 -> 0
AB22: 壁量充足率 | AE22: =IFERROR(AE21/AE20,"") ->  | AF22: =IF(AE22="","",IF(AE21/AE20>1,("OK"),("NG"))) ->  | AG22: 存在壁量/必要壁量>1
AB24: (左) | AC24: 分割面積 | AD24: 係数 | AE24: 壁量 | AF24: 判定
AB25: 必要壁量 | AC25: =面積計算!AA31 -> 0 | AD25: =図面!$AO$21 -> 33 | AE25: =(AC25*AD25)/100 -> 0
AB26: 存在壁量 | AE26: =壁量計算!AA40 -> 0
AB27: 壁量充足率 | AE27: =IFERROR(AE26/AE25,"") ->  | AF27: =IF(AE27="","",IF(AE26/AE25>1,("OK"),("NG"))) ->  | AG27: 存在壁量/必要壁量>1
AB29: (右) | AC29: 分割面積 | AD29: 係数 | AE29: 壁量 | AF29: 判定
AB30: 必要壁量 | AC30: =面積計算!AA32 -> 0 | AD30: =図面!$AO$21 -> 33 | AE30: =(AC30*AD30)/100 -> 0
AB31: 存在壁量 | AE31: =壁量計算!AA43 -> 0
AB32: 壁量充足率 | AE32: =IFERROR(AE31/AE30,"") ->  | AF32: =IF(AE32="","",IF(AE31/AE30>1,("OK"),("NG"))) ->  | AG32: 存在壁量/必要壁量>1
AB34: 上下壁率比
AB35: 小の値 | AC35: 大の値 | AD35: 壁率比 | AE35: 基準 | AF35: 判定
AB36: =MINA(AE17,AE22) -> 0 | AC36: =MAX(AE17,AE22) -> 0 | AD36: =IF(AB36=0,"",AB36/AC36) ->  | AE36: ≧0.5 | AF36: =IF(AD36="","",IF(AD36>=0.5,("OK"),("NG"))) -> 
AF37: =IF(AD36="","",IF(AND(AE17>=1,AE22>=1),"計算不要",AF36)) ->  | AG37: 上下どちらも壁量充足率が>1のときは計算不要
AB38: 左右壁率比
AB39: 小の値 | AC39: 大の値 | AD39: 壁率比 | AE39: 基準 | AF39: 判定
AB40: =MINA(AE27,AE32) -> 0 | AC40: =MAX(AE27,AE32) -> 0 | AD40: =IF(AB40=0,"",AB40/AC40) ->  | AE40: ≧0.5 | AF40: =IF(AD40="","",IF(AD40>=0.5,("OK"),("NG"))) -> 
AF41: =IF(AD40="","",IF(AND(AE27>=1,AE32>=1),"計算不要",AF40)) ->  | AG41: 左右どちらも壁量充足率が>1のときは計算不要

Sheet 計算結果2階
D3: =図面!D2 -> 910 | E3: =図面!E2 -> 910 | F3: =図面!F2 -> 910 | G3: =図面!G2 -> 910 | H3: =図面!H2 -> 910 | I3: =図面!I2 -> 910 | J3: =図面!J2 -> 910 | K3: =図面!K2 -> 910 | L3: =図面!L2 -> 910 | M3: =図面!M2 -> 910 | N3: =図面!N2 -> 910 | O3: =図面!O2 -> 910 | P3: =図面!P2 -> 910 | Q3: =図面!Q2 -> 910 | R3: =図面!R2 -> 910 | S3: =図面!S2 -> 910 | T3: =図面!T2 -> 910 | U3: =図面!U2 -> 910 | V3: =図面!V2 -> 910 | W3: =図面!W2 -> 910 | X3: =図面!X2 -> 910 | Y3: =図面!Y2 -> 910 | Z3: =図面!Z2 -> 910 | AF3: 壁量単位:cm
C4: =図面!B4 -> 910 | D4: =IF(図面2階!D4="","",図面2階!D4) ->  | E4: =IF(図面2階!E4="","",図面2階!E4) ->  | F4: =IF(図面2階!F4="","",図面2階!F4) ->  | G4: =IF(図面2階!G4="","",図面2階!G4) ->  | H4: =IF(図面2階!H4="","",図面2階!H4) ->  | I4: =IF(図面2階!I4="","",図面2階!I4) ->  | J4: =IF(図面2階!J4="","",図面2階!J4) ->  | K4: =IF(図面2階!K4="","",図面2階!K4) ->  | L4: =IF(図面2階!L4="","",図面2階!L4) ->  | M4: =IF(図面2階!M4="","",図面2階!M4) ->  | N4: =IF(図面2階!N4="","",図面2階!N4) ->  | O4: =IF(図面2階!O4="","",図面2階!O4) ->  | P4: =IF(図面2階!P4="","",図面2階!P4) ->  | Q4: =IF(図面2階!Q4="","",図面2階!Q4) ->  | R4: =IF(図面2階!R4="","",図面2階!R4) ->  | S4: =IF(図面2階!S4="","",図面2階!S4) ->  | T4: =IF(図面2階!T4="","",図面2階!T4) ->  | U4: =IF(図面2階!U4="","",図面2階!U4) ->  | V4: =IF(図面2階!V4="","",図面2階!V4) ->  | W4: =IF(図面2階!W4="","",図面2階!W4) ->  | X4: =IF(図面2階!X4="","",図面2階!X4) ->  | Y4: =IF(図面2階!Y4="","",図面2階!Y4) ->  | Z4: =IF(図面2階!Z4="","",図面2階!Z4) ->  | AD4: 係数 | AE4: 必要壁量 | AF4: 判定
C5: =図面!B5 -> 910 | D5: =IF(図面2階!D5="","",図面2階!D5) ->  | E5: =IF(図面2階!E5="","",図面2階!E5) ->  | F5: =IF(図面2階!F5="","",図面2階!F5) ->  | G5: =IF(図面2階!G5="","",図面2階!G5) ->  | H5: =IF(図面2階!H5="","",図面2階!H5) ->  | I5: =IF(図面2階!I5="","",図面2階!I5) ->  | J5: =IF(図面2階!J5="","",図面2階!J5) ->  | K5: =IF(図面2階!K5="","",図面2階!K5) ->  | L5: =IF(図面2階!L5="","",図面2階!L5) ->  | M5: =IF(図面2階!M5="","",図面2階!M5) ->  | N5: =IF(図面2階!N5="","",図面2階!N5) ->  | O5: =IF(図面2階!O5="","",図面2階!O5) ->  | P5: =IF(図面2階!P5="","",図面2階!P5) ->  | Q5: =IF(図面2階!Q5="","",図面2階!Q5) ->  | R5: =IF(図面2階!R5="","",図面2階!R5) ->  | S5: =IF(図面2階!S5="","",図面2階!S5) ->  | T5: =IF(図面2階!T5="","",図面2階!T5) ->  | U5: =IF(図面2階!U5="","",図面2階!U5) ->  | V5: =IF(図面2階!V5="","",図面2階!V5) ->  | W5: =IF(図面2階!W5="","",図面2階!W5) ->  | X5: =IF(図面2階!X5="","",図面2階!X5) ->  | Y5: =IF(図面2階!Y5="","",図面2階!Y5) ->  | Z5: =IF(図面2階!Z5="","",図面2階!Z5) ->  | AB5: 延床面積 | AC5: =図面2階!AE15 -> 0 | AD5: =図面2階!AO21 -> 21 | AE5: =(AC5*AD5)/100 -> 0
C6: =図面!B6 -> 910 | D6: =IF(図面2階!D6="","",図面2階!D6) ->  | E6: =IF(図面2階!E6="","",図面2階!E6) ->  | F6: =IF(図面2階!F6="","",図面2階!F6) ->  | G6: =IF(図面2階!G6="","",図面2階!G6) ->  | H6: =IF(図面2階!H6="","",図面2階!H6) ->  | I6: =IF(図面2階!I6="","",図面2階!I6) ->  | J6: =IF(図面2階!J6="","",図面2階!J6) ->  | K6: =IF(図面2階!K6="","",図面2階!K6) ->  | L6: =IF(図面2階!L6="","",図面2階!L6) ->  | M6: =IF(図面2階!M6="","",図面2階!M6) ->  | N6: =IF(図面2階!N6="","",図面2階!N6) ->  | O6: =IF(図面2階!O6="","",図面2階!O6) ->  | P6: =IF(図面2階!P6="","",図面2階!P6) ->  | Q6: =IF(図面2階!Q6="","",図面2階!Q6) ->  | R6: =IF(図面2階!R6="","",図面2階!R6) ->  | S6: =IF(図面2階!S6="","",図面2階!S6) ->  | T6: =IF(図面2階!T6="","",図面2階!T6) ->  | U6: =IF(図面2階!U6="","",図面2階!U6) ->  | V6: =IF(図面2階!V6="","",図面2階!V6) ->  | W6: =IF(図面2階!W6="","",図面2階!W6) ->  | X6: =IF(図面2階!X6="","",図面2階!X6) ->  | Y6: =IF(図面2階!Y6="","",図面2階!Y6) ->  | Z6: =IF(図面2階!Z6="","",図面2階!Z6) ->  | AB6: 見付面積(桁行計算用） | AC6: =図面2階!AO18 -> 10.35 | AD6: 50 | AE6: =(AC6*AD6)/100 -> 5.175 | AF6: =IF(AE5>AE6,"床","見付") -> 見付 | AG6: 床面積と見付面積での計算値の大きい方
C7: =図面!B7 -> 910 | D7: =IF(図面2階!D7="","",図面2階!D7) ->  | E7: =IF(図面2階!E7="","",図面2階!E7) ->  | F7: =IF(図面2階!F7="","",図面2階!F7) ->  | G7: =IF(図面2階!G7="","",図面2階!G7) ->  | H7: =IF(図面2階!H7="","",図面2階!H7) ->  | I7: =IF(図面2階!I7="","",図面2階!I7) ->  | J7: =IF(図面2階!J7="","",図面2階!J7) ->  | K7: =IF(図面2階!K7="","",図面2階!K7) ->  | L7: =IF(図面2階!L7="","",図面2階!L7) ->  | M7: =IF(図面2階!M7="","",図面2階!M7) ->  | N7: =IF(図面2階!N7="","",図面2階!N7) ->  | O7: =IF(図面2階!O7="","",図面2階!O7) ->  | P7: =IF(図面2階!P7="","",図面2階!P7) ->  | Q7: =IF(図面2階!Q7="","",図面2階!Q7) ->  | R7: =IF(図面2階!R7="","",図面2階!R7) ->  | S7: =IF(図面2階!S7="","",図面2階!S7) ->  | T7: =IF(図面2階!T7="","",図面2階!T7) ->  | U7: =IF(図面2階!U7="","",図面2階!U7) ->  | V7: =IF(図面2階!V7="","",図面2階!V7) ->  | W7: =IF(図面2階!W7="","",図面2階!W7) ->  | X7: =IF(図面2階!X7="","",図面2階!X7) ->  | Y7: =IF(図面2階!Y7="","",図面2階!Y7) ->  | Z7: =IF(図面2階!Z7="","",図面2階!Z7) ->  | AB7: 見付面積(梁間計算用） | AC7: =図面2階!AO19 -> 26.25 | AD7: 50 | AE7: =(AC7*AD7)/100 -> 13.125 | AF7: =IF(AE5>AE7,"床","見付") -> 見付 | AG7: 床面積と見付面積での計算値の大きい方
C8: =図面!B8 -> 910 | D8: =IF(図面2階!D8="","",図面2階!D8) ->  | E8: =IF(図面2階!E8="","",図面2階!E8) ->  | F8: =IF(図面2階!F8="","",図面2階!F8) ->  | G8: =IF(図面2階!G8="","",図面2階!G8) ->  | H8: =IF(図面2階!H8="","",図面2階!H8) ->  | I8: =IF(図面2階!I8="","",図面2階!I8) ->  | J8: =IF(図面2階!J8="","",図面2階!J8) ->  | K8: =IF(図面2階!K8="","",図面2階!K8) ->  | L8: =IF(図面2階!L8="","",図面2階!L8) ->  | M8: =IF(図面2階!M8="","",図面2階!M8) ->  | N8: =IF(図面2階!N8="","",図面2階!N8) ->  | O8: =IF(図面2階!O8="","",図面2階!O8) ->  | P8: =IF(図面2階!P8="","",図面2階!P8) ->  | Q8: =IF(図面2階!Q8="","",図面2階!Q8) ->  | R8: =IF(図面2階!R8="","",図面2階!R8) ->  | S8: =IF(図面2階!S8="","",図面2階!S8) ->  | T8: =IF(図面2階!T8="","",図面2階!T8) ->  | U8: =IF(図面2階!U8="","",図面2階!U8) ->  | V8: =IF(図面2階!V8="","",図面2階!V8) ->  | W8: =IF(図面2階!W8="","",図面2階!W8) ->  | X8: =IF(図面2階!X8="","",図面2階!X8) ->  | Y8: =IF(図面2階!Y8="","",図面2階!Y8) ->  | Z8: =IF(図面2階!Z8="","",図面2階!Z8) -> 
C9: =図面!B9 -> 910 | D9: =IF(図面2階!D9="","",図面2階!D9) ->  | E9: =IF(図面2階!E9="","",図面2階!E9) ->  | F9: =IF(図面2階!F9="","",図面2階!F9) ->  | G9: =IF(図面2階!G9="","",図面2階!G9) ->  | H9: =IF(図面2階!H9="","",図面2階!H9) ->  | I9: =IF(図面2階!I9="","",図面2階!I9) ->  | J9: =IF(図面2階!J9="","",図面2階!J9) ->  | K9: =IF(図面2階!K9="","",図面2階!K9) ->  | L9: =IF(図面2階!L9="","",図面2階!L9) ->  | M9: =IF(図面2階!M9="","",図面2階!M9) ->  | N9: =IF(図面2階!N9="","",図面2階!N9) ->  | O9: =IF(図面2階!O9="","",図面2階!O9) ->  | P9: =IF(図面2階!P9="","",図面2階!P9) ->  | Q9: =IF(図面2階!Q9="","",図面2階!Q9) ->  | R9: =IF(図面2階!R9="","",図面2階!R9) ->  | S9: =IF(図面2階!S9="","",図面2階!S9) ->  | T9: =IF(図面2階!T9="","",図面2階!T9) ->  | U9: =IF(図面2階!U9="","",図面2階!U9) ->  | V9: =IF(図面2階!V9="","",図面2階!V9) ->  | W9: =IF(図面2階!W9="","",図面2階!W9) ->  | X9: =IF(図面2階!X9="","",図面2階!X9) ->  | Y9: =IF(図面2階!Y9="","",図面2階!Y9) ->  | Z9: =IF(図面2階!Z9="","",図面2階!Z9) ->  | AC9: 計算値大 | AD9: 必要壁量 | AE9: 存在壁量 | AF9: 判定
C10: =図面!B10 -> 910 | D10: =IF(図面2階!D10="","",図面2階!D10) ->  | E10: =IF(図面2階!E10="","",図面2階!E10) ->  | F10: =IF(図面2階!F10="","",図面2階!F10) ->  | G10: =IF(図面2階!G10="","",図面2階!G10) ->  | H10: =IF(図面2階!H10="","",図面2階!H10) ->  | I10: =IF(図面2階!I10="","",図面2階!I10) ->  | J10: =IF(図面2階!J10="","",図面2階!J10) ->  | K10: =IF(図面2階!K10="","",図面2階!K10) ->  | L10: =IF(図面2階!L10="","",図面2階!L10) ->  | M10: =IF(図面2階!M10="","",図面2階!M10) ->  | N10: =IF(図面2階!N10="","",図面2階!N10) ->  | O10: =IF(図面2階!O10="","",図面2階!O10) ->  | P10: =IF(図面2階!P10="","",図面2階!P10) ->  | Q10: =IF(図面2階!Q10="","",図面2階!Q10) ->  | R10: =IF(図面2階!R10="","",図面2階!R10) ->  | S10: =IF(図面2階!S10="","",図面2階!S10) ->  | T10: =IF(図面2階!T10="","",図面2階!T10) ->  | U10: =IF(図面2階!U10="","",図面2階!U10) ->  | V10: =IF(図面2階!V10="","",図面2階!V10) ->  | W10: =IF(図面2階!W10="","",図面2階!W10) ->  | X10: =IF(図面2階!X10="","",図面2階!X10) ->  | Y10: =IF(図面2階!Y10="","",図面2階!Y10) ->  | Z10: =IF(図面2階!Z10="","",図面2階!Z10) ->  | AB10: 桁行方向壁量 | AC10: =AF6 -> 見付 | AD10: =MAX(AE5,AE6) -> 5.175 | AE10: =壁量計算2階!AO21 -> 0 | AF10: =IF(AE10=0,"",IF(AE10>=MAX(AE5,AE6),("OK"),("NG"))) ->  | AG10: 必要壁量≦存在壁量
C11: =図面!B11 -> 910 | D11: =IF(図面2階!D11="","",図面2階!D11) ->  | E11: =IF(図面2階!E11="","",図面2階!E11) ->  | F11: =IF(図面2階!F11="","",図面2階!F11) ->  | G11: =IF(図面2階!G11="","",図面2階!G11) ->  | H11: =IF(図面2階!H11="","",図面2階!H11) ->  | I11: =IF(図面2階!I11="","",図面2階!I11) ->  | J11: =IF(図面2階!J11="","",図面2階!J11) ->  | K11: =IF(図面2階!K11="","",図面2階!K11) ->  | L11: =IF(図面2階!L11="","",図面2階!L11) ->  | M11: =IF(図面2階!M11="","",図面2階!M11) ->  | N11: =IF(図面2階!N11="","",図面2階!N11) ->  | O11: =IF(図面2階!O11="","",図面2階!O11) ->  | P11: =IF(図面2階!P11="","",図面2階!P11) ->  | Q11: =IF(図面2階!Q11="","",図面2階!Q11) ->  | R11: =IF(図面2階!R11="","",図面2階!R11) ->  | S11: =IF(図面2階!S11="","",図面2階!S11) ->  | T11: =IF(図面2階!T11="","",図面2階!T11) ->  | U11: =IF(図面2階!U11="","",図面2階!U11) ->  | V11: =IF(図面2階!V11="","",図面2階!V11) ->  | W11: =IF(図面2階!W11="","",図面2階!W11) ->  | X11: =IF(図面2階!X11="","",図面2階!X11) ->  | Y11: =IF(図面2階!Y11="","",図面2階!Y11) ->  | Z11: =IF(図面2階!Z11="","",図面2階!Z11) ->  | AB11: 梁間方向壁量 | AC11: =AF7 -> 見付 | AD11: =MAX(AE5,AE7) -> 13.125 | AE11: =壁量計算2階!AA35 -> 0 | AF11: =IF(AE11=0,"",IF(AE11>=MAX(AE5,AE7),("OK"),("NG"))) ->  | AG11: 必要壁量≦存在壁量
C12: =図面!B12 -> 910 | D12: =IF(図面2階!D12="","",図面2階!D12) ->  | E12: =IF(図面2階!E12="","",図面2階!E12) ->  | F12: =IF(図面2階!F12="","",図面2階!F12) ->  | G12: =IF(図面2階!G12="","",図面2階!G12) ->  | H12: =IF(図面2階!H12="","",図面2階!H12) ->  | I12: =IF(図面2階!I12="","",図面2階!I12) ->  | J12: =IF(図面2階!J12="","",図面2階!J12) ->  | K12: =IF(図面2階!K12="","",図面2階!K12) ->  | L12: =IF(図面2階!L12="","",図面2階!L12) ->  | M12: =IF(図面2階!M12="","",図面2階!M12) ->  | N12: =IF(図面2階!N12="","",図面2階!N12) ->  | O12: =IF(図面2階!O12="","",図面2階!O12) ->  | P12: =IF(図面2階!P12="","",図面2階!P12) ->  | Q12: =IF(図面2階!Q12="","",図面2階!Q12) ->  | R12: =IF(図面2階!R12="","",図面2階!R12) ->  | S12: =IF(図面2階!S12="","",図面2階!S12) ->  | T12: =IF(図面2階!T12="","",図面2階!T12) ->  | U12: =IF(図面2階!U12="","",図面2階!U12) ->  | V12: =IF(図面2階!V12="","",図面2階!V12) ->  | W12: =IF(図面2階!W12="","",図面2階!W12) ->  | X12: =IF(図面2階!X12="","",図面2階!X12) ->  | Y12: =IF(図面2階!Y12="","",図面2階!Y12) ->  | Z12: =IF(図面2階!Z12="","",図面2階!Z12) -> 
C13: =図面!B13 -> 910 | D13: =IF(図面2階!D13="","",図面2階!D13) ->  | E13: =IF(図面2階!E13="","",図面2階!E13) ->  | F13: =IF(図面2階!F13="","",図面2階!F13) ->  | G13: =IF(図面2階!G13="","",図面2階!G13) ->  | H13: =IF(図面2階!H13="","",図面2階!H13) ->  | I13: =IF(図面2階!I13="","",図面2階!I13) ->  | J13: =IF(図面2階!J13="","",図面2階!J13) ->  | K13: =IF(図面2階!K13="","",図面2階!K13) ->  | L13: =IF(図面2階!L13="","",図面2階!L13) ->  | M13: =IF(図面2階!M13="","",図面2階!M13) ->  | N13: =IF(図面2階!N13="","",図面2階!N13) ->  | O13: =IF(図面2階!O13="","",図面2階!O13) ->  | P13: =IF(図面2階!P13="","",図面2階!P13) ->  | Q13: =IF(図面2階!Q13="","",図面2階!Q13) ->  | R13: =IF(図面2階!R13="","",図面2階!R13) ->  | S13: =IF(図面2階!S13="","",図面2階!S13) ->  | T13: =IF(図面2階!T13="","",図面2階!T13) ->  | U13: =IF(図面2階!U13="","",図面2階!U13) ->  | V13: =IF(図面2階!V13="","",図面2階!V13) ->  | W13: =IF(図面2階!W13="","",図面2階!W13) ->  | X13: =IF(図面2階!X13="","",図面2階!X13) ->  | Y13: =IF(図面2階!Y13="","",図面2階!Y13) ->  | Z13: =IF(図面2階!Z13="","",図面2階!Z13) ->  | AB13: バランス計算 | AF13: 壁量単位:cm
C14: =図面!B14 -> 910 | D14: =IF(図面2階!D14="","",図面2階!D14) ->  | E14: =IF(図面2階!E14="","",図面2階!E14) ->  | F14: =IF(図面2階!F14="","",図面2階!F14) ->  | G14: =IF(図面2階!G14="","",図面2階!G14) ->  | H14: =IF(図面2階!H14="","",図面2階!H14) ->  | I14: =IF(図面2階!I14="","",図面2階!I14) ->  | J14: =IF(図面2階!J14="","",図面2階!J14) ->  | K14: =IF(図面2階!K14="","",図面2階!K14) ->  | L14: =IF(図面2階!L14="","",図面2階!L14) ->  | M14: =IF(図面2階!M14="","",図面2階!M14) ->  | N14: =IF(図面2階!N14="","",図面2階!N14) ->  | O14: =IF(図面2階!O14="","",図面2階!O14) ->  | P14: =IF(図面2階!P14="","",図面2階!P14) ->  | Q14: =IF(図面2階!Q14="","",図面2階!Q14) ->  | R14: =IF(図面2階!R14="","",図面2階!R14) ->  | S14: =IF(図面2階!S14="","",図面2階!S14) ->  | T14: =IF(図面2階!T14="","",図面2階!T14) ->  | U14: =IF(図面2階!U14="","",図面2階!U14) ->  | V14: =IF(図面2階!V14="","",図面2階!V14) ->  | W14: =IF(図面2階!W14="","",図面2階!W14) ->  | X14: =IF(図面2階!X14="","",図面2階!X14) ->  | Y14: =IF(図面2階!Y14="","",図面2階!Y14) ->  | Z14: =IF(図面2階!Z14="","",図面2階!Z14) ->  | AB14: (上) | AC14: 分割面積 | AD14: 係数 | AE14: 壁量 | AF14: 判定
C15: =図面!B15 -> 910 | D15: =IF(図面2階!D15="","",図面2階!D15) ->  | E15: =IF(図面2階!E15="","",図面2階!E15) ->  | F15: =IF(図面2階!F15="","",図面2階!F15) ->  | G15: =IF(図面2階!G15="","",図面2階!G15) ->  | H15: =IF(図面2階!H15="","",図面2階!H15) ->  | I15: =IF(図面2階!I15="","",図面2階!I15) ->  | J15: =IF(図面2階!J15="","",図面2階!J15) ->  | K15: =IF(図面2階!K15="","",図面2階!K15) ->  | L15: =IF(図面2階!L15="","",図面2階!L15) ->  | M15: =IF(図面2階!M15="","",図面2階!M15) ->  | N15: =IF(図面2階!N15="","",図面2階!N15) ->  | O15: =IF(図面2階!O15="","",図面2階!O15) ->  | P15: =IF(図面2階!P15="","",図面2階!P15) ->  | Q15: =IF(図面2階!Q15="","",図面2階!Q15) ->  | R15: =IF(図面2階!R15="","",図面2階!R15) ->  | S15: =IF(図面2階!S15="","",図面2階!S15) ->  | T15: =IF(図面2階!T15="","",図面2階!T15) ->  | U15: =IF(図面2階!U15="","",図面2階!U15) ->  | V15: =IF(図面2階!V15="","",図面2階!V15) ->  | W15: =IF(図面2階!W15="","",図面2階!W15) ->  | X15: =IF(図面2階!X15="","",図面2階!X15) ->  | Y15: =IF(図面2階!Y15="","",図面2階!Y15) ->  | Z15: =IF(図面2階!Z15="","",図面2階!Z15) ->  | AB15: 必要壁量 | AC15: =面積計算2階!AK21 -> 0 | AD15: =図面2階!$AO$21 -> 21 | AE15: =(AC15*AD15)/100 -> 0
C16: =図面!B16 -> 910 | D16: =IF(図面2階!D16="","",図面2階!D16) ->  | E16: =IF(図面2階!E16="","",図面2階!E16) ->  | F16: =IF(図面2階!F16="","",図面2階!F16) ->  | G16: =IF(図面2階!G16="","",図面2階!G16) ->  | H16: =IF(図面2階!H16="","",図面2階!H16) ->  | I16: =IF(図面2階!I16="","",図面2階!I16) ->  | J16: =IF(図面2階!J16="","",図面2階!J16) ->  | K16: =IF(図面2階!K16="","",図面2階!K16) ->  | L16: =IF(図面2階!L16="","",図面2階!L16) ->  | M16: =IF(図面2階!M16="","",図面2階!M16) ->  | N16: =IF(図面2階!N16="","",図面2階!N16) ->  | O16: =IF(図面2階!O16="","",図面2階!O16) ->  | P16: =IF(図面2階!P16="","",図面2階!P16) ->  | Q16: =IF(図面2階!Q16="","",図面2階!Q16) ->  | R16: =IF(図面2階!R16="","",図面2階!R16) ->  | S16: =IF(図面2階!S16="","",図面2階!S16) ->  | T16: =IF(図面2階!T16="","",図面2階!T16) ->  | U16: =IF(図面2階!U16="","",図面2階!U16) ->  | V16: =IF(図面2階!V16="","",図面2階!V16) ->  | W16: =IF(図面2階!W16="","",図面2階!W16) ->  | X16: =IF(図面2階!X16="","",図面2階!X16) ->  | Y16: =IF(図面2階!Y16="","",図面2階!Y16) ->  | Z16: =IF(図面2階!Z16="","",図面2階!Z16) ->  | AB16: 存在壁量 | AE16: =壁量計算2階!AT21 -> 0
C17: =図面!B17 -> 910 | D17: =IF(図面2階!D17="","",図面2階!D17) ->  | E17: =IF(図面2階!E17="","",図面2階!E17) ->  | F17: =IF(図面2階!F17="","",図面2階!F17) ->  | G17: =IF(図面2階!G17="","",図面2階!G17) ->  | H17: =IF(図面2階!H17="","",図面2階!H17) ->  | I17: =IF(図面2階!I17="","",図面2階!I17) ->  | J17: =IF(図面2階!J17="","",図面2階!J17) ->  | K17: =IF(図面2階!K17="","",図面2階!K17) ->  | L17: =IF(図面2階!L17="","",図面2階!L17) ->  | M17: =IF(図面2階!M17="","",図面2階!M17) ->  | N17: =IF(図面2階!N17="","",図面2階!N17) ->  | O17: =IF(図面2階!O17="","",図面2階!O17) ->  | P17: =IF(図面2階!P17="","",図面2階!P17) ->  | Q17: =IF(図面2階!Q17="","",図面2階!Q17) ->  | R17: =IF(図面2階!R17="","",図面2階!R17) ->  | S17: =IF(図面2階!S17="","",図面2階!S17) ->  | T17: =IF(図面2階!T17="","",図面2階!T17) ->  | U17: =IF(図面2階!U17="","",図面2階!U17) ->  | V17: =IF(図面2階!V17="","",図面2階!V17) ->  | W17: =IF(図面2階!W17="","",図面2階!W17) ->  | X17: =IF(図面2階!X17="","",図面2階!X17) ->  | Y17: =IF(図面2階!Y17="","",図面2階!Y17) ->  | Z17: =IF(図面2階!Z17="","",図面2階!Z17) ->  | AB17: 壁量充足率 | AE17: =IFERROR(AE16/AE15,"") ->  | AF17: =IF(AE17="","",IF(AE16/AE15>1,("OK"),("NG"))) ->  | AG17: 存在壁量/必要壁量>1
C18: =図面!B18 -> 910 | D18: =IF(図面2階!D18="","",図面2階!D18) ->  | E18: =IF(図面2階!E18="","",図面2階!E18) ->  | F18: =IF(図面2階!F18="","",図面2階!F18) ->  | G18: =IF(図面2階!G18="","",図面2階!G18) ->  | H18: =IF(図面2階!H18="","",図面2階!H18) ->  | I18: =IF(図面2階!I18="","",図面2階!I18) ->  | J18: =IF(図面2階!J18="","",図面2階!J18) ->  | K18: =IF(図面2階!K18="","",図面2階!K18) ->  | L18: =IF(図面2階!L18="","",図面2階!L18) ->  | M18: =IF(図面2階!M18="","",図面2階!M18) ->  | N18: =IF(図面2階!N18="","",図面2階!N18) ->  | O18: =IF(図面2階!O18="","",図面2階!O18) ->  | P18: =IF(図面2階!P18="","",図面2階!P18) ->  | Q18: =IF(図面2階!Q18="","",図面2階!Q18) ->  | R18: =IF(図面2階!R18="","",図面2階!R18) ->  | S18: =IF(図面2階!S18="","",図面2階!S18) ->  | T18: =IF(図面2階!T18="","",図面2階!T18) ->  | U18: =IF(図面2階!U18="","",図面2階!U18) ->  | V18: =IF(図面2階!V18="","",図面2階!V18) ->  | W18: =IF(図面2階!W18="","",図面2階!W18) ->  | X18: =IF(図面2階!X18="","",図面2階!X18) ->  | Y18: =IF(図面2階!Y18="","",図面2階!Y18) ->  | Z18: =IF(図面2階!Z18="","",図面2階!Z18) -> 
C19: =図面!B19 -> 910 | D19: =IF(図面2階!D19="","",図面2階!D19) ->  | E19: =IF(図面2階!E19="","",図面2階!E19) ->  | F19: =IF(図面2階!F19="","",図面2階!F19) ->  | G19: =IF(図面2階!G19="","",図面2階!G19) ->  | H19: =IF(図面2階!H19="","",図面2階!H19) ->  | I19: =IF(図面2階!I19="","",図面2階!I19) ->  | J19: =IF(図面2階!J19="","",図面2階!J19) ->  | K19: =IF(図面2階!K19="","",図面2階!K19) ->  | L19: =IF(図面2階!L19="","",図面2階!L19) ->  | M19: =IF(図面2階!M19="","",図面2階!M19) ->  | N19: =IF(図面2階!N19="","",図面2階!N19) ->  | O19: =IF(図面2階!O19="","",図面2階!O19) ->  | P19: =IF(図面2階!P19="","",図面2階!P19) ->  | Q19: =IF(図面2階!Q19="","",図面2階!Q19) ->  | R19: =IF(図面2階!R19="","",図面2階!R19) ->  | S19: =IF(図面2階!S19="","",図面2階!S19) ->  | T19: =IF(図面2階!T19="","",図面2階!T19) ->  | U19: =IF(図面2階!U19="","",図面2階!U19) ->  | V19: =IF(図面2階!V19="","",図面2階!V19) ->  | W19: =IF(図面2階!W19="","",図面2階!W19) ->  | X19: =IF(図面2階!X19="","",図面2階!X19) ->  | Y19: =IF(図面2階!Y19="","",図面2階!Y19) ->  | Z19: =IF(図面2階!Z19="","",図面2階!Z19) ->  | AB19: (下) | AC19: 分割面積 | AD19: 係数 | AE19: 壁量 | AF19: 判定
C20: =図面!B20 -> 910 | D20: =IF(図面2階!D20="","",図面2階!D20) ->  | E20: =IF(図面2階!E20="","",図面2階!E20) ->  | F20: =IF(図面2階!F20="","",図面2階!F20) ->  | G20: =IF(図面2階!G20="","",図面2階!G20) ->  | H20: =IF(図面2階!H20="","",図面2階!H20) ->  | I20: =IF(図面2階!I20="","",図面2階!I20) ->  | J20: =IF(図面2階!J20="","",図面2階!J20) ->  | K20: =IF(図面2階!K20="","",図面2階!K20) ->  | L20: =IF(図面2階!L20="","",図面2階!L20) ->  | M20: =IF(図面2階!M20="","",図面2階!M20) ->  | N20: =IF(図面2階!N20="","",図面2階!N20) ->  | O20: =IF(図面2階!O20="","",図面2階!O20) ->  | P20: =IF(図面2階!P20="","",図面2階!P20) ->  | Q20: =IF(図面2階!Q20="","",図面2階!Q20) ->  | R20: =IF(図面2階!R20="","",図面2階!R20) ->  | S20: =IF(図面2階!S20="","",図面2階!S20) ->  | T20: =IF(図面2階!T20="","",図面2階!T20) ->  | U20: =IF(図面2階!U20="","",図面2階!U20) ->  | V20: =IF(図面2階!V20="","",図面2階!V20) ->  | W20: =IF(図面2階!W20="","",図面2階!W20) ->  | X20: =IF(図面2階!X20="","",図面2階!X20) ->  | Y20: =IF(図面2階!Y20="","",図面2階!Y20) ->  | Z20: =IF(図面2階!Z20="","",図面2階!Z20) ->  | AB20: 必要壁量 | AC20: =面積計算2階!AL21 -> 0 | AD20: =図面2階!$AO$21 -> 21 | AE20: =(AC20*AD20)/100 -> 0
AB21: 存在壁量 | AE21: =壁量計算2階!AW21 -> 0
AB22: 壁量充足率 | AE22: =IFERROR(AE21/AE20,"") ->  | AF22: =IF(AE22="","",IF(AE21/AE20>1,("OK"),("NG"))) ->  | AG22: 存在壁量/必要壁量>1
AB24: (左) | AC24: 分割面積 | AD24: 係数 | AE24: 壁量 | AF24: 判定
AB25: 必要壁量 | AC25: =面積計算2階!AA31 -> 0 | AD25: =図面2階!$AO$21 -> 21 | AE25: =(AC25*AD25)/100 -> 0
AB26: 存在壁量 | AE26: =壁量計算2階!AA40 -> 0
AB27: 壁量充足率 | AE27: =IFERROR(AE26/AE25,"") ->  | AF27: =IF(AE27="","",IF(AE26/AE25>1,("OK"),("NG"))) ->  | AG27: 存在壁量/必要壁量>1
AB29: (右) | AC29: 分割面積 | AD29: 係数 | AE29: 壁量 | AF29: 判定
AB30: 必要壁量 | AC30: =面積計算2階!AA32 -> 0 | AD30: =図面2階!$AO$21 -> 21 | AE30: =(AC30*AD30)/100 -> 0
AB31: 存在壁量 | AE31: =壁量計算2階!AA43 -> 0
AB32: 壁量充足率 | AE32: =IFERROR(AE31/AE30,"") ->  | AF32: =IF(AE32="","",IF(AE31/AE30>1,("OK"),("NG"))) ->  | AG32: 存在壁量/必要壁量>1
AB34: 上下壁率比
AB35: 小の値 | AC35: 大の値 | AD35: 壁率比 | AE35: 基準 | AF35: 判定
AB36: =MINA(AE17,AE22) -> 0 | AC36: =MAX(AE17,AE22) -> 0 | AD36: =IF(AB36=0,"",AB36/AC36) ->  | AE36: ≧0.5 | AF36: =IF(AD36="","",IF(AD36>=0.5,("OK"),("NG"))) -> 
AF37: =IF(AD36="","",IF(AND(AE17>=1,AE22>=1),"計算不要",AF36)) ->  | AG37: 上下どちらも壁量充足率が>1のときは計算不要
AB38: 左右壁率比
AB39: 小の値 | AC39: 大の値 | AD39: 壁率比 | AE39: 基準 | AF39: 判定
AB40: =MINA(AE27,AE32) -> 0 | AC40: =MAX(AE27,AE32) -> 0 | AD40: =IF(AB40=0,"",AB40/AC40) ->  | AE40: ≧0.5 | AF40: =IF(AD40="","",IF(AD40>=0.5,("OK"),("NG"))) -> 
AF41: =IF(AD40="","",IF(AND(AE27>=1,AE32>=1),"計算不要",AF40)) ->  | AG41: 左右どちらも壁量充足率が>1のときは計算不要

Sheet N値（桁行）
C3: 7 | J3: ↓え | K3: ↓え | N3: ↓え | Q3: ↓え | AA3: ↓計算軸 | AE3: ２階 | AG3: 耐力壁 | AH3: 入力 | AI3: 耐力壁の種類 | AM3: 記号 | AN3: 倍率
C4: 8 | I4: →え | N4: ←い | R4: ←え | AA4: ↑計算軸 | AH4: あ | AI4: 筋カイ45×90(右上) | AM4: 右上 | AN4: 2
AH5: い | AI5: 筋カイ45×90(左上) | AM5: 左上 | AN5: 2
C6: 7 | J6: ↓え | M6: ↓え | Q6: ↓え | S6: ↓え | AA6: ↓計算軸 | AE6: １階 | AH6: う | AI6: 筋カイ45×90(タスキ) | AM6: タスキ | AN6: 4
C7: 8 | I7: →え | N7: ←い | P7: ｀柱 | R7: ←い | T7: ←え | AA7: ↑計算軸 | AH7: え | AI7: 耐力面材 | AM7: 面材 | AN7: 2.5
AH8: お | AI8: 筋45×90(右上)+面材 | AM8: 右面 | AN8: 4.5
C9: 軸組表示 | D9: D | E9: E | F9: F | G9: G | H9: H | I9: I | J9: J | K9: K | L9: L | M9: M | N9: N | O9: O | P9: P | Q9: Q | R9: R | S9: S | T9: T | U9: U | V9: V | W9: W | X9: X | Y9: Y | Z9: Z | AH9: か | AI9: 筋45×90(左上)+面材 | AM9: 左面 | AN9: 4.5
D10: =D22 ->  | J10: =J22 -> ほ | K10: =K22 -> い | L10: ろ | N10: ろ | O10: ろ | Q10: ろ | R10: ほ
J11: 面材 | K11: 面材 | L11: ←柱 | M11: 無 | N11: 面材 | O11: ←柱 | P11: 無 | Q11: 面材 | R11: ←柱 | AE11: 2階
J12: 面材 | K12: ←柱 | L12: 無 | M12: 面材 | N12: ←柱 | O12: 無 | P12: ←柱 | Q12: 面材 | R12: ←柱 | S12: 面材 | T12: ←柱 | AE12: １階
D13: =桁行軸組!D69 ->  | E13: =E35 ->  | J13: =J35 -> ち | K13: =K35 -> ほ | M13: は | N13: は | P13: ろ | Q13: は | R13: へ | S13: ろ | T13: ほ
E14: ← | F14: ← | G14: ← | H14: ← | I14: ← | J14: ← | K14: ← | L14: ← | M14: ← | N14: ← | O14: ← | P14: ← | Q14: ← | R14: ← | S14: ← | T14: ← | U14: ← | V14: ← | W14: ← | X14: ← | Y14: ← | Z14: ←
B15: 式2 | C15: 式1 | E15: D E | F15: E F | G15: F G | H15: G H | I15: H I | J15: I J | K15: J K | L15: K L | M15: L M | N15: M N | O15: N O | P15: O P | Q15: P Q | R15: Q R | S15: R S | T15: S T | U15: T U | V15: U V | W15: V W | X15: W X | Y15: X Y | Z15: Y Z
B16: A2 | C16: A1 | D16: =IF(D21="","",桁行軸組!D20) ->  | E16: =IF(E21="","",桁行軸組!E20) ->  | F16: =IF(F21="","",桁行軸組!F20) ->  | G16: =IF(G21="","",桁行軸組!G20) ->  | H16: =IF(H21="","",桁行軸組!H20) ->  | I16: =IF(I21="","",桁行軸組!I20) ->  | J16: =IF(J21="","",桁行軸組!J20) -> 2.5 | K16: =IF(K21="","",桁行軸組!K20) -> 2.5 | L16: =IF(L21="","",桁行軸組!L20) -> 2.5 | M16: =IF(M21="","",桁行軸組!M20) ->  | N16: =IF(N21="","",桁行軸組!N20) -> 2.5 | O16: =IF(O21="","",桁行軸組!O20) -> 2.5 | P16: =IF(P21="","",桁行軸組!P20) ->  | Q16: =IF(Q21="","",桁行軸組!Q20) -> 2.5 | R16: =IF(R21="","",桁行軸組!R20) -> 2.5 | S16: =IF(S21="","",桁行軸組!S20) ->  | T16: =IF(T21="","",桁行軸組!T20) ->  | U16: =IF(U21="","",桁行軸組!U20) ->  | V16: =IF(V21="","",桁行軸組!V20) ->  | W16: =IF(W21="","",桁行軸組!W20) ->  | X16: =IF(X21="","",桁行軸組!X20) ->  | Y16: =IF(Y21="","",桁行軸組!Y20) ->  | Z16: =IF(Z21="","",桁行軸組!Z20) ->  | AA16: 左右倍率大 | AE16: 2階
D17: =IF(D21="","",桁行軸組!D21) ->  | E17: =IF(E21="","",桁行軸組!E21) ->  | F17: =IF(F21="","",桁行軸組!F21) ->  | G17: =IF(G21="","",桁行軸組!G21) ->  | H17: =IF(H21="","",桁行軸組!H21) ->  | I17: =IF(I21="","",桁行軸組!I21) ->  | J17: =IF(J21="","",桁行軸組!J21) -> 0 | K17: =IF(K21="","",桁行軸組!K21) -> 2.5 | L17: =IF(L21="","",桁行軸組!L21) -> 0 | M17: =IF(M21="","",桁行軸組!M21) ->  | N17: =IF(N21="","",桁行軸組!N21) -> 0 | O17: =IF(O21="","",桁行軸組!O21) -> 0 | P17: =IF(P21="","",桁行軸組!P21) ->  | Q17: =IF(Q21="","",桁行軸組!Q21) -> 0 | R17: =IF(R21="","",桁行軸組!R21) -> 0 | S17: =IF(S21="","",桁行軸組!S21) ->  | T17: =IF(T21="","",桁行軸組!T21) ->  | U17: =IF(U21="","",桁行軸組!U21) ->  | V17: =IF(V21="","",桁行軸組!V21) ->  | W17: =IF(W21="","",桁行軸組!W21) ->  | X17: =IF(X21="","",桁行軸組!X21) ->  | Y17: =IF(Y21="","",桁行軸組!Y21) ->  | Z17: =IF(Z21="","",桁行軸組!Z21) ->  | AA17: 左右倍率小
D18: =IF(D21="","",桁行軸組!D22) ->  | E18: =IF(E21="","",桁行軸組!E22) ->  | F18: =IF(F21="","",桁行軸組!F22) ->  | G18: =IF(G21="","",桁行軸組!G22) ->  | H18: =IF(H21="","",桁行軸組!H22) ->  | I18: =IF(I21="","",桁行軸組!I22) ->  | J18: =IF(J21="","",桁行軸組!J22) -> 0 | K18: =IF(K21="","",桁行軸組!K22) -> 0 | L18: =IF(L21="","",桁行軸組!L22) -> 0 | M18: =IF(M21="","",桁行軸組!M22) ->  | N18: =IF(N21="","",桁行軸組!N22) -> 0 | O18: =IF(O21="","",桁行軸組!O22) -> 0 | P18: =IF(P21="","",桁行軸組!P22) ->  | Q18: =IF(Q21="","",桁行軸組!Q22) -> 0 | R18: =IF(R21="","",桁行軸組!R22) -> 0 | S18: =IF(S21="","",桁行軸組!S22) ->  | T18: =IF(T21="","",桁行軸組!T22) ->  | U18: =IF(U21="","",桁行軸組!U22) ->  | V18: =IF(V21="","",桁行軸組!V22) ->  | W18: =IF(W21="","",桁行軸組!W22) ->  | X18: =IF(X21="","",桁行軸組!X22) ->  | Y18: =IF(Y21="","",桁行軸組!Y22) ->  | Z18: =IF(Z21="","",桁行軸組!Z22) ->  | AA18: 補正値
B19: B2 | C19: B1 | D19: =桁行軸組!D23 ->  | E19: =桁行軸組!E23 ->  | F19: =桁行軸組!F23 ->  | G19: =桁行軸組!G23 ->  | H19: =桁行軸組!H23 ->  | I19: =桁行軸組!I23 ->  | J19: =桁行軸組!J23 -> 0.8 | K19: =桁行軸組!K23 -> 0.5 | L19: =桁行軸組!L23 -> 0.5 | M19: =桁行軸組!M23 ->  | N19: =桁行軸組!N23 -> 0.5 | O19: =桁行軸組!O23 -> 0.5 | P19: =桁行軸組!P23 ->  | Q19: =桁行軸組!Q23 -> 0.5 | R19: =桁行軸組!R23 -> 0.8 | S19: =桁行軸組!S23 ->  | T19: =桁行軸組!T23 ->  | U19: =桁行軸組!U23 ->  | V19: =桁行軸組!V23 ->  | W19: =桁行軸組!W23 ->  | X19: =桁行軸組!X23 ->  | Y19: =桁行軸組!Y23 ->  | Z19: =桁行軸組!Z23 ->  | AA19: 出隅(0.8)他(0.5)
B20: ↓ | C20: L | D20: =桁行軸組!D24 ->  | E20: =桁行軸組!E24 ->  | F20: =桁行軸組!F24 ->  | G20: =桁行軸組!G24 ->  | H20: =桁行軸組!H24 ->  | I20: =桁行軸組!I24 ->  | J20: =桁行軸組!J24 -> 0.4 | K20: =桁行軸組!K24 -> 0.6 | L20: =桁行軸組!L24 -> 0.6 | M20: =桁行軸組!M24 ->  | N20: =桁行軸組!N24 -> 0.6 | O20: =桁行軸組!O24 -> 0.6 | P20: =桁行軸組!P24 ->  | Q20: =桁行軸組!Q24 -> 0.6 | R20: =桁行軸組!R24 -> 0.4 | S20: =桁行軸組!S24 ->  | T20: =桁行軸組!T24 ->  | U20: =桁行軸組!U24 ->  | V20: =桁行軸組!V24 ->  | W20: =桁行軸組!W24 ->  | X20: =桁行軸組!X24 ->  | Y20: =桁行軸組!Y24 ->  | Z20: =桁行軸組!Z24 ->  | AA20: 出隅(0.4)他(0.6)
B21: ↓ | C21: N | D21: =桁行軸組!D25 ->  | E21: =桁行軸組!E25 ->  | F21: =桁行軸組!F25 ->  | G21: =桁行軸組!G25 ->  | H21: =桁行軸組!H25 ->  | I21: =桁行軸組!I25 ->  | J21: =桁行軸組!J25 -> 1.6 | K21: =桁行軸組!K25 -> -0.6 | L21: =桁行軸組!L25 -> 0.65 | M21: =桁行軸組!M25 ->  | N21: =桁行軸組!N25 -> 0.65 | O21: =桁行軸組!O25 -> 0.65 | P21: =桁行軸組!P25 ->  | Q21: =桁行軸組!Q25 -> 0.65 | R21: =桁行軸組!R25 -> 1.6 | S21: =桁行軸組!S25 ->  | T21: =桁行軸組!T25 ->  | U21: =桁行軸組!U25 ->  | V21: =桁行軸組!V25 ->  | W21: =桁行軸組!W25 ->  | X21: =桁行軸組!X25 ->  | Y21: =桁行軸組!Y25 ->  | Z21: =桁行軸組!Z25 ->  | AA21: 2階N値
B22: ↓ | C22: 金物 | D22: =桁行軸組!D26 ->  | E22: =桁行軸組!E26 ->  | F22: =桁行軸組!F26 ->  | G22: =桁行軸組!G26 ->  | H22: =桁行軸組!H26 ->  | I22: =桁行軸組!I26 ->  | J22: =桁行軸組!J26 -> ほ | K22: =桁行軸組!K26 -> い | L22: =桁行軸組!L26 -> ろ | M22: =桁行軸組!M26 ->  | N22: =桁行軸組!N26 -> ろ | O22: =桁行軸組!O26 -> ろ | P22: =桁行軸組!P26 ->  | Q22: =桁行軸組!Q26 -> ろ | R22: =桁行軸組!R26 -> ほ | S22: =桁行軸組!S26 ->  | T22: =桁行軸組!T26 ->  | U22: =桁行軸組!U26 ->  | V22: =桁行軸組!V26 ->  | W22: =桁行軸組!W26 ->  | X22: =桁行軸組!X26 ->  | Y22: =桁行軸組!Y26 ->  | Z22: =桁行軸組!Z26 ->  | AA22: 必要耐力
B23: ↓
B24: A2×B2 | D24: =桁行軸組!D56 ->  | E24: =桁行軸組!E56 ->  | F24: =桁行軸組!F56 ->  | G24: =桁行軸組!G56 ->  | H24: =桁行軸組!H56 ->  | I24: =桁行軸組!I56 ->  | J24: =桁行軸組!J56 -> 2 | K24: =桁行軸組!K56 -> 0 | L24: =桁行軸組!L56 -> 1.25 | M24: =桁行軸組!M56 ->  | N24: =桁行軸組!N56 -> 1.25 | O24: =桁行軸組!O56 -> 1.25 | P24: =桁行軸組!P56 ->  | Q24: =桁行軸組!Q56 -> 1.25 | R24: =桁行軸組!R56 -> 2 | S24: =桁行軸組!S56 ->  | T24: =桁行軸組!T56 ->  | U24: =桁行軸組!U56 ->  | V24: =桁行軸組!V56 ->  | W24: =桁行軸組!W56 ->  | X24: =桁行軸組!X56 ->  | Y24: =桁行軸組!Y56 ->  | Z24: =桁行軸組!Z56 ->  | AA24: 通常値
B25: A2×B2 | D25: =IF(桁行軸組!D57=0," ",桁行軸組!D57) ->  | E25: =IF(桁行軸組!E57=0," ",桁行軸組!E57) ->  | F25: =IF(桁行軸組!F57=0," ",桁行軸組!F57) ->  | G25: =IF(桁行軸組!G57=0," ",桁行軸組!G57) ->  | H25: =IF(桁行軸組!H57=0," ",桁行軸組!H57) ->  | I25: =IF(桁行軸組!I57=0," ",桁行軸組!I57) ->  | J25: =IF(桁行軸組!J57=0," ",桁行軸組!J57) ->  | K25: =IF(桁行軸組!K57=0," ",桁行軸組!K57) -> 1.25 | L25: =IF(桁行軸組!L57=0," ",桁行軸組!L57) ->  | M25: =IF(桁行軸組!M57=0," ",桁行軸組!M57) -> 1.25 | N25: =IF(桁行軸組!N57=0," ",桁行軸組!N57) -> 1.25 | O25: =IF(桁行軸組!O57=0," ",桁行軸組!O57) ->  | P25: =IF(桁行軸組!P57=0," ",桁行軸組!P57) -> 1.25 | Q25: =IF(桁行軸組!Q57=0," ",桁行軸組!Q57) ->  | R25: =IF(桁行軸組!R57=0," ",桁行軸組!R57) ->  | S25: =IF(桁行軸組!S57=0," ",桁行軸組!S57) ->  | T25: =IF(桁行軸組!T57=0," ",桁行軸組!T57) ->  | U25: =IF(桁行軸組!U57=0," ",桁行軸組!U57) ->  | V25: =IF(桁行軸組!V57=0," ",桁行軸組!V57) ->  | W25: =IF(桁行軸組!W57=0," ",桁行軸組!W57) ->  | X25: =IF(桁行軸組!X57=0," ",桁行軸組!X57) ->  | Y25: =IF(桁行軸組!Y57=0," ",桁行軸組!Y57) ->  | Z25: =IF(桁行軸組!Z57=0," ",桁行軸組!Z57) ->  | AA25: 柱ずれ補正
B26: ↓ | C26: 式1
B27: A1 | C27: A1 | D27: =IF(D33=" "," ",桁行軸組!D59) ->  | E27: =IF(E33=" "," ",桁行軸組!E59) ->  | F27: =IF(F33=" "," ",桁行軸組!F59) ->  | G27: =IF(G33=" "," ",桁行軸組!G59) ->  | H27: =IF(H33=" "," ",桁行軸組!H59) ->  | I27: =IF(I33=" "," ",桁行軸組!I59) ->  | J27: =IF(J33=" "," ",桁行軸組!J59) -> 2.5 | K27: =IF(K33=" "," ",桁行軸組!K59) -> 2.5 | L27: =IF(L33=" "," ",桁行軸組!L59) ->  | M27: =IF(M33=" "," ",桁行軸組!M59) -> 2.5 | N27: =IF(N33=" "," ",桁行軸組!N59) -> 2.5 | O27: =IF(O33=" "," ",桁行軸組!O59) ->  | P27: =IF(P33=" "," ",桁行軸組!P59) -> 0 | Q27: =IF(Q33=" "," ",桁行軸組!Q59) -> 2.5 | R27: =IF(R33=" "," ",桁行軸組!R59) -> 2.5 | S27: =IF(S33=" "," ",桁行軸組!S59) -> 2.5 | T27: =IF(T33=" "," ",桁行軸組!T59) -> 2.5 | U27: =IF(U33=" "," ",桁行軸組!U59) ->  | V27: =IF(V33=" "," ",桁行軸組!V59) ->  | W27: =IF(W33=" "," ",桁行軸組!W59) ->  | X27: =IF(X33=" "," ",桁行軸組!X59) ->  | Y27: =IF(Y33=" "," ",桁行軸組!Y59) ->  | Z27: =IF(Z33=" "," ",桁行軸組!Z59) ->  | AA27: 左右倍率大 | AE27: １階
D28: =IF(D33=" "," ",桁行軸組!D60) ->  | E28: =IF(E33=" "," ",桁行軸組!E60) ->  | F28: =IF(F33=" "," ",桁行軸組!F60) ->  | G28: =IF(G33=" "," ",桁行軸組!G60) ->  | H28: =IF(H33=" "," ",桁行軸組!H60) ->  | I28: =IF(I33=" "," ",桁行軸組!I60) ->  | J28: =IF(J33=" "," ",桁行軸組!J60) -> 0 | K28: =IF(K33=" "," ",桁行軸組!K60) -> 0 | L28: =IF(L33=" "," ",桁行軸組!L60) ->  | M28: =IF(M33=" "," ",桁行軸組!M60) -> 0 | N28: =IF(N33=" "," ",桁行軸組!N60) -> 0 | O28: =IF(O33=" "," ",桁行軸組!O60) ->  | P28: =IF(P33=" "," ",桁行軸組!P60) -> 0 | Q28: =IF(Q33=" "," ",桁行軸組!Q60) -> 0 | R28: =IF(R33=" "," ",桁行軸組!R60) -> 0 | S28: =IF(S33=" "," ",桁行軸組!S60) -> 0 | T28: =IF(T33=" "," ",桁行軸組!T60) -> 0 | U28: =IF(U33=" "," ",桁行軸組!U60) ->  | V28: =IF(V33=" "," ",桁行軸組!V60) ->  | W28: =IF(W33=" "," ",桁行軸組!W60) ->  | X28: =IF(X33=" "," ",桁行軸組!X60) ->  | Y28: =IF(Y33=" "," ",桁行軸組!Y60) ->  | Z28: =IF(Z33=" "," ",桁行軸組!Z60) ->  | AA28: 左右倍率小
D29: =IF(D33=" "," ",桁行軸組!D61) ->  | E29: =IF(E33=" "," ",桁行軸組!E61) ->  | F29: =IF(F33=" "," ",桁行軸組!F61) ->  | G29: =IF(G33=" "," ",桁行軸組!G61) ->  | H29: =IF(H33=" "," ",桁行軸組!H61) ->  | I29: =IF(I33=" "," ",桁行軸組!I61) ->  | J29: =IF(J33=" "," ",桁行軸組!J61) -> 0 | K29: =IF(K33=" "," ",桁行軸組!K61) -> 0 | L29: =IF(L33=" "," ",桁行軸組!L61) ->  | M29: =IF(M33=" "," ",桁行軸組!M61) -> 0 | N29: =IF(N33=" "," ",桁行軸組!N61) -> 0 | O29: =IF(O33=" "," ",桁行軸組!O61) ->  | P29: =IF(P33=" "," ",桁行軸組!P61) -> 0 | Q29: =IF(Q33=" "," ",桁行軸組!Q61) -> 0 | R29: =IF(R33=" "," ",桁行軸組!R61) -> 0 | S29: =IF(S33=" "," ",桁行軸組!S61) -> 0 | T29: =IF(T33=" "," ",桁行軸組!T61) -> 0 | U29: =IF(U33=" "," ",桁行軸組!U61) ->  | V29: =IF(V33=" "," ",桁行軸組!V61) ->  | W29: =IF(W33=" "," ",桁行軸組!W61) ->  | X29: =IF(X33=" "," ",桁行軸組!X61) ->  | Y29: =IF(Y33=" "," ",桁行軸組!Y61) ->  | Z29: =IF(Z33=" "," ",桁行軸組!Z61) ->  | AA29: 補正値
B30: B1 | C30: B1 | D30: =IF(D33=" "," ",桁行軸組!D62) ->  | E30: =IF(E33=" "," ",桁行軸組!E62) ->  | F30: =IF(F33=" "," ",桁行軸組!F62) ->  | G30: =IF(G33=" "," ",桁行軸組!G62) ->  | H30: =IF(H33=" "," ",桁行軸組!H62) ->  | I30: =IF(I33=" "," ",桁行軸組!I62) ->  | J30: =IF(J33=" "," ",桁行軸組!J62) -> 0.8 | K30: =IF(K33=" "," ",桁行軸組!K62) -> 0.5 | L30: =IF(L33=" "," ",桁行軸組!L62) ->  | M30: =IF(M33=" "," ",桁行軸組!M62) -> 0.5 | N30: =IF(N33=" "," ",桁行軸組!N62) -> 0.5 | O30: =IF(O33=" "," ",桁行軸組!O62) ->  | P30: =IF(P33=" "," ",桁行軸組!P62) -> 0.5 | Q30: =IF(Q33=" "," ",桁行軸組!Q62) -> 0.5 | R30: =IF(R33=" "," ",桁行軸組!R62) -> 0.5 | S30: =IF(S33=" "," ",桁行軸組!S62) -> 0.5 | T30: =IF(T33=" "," ",桁行軸組!T62) -> 0.8 | U30: =IF(U33=" "," ",桁行軸組!U62) ->  | V30: =IF(V33=" "," ",桁行軸組!V62) ->  | W30: =IF(W33=" "," ",桁行軸組!W62) ->  | X30: =IF(X33=" "," ",桁行軸組!X62) ->  | Y30: =IF(Y33=" "," ",桁行軸組!Y62) ->  | Z30: =IF(Z33=" "," ",桁行軸組!Z62) ->  | AA30: 出隅(0.8)他(0.5)
C31: L | D31: =IF(D33=" "," ",桁行軸組!D63) ->  | E31: =IF(E33=" "," ",桁行軸組!E63) ->  | F31: =IF(F33=" "," ",桁行軸組!F63) ->  | G31: =IF(G33=" "," ",桁行軸組!G63) ->  | H31: =IF(H33=" "," ",桁行軸組!H63) ->  | I31: =IF(I33=" "," ",桁行軸組!I63) ->  | J31: =IF(J33=" "," ",桁行軸組!J63) ->  | K31: =IF(K33=" "," ",桁行軸組!K63) ->  | L31: =IF(L33=" "," ",桁行軸組!L63) ->  | M31: =IF(M33=" "," ",桁行軸組!M63) ->  | N31: =IF(N33=" "," ",桁行軸組!N63) ->  | O31: =IF(O33=" "," ",桁行軸組!O63) ->  | P31: =IF(P33=" "," ",桁行軸組!P63) ->  | Q31: =IF(Q33=" "," ",桁行軸組!Q63) ->  | R31: =IF(R33=" "," ",桁行軸組!R63) ->  | S31: =IF(S33=" "," ",桁行軸組!S63) -> 0.6 | T31: =IF(T33=" "," ",桁行軸組!T63) -> 0.4 | U31: =IF(U33=" "," ",桁行軸組!U63) ->  | V31: =IF(V33=" "," ",桁行軸組!V63) ->  | W31: =IF(W33=" "," ",桁行軸組!W63) ->  | X31: =IF(X33=" "," ",桁行軸組!X63) ->  | Y31: =IF(Y33=" "," ",桁行軸組!Y63) ->  | Z31: =IF(Z33=" "," ",桁行軸組!Z63) ->  | AA31: 出隅(0.4)他(0.6)
B32: L | D32: =IF(D33=" "," ",桁行軸組!D64) ->  | E32: =IF(E33=" "," ",桁行軸組!E64) ->  | F32: =IF(F33=" "," ",桁行軸組!F64) ->  | G32: =IF(G33=" "," ",桁行軸組!G64) ->  | H32: =IF(H33=" "," ",桁行軸組!H64) ->  | I32: =IF(I33=" "," ",桁行軸組!I64) ->  | J32: =IF(J33=" "," ",桁行軸組!J64) -> 1 | K32: =IF(K33=" "," ",桁行軸組!K64) -> 1.6 | L32: =IF(L33=" "," ",桁行軸組!L64) ->  | M32: =IF(M33=" "," ",桁行軸組!M64) -> 1.6 | N32: =IF(N33=" "," ",桁行軸組!N64) -> 1.6 | O32: =IF(O33=" "," ",桁行軸組!O64) ->  | P32: =IF(P33=" "," ",桁行軸組!P64) -> 1.6 | Q32: =IF(Q33=" "," ",桁行軸組!Q64) -> 1.6 | R32: =IF(R33=" "," ",桁行軸組!R64) -> 1.6 | S32: =IF(S33=" "," ",桁行軸組!S64) ->  | T32: =IF(T33=" "," ",桁行軸組!T64) ->  | U32: =IF(U33=" "," ",桁行軸組!U64) ->  | V32: =IF(V33=" "," ",桁行軸組!V64) ->  | W32: =IF(W33=" "," ",桁行軸組!W64) ->  | X32: =IF(X33=" "," ",桁行軸組!X64) ->  | Y32: =IF(Y33=" "," ",桁行軸組!Y64) ->  | Z32: =IF(Z33=" "," ",桁行軸組!Z64) ->  | AA32: 出隅(1.0)他(1.6)
B33: N | D33: =桁行軸組!D67 ->  | E33: =桁行軸組!E67 ->  | F33: =桁行軸組!F67 ->  | G33: =桁行軸組!G67 ->  | H33: =桁行軸組!H67 ->  | I33: =桁行軸組!I67 ->  | J33: =桁行軸組!J67 -> 3 | K33: =桁行軸組!K67 -> 0.9 | L33: =桁行軸組!L67 ->  | M33: =桁行軸組!M67 -> 0.9 | N33: =桁行軸組!N67 -> 0.9 | O33: =桁行軸組!O67 ->  | P33: =桁行軸組!P67 -> -0.35 | Q33: =桁行軸組!Q67 -> 0.9 | R33: =桁行軸組!R67 -> 1.65 | S33: =桁行軸組!S67 -> 0.65 | T33: =桁行軸組!T67 -> 1.6 | U33: =桁行軸組!U67 ->  | V33: =桁行軸組!V67 ->  | W33: =桁行軸組!W67 ->  | X33: =桁行軸組!X67 ->  | Y33: =桁行軸組!Y67 ->  | Z33: =桁行軸組!Z67 ->  | AA33: 1階N値
B34: N | D34: =桁行軸組!D68 ->  | E34: =桁行軸組!E68 ->  | F34: =桁行軸組!F68 ->  | G34: =桁行軸組!G68 ->  | H34: =桁行軸組!H68 ->  | I34: =桁行軸組!I68 ->  | J34: =桁行軸組!J68 -> 3 | K34: =桁行軸組!K68 -> 1.6 | L34: =桁行軸組!L68 ->  | M34: =桁行軸組!M68 -> 0.9 | N34: =桁行軸組!N68 -> 0.9 | O34: =桁行軸組!O68 ->  | P34: =桁行軸組!P68 -> 0.65 | Q34: =桁行軸組!Q68 -> 0.9 | R34: =桁行軸組!R68 -> 1.65 | S34: =桁行軸組!S68 -> 0.65 | T34: =桁行軸組!T68 -> 1.6 | U34: =桁行軸組!U68 ->  | V34: =桁行軸組!V68 ->  | W34: =桁行軸組!W68 ->  | X34: =桁行軸組!X68 ->  | Y34: =桁行軸組!Y68 ->  | Z34: =桁行軸組!Z68 ->  | AA34: 1階、2階で大のN値
B35: 金物 | D35: =桁行軸組!D69 ->  | E35: =桁行軸組!E69 ->  | F35: =桁行軸組!F69 ->  | G35: =桁行軸組!G69 ->  | H35: =桁行軸組!H69 ->  | I35: =桁行軸組!I69 ->  | J35: =桁行軸組!J69 -> ち | K35: =桁行軸組!K69 -> ほ | L35: =桁行軸組!L69 ->  | M35: =桁行軸組!M69 -> は | N35: =桁行軸組!N69 -> は | O35: =桁行軸組!O69 ->  | P35: =桁行軸組!P69 -> ろ | Q35: =桁行軸組!Q69 -> は | R35: =桁行軸組!R69 -> へ | S35: =桁行軸組!S69 -> ろ | T35: =桁行軸組!T69 -> ほ | U35: =桁行軸組!U69 ->  | V35: =桁行軸組!V69 ->  | W35: =桁行軸組!W69 ->  | X35: =桁行軸組!X69 ->  | Y35: =桁行軸組!Y69 ->  | Z35: =桁行軸組!Z69 ->  | AA35: 必要耐力
B37: 計算式1 | G37: A1 | N37: × | O37: B1 | Q37: - | R37: L | T37: < | U37: N
B38: 平家又は2階建の２階部分 | G38: (左右倍率大-左右倍率小+補正値) | T38: =
B40: 計算式2 | G40: A1 | N40: × | O40: B1 | Q40: + | R40: A2 | Y40: × | Z40: B2 | AB40: - | AC40: L | AE40: < | AF40: N
B41: 2階建の1階部分 | G41: (左右倍率大-左右倍率小+補正値) | R41: A2 × B2(柱ずれ補正) | AE41: =

Sheet N値（梁間）
O2: 式2 | P2: A2 | S2: B2 | T2: → | U2: → | V2: → | W2: → | X2: A2 × B2 | Y2: A2 × B2 | Z2: → | AA2: A1 | AD2: B1 | AE2: L | AG2: N | AH2: N | AI2: 金物 | AM2: 計算式1 | AR2: A1 | AY2: × | AZ2: B1 | BB2: - | BC2: L | BE2: < | BF2: N
C3: m | D3: n | F3: m | G3: n | I3: 軸組表示 | O3: 式1 | P3: A1 | S3: B1 | T3: L | U3: N | V3: 金物 | Z3: 式1 | AA3: A1 | AD3: B1 | AF3: L | AM3: 平家又は2階建の２階部分 | AR3: (左右倍率大-左右倍率小+補正値) | BE3: =
I4: 4 | J4: =V4 ->  | M4: =AI4 ->  | N4: ↓ | O4: 4 5 | P4: =IF(U4=" "," ",梁間軸組!S4) ->  | Q4: =IF(U4=" "," ",梁間軸組!T4) ->  | R4: =IF(U4=" "," ",梁間軸組!U4) ->  | S4: =IF(U4=" "," ",梁間軸組!V4) ->  | T4: =IF(U4=" "," ",梁間軸組!W4) ->  | U4: =IF(OR($K4="無",$K4=" ")," ",梁間軸組!X4) ->  | V4: =IF(OR($K4="無",$K4=" ")," ",梁間軸組!Y4) ->  | X4: =梁間軸組!BB4 ->  | Y4: =IF(梁間軸組!BC4=0,"",梁間軸組!BC4) ->  | AA4: =IF(AG4=" "," ",梁間軸組!BE4) ->  | AB4: =IF(AG4=" "," ",梁間軸組!BF4) ->  | AC4: =IF(AG4=" "," ",梁間軸組!BG4) ->  | AD4: =IF(AG4=" "," ",梁間軸組!BH4) ->  | AE4: =IF(AG4=" "," ",梁間軸組!BI4) ->  | AF4: =IF(AG4=" "," ",梁間軸組!BJ4) ->  | AG4: =梁間軸組!BM4 ->  | AH4: =梁間軸組!BN4 ->  | AI4: =梁間軸組!BO4 -> 
I5: 5 | N5: ↓ | O5: 5 6 | P5: =IF(U5=" "," ",梁間軸組!S5) ->  | Q5: =IF(U5=" "," ",梁間軸組!T5) ->  | R5: =IF(U5=" "," ",梁間軸組!U5) ->  | S5: =IF(U5=" "," ",梁間軸組!V5) ->  | T5: =IF(U5=" "," ",梁間軸組!W5) ->  | U5: =IF(OR($K5="無",$K5=" ")," ",梁間軸組!X5) ->  | V5: =IF(OR($K5="無",$K5=" ")," ",梁間軸組!Y5) ->  | X5: =梁間軸組!BB5 ->  | Y5: =IF(梁間軸組!BC5=0,"",梁間軸組!BC5) ->  | AA5: =IF(AG5=" "," ",梁間軸組!BE5) ->  | AB5: =IF(AG5=" "," ",梁間軸組!BF5) ->  | AC5: =IF(AG5=" "," ",梁間軸組!BG5) ->  | AD5: =IF(AG5=" "," ",梁間軸組!BH5) ->  | AE5: =IF(AG5=" "," ",梁間軸組!BI5) ->  | AF5: =IF(AG5=" "," ",梁間軸組!BJ5) ->  | AG5: =梁間軸組!BM5 ->  | AH5: =梁間軸組!BN5 ->  | AI5: =梁間軸組!BO5 ->  | AM5: 計算式2 | AR5: A1 | AY5: × | AZ5: B1 | BB5: + | BC5: A2 | BJ5: × | BK5: B2 | BM5: - | BN5: L | BP5: < | BQ5: N
I6: 6 | N6: ↓ | O6: 6 7 | P6: =IF(U6=" "," ",梁間軸組!S6) ->  | Q6: =IF(U6=" "," ",梁間軸組!T6) ->  | R6: =IF(U6=" "," ",梁間軸組!U6) ->  | S6: =IF(U6=" "," ",梁間軸組!V6) ->  | T6: =IF(U6=" "," ",梁間軸組!W6) ->  | U6: =IF(OR($K6="無",$K6=" ")," ",梁間軸組!X6) ->  | V6: =IF(OR($K6="無",$K6=" ")," ",梁間軸組!Y6) ->  | X6: =梁間軸組!BB6 ->  | Y6: =IF(梁間軸組!BC6=0,"",梁間軸組!BC6) ->  | AA6: =IF(AG6=" "," ",梁間軸組!BE6) ->  | AB6: =IF(AG6=" "," ",梁間軸組!BF6) ->  | AC6: =IF(AG6=" "," ",梁間軸組!BG6) ->  | AD6: =IF(AG6=" "," ",梁間軸組!BH6) ->  | AE6: =IF(AG6=" "," ",梁間軸組!BI6) ->  | AF6: =IF(AG6=" "," ",梁間軸組!BJ6) ->  | AG6: =梁間軸組!BM6 ->  | AH6: =梁間軸組!BN6 ->  | AI6: =梁間軸組!BO6 ->  | AM6: 2階建の1階部分 | AR6: (左右倍率大-左右倍率小+補正値) | BC6: A2 × B2(柱ずれ補正) | BP6: =
D7: ↓え | F7: ↓え | I7: 7 | J7: ろ | K7: ↓柱 | L7: ↓柱 | M7: ろ | N7: ↓ | O7: 7 8 | P7: =IF(U7="","",梁間軸組!S7) -> 2 | Q7: =IF(U7="","",梁間軸組!T7) -> 0 | R7: =IF(U7="","",梁間軸組!U7) -> -0.5 | S7: =IF(U7=" "," ",梁間軸組!V7) -> 0.5 | T7: =IF(U7=" "," ",梁間軸組!W7) -> 0.6 | U7: =IF(OR($K7="無",$K7=" ")," ",梁間軸組!X7) -> 0.15 | V7: =IF(OR($K7="無",$K7=" ")," ",梁間軸組!Y7) -> ろ | X7: =梁間軸組!BB7 -> 0.75 | Y7: =IF(梁間軸組!BC7=0,"",梁間軸組!BC7) ->  | AA7: =IF(AG7=" "," ",梁間軸組!BE7) -> 2 | AB7: =IF(AG7=" "," ",梁間軸組!BF7) -> 0 | AC7: =IF(AG7=" "," ",梁間軸組!BG7) -> -0.5 | AD7: =IF(AG7=" "," ",梁間軸組!BH7) -> 0.5 | AE7: =IF(AG7=" "," ",梁間軸組!BI7) ->  | AF7: =IF(AG7=" "," ",梁間軸組!BJ7) -> 1.6 | AG7: =梁間軸組!BM7 -> -0.1 | AH7: =梁間軸組!BN7 -> 0.15 | AI7: =梁間軸組!BO7 -> ろ
D8: ←い | G8: ←い | I8: 8 | K8: 左上 | L8: 左上 | M8: い | N8: ↓ | O8: 8 9 | P8: =IF(U8=" "," ",梁間軸組!S8) -> 2 | Q8: =IF(U8=" "," ",梁間軸組!T8) -> 2 | R8: =IF(U8=" "," ",梁間軸組!U8) -> 1 | S8: =IF(U8=" "," ",梁間軸組!V8) -> 0.5 | T8: =IF(U8=" "," ",梁間軸組!W8) -> 0.6 | U8: =IF(OR($K8="無",$K8=" ")," ",梁間軸組!X8) -> -0.1 | V8: =IF(OR($K8="無",$K8=" ")," ",梁間軸組!Y8) -> い | X8: =梁間軸組!BB8 -> 0.5 | Y8: =IF(梁間軸組!BC8=0,"",梁間軸組!BC8) ->  | AA8: =IF(AG8=" "," ",梁間軸組!BE8) -> 2 | AB8: =IF(AG8=" "," ",梁間軸組!BF8) -> 2 | AC8: =IF(AG8=" "," ",梁間軸組!BG8) -> 1 | AD8: =IF(AG8=" "," ",梁間軸組!BH8) -> 0.5 | AE8: =IF(AG8=" "," ",梁間軸組!BI8) ->  | AF8: =IF(AG8=" "," ",梁間軸組!BJ8) -> 1.6 | AG8: =梁間軸組!BM8 -> -0.6 | AH8: =梁間軸組!BN8 -> -0.1 | AI8: =梁間軸組!BO8 -> い
D9: ←あ | G9: ←あ | I9: 9 | K9: 右上 | L9: 右上 | M9: ろ | N9: ↓ | O9: 9 10 | P9: =IF(U9=" "," ",梁間軸組!S9) -> 2 | Q9: =IF(U9=" "," ",梁間軸組!T9) -> 0 | R9: =IF(U9=" "," ",梁間軸組!U9) -> -0.5 | S9: =IF(U9=" "," ",梁間軸組!V9) -> 0.5 | T9: =IF(U9=" "," ",梁間軸組!W9) -> 0.6 | U9: =IF(OR($K9="無",$K9=" ")," ",梁間軸組!X9) -> 0.15 | V9: =IF(OR($K9="無",$K9=" ")," ",梁間軸組!Y9) -> ろ | X9: =梁間軸組!BB9 -> 0.75 | Y9: =IF(梁間軸組!BC9=0,"",梁間軸組!BC9) ->  | AA9: =IF(AG9=" "," ",梁間軸組!BE9) -> 2 | AB9: =IF(AG9=" "," ",梁間軸組!BF9) -> 0 | AC9: =IF(AG9=" "," ",梁間軸組!BG9) -> -0.5 | AD9: =IF(AG9=" "," ",梁間軸組!BH9) -> 0.5 | AE9: =IF(AG9=" "," ",梁間軸組!BI9) ->  | AF9: =IF(AG9=" "," ",梁間軸組!BJ9) -> 1.6 | AG9: =梁間軸組!BM9 -> -0.1 | AH9: =梁間軸組!BN9 -> 0.15 | AI9: =梁間軸組!BO9 -> ろ
C10: ↑い | F10: ↑い | I10: 10 | J10: =V10 -> い | K10: ↓柱 | L10: 無 | M10: =AI10 ->  | N10: ↓ | O10: 10 11 | P10: =IF(U10=" "," ",梁間軸組!S10) -> 0 | Q10: =IF(U10=" "," ",梁間軸組!T10) -> 0 | R10: =IF(U10=" "," ",梁間軸組!U10) -> 0 | S10: =IF(U10=" "," ",梁間軸組!V10) -> 0.5 | T10: =IF(U10=" "," ",梁間軸組!W10) -> 0.6 | U10: =IF(OR($K10="無",$K10=" ")," ",梁間軸組!X10) -> -0.6 | V10: =IF(OR($K10="無",$K10=" ")," ",梁間軸組!Y10) -> い | X10: =梁間軸組!BB10 -> 0 | Y10: =IF(梁間軸組!BC10=0,"",梁間軸組!BC10) ->  | AA10: =IF(AG10=" "," ",梁間軸組!BE10) ->  | AB10: =IF(AG10=" "," ",梁間軸組!BF10) ->  | AC10: =IF(AG10=" "," ",梁間軸組!BG10) ->  | AD10: =IF(AG10=" "," ",梁間軸組!BH10) ->  | AE10: =IF(AG10=" "," ",梁間軸組!BI10) ->  | AF10: =IF(AG10=" "," ",梁間軸組!BJ10) ->  | AG10: =梁間軸組!BM10 ->  | AH10: =梁間軸組!BN10 ->  | AI10: =梁間軸組!BO10 -> 
D11: ｀柱 | I11: 11 | K11: 無 | L11: 無 | M11: =AI11 ->  | N11: ↓ | O11: 11 12 | P11: =IF(U11=" "," ",梁間軸組!S11) ->  | Q11: =IF(U11=" "," ",梁間軸組!T11) ->  | R11: =IF(U11=" "," ",梁間軸組!U11) ->  | S11: =IF(U11=" "," ",梁間軸組!V11) ->  | T11: =IF(U11=" "," ",梁間軸組!W11) ->  | U11: =IF(OR($K11="無",$K11=" ")," ",梁間軸組!X11) ->  | V11: =IF(OR($K11="無",$K11=" ")," ",梁間軸組!Y11) ->  | X11: =梁間軸組!BB11 ->  | Y11: =IF(梁間軸組!BC11=0,"",梁間軸組!BC11) ->  | AA11: =IF(AG11=" "," ",梁間軸組!BE11) ->  | AB11: =IF(AG11=" "," ",梁間軸組!BF11) ->  | AC11: =IF(AG11=" "," ",梁間軸組!BG11) ->  | AD11: =IF(AG11=" "," ",梁間軸組!BH11) ->  | AE11: =IF(AG11=" "," ",梁間軸組!BI11) ->  | AF11: =IF(AG11=" "," ",梁間軸組!BJ11) ->  | AG11: =梁間軸組!BM11 ->  | AH11: =梁間軸組!BN11 ->  | AI11: =梁間軸組!BO11 -> 
I12: 12 | J12: ろ | K12: ↓柱 | L12: ↓柱 | M12: は | N12: ↓ | O12: 12 13 | P12: =IF(U12=" "," ",梁間軸組!S12) -> 2 | Q12: =IF(U12=" "," ",梁間軸組!T12) -> 0 | R12: =IF(U12=" "," ",梁間軸組!U12) -> 0.5 | S12: =IF(U12=" "," ",梁間軸組!V12) -> 0.5 | T12: =IF(U12=" "," ",梁間軸組!W12) -> 0.6 | U12: =IF(OR($K12="無",$K12=" ")," ",梁間軸組!X12) -> 0.65 | V12: =IF(OR($K12="無",$K12=" ")," ",梁間軸組!Y12) -> ろ | X12: =梁間軸組!BB12 -> 1.25 | Y12: =IF(梁間軸組!BC12=0,"",梁間軸組!BC12) ->  | AA12: =IF(AG12=" "," ",梁間軸組!BE12) -> 2 | AB12: =IF(AG12=" "," ",梁間軸組!BF12) -> 0 | AC12: =IF(AG12=" "," ",梁間軸組!BG12) -> 0.5 | AD12: =IF(AG12=" "," ",梁間軸組!BH12) -> 0.5 | AE12: =IF(AG12=" "," ",梁間軸組!BI12) ->  | AF12: =IF(AG12=" "," ",梁間軸組!BJ12) -> 1.6 | AG12: =梁間軸組!BM12 -> 0.9 | AH12: =梁間軸組!BN12 -> 0.9 | AI12: =梁間軸組!BO12 -> は
D13: ←あ | G13: ←あ | I13: 13 | J13: ろ | K13: 右上 | L13: 右上 | M13: ろ | N13: ↓ | O13: 13 14 | P13: =IF(U13=" "," ",梁間軸組!S13) -> 2 | Q13: =IF(U13=" "," ",梁間軸組!T13) -> 0 | R13: =IF(U13=" "," ",梁間軸組!U13) -> -0.5 | S13: =IF(U13=" "," ",梁間軸組!V13) -> 0.5 | T13: =IF(U13=" "," ",梁間軸組!W13) -> 0.6 | U13: =IF(OR($K13="無",$K13=" ")," ",梁間軸組!X13) -> 0.15 | V13: =IF(OR($K13="無",$K13=" ")," ",梁間軸組!Y13) -> ろ | X13: =梁間軸組!BB13 -> 0.75 | Y13: =IF(梁間軸組!BC13=0,"",梁間軸組!BC13) ->  | AA13: =IF(AG13=" "," ",梁間軸組!BE13) -> 2 | AB13: =IF(AG13=" "," ",梁間軸組!BF13) -> 0 | AC13: =IF(AG13=" "," ",梁間軸組!BG13) -> -0.5 | AD13: =IF(AG13=" "," ",梁間軸組!BH13) -> 0.5 | AE13: =IF(AG13=" "," ",梁間軸組!BI13) ->  | AF13: =IF(AG13=" "," ",梁間軸組!BJ13) -> 1.6 | AG13: =梁間軸組!BM13 -> -0.1 | AH13: =梁間軸組!BN13 -> 0.15 | AI13: =梁間軸組!BO13 -> ろ
C14: ↑え | F14: ↑え | I14: 14 | N14: ↓ | O14: 14 15 | P14: =IF(U14=" "," ",梁間軸組!S14) ->  | Q14: =IF(U14=" "," ",梁間軸組!T14) ->  | R14: =IF(U14=" "," ",梁間軸組!U14) ->  | S14: =IF(U14=" "," ",梁間軸組!V14) ->  | T14: =IF(U14=" "," ",梁間軸組!W14) ->  | U14: =IF(OR($K14="無",$K14=" ")," ",梁間軸組!X14) ->  | V14: =IF(OR($K14="無",$K14=" ")," ",梁間軸組!Y14) ->  | X14: =梁間軸組!BB14 ->  | Y14: =IF(梁間軸組!BC14=0,"",梁間軸組!BC14) ->  | AA14: =IF(AG14=" "," ",梁間軸組!BE14) ->  | AB14: =IF(AG14=" "," ",梁間軸組!BF14) ->  | AC14: =IF(AG14=" "," ",梁間軸組!BG14) ->  | AD14: =IF(AG14=" "," ",梁間軸組!BH14) ->  | AE14: =IF(AG14=" "," ",梁間軸組!BI14) ->  | AF14: =IF(AG14=" "," ",梁間軸組!BJ14) ->  | AG14: =梁間軸組!BM14 ->  | AH14: =梁間軸組!BN14 ->  | AI14: =梁間軸組!BO14 -> 
I15: 15 | N15: ↓ | O15: 15 16 | P15: =IF(U15=" "," ",梁間軸組!S15) ->  | Q15: =IF(U15=" "," ",梁間軸組!T15) ->  | R15: =IF(U15=" "," ",梁間軸組!U15) ->  | S15: =IF(U15=" "," ",梁間軸組!V15) ->  | T15: =IF(U15=" "," ",梁間軸組!W15) ->  | U15: =IF(OR($K15="無",$K15=" ")," ",梁間軸組!X15) ->  | V15: =IF(OR($K15="無",$K15=" ")," ",梁間軸組!Y15) ->  | X15: =梁間軸組!BB15 ->  | Y15: =IF(梁間軸組!BC15=0,"",梁間軸組!BC15) ->  | AA15: =IF(AG15=" "," ",梁間軸組!BE15) ->  | AB15: =IF(AG15=" "," ",梁間軸組!BF15) ->  | AC15: =IF(AG15=" "," ",梁間軸組!BG15) ->  | AD15: =IF(AG15=" "," ",梁間軸組!BH15) ->  | AE15: =IF(AG15=" "," ",梁間軸組!BI15) ->  | AF15: =IF(AG15=" "," ",梁間軸組!BJ15) ->  | AG15: =梁間軸組!BM15 ->  | AH15: =梁間軸組!BN15 ->  | AI15: =梁間軸組!BO15 -> 
I16: 16 | N16: ↓ | O16: 16 17 | P16: =IF(U16=" "," ",梁間軸組!S16) ->  | Q16: =IF(U16=" "," ",梁間軸組!T16) ->  | R16: =IF(U16=" "," ",梁間軸組!U16) ->  | S16: =IF(U16=" "," ",梁間軸組!V16) ->  | T16: =IF(U16=" "," ",梁間軸組!W16) ->  | U16: =IF(OR($K16="無",$K16=" ")," ",梁間軸組!X16) ->  | V16: =IF(OR($K16="無",$K16=" ")," ",梁間軸組!Y16) ->  | X16: =梁間軸組!BB16 ->  | Y16: =IF(梁間軸組!BC16=0,"",梁間軸組!BC16) ->  | AA16: =IF(AG16=" "," ",梁間軸組!BE16) ->  | AB16: =IF(AG16=" "," ",梁間軸組!BF16) ->  | AC16: =IF(AG16=" "," ",梁間軸組!BG16) ->  | AD16: =IF(AG16=" "," ",梁間軸組!BH16) ->  | AE16: =IF(AG16=" "," ",梁間軸組!BI16) ->  | AF16: =IF(AG16=" "," ",梁間軸組!BJ16) ->  | AG16: =梁間軸組!BM16 ->  | AH16: =梁間軸組!BN16 ->  | AI16: =梁間軸組!BO16 -> 
I17: 17 | N17: ↓ | O17: 17 18 | P17: =IF(U17=" "," ",梁間軸組!S17) ->  | Q17: =IF(U17=" "," ",梁間軸組!T17) ->  | R17: =IF(U17=" "," ",梁間軸組!U17) ->  | S17: =IF(U17=" "," ",梁間軸組!V17) ->  | T17: =IF(U17=" "," ",梁間軸組!W17) ->  | U17: =IF(OR($K17="無",$K17=" ")," ",梁間軸組!X17) ->  | V17: =IF(OR($K17="無",$K17=" ")," ",梁間軸組!Y17) ->  | X17: =梁間軸組!BB17 ->  | Y17: =IF(梁間軸組!BC17=0,"",梁間軸組!BC17) ->  | AA17: =IF(AG17=" "," ",梁間軸組!BE17) ->  | AB17: =IF(AG17=" "," ",梁間軸組!BF17) ->  | AC17: =IF(AG17=" "," ",梁間軸組!BG17) ->  | AD17: =IF(AG17=" "," ",梁間軸組!BH17) ->  | AE17: =IF(AG17=" "," ",梁間軸組!BI17) ->  | AF17: =IF(AG17=" "," ",梁間軸組!BJ17) ->  | AG17: =梁間軸組!BM17 ->  | AH17: =梁間軸組!BN17 ->  | AI17: =梁間軸組!BO17 -> 
I18: 18 | N18: ↓ | O18: 18 19 | P18: =IF(U18=" "," ",梁間軸組!S18) ->  | Q18: =IF(U18=" "," ",梁間軸組!T18) ->  | R18: =IF(U18=" "," ",梁間軸組!U18) ->  | S18: =IF(U18=" "," ",梁間軸組!V18) ->  | T18: =IF(U18=" "," ",梁間軸組!W18) ->  | U18: =IF(OR($K18="無",$K18=" ")," ",梁間軸組!X18) ->  | V18: =IF(OR($K18="無",$K18=" ")," ",梁間軸組!Y18) ->  | X18: =梁間軸組!BB18 ->  | Y18: =IF(梁間軸組!BC18=0,"",梁間軸組!BC18) ->  | AA18: =IF(AG18=" "," ",梁間軸組!BE18) ->  | AB18: =IF(AG18=" "," ",梁間軸組!BF18) ->  | AC18: =IF(AG18=" "," ",梁間軸組!BG18) ->  | AD18: =IF(AG18=" "," ",梁間軸組!BH18) ->  | AE18: =IF(AG18=" "," ",梁間軸組!BI18) ->  | AF18: =IF(AG18=" "," ",梁間軸組!BJ18) ->  | AG18: =梁間軸組!BM18 ->  | AH18: =梁間軸組!BN18 ->  | AI18: =梁間軸組!BO18 -> 
I19: 19 | N19: ↓ | O19: 19 20 | P19: =IF(U19=" "," ",梁間軸組!S19) ->  | Q19: =IF(U19=" "," ",梁間軸組!T19) ->  | R19: =IF(U19=" "," ",梁間軸組!U19) ->  | S19: =IF(U19=" "," ",梁間軸組!V19) ->  | T19: =IF(U19=" "," ",梁間軸組!W19) ->  | U19: =IF(OR($K19="無",$K19=" ")," ",梁間軸組!X19) ->  | V19: =IF(OR($K19="無",$K19=" ")," ",梁間軸組!Y19) ->  | X19: =梁間軸組!BB19 ->  | Y19: =IF(梁間軸組!BC19=0,"",梁間軸組!BC19) ->  | AA19: =IF(AG19=" "," ",梁間軸組!BE19) ->  | AB19: =IF(AG19=" "," ",梁間軸組!BF19) ->  | AC19: =IF(AG19=" "," ",梁間軸組!BG19) ->  | AD19: =IF(AG19=" "," ",梁間軸組!BH19) ->  | AE19: =IF(AG19=" "," ",梁間軸組!BI19) ->  | AF19: =IF(AG19=" "," ",梁間軸組!BJ19) ->  | AG19: =梁間軸組!BM19 ->  | AH19: =梁間軸組!BN19 ->  | AI19: =梁間軸組!BO19 ->  | AM19: 耐力壁 | AN19: 入力 | AO19: 耐力壁の種類 | AS19: 記号 | AT19: 倍率
I20: 20 | P20: =IF(U20=" "," ",梁間軸組!S20) ->  | Q20: =IF(U20=" "," ",梁間軸組!T20) ->  | R20: =IF(U20=" "," ",梁間軸組!U20) ->  | S20: =IF(U20=" "," ",梁間軸組!V20) ->  | T20: =IF(U20=" "," ",梁間軸組!W20) ->  | U20: =IF(OR($K20="無",$K20=" ")," ",梁間軸組!X20) ->  | V20: =IF(OR($K20="無",$K20=" ")," ",梁間軸組!Y20) ->  | X20: =梁間軸組!BB20 ->  | Y20: =IF(梁間軸組!BC20=0,"",梁間軸組!BC20) ->  | AA20: =IF(AG20=" "," ",梁間軸組!BE20) ->  | AB20: =IF(AG20=" "," ",梁間軸組!BF20) ->  | AC20: =IF(AG20=" "," ",梁間軸組!BG20) ->  | AD20: =IF(AG20=" "," ",梁間軸組!BH20) ->  | AE20: =IF(AG20=" "," ",梁間軸組!BI20) ->  | AF20: =IF(AG20=" "," ",梁間軸組!BJ20) ->  | AG20: =梁間軸組!BM20 ->  | AH20: =梁間軸組!BN20 ->  | AI20: =梁間軸組!BO20 ->  | AN20: あ | AO20: 筋カイ45×90(右上) | AS20: 右上 | AT20: 2
C21: ↑計算軸 | D21: ↓計算軸 | F21: ↑計算軸 | G21: ↓計算軸 | P21: 左右倍率大 | Q21: 左右倍率小 | R21: 補正値 | S21: 出 隅 0.8 他 0.5 | T21: 出 隅 0.4 他 0.6 | U21: N値 | V21: 必要耐力 | X21: 通常値 | Y21: 柱ずれ補正 | AA21: 左右倍率大 | AB21: 左右倍率小 | AC21: 補正値 | AD21: 出 隅 0.8 他 0.5 | AE21: 出 隅 0.4 他 0.6 | AF21: 出 隅 1.0 他 1.6 | AG21: N値 | AH21: 1階 2階 で 大 の N 値 | AI21: 必要耐力 | AN21: い | AO21: 筋カイ45×90(左上) | AS21: 左上 | AT21: 2
AN22: う | AO22: 筋カイ45×90(タスキ) | AS22: タスキ | AT22: 4
AN23: え | AO23: 耐力面材 | AS23: 面材 | AT23: 2.5
AN24: お | AO24: 筋45×90(右上)+面材 | AS24: 右面 | AT24: 4.5
C25: ２階 | F25: １階 | K25: ２階 | L25: １階 | P25: ２階 | AA25: １階 | AN25: か | AO25: 筋45×90(左上)+面材 | AS25: 左面 | AT25: 4.5

Sheet 面積計算 (hidden)
AC2: 横面積合計 | AD2: 番号 | AE2: セル高さ | AF2: 上からの累計長さ | AG2: 倍率 | AH2: 下からの累計長さ | AI2: 倍率 | AK2: 1/4面積(上) | AL2: 1/4面積(下)
D3: =図面!D2 -> 910 | E3: =図面!E2 -> 910 | F3: =図面!F2 -> 910 | G3: =図面!G2 -> 910 | H3: =図面!H2 -> 910 | I3: =図面!I2 -> 910 | J3: =図面!J2 -> 910 | K3: =図面!K2 -> 910 | L3: =図面!L2 -> 910 | M3: =図面!M2 -> 910 | N3: =図面!N2 -> 910 | O3: =図面!O2 -> 910 | P3: =図面!P2 -> 910 | Q3: =図面!Q2 -> 910 | R3: =図面!R2 -> 910 | S3: =図面!S2 -> 910 | T3: =図面!T2 -> 910 | U3: =図面!U2 -> 910 | V3: =図面!V2 -> 910 | W3: =図面!W2 -> 910 | X3: =図面!X2 -> 910 | Y3: =図面!Y2 -> 910 | Z3: =図面!Z2 -> 910
C4: =図面!B4 -> 910 | D4: =$C4*D$3/1000000 -> 0.8281 | E4: =$C4*E$3/1000000 -> 0.8281 | F4: 0.8281 | G4: 0.8281 | H4: 0.8281 | I4: 0.8281 | J4: 0.8281 | K4: 0.8281 | L4: 0.8281 | M4: 0.8281 | N4: 0.8281 | O4: 0.8281 | P4: 0.8281 | Q4: 0.8281 | R4: 0.8281 | S4: 0.8281 | T4: 0.8281 | U4: =$C4*U$3/1000000 -> 0.8281 | V4: 0.8281 | W4: 0.8281 | X4: 0.8281 | Y4: 0.8281 | Z4: 0.8281 | AA4: =IF(COUNTIF(AG4:AI4,1),"●"," ") ->  | AC4: =SUM(D4:Z4)-sumColor(D4:Z4,$AB$1) -> 0 | AD4: =IF(AC4=0,"",SUMPRODUCT((AC$4:AC4<>0)*1)) ->  | AE4: =IF(AD4="","",C4) ->  | AF4: =IF(AD4="","",SUM(AE$4:AE4)) ->  | AG4: =IF(AF4="","",IF(AF4>$AL$25,($AL$25-AF3)/AE4,IF(AF4<=$AL$25,1," "))) ->  | AH4: =IF(AD4="","",SUM(AE4:AE$20)) ->  | AI4: =IF(AH4="","",IF(AH4>$AL$25,($AL$25-AH5)/AE4,IF(AH4<=$AL$25,1," "))) ->  | AK4: =IF(AD4="","",IF(AG4<=0," ",AC4*AG4)) ->  | AL4: =IF(AD4="","",IF(AI4<=0," ",AC4*AI4)) -> 
C5: =図面!B5 -> 910 | D5: =$C5*D$3/1000000 -> 0.8281 | E5: 0.8281 | F5: 0.8281 | G5: 0.8281 | H5: 0.8281 | I5: 0.8281 | J5: 0.8281 | K5: 0.8281 | L5: 0.8281 | M5: 0.8281 | N5: 0.8281 | O5: 0.8281 | P5: 0.8281 | Q5: 0.8281 | R5: 0.8281 | S5: 0.8281 | T5: 0.8281 | U5: 0.8281 | V5: 0.8281 | W5: 0.8281 | X5: 0.8281 | Y5: 0.8281 | Z5: 0.8281 | AA5: =IF(COUNTIF(AG5:AI5,1),"●"," ") ->  | AC5: =SUM(D5:Z5)-sumColor(D5:Z5,$AB$1) -> 0 | AD5: =IF(AC5=0,"",SUMPRODUCT((AC$4:AC5<>0)*1)) ->  | AF5: =IF(AD5="","",SUM(AE$4:AE5)) ->  | AH5: =IF(AD5="","",SUM(AE5:AE$20)) -> 
C6: =図面!B6 -> 910 | D6: 0.8281 | E6: 0.8281 | F6: 0.8281 | G6: 0.8281 | H6: 0.8281 | I6: 0.8281 | J6: 0.8281 | K6: 0.8281 | L6: 0.8281 | M6: 0.8281 | N6: 0.8281 | O6: 0.8281 | P6: 0.8281 | Q6: 0.8281 | R6: 0.8281 | S6: 0.8281 | T6: 0.8281 | U6: 0.8281 | V6: 0.8281 | W6: 0.8281 | X6: 0.8281 | Y6: 0.8281 | Z6: 0.8281 | AC6: =SUM(D6:Z6)-sumColor(D6:Z6,$AB$1) -> 0 | AD6: =IF(AC6=0,"",SUMPRODUCT((AC$4:AC6<>0)*1)) ->  | AF6: =IF(AD6="","",SUM(AE$4:AE6)) ->  | AH6: =IF(AD6="","",SUM(AE6:AE$20)) -> 
C7: =図面!B7 -> 910 | D7: 0.8281 | E7: 0.8281 | F7: 0.8281 | G7: 0.8281 | H7: 0.8281 | I7: 0.8281 | J7: 0.8281 | K7: 0.8281 | L7: 0.8281 | M7: 0.8281 | N7: 0.8281 | O7: 0.8281 | P7: 0.8281 | Q7: 0.8281 | R7: 0.8281 | S7: 0.8281 | T7: 0.8281 | U7: 0.8281 | V7: 0.8281 | W7: 0.8281 | X7: 0.8281 | Y7: 0.8281 | Z7: 0.8281 | AC7: =SUM(D7:Z7)-sumColor(D7:Z7,$AB$1) -> 0 | AD7: =IF(AC7=0,"",SUMPRODUCT((AC$4:AC7<>0)*1)) ->  | AF7: =IF(AD7="","",SUM(AE$4:AE7)) ->  | AH7: =IF(AD7="","",SUM(AE7:AE$20)) -> 
C8: =図面!B8 -> 910 | D8: 0.8281 | E8: 0.8281 | F8: 0.8281 | G8: 0.8281 | H8: 0.8281 | I8: 0.8281 | J8: 0.8281 | K8: 0.8281 | L8: 0.8281 | M8: 0.8281 | N8: 0.8281 | O8: 0.8281 | P8: 0.8281 | Q8: 0.8281 | R8: 0.8281 | S8: 0.8281 | T8: 0.8281 | U8: 0.8281 | V8: 0.8281 | W8: 0.8281 | X8: 0.8281 | Y8: 0.8281 | Z8: 0.8281 | AC8: =SUM(D8:Z8)-sumColor(D8:Z8,$AB$1) -> 0 | AD8: =IF(AC8=0,"",SUMPRODUCT((AC$4:AC8<>0)*1)) ->  | AF8: =IF(AD8="","",SUM(AE$4:AE8)) ->  | AH8: =IF(AD8="","",SUM(AE8:AE$20)) -> 
C9: =図面!B9 -> 910 | D9: 0.8281 | E9: 0.8281 | F9: 0.8281 | G9: 0.8281 | H9: 0.8281 | I9: 0.8281 | J9: 0.8281 | K9: 0.8281 | L9: 0.8281 | M9: 0.8281 | N9: 0.8281 | O9: 0.8281 | P9: 0.8281 | Q9: 0.8281 | R9: 0.8281 | S9: 0.8281 | T9: 0.8281 | U9: 0.8281 | V9: 0.8281 | W9: 0.8281 | X9: 0.8281 | Y9: 0.8281 | Z9: 0.8281 | AC9: =SUM(D9:Z9)-sumColor(D9:Z9,$AB$1) -> 0 | AD9: =IF(AC9=0,"",SUMPRODUCT((AC$4:AC9<>0)*1)) ->  | AF9: =IF(AD9="","",SUM(AE$4:AE9)) ->  | AH9: =IF(AD9="","",SUM(AE9:AE$20)) -> 
C10: =図面!B10 -> 910 | D10: 0.8281 | E10: 0.8281 | F10: 0.8281 | G10: 0.8281 | H10: 0.8281 | I10: 0.8281 | J10: 0.8281 | K10: 0.8281 | L10: 0.8281 | M10: 0.8281 | N10: 0.8281 | O10: 0.8281 | P10: 0.8281 | Q10: 0.8281 | R10: 0.8281 | S10: 0.8281 | T10: 0.8281 | U10: 0.8281 | V10: 0.8281 | W10: 0.8281 | X10: 0.8281 | Y10: 0.8281 | Z10: 0.8281 | AC10: =SUM(D10:Z10)-sumColor(D10:Z10,$AB$1) -> 0 | AD10: =IF(AC10=0,"",SUMPRODUCT((AC$4:AC10<>0)*1)) ->  | AF10: =IF(AD10="","",SUM(AE$4:AE10)) ->  | AH10: =IF(AD10="","",SUM(AE10:AE$20)) -> 
C11: =図面!B11 -> 910 | D11: 0.8281 | E11: 0.8281 | F11: 0.8281 | G11: 0.8281 | H11: 0.8281 | I11: 0.8281 | J11: 0.8281 | K11: 0.8281 | L11: 0.8281 | M11: 0.8281 | N11: 0.8281 | O11: 0.8281 | P11: 0.8281 | Q11: 0.8281 | R11: 0.8281 | S11: 0.8281 | T11: 0.8281 | U11: 0.8281 | V11: 0.8281 | W11: 0.8281 | X11: 0.8281 | Y11: 0.8281 | Z11: 0.8281 | AC11: =SUM(D11:Z11)-sumColor(D11:Z11,$AB$1) -> 0 | AD11: =IF(AC11=0,"",SUMPRODUCT((AC$4:AC11<>0)*1)) ->  | AF11: =IF(AD11="","",SUM(AE$4:AE11)) ->  | AG11: =IF(AF11="","",IF(AF11>$AL$25,($AL$25-AF10)/AE11,IF(AF11<=$AL$25,1," "))) ->  | AH11: =IF(AD11="","",SUM(AE11:AE$20)) -> 
C12: =図面!B12 -> 910 | D12: 0.8281 | E12: 0.8281 | F12: 0.8281 | G12: 0.8281 | H12: 0.8281 | I12: 0.8281 | J12: 0.8281 | K12: 0.8281 | L12: 0.8281 | M12: 0.8281 | N12: 0.8281 | O12: 0.8281 | P12: 0.8281 | Q12: 0.8281 | R12: 0.8281 | S12: 0.8281 | T12: 0.8281 | U12: 0.8281 | V12: 0.8281 | W12: 0.8281 | X12: 0.8281 | Y12: 0.8281 | Z12: 0.8281 | AC12: =SUM(D12:Z12)-sumColor(D12:Z12,$AB$1) -> 0 | AD12: =IF(AC12=0,"",SUMPRODUCT((AC$4:AC12<>0)*1)) ->  | AF12: =IF(AD12="","",SUM(AE$4:AE12)) ->  | AH12: =IF(AD12="","",SUM(AE12:AE$20)) -> 
C13: =図面!B13 -> 910 | D13: 0.8281 | E13: 0.8281 | F13: 0.8281 | G13: 0.8281 | H13: 0.8281 | I13: 0.8281 | J13: 0.8281 | K13: 0.8281 | L13: 0.8281 | M13: 0.8281 | N13: 0.8281 | O13: 0.8281 | P13: 0.8281 | Q13: 0.8281 | R13: 0.8281 | S13: 0.8281 | T13: 0.8281 | U13: 0.8281 | V13: 0.8281 | W13: 0.8281 | X13: 0.8281 | Y13: 0.8281 | Z13: 0.8281 | AC13: =SUM(D13:Z13)-sumColor(D13:Z13,$AB$1) -> 0 | AD13: =IF(AC13=0,"",SUMPRODUCT((AC$4:AC13<>0)*1)) ->  | AF13: =IF(AD13="","",SUM(AE$4:AE13)) ->  | AH13: =IF(AD13="","",SUM(AE13:AE$20)) -> 
C14: =図面!B14 -> 910 | D14: 0.8281 | E14: 0.8281 | F14: 0.8281 | G14: 0.8281 | H14: 0.8281 | I14: 0.8281 | J14: 0.8281 | K14: 0.8281 | L14: 0.8281 | M14: 0.8281 | N14: 0.8281 | O14: 0.8281 | P14: 0.8281 | Q14: 0.8281 | R14: 0.8281 | S14: 0.8281 | T14: 0.8281 | U14: 0.8281 | V14: 0.8281 | W14: 0.8281 | X14: 0.8281 | Y14: 0.8281 | Z14: 0.8281 | AC14: =SUM(D14:Z14)-sumColor(D14:Z14,$AB$1) -> 0 | AD14: =IF(AC14=0,"",SUMPRODUCT((AC$4:AC14<>0)*1)) ->  | AF14: =IF(AD14="","",SUM(AE$4:AE14)) ->  | AH14: =IF(AD14="","",SUM(AE14:AE$20)) -> 
C15: =図面!B15 -> 910 | D15: 0.8281 | E15: 0.8281 | F15: 0.8281 | G15: 0.8281 | H15: 0.8281 | I15: 0.8281 | J15: 0.8281 | K15: 0.8281 | L15: 0.8281 | M15: 0.8281 | N15: 0.8281 | O15: 0.8281 | P15: 0.8281 | Q15: 0.8281 | R15: 0.8281 | S15: 0.8281 | T15: 0.8281 | U15: 0.8281 | V15: 0.8281 | W15: 0.8281 | X15: 0.8281 | Y15: 0.8281 | Z15: 0.8281 | AC15: =SUM(D15:Z15)-sumColor(D15:Z15,$AB$1) -> 0 | AD15: =IF(AC15=0,"",SUMPRODUCT((AC$4:AC15<>0)*1)) ->  | AF15: =IF(AD15="","",SUM(AE$4:AE15)) ->  | AH15: =IF(AD15="","",SUM(AE15:AE$20)) -> 
C16: =図面!B16 -> 910 | D16: 0.8281 | E16: 0.8281 | F16: 0.8281 | G16: 0.8281 | H16: 0.8281 | I16: 0.8281 | J16: 0.8281 | K16: 0.8281 | L16: 0.8281 | M16: 0.8281 | N16: 0.8281 | O16: 0.8281 | P16: 0.8281 | Q16: 0.8281 | R16: 0.8281 | S16: 0.8281 | T16: 0.8281 | U16: 0.8281 | V16: 0.8281 | W16: 0.8281 | X16: 0.8281 | Y16: 0.8281 | Z16: 0.8281 | AC16: =SUM(D16:Z16)-sumColor(D16:Z16,$AB$1) -> 0 | AD16: =IF(AC16=0,"",SUMPRODUCT((AC$4:AC16<>0)*1)) ->  | AF16: =IF(AD16="","",SUM(AE$4:AE16)) ->  | AH16: =IF(AD16="","",SUM(AE16:AE$20)) -> 
C17: =図面!B17 -> 910 | D17: 0.8281 | E17: 0.8281 | F17: 0.8281 | G17: 0.8281 | H17: 0.8281 | I17: 0.8281 | J17: 0.8281 | K17: 0.8281 | L17: 0.8281 | M17: 0.8281 | N17: 0.8281 | O17: 0.8281 | P17: 0.8281 | Q17: 0.8281 | R17: 0.8281 | S17: 0.8281 | T17: 0.8281 | U17: 0.8281 | V17: 0.8281 | W17: 0.8281 | X17: 0.8281 | Y17: 0.8281 | Z17: 0.8281 | AC17: =SUM(D17:Z17)-sumColor(D17:Z17,$AB$1) -> 0 | AD17: =IF(AC17=0,"",SUMPRODUCT((AC$4:AC17<>0)*1)) ->  | AF17: =IF(AD17="","",SUM(AE$4:AE17)) ->  | AH17: =IF(AD17="","",SUM(AE17:AE$20)) -> 
C18: =図面!B18 -> 910 | D18: 0.8281 | E18: 0.8281 | F18: 0.8281 | G18: 0.8281 | H18: 0.8281 | I18: 0.8281 | J18: 0.8281 | K18: 0.8281 | L18: 0.8281 | M18: 0.8281 | N18: 0.8281 | O18: 0.8281 | P18: 0.8281 | Q18: 0.8281 | R18: 0.8281 | S18: 0.8281 | T18: 0.8281 | U18: 0.8281 | V18: 0.8281 | W18: 0.8281 | X18: 0.8281 | Y18: 0.8281 | Z18: 0.8281 | AC18: =SUM(D18:Z18)-sumColor(D18:Z18,$AB$1) -> 0 | AD18: =IF(AC18=0,"",SUMPRODUCT((AC$4:AC18<>0)*1)) ->  | AF18: =IF(AD18="","",SUM(AE$4:AE18)) ->  | AH18: =IF(AD18="","",SUM(AE18:AE$20)) ->  | AK18: =IF(AD18="","",IF(AG18<=0," ",AC18*AG18)) ->  | AL18: =IF(AD18="","",IF(AI18<=0," ",AC18*AI18)) -> 
C19: =図面!B19 -> 910 | D19: 0.8281 | E19: 0.8281 | F19: 0.8281 | G19: 0.8281 | H19: 0.8281 | I19: 0.8281 | J19: 0.8281 | K19: 0.8281 | L19: 0.8281 | M19: 0.8281 | N19: 0.8281 | O19: 0.8281 | P19: 0.8281 | Q19: 0.8281 | R19: 0.8281 | S19: 0.8281 | T19: =$C19*T$3/1000000 -> 0.8281 | U19: 0.8281 | V19: 0.8281 | W19: 0.8281 | X19: 0.8281 | Y19: 0.8281 | Z19: 0.8281 | AC19: =SUM(D19:Z19)-sumColor(D19:Z19,$AB$1) -> 0 | AD19: =IF(AC19=0,"",SUMPRODUCT((AC$4:AC19<>0)*1)) ->  | AF19: =IF(AD19="","",SUM(AE$4:AE19)) ->  | AH19: =IF(AD19="","",SUM(AE19:AE$20)) ->  | AK19: =IF(AD19="","",IF(AG19<=0," ",AC19*AG19)) ->  | AL19: =IF(AD19="","",IF(AI19<=0," ",AC19*AI19)) -> 
C20: =図面!B20 -> 910 | D20: 0.8281 | E20: 0.8281 | F20: 0.8281 | G20: 0.8281 | H20: 0.8281 | I20: 0.8281 | J20: 0.8281 | K20: 0.8281 | L20: 0.8281 | M20: 0.8281 | N20: 0.8281 | O20: 0.8281 | P20: 0.8281 | Q20: 0.8281 | R20: 0.8281 | S20: 0.8281 | T20: 0.8281 | U20: =$C20*U$3/1000000 -> 0.8281 | V20: 0.8281 | W20: 0.8281 | X20: 0.8281 | Y20: 0.8281 | Z20: 0.8281 | AC20: =SUM(D20:Z20)-sumColor(D20:Z20,$AB$1) -> 0 | AD20: =IF(AC20=0,"",SUMPRODUCT((AC$4:AC20<>0)*1)) ->  | AF20: =IF(AD20="","",SUM(AE$4:AE20)) ->  | AH20: =IF(AD20="","",SUM(AE20:AE$20)) ->  | AI20: =IF(AH20="","",IF(AH20>$AL$25,($AL$25-#REF!)/AE20,IF(AH20<=$AL$25,1," "))) ->  | AK20: =IF(AD20="","",IF(AG20<=0," ",AC20*AG20)) ->  | AL20: =IF(AD20="","",IF(AI20<=0," ",AC20*AI20)) -> 
D21: =IF(COUNTIF(D27:D29,1),"●"," ") ->  | E21: =IF(COUNTIF(E27:E29,1),"●"," ") ->  | AC21: =SUMIF(AC4:AC20,">0") -> 0 | AK21: =SUMIF(AK4:AK20,">0") -> 0 | AL21: =SUMIF(AL4:AL20,">0") -> 0
B23: 縦面積合計 | D23: =SUM(D4:D20)-sumColor(D4:D20,$AA$1) -> 0 | E23: =SUM(E4:E20)-sumColor(E4:E20,$AA$1) -> 0 | F23: =SUM(F4:F20)-sumColor(F4:F20,$AA$1) -> 0 | G23: =SUM(G4:G20)-sumColor(G4:G20,$AA$1) -> 0 | H23: =SUM(H4:H20)-sumColor(H4:H20,$AA$1) -> 0 | I23: =SUM(I4:I20)-sumColor(I4:I20,$AA$1) -> 0 | J23: =SUM(J4:J20)-sumColor(J4:J20,$AA$1) -> 0 | K23: =SUM(K4:K20)-sumColor(K4:K20,$AA$1) -> 0 | L23: =SUM(L4:L20)-sumColor(L4:L20,$AA$1) -> 0 | M23: =SUM(M4:M20)-sumColor(M4:M20,$AA$1) -> 0 | N23: =SUM(N4:N20)-sumColor(N4:N20,$AA$1) -> 0 | O23: =SUM(O4:O20)-sumColor(O4:O20,$AA$1) -> 0 | P23: =SUM(P4:P20)-sumColor(P4:P20,$AA$1) -> 0 | Q23: =SUM(Q4:Q20)-sumColor(Q4:Q20,$AA$1) -> 0 | R23: =SUM(R4:R20)-sumColor(R4:R20,$AA$1) -> 0 | S23: =SUM(S4:S20)-sumColor(S4:S20,$AA$1) -> 0 | T23: =SUM(T4:T20)-sumColor(T4:T20,$AA$1) -> 0 | U23: =SUM(U4:U20)-sumColor(U4:U20,$AA$1) -> 0 | V23: =SUM(V4:V20)-sumColor(V4:V20,$AA$1) -> 0 | W23: =SUM(W4:W20)-sumColor(W4:W20,$AA$1) -> 0 | X23: =SUM(X4:X20)-sumColor(X4:X20,$AA$1) -> 0 | Y23: =SUM(Y4:Y20)-sumColor(Y4:Y20,$AA$1) -> 0 | Z23: =SUM(Z4:Z20)-sumColor(Z4:Z20,$AA$1) -> 0 | AA23: =SUMIF(D23:Z23,">0") -> 0
B24: 番号 | D24: =IF(D23=0,"",SUMPRODUCT(($D23:D23<>0)*1)) ->  | E24: =IF(E23=0,"",SUMPRODUCT(($D23:E23<>0)*1)) ->  | F24: =IF(F23=0,"",SUMPRODUCT(($D23:F23<>0)*1)) ->  | G24: =IF(G23=0,"",SUMPRODUCT(($D23:G23<>0)*1)) ->  | H24: =IF(H23=0,"",SUMPRODUCT(($D23:H23<>0)*1)) ->  | I24: =IF(I23=0,"",SUMPRODUCT(($D23:I23<>0)*1)) ->  | J24: =IF(J23=0,"",SUMPRODUCT(($D23:J23<>0)*1)) ->  | K24: =IF(K23=0,"",SUMPRODUCT(($D23:K23<>0)*1)) ->  | L24: =IF(L23=0,"",SUMPRODUCT(($D23:L23<>0)*1)) ->  | M24: =IF(M23=0,"",SUMPRODUCT(($D23:M23<>0)*1)) ->  | N24: =IF(N23=0,"",SUMPRODUCT(($D23:N23<>0)*1)) ->  | O24: =IF(O23=0,"",SUMPRODUCT(($D23:O23<>0)*1)) ->  | P24: =IF(P23=0,"",SUMPRODUCT(($D23:P23<>0)*1)) ->  | Q24: =IF(Q23=0,"",SUMPRODUCT(($D23:Q23<>0)*1)) ->  | R24: =IF(R23=0,"",SUMPRODUCT(($D23:R23<>0)*1)) ->  | S24: =IF(S23=0,"",SUMPRODUCT(($D23:S23<>0)*1)) ->  | T24: =IF(T23=0,"",SUMPRODUCT(($D23:T23<>0)*1)) ->  | U24: =IF(U23=0,"",SUMPRODUCT(($D23:U23<>0)*1)) ->  | V24: =IF(V23=0,"",SUMPRODUCT(($D23:V23<>0)*1)) ->  | W24: =IF(W23=0,"",SUMPRODUCT(($D23:W23<>0)*1)) ->  | X24: =IF(X23=0,"",SUMPRODUCT(($D23:X23<>0)*1)) ->  | Y24: =IF(Y23=0,"",SUMPRODUCT(($D23:Y23<>0)*1)) ->  | Z24: =IF(Z23=0,"",SUMPRODUCT(($D23:Z23<>0)*1)) -> 
B25: セル高さ | D25: =IF(D24="","",D3) ->  | AE25: 横方向４分割線位置 | AF25: =SUM(AE4:AE20) -> 0 | AH25: / | AI25: 4 | AJ25: ＝ | AL25: =AF25/AI25 -> 0
B26: 左からの累計長さ | D26: =IF(D24="","",SUM($D25:D25)) ->  | E26: =IF(E24="","",SUM($D25:E25)) ->  | F26: =IF(F24="","",SUM($D25:F25)) ->  | G26: =IF(G24="","",SUM($D25:G25)) ->  | H26: =IF(H24="","",SUM($D25:H25)) ->  | I26: =IF(I24="","",SUM($D25:I25)) ->  | J26: =IF(J24="","",SUM($D25:J25)) ->  | K26: =IF(K24="","",SUM($D25:K25)) ->  | L26: =IF(L24="","",SUM($D25:L25)) ->  | M26: =IF(M24="","",SUM($D25:M25)) ->  | N26: =IF(N24="","",SUM($D25:N25)) ->  | O26: =IF(O24="","",SUM($D25:O25)) ->  | P26: =IF(P24="","",SUM($D25:P25)) ->  | Q26: =IF(Q24="","",SUM($D25:Q25)) ->  | R26: =IF(R24="","",SUM($D25:R25)) ->  | S26: =IF(S24="","",SUM($D25:S25)) ->  | T26: =IF(T24="","",SUM($D25:T25)) ->  | U26: =IF(U24="","",SUM($D25:U25)) ->  | V26: =IF(V24="","",SUM($D25:V25)) ->  | W26: =IF(W24="","",SUM($D25:W25)) ->  | X26: =IF(X24="","",SUM($D25:X25)) ->  | Y26: =IF(Y24="","",SUM($D25:Y25)) ->  | Z26: =IF(Z24="","",SUM($D25:Z25)) ->  | AE26: 縦方向４分割線位置 | AF26: =SUM(D25:Z25) -> 0 | AH26: / | AI26: 4 | AJ26: ＝ | AL26: =AF26/AI26 -> 0
B27: 倍率 | D27: =IF(D26="","",IF(D26>$AL$26,($AL$26-C26)/D25,IF(D26<=$AL$26,1," "))) -> 
B28: 右からの累計長さ | D28: =IF(D24="","",SUM(D25:$Z25)) ->  | E28: =IF(E24="","",SUM(E25:$Z25)) ->  | F28: =IF(F24="","",SUM(F25:$Z25)) ->  | G28: =IF(G24="","",SUM(G25:$Z25)) ->  | H28: =IF(H24="","",SUM(H25:$Z25)) ->  | I28: =IF(I24="","",SUM(I25:$Z25)) ->  | J28: =IF(J24="","",SUM(J25:$Z25)) ->  | K28: =IF(K24="","",SUM(K25:$Z25)) ->  | L28: =IF(L24="","",SUM(L25:$Z25)) ->  | M28: =IF(M24="","",SUM(M25:$Z25)) ->  | N28: =IF(N24="","",SUM(N25:$Z25)) ->  | O28: =IF(O24="","",SUM(O25:$Z25)) ->  | P28: =IF(P24="","",SUM(P25:$Z25)) ->  | Q28: =IF(Q24="","",SUM(Q25:$Z25)) ->  | R28: =IF(R24="","",SUM(R25:$Z25)) ->  | S28: =IF(S24="","",SUM(S25:$Z25)) ->  | T28: =IF(T24="","",SUM(T25:$Z25)) ->  | U28: =IF(U24="","",SUM(U25:$Z25)) ->  | V28: =IF(V24="","",SUM(V25:$Z25)) ->  | W28: =IF(W24="","",SUM(W25:$Z25)) ->  | X28: =IF(X24="","",SUM(X25:$Z25)) ->  | Y28: =IF(Y24="","",SUM(Y25:$Z25)) ->  | Z28: =IF(Z24="","",SUM(Z25:$Z25)) -> 
B29: 倍率 | D29: =IF(D28="","",IF(D28>$AL$26,($AL$26-E28)/D25,IF(D28<=$AL$26,1," "))) ->  | Z29: =IF(Z28="","",IF(Z28>$AL$26,($AL$26-#REF!)/Z25,IF(Z28<=$AL$26,1," "))) -> 
B31: 面積(左) | D31: =IF(D24="","",IF(D27<=0," ",D23*D27)) ->  | E31: =IF(E24="","",IF(E27<=0," ",E23*E27)) ->  | J31: =IF(J24="","",IF(J27<=0," ",J23*J27)) ->  | X31: =IF(X24="","",IF(X27<=0," ",X23*X27)) ->  | Y31: =IF(Y24="","",IF(Y27<=0," ",Y23*Y27)) ->  | Z31: =IF(Z24="","",IF(Z27<=0," ",Z23*Z27)) ->  | AA31: =SUMIF(D31:Z31,">0") -> 0
B32: 面積(右) | D32: =IF(D24="","",IF(D29<=0," ",D23*D29)) ->  | E32: =IF(E24="","",IF(E29<=0," ",E23*E29)) ->  | X32: =IF(X24="","",IF(X29<=0," ",X23*X29)) ->  | Y32: =IF(Y24="","",IF(Y29<=0," ",Y23*Y29)) ->  | Z32: =IF(Z24="","",IF(Z29<=0," ",Z23*Z29)) ->  | AA32: =SUMIF(D32:Z32,">0") -> 0

Sheet 壁量計算 (hidden)
D3: =図面!D2 -> 910 | E3: =図面!E2 -> 910 | F3: =図面!F2 -> 910 | G3: =図面!G2 -> 910 | H3: =図面!H2 -> 910 | I3: =図面!I2 -> 910 | J3: =図面!J2 -> 910 | K3: =図面!K2 -> 910 | L3: =図面!L2 -> 910 | M3: =図面!M2 -> 910 | N3: =図面!N2 -> 910 | O3: =図面!O2 -> 910 | P3: =図面!P2 -> 910 | Q3: =図面!Q2 -> 910 | R3: =図面!R2 -> 910 | S3: =図面!S2 -> 910 | T3: =図面!T2 -> 910 | U3: =図面!U2 -> 910 | V3: =図面!V2 -> 910 | W3: =図面!W2 -> 910 | X3: =図面!X2 -> 910 | Y3: =図面!Y2 -> 910 | Z3: =図面!Z2 -> 910 | AC3: ↑あ | AD3: ↓あ | AE3: ↑い | AF3: ↓い | AG3: ↑う | AH3: ↓う | AI3: ↑え | AJ3: ↓え | AK3: ↑お | AL3: ↓お | AM3: ↑か | AN3: ↓か | AO3: 合計 | AR3: 上壁量 | AS3: ↓ | AT3: 補正上 | AU3: 下壁量 | AV3: ↑ | AW3: 補正下
C4: =図面!B4 -> 910 | D4: =IF(図面!D4="","",図面!D4) ->  | E4: =IF(図面!E4="","",図面!E4) ->  | F4: =IF(図面!F4="","",図面!F4) ->  | G4: =IF(図面!G4="","",図面!G4) ->  | H4: =IF(図面!H4="","",図面!H4) ->  | I4: =IF(図面!I4="","",図面!I4) ->  | J4: =IF(図面!J4="","",図面!J4) ->  | K4: =IF(図面!K4="","",図面!K4) ->  | L4: =IF(図面!L4="","",図面!L4) ->  | M4: =IF(図面!M4="","",図面!M4) ->  | N4: =IF(図面!N4="","",図面!N4) ->  | O4: =IF(図面!O4="","",図面!O4) ->  | P4: =IF(図面!P4="","",図面!P4) ->  | Q4: =IF(図面!Q4="","",図面!Q4) ->  | R4: =IF(図面!R4="","",図面!R4) ->  | S4: =IF(図面!S4="","",図面!S4) ->  | T4: =IF(図面!T4="","",図面!T4) ->  | U4: =IF(図面!U4="","",図面!U4) ->  | V4: =IF(図面!V4="","",図面!V4) ->  | W4: =IF(図面!W4="","",図面!W4) ->  | X4: =IF(図面!X4="","",図面!X4) ->  | Y4: =IF(図面!Y4="","",図面!Y4) ->  | Z4: =IF(図面!Z4="","",図面!Z4) ->  | AA4: =IF(COUNTIF(面積計算!AG4:AI4,1),"●"," ") ->  | AC4: =SUMIF($D4:$Z4,"*↑あ*",$D$3:$Z$3)/1000*図面!$AK$19 -> 0 | AD4: =SUMIF($D4:$Z4,"*↓あ*",$D$3:$Z$3)/1000*図面!$AK$19 -> 0 | AE4: =SUMIF($D4:$Z4,"*↑い*",$D$3:$Z$3)/1000*図面!$AK$20 -> 0 | AF4: =SUMIF($D4:$Z4,"*↓い*",$D$3:$Z$3)/1000*図面!$AK$20 -> 0 | AG4: =SUMIF($D4:$Z4,"*↑う*",$D$3:$Z$3)/1000*図面!$AK$21 -> 0 | AH4: =SUMIF($D4:$Z4,"*↓う*",$D$3:$Z$3)/1000*図面!$AK$21 -> 0 | AI4: =SUMIF($D4:$Z4,"*↑え*",$D$3:$Z$3)/1000*図面!$AK$22 -> 0 | AJ4: =SUMIF($D4:$Z4,"*↓え*",$D$3:$Z$3)/1000*図面!$AK$22 -> 0 | AK4: =SUMIF($D4:$Z4,"*↑お*",$D$3:$Z$3)/1000*図面!$AK$23 -> 0 | AL4: =SUMIF($D4:$Z4,"*↓お*",$D$3:$Z$3)/1000*図面!AK$23 -> 0 | AM4: =SUMIF($D4:$Z4,"*↑か*",$D$3:$Z$3)/1000*図面!$AK$24 -> 0 | AN4: =SUMIF($D4:$Z4,"*↓か*",$D$3:$Z$3)/1000*図面!$AK$24 -> 0 | AO4: =SUM(AC4:AN4) -> 0 | AP4: =IF(COUNTIF(面積計算!AG4,1),"上"," ") ->  | AQ4: =IF(COUNTIF(面積計算!AI4,1),"下"," ") ->  | AR4: =IF(COUNTIF(AP3:AP5,"上"),AO4,0) -> 0 | AS4: =AD4+AF4+AH4+AJ4+AL4+AN4 -> 0 | AT4: =IF(AND(AP4=" ",AP3="上"),AR4-AS4,AR4) -> 0 | AU4: =IF(COUNTIF(AQ3:AQ5,"下"),AO4,0) -> 0 | AV4: =AC4+AE4+AG4+AI4+AK4+AM4 -> 0 | AW4: =IF(AND(AQ4=" ",AQ5="下"),AU4-AV4,AU4) -> 0
C5: =図面!B5 -> 910 | D5: =IF(図面!D5="","",図面!D5) ->  | E5: =IF(図面!E5="","",図面!E5) ->  | F5: =IF(図面!F5="","",図面!F5) ->  | G5: =IF(図面!G5="","",図面!G5) ->  | H5: =IF(図面!H5="","",図面!H5) ->  | I5: =IF(図面!I5="","",図面!I5) ->  | J5: =IF(図面!J5="","",図面!J5) ->  | K5: =IF(図面!K5="","",図面!K5) ->  | L5: =IF(図面!L5="","",図面!L5) ->  | M5: =IF(図面!M5="","",図面!M5) ->  | N5: =IF(図面!N5="","",図面!N5) ->  | O5: =IF(図面!O5="","",図面!O5) ->  | P5: =IF(図面!P5="","",図面!P5) ->  | Q5: =IF(図面!Q5="","",図面!Q5) ->  | R5: =IF(図面!R5="","",図面!R5) ->  | S5: =IF(図面!S5="","",図面!S5) ->  | T5: =IF(図面!T5="","",図面!T5) ->  | U5: =IF(図面!U5="","",図面!U5) ->  | V5: =IF(図面!V5="","",図面!V5) ->  | W5: =IF(図面!W5="","",図面!W5) ->  | X5: =IF(図面!X5="","",図面!X5) ->  | Y5: =IF(図面!Y5="","",図面!Y5) ->  | Z5: =IF(図面!Z5="","",図面!Z5) ->  | AA5: =IF(COUNTIF(面積計算!AG5:AI5,1),"●"," ") ->  | AC5: =SUMIF($D5:$Z5,"*↑あ*",$D$3:$Z$3)/1000*図面!$AK$19 -> 0 | AD5: =SUMIF($D5:$Z5,"*↓あ*",$D$3:$Z$3)/1000*図面!$AK$19 -> 0 | AE5: =SUMIF($D5:$Z5,"*↑い*",$D$3:$Z$3)/1000*図面!$AK$20 -> 0 | AF5: =SUMIF($D5:$Z5,"*↓い*",$D$3:$Z$3)/1000*図面!$AK$20 -> 0 | AG5: =SUMIF($D5:$Z5,"*↑う*",$D$3:$Z$3)/1000*図面!$AK$21 -> 0 | AH5: =SUMIF($D5:$Z5,"*↓う*",$D$3:$Z$3)/1000*図面!$AK$21 -> 0 | AI5: =SUMIF($D5:$Z5,"*↑え*",$D$3:$Z$3)/1000*図面!$AK$22 -> 0 | AJ5: =SUMIF($D5:$Z5,"*↓え*",$D$3:$Z$3)/1000*図面!$AK$22 -> 0 | AK5: =SUMIF($D5:$Z5,"*↑お*",$D$3:$Z$3)/1000*図面!$AK$23 -> 0 | AL5: =SUMIF($D5:$Z5,"*↓お*",$D$3:$Z$3)/1000*図面!AK$23 -> 0 | AM5: =SUMIF($D5:$Z5,"*↑か*",$D$3:$Z$3)/1000*図面!$AK$24 -> 0 | AN5: =SUMIF($D5:$Z5,"*↓か*",$D$3:$Z$3)/1000*図面!$AK$24 -> 0 | AO5: =SUM(AC5:AN5) -> 0 | AP5: =IF(COUNTIF(面積計算!AG5,1),"上"," ") ->  | AQ5: =IF(COUNTIF(面積計算!AI5,1),"下"," ") ->  | AR5: =IF(COUNTIF(AP4:AP6,"上"),AO5,0) -> 0 | AS5: =AD5+AF5+AH5+AJ5+AL5+AN5 -> 0 | AT5: =IF(AND(AP5=" ",AP4="上"),AR5-AS5,AR5) -> 0 | AU5: 0 | AV5: =AC5+AE5+AG5+AI5+AK5+AM5 -> 0 | AW5: 0
C6: =図面!B6 -> 910 | D6: =IF(図面!D6="","",図面!D6) ->  | E6: =IF(図面!E6="","",図面!E6) ->  | F6: =IF(図面!F6="","",図面!F6) ->  | G6: =IF(図面!G6="","",図面!G6) ->  | H6: =IF(図面!H6="","",図面!H6) ->  | I6: =IF(図面!I6="","",図面!I6) ->  | J6: =IF(図面!J6="","",図面!J6) ->  | K6: =IF(図面!K6="","",図面!K6) ->  | L6: =IF(図面!L6="","",図面!L6) ->  | M6: =IF(図面!M6="","",図面!M6) ->  | N6: =IF(図面!N6="","",図面!N6) ->  | O6: =IF(図面!O6="","",図面!O6) ->  | P6: =IF(図面!P6="","",図面!P6) ->  | Q6: =IF(図面!Q6="","",図面!Q6) ->  | R6: =IF(図面!R6="","",図面!R6) ->  | S6: =IF(図面!S6="","",図面!S6) ->  | T6: =IF(図面!T6="","",図面!T6) ->  | U6: =IF(図面!U6="","",図面!U6) ->  | V6: =IF(図面!V6="","",図面!V6) ->  | W6: =IF(図面!W6="","",図面!W6) ->  | X6: =IF(図面!X6="","",図面!X6) ->  | Y6: =IF(図面!Y6="","",図面!Y6) ->  | Z6: =IF(図面!Z6="","",図面!Z6) ->  | AA6: =IF(COUNTIF(面積計算!AG6:AI6,1),"●"," ") ->  | AC6: =SUMIF($D6:$Z6,"*↑あ*",$D$3:$Z$3)/1000*図面!$AK$19 -> 0 | AD6: =SUMIF($D6:$Z6,"*↓あ*",$D$3:$Z$3)/1000*図面!$AK$19 -> 0 | AE6: =SUMIF($D6:$Z6,"*↑い*",$D$3:$Z$3)/1000*図面!$AK$20 -> 0 | AF6: =SUMIF($D6:$Z6,"*↓い*",$D$3:$Z$3)/1000*図面!$AK$20 -> 0 | AG6: =SUMIF($D6:$Z6,"*↑う*",$D$3:$Z$3)/1000*図面!$AK$21 -> 0 | AH6: =SUMIF($D6:$Z6,"*↓う*",$D$3:$Z$3)/1000*図面!$AK$21 -> 0 | AI6: =SUMIF($D6:$Z6,"*↑え*",$D$3:$Z$3)/1000*図面!$AK$22 -> 0 | AJ6: =SUMIF($D6:$Z6,"*↓え*",$D$3:$Z$3)/1000*図面!$AK$22 -> 0 | AK6: =SUMIF($D6:$Z6,"*↑お*",$D$3:$Z$3)/1000*図面!$AK$23 -> 0 | AL6: =SUMIF($D6:$Z6,"*↓お*",$D$3:$Z$3)/1000*図面!AK$23 -> 0 | AM6: =SUMIF($D6:$Z6,"*↑か*",$D$3:$Z$3)/1000*図面!$AK$24 -> 0 | AN6: =SUMIF($D6:$Z6,"*↓か*",$D$3:$Z$3)/1000*図面!$AK$24 -> 0 | AO6: 0 | AP6: =IF(COUNTIF(面積計算!AG6,1),"上"," ") ->  | AQ6: =IF(COUNTIF(面積計算!AI6,1),"下"," ") ->  | AR6: =IF(COUNTIF(AP5:AP7,"上"),AO6,0) -> 0 | AS6: 0 | AT6: =IF(AND(AP6=" ",AP5="上"),AR6-AS6,AR6) -> 0 | AU6: 0 | AV6: 0 | AW6: 0
C7: =図面!B7 -> 910 | D7: =IF(図面!D7="","",図面!D7) ->  | E7: =IF(図面!E7="","",図面!E7) ->  | F7: =IF(図面!F7="","",図面!F7) ->  | G7: =IF(図面!G7="","",図面!G7) ->  | H7: =IF(図面!H7="","",図面!H7) ->  | I7: =IF(図面!I7="","",図面!I7) ->  | J7: =IF(図面!J7="","",図面!J7) ->  | K7: =IF(図面!K7="","",図面!K7) ->  | L7: =IF(図面!L7="","",図面!L7) ->  | M7: =IF(図面!M7="","",図面!M7) ->  | N7: =IF(図面!N7="","",図面!N7) ->  | O7: =IF(図面!O7="","",図面!O7) ->  | P7: =IF(図面!P7="","",図面!P7) ->  | Q7: =IF(図面!Q7="","",図面!Q7) ->  | R7: =IF(図面!R7="","",図面!R7) ->  | S7: =IF(図面!S7="","",図面!S7) ->  | T7: =IF(図面!T7="","",図面!T7) ->  | U7: =IF(図面!U7="","",図面!U7) ->  | V7: =IF(図面!V7="","",図面!V7) ->  | W7: =IF(図面!W7="","",図面!W7) ->  | X7: =IF(図面!X7="","",図面!X7) ->  | Y7: =IF(図面!Y7="","",図面!Y7) ->  | Z7: =IF(図面!Z7="","",図面!Z7) ->  | AA7: =IF(COUNTIF(面積計算!AG7:AI7,1),"●"," ") ->  | AC7: =SUMIF($D7:$Z7,"*↑あ*",$D$3:$Z$3)/1000*図面!$AK$19 -> 0 | AD7: =SUMIF($D7:$Z7,"*↓あ*",$D$3:$Z$3)/1000*図面!$AK$19 -> 0 | AE7: =SUMIF($D7:$Z7,"*↑い*",$D$3:$Z$3)/1000*図面!$AK$20 -> 0 | AF7: =SUMIF($D7:$Z7,"*↓い*",$D$3:$Z$3)/1000*図面!$AK$20 -> 0 | AG7: =SUMIF($D7:$Z7,"*↑う*",$D$3:$Z$3)/1000*図面!$AK$21 -> 0 | AH7: =SUMIF($D7:$Z7,"*↓う*",$D$3:$Z$3)/1000*図面!$AK$21 -> 0 | AI7: =SUMIF($D7:$Z7,"*↑え*",$D$3:$Z$3)/1000*図面!$AK$22 -> 0 | AJ7: =SUMIF($D7:$Z7,"*↓え*",$D$3:$Z$3)/1000*図面!$AK$22 -> 0 | AK7: =SUMIF($D7:$Z7,"*↑お*",$D$3:$Z$3)/1000*図面!$AK$23 -> 0 | AL7: =SUMIF($D7:$Z7,"*↓お*",$D$3:$Z$3)/1000*図面!AK$23 -> 0 | AM7: =SUMIF($D7:$Z7,"*↑か*",$D$3:$Z$3)/1000*図面!$AK$24 -> 0 | AN7: =SUMIF($D7:$Z7,"*↓か*",$D$3:$Z$3)/1000*図面!$AK$24 -> 0 | AO7: 0 | AP7: =IF(COUNTIF(面積計算!AG7,1),"上"," ") ->  | AQ7: =IF(COUNTIF(面積計算!AI7,1),"下"," ") ->  | AR7: =IF(COUNTIF(AP6:AP8,"上"),AO7,0) -> 0 | AS7: =AD7+AF7+AH7+AJ7+AL7+AN7 -> 0 | AT7: =IF(AND(AP7=" ",AP6="上"),AR7-AS7,AR7) -> 0 | AU7: 0 | AV7: 0 | AW7: =IF(AND(AQ7=" ",AQ8="下"),AU7-AV7,AU7) -> 0
C8: =図面!B8 -> 910 | D8: =IF(図面!D8="","",図面!D8) ->  | E8: =IF(図面!E8="","",図面!E8) ->  | F8: =IF(図面!F8="","",図面!F8) ->  | G8: =IF(図面!G8="","",図面!G8) ->  | H8: =IF(図面!H8="","",図面!H8) ->  | I8: =IF(図面!I8="","",図面!I8) ->  | J8: =IF(図面!J8="","",図面!J8) ->  | K8: =IF(図面!K8="","",図面!K8) ->  | L8: =IF(図面!L8="","",図面!L8) ->  | M8: =IF(図面!M8="","",図面!M8) ->  | N8: =IF(図面!N8="","",図面!N8) ->  | O8: =IF(図面!O8="","",図面!O8) ->  | P8: =IF(図面!P8="","",図面!P8) ->  | Q8: =IF(図面!Q8="","",図面!Q8) ->  | R8: =IF(図面!R8="","",図面!R8) ->  | S8: =IF(図面!S8="","",図面!S8) ->  | T8: =IF(図面!T8="","",図面!T8) ->  | U8: =IF(図面!U8="","",図面!U8) ->  | V8: =IF(図面!V8="","",図面!V8) ->  | W8: =IF(図面!W8="","",図面!W8) ->  | X8: =IF(図面!X8="","",図面!X8) ->  | Y8: =IF(図面!Y8="","",図面!Y8) ->  | Z8: =IF(図面!Z8="","",図面!Z8) ->  | AA8: =IF(COUNTIF(面積計算!AG8:AI8,1),"●"," ") ->  | AC8: =SUMIF($D8:$Z8,"*↑あ*",$D$3:$Z$3)/1000*図面!$AK$19 -> 0 | AD8: =SUMIF($D8:$Z8,"*↓あ*",$D$3:$Z$3)/1000*図面!$AK$19 -> 0 | AE8: =SUMIF($D8:$Z8,"*↑い*",$D$3:$Z$3)/1000*図面!$AK$20 -> 0 | AF8: =SUMIF($D8:$Z8,"*↓い*",$D$3:$Z$3)/1000*図面!$AK$20 -> 0 | AG8: =SUMIF($D8:$Z8,"*↑う*",$D$3:$Z$3)/1000*図面!$AK$21 -> 0 | AH8: =SUMIF($D8:$Z8,"*↓う*",$D$3:$Z$3)/1000*図面!$AK$21 -> 0 | AI8: =SUMIF($D8:$Z8,"*↑え*",$D$3:$Z$3)/1000*図面!$AK$22 -> 0 | AJ8: =SUMIF($D8:$Z8,"*↓え*",$D$3:$Z$3)/1000*図面!$AK$22 -> 0 | AK8: =SUMIF($D8:$Z8,"*↑お*",$D$3:$Z$3)/1000*図面!$AK$23 -> 0 | AL8: =SUMIF($D8:$Z8,"*↓お*",$D$3:$Z$3)/1000*図面!AK$23 -> 0 | AM8: =SUMIF($D8:$Z8,"*↑か*",$D$3:$Z$3)/1000*図面!$AK$24 -> 0 | AN8: =SUMIF($D8:$Z8,"*↓か*",$D$3:$Z$3)/1000*図面!$AK$24 -> 0 | AO8: 0 | AP8: =IF(COUNTIF(面積計算!AG8,1),"上"," ") ->  | AQ8: =IF(COUNTIF(面積計算!AI8,1),"下"," ") ->  | AR8: =IF(COUNTIF(AP7:AP9,"上"),AO8,0) -> 0 | AS8: 0 | AT8: =IF(AND(AP8=" ",AP7="上"),AR8-AS8,AR8) -> 0 | AU8: 0 | AV8: 0 | AW8: 0
C9: =図面!B9 -> 910 | D9: =IF(図面!D9="","",図面!D9) ->  | E9: =IF(図面!E9="","",図面!E9) ->  | F9: =IF(図面!F9="","",図面!F9) ->  | G9: =IF(図面!G9="","",図面!G9) ->  | H9: =IF(図面!H9="","",図面!H9) ->  | I9: =IF(図面!I9="","",図面!I9) ->  | J9: =IF(図面!J9="","",図面!J9) ->  | K9: =IF(図面!K9="","",図面!K9) ->  | L9: =IF(図面!L9="","",図面!L9) ->  | M9: =IF(図面!M9="","",図面!M9) ->  | N9: =IF(図面!N9="","",図面!N9) ->  | O9: =IF(図面!O9="","",図面!O9) ->  | P9: =IF(図面!P9="","",図面!P9) ->  | Q9: =IF(図面!Q9="","",図面!Q9) ->  | R9: =IF(図面!R9="","",図面!R9) ->  | S9: =IF(図面!S9="","",図面!S9) ->  | T9: =IF(図面!T9="","",図面!T9) ->  | U9: =IF(図面!U9="","",図面!U9) ->  | V9: =IF(図面!V9="","",図面!V9) ->  | W9: =IF(図面!W9="","",図面!W9) ->  | X9: =IF(図面!X9="","",図面!X9) ->  | Y9: =IF(図面!Y9="","",図面!Y9) ->  | Z9: =IF(図面!Z9="","",図面!Z9) ->  | AA9: =IF(COUNTIF(面積計算!AG9:AI9,1),"●"," ") ->  | AC9: =SUMIF($D9:$Z9,"*↑あ*",$D$3:$Z$3)/1000*図面!$AK$19 -> 0 | AD9: =SUMIF($D9:$Z9,"*↓あ*",$D$3:$Z$3)/1000*図面!$AK$19 -> 0 | AE9: =SUMIF($D9:$Z9,"*↑い*",$D$3:$Z$3)/1000*図面!$AK$20 -> 0 | AF9: =SUMIF($D9:$Z9,"*↓い*",$D$3:$Z$3)/1000*図面!$AK$20 -> 0 | AG9: =SUMIF($D9:$Z9,"*↑う*",$D$3:$Z$3)/1000*図面!$AK$21 -> 0 | AH9: =SUMIF($D9:$Z9,"*↓う*",$D$3:$Z$3)/1000*図面!$AK$21 -> 0 | AI9: =SUMIF($D9:$Z9,"*↑え*",$D$3:$Z$3)/1000*図面!$AK$22 -> 0 | AJ9: =SUMIF($D9:$Z9,"*↓え*",$D$3:$Z$3)/1000*図面!$AK$22 -> 0 | AK9: =SUMIF($D9:$Z9,"*↑お*",$D$3:$Z$3)/1000*図面!$AK$23 -> 0 | AL9: =SUMIF($D9:$Z9,"*↓お*",$D$3:$Z$3)/1000*図面!AK$23 -> 0 | AM9: =SUMIF($D9:$Z9,"*↑か*",$D$3:$Z$3)/1000*図面!$AK$24 -> 0 | AN9: =SUMIF($D9:$Z9,"*↓か*",$D$3:$Z$3)/1000*図面!$AK$24 -> 0 | AO9: 0 | AP9: =IF(COUNTIF(面積計算!AG9,1),"上"," ") ->  | AQ9: =IF(COUNTIF(面積計算!AI9,1),"下"," ") ->  | AR9: =IF(COUNTIF(AP8:AP10,"上"),AO9,0) -> 0 | AS9: 0 | AT9: =IF(AND(AP9=" ",AP8="上"),AR9-AS9,AR9) -> 0 | AU9: 0 | AV9: 0 | AW9: 0
C10: =図面!B10 -> 910 | D10: =IF(図面!D10="","",図面!D10) ->  | E10: =IF(図面!E10="","",図面!E10) ->  | F10: =IF(図面!F10="","",図面!F10) ->  | G10: =IF(図面!G10="","",図面!G10) ->  | H10: =IF(図面!H10="","",図面!H10) ->  | I10: =IF(図面!I10="","",図面!I10) ->  | J10: =IF(図面!J10="","",図面!J10) ->  | K10: =IF(図面!K10="","",図面!K10) ->  | L10: =IF(図面!L10="","",図面!L10) ->  | M10: =IF(図面!M10="","",図面!M10) ->  | N10: =IF(図面!N10="","",図面!N10) ->  | O10: =IF(図面!O10="","",図面!O10) ->  | P10: =IF(図面!P10="","",図面!P10) ->  | Q10: =IF(図面!Q10="","",図面!Q10) ->  | R10: =IF(図面!R10="","",図面!R10) ->  | S10: =IF(図面!S10="","",図面!S10) ->  | T10: =IF(図面!T10="","",図面!T10) ->  | U10: =IF(図面!U10="","",図面!U10) ->  | V10: =IF(図面!V10="","",図面!V10) ->  | W10: =IF(図面!W10="","",図面!W10) ->  | X10: =IF(図面!X10="","",図面!X10) ->  | Y10: =IF(図面!Y10="","",図面!Y10) ->  | Z10: =IF(図面!Z10="","",図面!Z10) ->  | AA10: =IF(COUNTIF(面積計算!AG10:AI10,1),"●"," ") ->  | AC10: =SUMIF($D10:$Z10,"*↑あ*",$D$3:$Z$3)/1000*図面!$AK$19 -> 0 | AD10: =SUMIF($D10:$Z10,"*↓あ*",$D$3:$Z$3)/1000*図面!$AK$19 -> 0 | AE10: =SUMIF($D10:$Z10,"*↑い*",$D$3:$Z$3)/1000*図面!$AK$20 -> 0 | AF10: =SUMIF($D10:$Z10,"*↓い*",$D$3:$Z$3)/1000*図面!$AK$20 -> 0 | AG10: =SUMIF($D10:$Z10,"*↑う*",$D$3:$Z$3)/1000*図面!$AK$21 -> 0 | AH10: =SUMIF($D10:$Z10,"*↓う*",$D$3:$Z$3)/1000*図面!$AK$21 -> 0 | AI10: =SUMIF($D10:$Z10,"*↑え*",$D$3:$Z$3)/1000*図面!$AK$22 -> 0 | AJ10: =SUMIF($D10:$Z10,"*↓え*",$D$3:$Z$3)/1000*図面!$AK$22 -> 0 | AK10: =SUMIF($D10:$Z10,"*↑お*",$D$3:$Z$3)/1000*図面!$AK$23 -> 0 | AL10: =SUMIF($D10:$Z10,"*↓お*",$D$3:$Z$3)/1000*図面!AK$23 -> 0 | AM10: =SUMIF($D10:$Z10,"*↑か*",$D$3:$Z$3)/1000*図面!$AK$24 -> 0 | AN10: =SUMIF($D10:$Z10,"*↓か*",$D$3:$Z$3)/1000*図面!$AK$24 -> 0 | AO10: 0 | AP10: =IF(COUNTIF(面積計算!AG10,1),"上"," ") ->  | AQ10: =IF(COUNTIF(面積計算!AI10,1),"下"," ") ->  | AR10: 0 | AS10: 0 | AT10: 0 | AU10: 0 | AV10: 0 | AW10: 0
C11: =図面!B11 -> 910 | D11: =IF(図面!D11="","",図面!D11) ->  | E11: =IF(図面!E11="","",図面!E11) ->  | F11: =IF(図面!F11="","",図面!F11) ->  | G11: =IF(図面!G11="","",図面!G11) ->  | H11: =IF(図面!H11="","",図面!H11) ->  | I11: =IF(図面!I11="","",図面!I11) ->  | J11: =IF(図面!J11="","",図面!J11) ->  | K11: =IF(図面!K11="","",図面!K11) ->  | L11: =IF(図面!L11="","",図面!L11) ->  | M11: =IF(図面!M11="","",図面!M11) ->  | N11: =IF(図面!N11="","",図面!N11) ->  | O11: =IF(図面!O11="","",図面!O11) ->  | P11: =IF(図面!P11="","",図面!P11) ->  | Q11: =IF(図面!Q11="","",図面!Q11) ->  | R11: =IF(図面!R11="","",図面!R11) ->  | S11: =IF(図面!S11="","",図面!S11) ->  | T11: =IF(図面!T11="","",図面!T11) ->  | U11: =IF(図面!U11="","",図面!U11) ->  | V11: =IF(図面!V11="","",図面!V11) ->  | W11: =IF(図面!W11="","",図面!W11) ->  | X11: =IF(図面!X11="","",図面!X11) ->  | Y11: =IF(図面!Y11="","",図面!Y11) ->  | Z11: =IF(図面!Z11="","",図面!Z11) ->  | AA11: =IF(COUNTIF(面積計算!AG11:AI11,1),"●"," ") ->  | AC11: =SUMIF($D11:$Z11,"*↑あ*",$D$3:$Z$3)/1000*図面!$AK$19 -> 0 | AD11: =SUMIF($D11:$Z11,"*↓あ*",$D$3:$Z$3)/1000*図面!$AK$19 -> 0 | AE11: =SUMIF($D11:$Z11,"*↑い*",$D$3:$Z$3)/1000*図面!$AK$20 -> 0 | AF11: =SUMIF($D11:$Z11,"*↓い*",$D$3:$Z$3)/1000*図面!$AK$20 -> 0 | AG11: =SUMIF($D11:$Z11,"*↑う*",$D$3:$Z$3)/1000*図面!$AK$21 -> 0 | AH11: =SUMIF($D11:$Z11,"*↓う*",$D$3:$Z$3)/1000*図面!$AK$21 -> 0 | AI11: =SUMIF($D11:$Z11,"*↑え*",$D$3:$Z$3)/1000*図面!$AK$22 -> 0 | AJ11: =SUMIF($D11:$Z11,"*↓え*",$D$3:$Z$3)/1000*図面!$AK$22 -> 0 | AK11: =SUMIF($D11:$Z11,"*↑お*",$D$3:$Z$3)/1000*図面!$AK$23 -> 0 | AL11: =SUMIF($D11:$Z11,"*↓お*",$D$3:$Z$3)/1000*図面!AK$23 -> 0 | AM11: =SUMIF($D11:$Z11,"*↑か*",$D$3:$Z$3)/1000*図面!$AK$24 -> 0 | AN11: =SUMIF($D11:$Z11,"*↓か*",$D$3:$Z$3)/1000*図面!$AK$24 -> 0 | AO11: 0 | AP11: =IF(COUNTIF(面積計算!AG11,1),"上"," ") ->  | AQ11: =IF(COUNTIF(面積計算!AI11,1),"下"," ") ->  | AR11: 0 | AS11: 0 | AT11: 0 | AU11: 0 | AV11: 0 | AW11: =IF(AND(AQ11=" ",AQ12="下"),AU11-AV11,AU11) -> 0
C12: =図面!B12 -> 910 | D12: =IF(図面!D12="","",図面!D12) ->  | E12: =IF(図面!E12="","",図面!E12) ->  | F12: =IF(図面!F12="","",図面!F12) ->  | G12: =IF(図面!G12="","",図面!G12) ->  | H12: =IF(図面!H12="","",図面!H12) ->  | I12: =IF(図面!I12="","",図面!I12) ->  | J12: =IF(図面!J12="","",図面!J12) ->  | K12: =IF(図面!K12="","",図面!K12) ->  | L12: =IF(図面!L12="","",図面!L12) ->  | M12: =IF(図面!M12="","",図面!M12) ->  | N12: =IF(図面!N12="","",図面!N12) ->  | O12: =IF(図面!O12="","",図面!O12) ->  | P12: =IF(図面!P12="","",図面!P12) ->  | Q12: =IF(図面!Q12="","",図面!Q12) ->  | R12: =IF(図面!R12="","",図面!R12) ->  | S12: =IF(図面!S12="","",図面!S12) ->  | T12: =IF(図面!T12="","",図面!T12) ->  | U12: =IF(図面!U12="","",図面!U12) ->  | V12: =IF(図面!V12="","",図面!V12) ->  | W12: =IF(図面!W12="","",図面!W12) ->  | X12: =IF(図面!X12="","",図面!X12) ->  | Y12: =IF(図面!Y12="","",図面!Y12) ->  | Z12: =IF(図面!Z12="","",図面!Z12) ->  | AA12: =IF(COUNTIF(面積計算!AG12:AI12,1),"●"," ") ->  | AC12: =SUMIF($D12:$Z12,"*↑あ*",$D$3:$Z$3)/1000*図面!$AK$19 -> 0 | AD12: =SUMIF($D12:$Z12,"*↓あ*",$D$3:$Z$3)/1000*図面!$AK$19 -> 0 | AE12: =SUMIF($D12:$Z12,"*↑い*",$D$3:$Z$3)/1000*図面!$AK$20 -> 0 | AF12: =SUMIF($D12:$Z12,"*↓い*",$D$3:$Z$3)/1000*図面!$AK$20 -> 0 | AG12: =SUMIF($D12:$Z12,"*↑う*",$D$3:$Z$3)/1000*図面!$AK$21 -> 0 | AH12: =SUMIF($D12:$Z12,"*↓う*",$D$3:$Z$3)/1000*図面!$AK$21 -> 0 | AI12: =SUMIF($D12:$Z12,"*↑え*",$D$3:$Z$3)/1000*図面!$AK$22 -> 0 | AJ12: =SUMIF($D12:$Z12,"*↓え*",$D$3:$Z$3)/1000*図面!$AK$22 -> 0 | AK12: =SUMIF($D12:$Z12,"*↑お*",$D$3:$Z$3)/1000*図面!$AK$23 -> 0 | AL12: =SUMIF($D12:$Z12,"*↓お*",$D$3:$Z$3)/1000*図面!AK$23 -> 0 | AM12: =SUMIF($D12:$Z12,"*↑か*",$D$3:$Z$3)/1000*図面!$AK$24 -> 0 | AN12: =SUMIF($D12:$Z12,"*↓か*",$D$3:$Z$3)/1000*図面!$AK$24 -> 0 | AO12: 0 | AP12: =IF(COUNTIF(面積計算!AG12,1),"上"," ") ->  | AQ12: =IF(COUNTIF(面積計算!AI12,1),"下"," ") ->  | AR12: 0 | AS12: 0 | AT12: 0 | AU12: 0 | AV12: 0 | AW12: 0
C13: =図面!B13 -> 910 | D13: =IF(図面!D13="","",図面!D13) ->  | E13: =IF(図面!E13="","",図面!E13) ->  | F13: =IF(図面!F13="","",図面!F13) ->  | G13: =IF(図面!G13="","",図面!G13) ->  | H13: =IF(図面!H13="","",図面!H13) ->  | I13: =IF(図面!I13="","",図面!I13) ->  | J13: =IF(図面!J13="","",図面!J13) ->  | K13: =IF(図面!K13="","",図面!K13) ->  | L13: =IF(図面!L13="","",図面!L13) ->  | M13: =IF(図面!M13="","",図面!M13) ->  | N13: =IF(図面!N13="","",図面!N13) ->  | O13: =IF(図面!O13="","",図面!O13) ->  | P13: =IF(図面!P13="","",図面!P13) ->  | Q13: =IF(図面!Q13="","",図面!Q13) ->  | R13: =IF(図面!R13="","",図面!R13) ->  | S13: =IF(図面!S13="","",図面!S13) ->  | T13: =IF(図面!T13="","",図面!T13) ->  | U13: =IF(図面!U13="","",図面!U13) ->  | V13: =IF(図面!V13="","",図面!V13) ->  | W13: =IF(図面!W13="","",図面!W13) ->  | X13: =IF(図面!X13="","",図面!X13) ->  | Y13: =IF(図面!Y13="","",図面!Y13) ->  | Z13: =IF(図面!Z13="","",図面!Z13) ->  | AA13: =IF(COUNTIF(面積計算!AG13:AI13,1),"●"," ") ->  | AC13: =SUMIF($D13:$Z13,"*↑あ*",$D$3:$Z$3)/1000*図面!$AK$19 -> 0 | AD13: =SUMIF($D13:$Z13,"*↓あ*",$D$3:$Z$3)/1000*図面!$AK$19 -> 0 | AE13: =SUMIF($D13:$Z13,"*↑い*",$D$3:$Z$3)/1000*図面!$AK$20 -> 0 | AF13: =SUMIF($D13:$Z13,"*↓い*",$D$3:$Z$3)/1000*図面!$AK$20 -> 0 | AG13: =SUMIF($D13:$Z13,"*↑う*",$D$3:$Z$3)/1000*図面!$AK$21 -> 0 | AH13: =SUMIF($D13:$Z13,"*↓う*",$D$3:$Z$3)/1000*図面!$AK$21 -> 0 | AI13: =SUMIF($D13:$Z13,"*↑え*",$D$3:$Z$3)/1000*図面!$AK$22 -> 0 | AJ13: =SUMIF($D13:$Z13,"*↓え*",$D$3:$Z$3)/1000*図面!$AK$22 -> 0 | AK13: =SUMIF($D13:$Z13,"*↑お*",$D$3:$Z$3)/1000*図面!$AK$23 -> 0 | AL13: =SUMIF($D13:$Z13,"*↓お*",$D$3:$Z$3)/1000*図面!AK$23 -> 0 | AM13: =SUMIF($D13:$Z13,"*↑か*",$D$3:$Z$3)/1000*図面!$AK$24 -> 0 | AN13: =SUMIF($D13:$Z13,"*↓か*",$D$3:$Z$3)/1000*図面!$AK$24 -> 0 | AO13: =SUM(AC13:AN13) -> 0 | AP13: =IF(COUNTIF(面積計算!AG13,1),"上"," ") ->  | AQ13: =IF(COUNTIF(面積計算!AI13,1),"下"," ") ->  | AR13: 0 | AS13: 0 | AT13: 0 | AU13: 0 | AV13: 0 | AW13: 0
C14: =図面!B14 -> 910 | D14: =IF(図面!D14="","",図面!D14) ->  | E14: =IF(図面!E14="","",図面!E14) ->  | F14: =IF(図面!F14="","",図面!F14) ->  | G14: =IF(図面!G14="","",図面!G14) ->  | H14: =IF(図面!H14="","",図面!H14) ->  | I14: =IF(図面!I14="","",図面!I14) ->  | J14: =IF(図面!J14="","",図面!J14) ->  | K14: =IF(図面!K14="","",図面!K14) ->  | L14: =IF(図面!L14="","",図面!L14) ->  | M14: =IF(図面!M14="","",図面!M14) ->  | N14: =IF(図面!N14="","",図面!N14) ->  | O14: =IF(図面!O14="","",図面!O14) ->  | P14: =IF(図面!P14="","",図面!P14) ->  | Q14: =IF(図面!Q14="","",図面!Q14) ->  | R14: =IF(図面!R14="","",図面!R14) ->  | S14: =IF(図面!S14="","",図面!S14) ->  | T14: =IF(図面!T14="","",図面!T14) ->  | U14: =IF(図面!U14="","",図面!U14) ->  | V14: =IF(図面!V14="","",図面!V14) ->  | W14: =IF(図面!W14="","",図面!W14) ->  | X14: =IF(図面!X14="","",図面!X14) ->  | Y14: =IF(図面!Y14="","",図面!Y14) ->  | Z14: =IF(図面!Z14="","",図面!Z14) ->  | AA14: =IF(COUNTIF(面積計算!AG14:AI14,1),"●"," ") ->  | AC14: =SUMIF($D14:$Z14,"*↑あ*",$D$3:$Z$3)/1000*図面!$AK$19 -> 0 | AD14: =SUMIF($D14:$Z14,"*↓あ*",$D$3:$Z$3)/1000*図面!$AK$19 -> 0 | AE14: =SUMIF($D14:$Z14,"*↑い*",$D$3:$Z$3)/1000*図面!$AK$20 -> 0 | AF14: =SUMIF($D14:$Z14,"*↓い*",$D$3:$Z$3)/1000*図面!$AK$20 -> 0 | AG14: =SUMIF($D14:$Z14,"*↑う*",$D$3:$Z$3)/1000*図面!$AK$21 -> 0 | AH14: =SUMIF($D14:$Z14,"*↓う*",$D$3:$Z$3)/1000*図面!$AK$21 -> 0 | AI14: =SUMIF($D14:$Z14,"*↑え*",$D$3:$Z$3)/1000*図面!$AK$22 -> 0 | AJ14: =SUMIF($D14:$Z14,"*↓え*",$D$3:$Z$3)/1000*図面!$AK$22 -> 0 | AK14: =SUMIF($D14:$Z14,"*↑お*",$D$3:$Z$3)/1000*図面!$AK$23 -> 0 | AL14: =SUMIF($D14:$Z14,"*↓お*",$D$3:$Z$3)/1000*図面!AK$23 -> 0 | AM14: =SUMIF($D14:$Z14,"*↑か*",$D$3:$Z$3)/1000*図面!$AK$24 -> 0 | AN14: =SUMIF($D14:$Z14,"*↓か*",$D$3:$Z$3)/1000*図面!$AK$24 -> 0 | AO14: 0 | AP14: =IF(COUNTIF(面積計算!AG14,1),"上"," ") ->  | AQ14: =IF(COUNTIF(面積計算!AI14,1),"下"," ") ->  | AR14: 0 | AS14: 0 | AT14: 0 | AU14: 0 | AV14: 0 | AW14: 0
C15: =図面!B15 -> 910 | D15: =IF(図面!D15="","",図面!D15) ->  | E15: =IF(図面!E15="","",図面!E15) ->  | F15: =IF(図面!F15="","",図面!F15) ->  | G15: =IF(図面!G15="","",図面!G15) ->  | H15: =IF(図面!H15="","",図面!H15) ->  | I15: =IF(図面!I15="","",図面!I15) ->  | J15: =IF(図面!J15="","",図面!J15) ->  | K15: =IF(図面!K15="","",図面!K15) ->  | L15: =IF(図面!L15="","",図面!L15) ->  | M15: =IF(図面!M15="","",図面!M15) ->  | N15: =IF(図面!N15="","",図面!N15) ->  | O15: =IF(図面!O15="","",図面!O15) ->  | P15: =IF(図面!P15="","",図面!P15) ->  | Q15: =IF(図面!Q15="","",図面!Q15) ->  | R15: =IF(図面!R15="","",図面!R15) ->  | S15: =IF(図面!S15="","",図面!S15) ->  | T15: =IF(図面!T15="","",図面!T15) ->  | U15: =IF(図面!U15="","",図面!U15) ->  | V15: =IF(図面!V15="","",図面!V15) ->  | W15: =IF(図面!W15="","",図面!W15) ->  | X15: =IF(図面!X15="","",図面!X15) ->  | Y15: =IF(図面!Y15="","",図面!Y15) ->  | Z15: =IF(図面!Z15="","",図面!Z15) ->  | AA15: =IF(COUNTIF(面積計算!AG15:AI15,1),"●"," ") ->  | AC15: =SUMIF($D15:$Z15,"*↑あ*",$D$3:$Z$3)/1000*図面!$AK$19 -> 0 | AD15: =SUMIF($D15:$Z15,"*↓あ*",$D$3:$Z$3)/1000*図面!$AK$19 -> 0 | AE15: =SUMIF($D15:$Z15,"*↑い*",$D$3:$Z$3)/1000*図面!$AK$20 -> 0 | AF15: =SUMIF($D15:$Z15,"*↓い*",$D$3:$Z$3)/1000*図面!$AK$20 -> 0 | AG15: =SUMIF($D15:$Z15,"*↑う*",$D$3:$Z$3)/1000*図面!$AK$21 -> 0 | AH15: =SUMIF($D15:$Z15,"*↓う*",$D$3:$Z$3)/1000*図面!$AK$21 -> 0 | AI15: =SUMIF($D15:$Z15,"*↑え*",$D$3:$Z$3)/1000*図面!$AK$22 -> 0 | AJ15: =SUMIF($D15:$Z15,"*↓え*",$D$3:$Z$3)/1000*図面!$AK$22 -> 0 | AK15: =SUMIF($D15:$Z15,"*↑お*",$D$3:$Z$3)/1000*図面!$AK$23 -> 0 | AL15: =SUMIF($D15:$Z15,"*↓お*",$D$3:$Z$3)/1000*図面!AK$23 -> 0 | AM15: =SUMIF($D15:$Z15,"*↑か*",$D$3:$Z$3)/1000*図面!$AK$24 -> 0 | AN15: =SUMIF($D15:$Z15,"*↓か*",$D$3:$Z$3)/1000*図面!$AK$24 -> 0 | AO15: 0 | AP15: =IF(COUNTIF(面積計算!AG15,1),"上"," ") ->  | AQ15: =IF(COUNTIF(面積計算!AI15,1),"下"," ") ->  | AR15: =IF(COUNTIF(AP14:AP16,"上"),AO15,0) -> 0 | AS15: 0 | AT15: =IF(AND(AP15=" ",AP14="上"),AR15-AS15,AR15) -> 0 | AU15: =IF(COUNTIF(AQ14:AQ16,"下"),AO15,0) -> 0 | AV15: 0 | AW15: 0
C16: =図面!B16 -> 910 | D16: =IF(図面!D16="","",図面!D16) ->  | E16: =IF(図面!E16="","",図面!E16) ->  | F16: =IF(図面!F16="","",図面!F16) ->  | G16: =IF(図面!G16="","",図面!G16) ->  | H16: =IF(図面!H16="","",図面!H16) ->  | I16: =IF(図面!I16="","",図面!I16) ->  | J16: =IF(図面!J16="","",図面!J16) ->  | K16: =IF(図面!K16="","",図面!K16) ->  | L16: =IF(図面!L16="","",図面!L16) ->  | M16: =IF(図面!M16="","",図面!M16) ->  | N16: =IF(図面!N16="","",図面!N16) ->  | O16: =IF(図面!O16="","",図面!O16) ->  | P16: =IF(図面!P16="","",図面!P16) ->  | Q16: =IF(図面!Q16="","",図面!Q16) ->  | R16: =IF(図面!R16="","",図面!R16) ->  | S16: =IF(図面!S16="","",図面!S16) ->  | T16: =IF(図面!T16="","",図面!T16) ->  | U16: =IF(図面!U16="","",図面!U16) ->  | V16: =IF(図面!V16="","",図面!V16) ->  | W16: =IF(図面!W16="","",図面!W16) ->  | X16: =IF(図面!X16="","",図面!X16) ->  | Y16: =IF(図面!Y16="","",図面!Y16) ->  | Z16: =IF(図面!Z16="","",図面!Z16) ->  | AA16: =IF(COUNTIF(面積計算!AG16:AI16,1),"●"," ") ->  | AC16: =SUMIF($D16:$Z16,"*↑あ*",$D$3:$Z$3)/1000*図面!$AK$19 -> 0 | AD16: =SUMIF($D16:$Z16,"*↓あ*",$D$3:$Z$3)/1000*図面!$AK$19 -> 0 | AE16: =SUMIF($D16:$Z16,"*↑い*",$D$3:$Z$3)/1000*図面!$AK$20 -> 0 | AF16: =SUMIF($D16:$Z16,"*↓い*",$D$3:$Z$3)/1000*図面!$AK$20 -> 0 | AG16: =SUMIF($D16:$Z16,"*↑う*",$D$3:$Z$3)/1000*図面!$AK$21 -> 0 | AH16: =SUMIF($D16:$Z16,"*↓う*",$D$3:$Z$3)/1000*図面!$AK$21 -> 0 | AI16: =SUMIF($D16:$Z16,"*↑え*",$D$3:$Z$3)/1000*図面!$AK$22 -> 0 | AJ16: =SUMIF($D16:$Z16,"*↓え*",$D$3:$Z$3)/1000*図面!$AK$22 -> 0 | AK16: =SUMIF($D16:$Z16,"*↑お*",$D$3:$Z$3)/1000*図面!$AK$23 -> 0 | AL16: =SUMIF($D16:$Z16,"*↓お*",$D$3:$Z$3)/1000*図面!AK$23 -> 0 | AM16: =SUMIF($D16:$Z16,"*↑か*",$D$3:$Z$3)/1000*図面!$AK$24 -> 0 | AN16: =SUMIF($D16:$Z16,"*↓か*",$D$3:$Z$3)/1000*図面!$AK$24 -> 0 | AO16: 0 | AP16: =IF(COUNTIF(面積計算!AG16,1),"上"," ") ->  | AQ16: =IF(COUNTIF(面積計算!AI16,1),"下"," ") ->  | AR16: 0 | AS16: 0 | AT16: 0 | AU16: 0 | AV16: 0 | AW16: 0
C17: =図面!B17 -> 910 | D17: =IF(図面!D17="","",図面!D17) ->  | E17: =IF(図面!E17="","",図面!E17) ->  | F17: =IF(図面!F17="","",図面!F17) ->  | G17: =IF(図面!G17="","",図面!G17) ->  | H17: =IF(図面!H17="","",図面!H17) ->  | I17: =IF(図面!I17="","",図面!I17) ->  | J17: =IF(図面!J17="","",図面!J17) ->  | K17: =IF(図面!K17="","",図面!K17) ->  | L17: =IF(図面!L17="","",図面!L17) ->  | M17: =IF(図面!M17="","",図面!M17) ->  | N17: =IF(図面!N17="","",図面!N17) ->  | O17: =IF(図面!O17="","",図面!O17) ->  | P17: =IF(図面!P17="","",図面!P17) ->  | Q17: =IF(図面!Q17="","",図面!Q17) ->  | R17: =IF(図面!R17="","",図面!R17) ->  | S17: =IF(図面!S17="","",図面!S17) ->  | T17: =IF(図面!T17="","",図面!T17) ->  | U17: =IF(図面!U17="","",図面!U17) ->  | V17: =IF(図面!V17="","",図面!V17) ->  | W17: =IF(図面!W17="","",図面!W17) ->  | X17: =IF(図面!X17="","",図面!X17) ->  | Y17: =IF(図面!Y17="","",図面!Y17) ->  | Z17: =IF(図面!Z17="","",図面!Z17) ->  | AA17: =IF(COUNTIF(面積計算!AG17:AI17,1),"●"," ") ->  | AC17: =SUMIF($D17:$Z17,"*↑あ*",$D$3:$Z$3)/1000*図面!$AK$19 -> 0 | AD17: =SUMIF($D17:$Z17,"*↓あ*",$D$3:$Z$3)/1000*図面!$AK$19 -> 0 | AE17: =SUMIF($D17:$Z17,"*↑い*",$D$3:$Z$3)/1000*図面!$AK$20 -> 0 | AF17: =SUMIF($D17:$Z17,"*↓い*",$D$3:$Z$3)/1000*図面!$AK$20 -> 0 | AG17: =SUMIF($D17:$Z17,"*↑う*",$D$3:$Z$3)/1000*図面!$AK$21 -> 0 | AH17: =SUMIF($D17:$Z17,"*↓う*",$D$3:$Z$3)/1000*図面!$AK$21 -> 0 | AI17: =SUMIF($D17:$Z17,"*↑え*",$D$3:$Z$3)/1000*図面!$AK$22 -> 0 | AJ17: =SUMIF($D17:$Z17,"*↓え*",$D$3:$Z$3)/1000*図面!$AK$22 -> 0 | AK17: =SUMIF($D17:$Z17,"*↑お*",$D$3:$Z$3)/1000*図面!$AK$23 -> 0 | AL17: =SUMIF($D17:$Z17,"*↓お*",$D$3:$Z$3)/1000*図面!AK$23 -> 0 | AM17: =SUMIF($D17:$Z17,"*↑か*",$D$3:$Z$3)/1000*図面!$AK$24 -> 0 | AN17: =SUMIF($D17:$Z17,"*↓か*",$D$3:$Z$3)/1000*図面!$AK$24 -> 0 | AO17: 0 | AP17: =IF(COUNTIF(面積計算!AG17,1),"上"," ") ->  | AQ17: =IF(COUNTIF(面積計算!AI17,1),"下"," ") ->  | AR17: 0 | AS17: 0 | AT17: 0 | AU17: 0 | AV17: 0 | AW17: 0
C18: =図面!B18 -> 910 | D18: =IF(図面!D18="","",図面!D18) ->  | E18: =IF(図面!E18="","",図面!E18) ->  | F18: =IF(図面!F18="","",図面!F18) ->  | G18: =IF(図面!G18="","",図面!G18) ->  | H18: =IF(図面!H18="","",図面!H18) ->  | I18: =IF(図面!I18="","",図面!I18) ->  | J18: =IF(図面!J18="","",図面!J18) ->  | K18: =IF(図面!K18="","",図面!K18) ->  | L18: =IF(図面!L18="","",図面!L18) ->  | M18: =IF(図面!M18="","",図面!M18) ->  | N18: =IF(図面!N18="","",図面!N18) ->  | O18: =IF(図面!O18="","",図面!O18) ->  | P18: =IF(図面!P18="","",図面!P18) ->  | Q18: =IF(図面!Q18="","",図面!Q18) ->  | R18: =IF(図面!R18="","",図面!R18) ->  | S18: =IF(図面!S18="","",図面!S18) ->  | T18: =IF(図面!T18="","",図面!T18) ->  | U18: =IF(図面!U18="","",図面!U18) ->  | V18: =IF(図面!V18="","",図面!V18) ->  | W18: =IF(図面!W18="","",図面!W18) ->  | X18: =IF(図面!X18="","",図面!X18) ->  | Y18: =IF(図面!Y18="","",図面!Y18) ->  | Z18: =IF(図面!Z18="","",図面!Z18) ->  | AA18: =IF(COUNTIF(面積計算!AG18:AI18,1),"●"," ") ->  | AC18: =SUMIF($D18:$Z18,"*↑あ*",$D$3:$Z$3)/1000*図面!$AK$19 -> 0 | AD18: =SUMIF($D18:$Z18,"*↓あ*",$D$3:$Z$3)/1000*図面!$AK$19 -> 0 | AE18: =SUMIF($D18:$Z18,"*↑い*",$D$3:$Z$3)/1000*図面!$AK$20 -> 0 | AF18: =SUMIF($D18:$Z18,"*↓い*",$D$3:$Z$3)/1000*図面!$AK$20 -> 0 | AG18: =SUMIF($D18:$Z18,"*↑う*",$D$3:$Z$3)/1000*図面!$AK$21 -> 0 | AH18: =SUMIF($D18:$Z18,"*↓う*",$D$3:$Z$3)/1000*図面!$AK$21 -> 0 | AI18: =SUMIF($D18:$Z18,"*↑え*",$D$3:$Z$3)/1000*図面!$AK$22 -> 0 | AJ18: =SUMIF($D18:$Z18,"*↓え*",$D$3:$Z$3)/1000*図面!$AK$22 -> 0 | AK18: =SUMIF($D18:$Z18,"*↑お*",$D$3:$Z$3)/1000*図面!$AK$23 -> 0 | AL18: =SUMIF($D18:$Z18,"*↓お*",$D$3:$Z$3)/1000*図面!AK$23 -> 0 | AM18: =SUMIF($D18:$Z18,"*↑か*",$D$3:$Z$3)/1000*図面!$AK$24 -> 0 | AN18: =SUMIF($D18:$Z18,"*↓か*",$D$3:$Z$3)/1000*図面!$AK$24 -> 0 | AO18: 0 | AP18: =IF(COUNTIF(面積計算!AG18,1),"上"," ") ->  | AQ18: =IF(COUNTIF(面積計算!AI18,1),"下"," ") ->  | AR18: 0 | AS18: 0 | AT18: 0 | AU18: 0 | AV18: 0 | AW18: 0
C19: =図面!B19 -> 910 | D19: =IF(図面!D19="","",図面!D19) ->  | E19: =IF(図面!E19="","",図面!E19) ->  | F19: =IF(図面!F19="","",図面!F19) ->  | G19: =IF(図面!G19="","",図面!G19) ->  | H19: =IF(図面!H19="","",図面!H19) ->  | I19: =IF(図面!I19="","",図面!I19) ->  | J19: =IF(図面!J19="","",図面!J19) ->  | K19: =IF(図面!K19="","",図面!K19) ->  | L19: =IF(図面!L19="","",図面!L19) ->  | M19: =IF(図面!M19="","",図面!M19) ->  | N19: =IF(図面!N19="","",図面!N19) ->  | O19: =IF(図面!O19="","",図面!O19) ->  | P19: =IF(図面!P19="","",図面!P19) ->  | Q19: =IF(図面!Q19="","",図面!Q19) ->  | R19: =IF(図面!R19="","",図面!R19) ->  | S19: =IF(図面!S19="","",図面!S19) ->  | T19: =IF(図面!T19="","",図面!T19) ->  | U19: =IF(図面!U19="","",図面!U19) ->  | V19: =IF(図面!V19="","",図面!V19) ->  | W19: =IF(図面!W19="","",図面!W19) ->  | X19: =IF(図面!X19="","",図面!X19) ->  | Y19: =IF(図面!Y19="","",図面!Y19) ->  | Z19: =IF(図面!Z19="","",図面!Z19) ->  | AA19: =IF(COUNTIF(面積計算!AG19:AI19,1),"●"," ") ->  | AC19: =SUMIF($D19:$Z19,"*↑あ*",$D$3:$Z$3)/1000*図面!$AK$19 -> 0 | AD19: =SUMIF($D19:$Z19,"*↓あ*",$D$3:$Z$3)/1000*図面!$AK$19 -> 0 | AE19: =SUMIF($D19:$Z19,"*↑い*",$D$3:$Z$3)/1000*図面!$AK$20 -> 0 | AF19: =SUMIF($D19:$Z19,"*↓い*",$D$3:$Z$3)/1000*図面!$AK$20 -> 0 | AG19: =SUMIF($D19:$Z19,"*↑う*",$D$3:$Z$3)/1000*図面!$AK$21 -> 0 | AH19: =SUMIF($D19:$Z19,"*↓う*",$D$3:$Z$3)/1000*図面!$AK$21 -> 0 | AI19: =SUMIF($D19:$Z19,"*↑え*",$D$3:$Z$3)/1000*図面!$AK$22 -> 0 | AJ19: =SUMIF($D19:$Z19,"*↓え*",$D$3:$Z$3)/1000*図面!$AK$22 -> 0 | AK19: =SUMIF($D19:$Z19,"*↑お*",$D$3:$Z$3)/1000*図面!$AK$23 -> 0 | AL19: =SUMIF($D19:$Z19,"*↓お*",$D$3:$Z$3)/1000*図面!AK$23 -> 0 | AM19: =SUMIF($D19:$Z19,"*↑か*",$D$3:$Z$3)/1000*図面!$AK$24 -> 0 | AN19: =SUMIF($D19:$Z19,"*↓か*",$D$3:$Z$3)/1000*図面!$AK$24 -> 0 | AO19: 0 | AP19: =IF(COUNTIF(面積計算!AG19,1),"上"," ") ->  | AQ19: =IF(COUNTIF(面積計算!AI19,1),"下"," ") ->  | AR19: 0 | AS19: 0 | AT19: 0 | AU19: 0 | AV19: 0 | AW19: 0
C20: =図面!B20 -> 910 | D20: =IF(図面!D20="","",図面!D20) ->  | E20: =IF(図面!E20="","",図面!E20) ->  | F20: =IF(図面!F20="","",図面!F20) ->  | G20: =IF(図面!G20="","",図面!G20) ->  | H20: =IF(図面!H20="","",図面!H20) ->  | I20: =IF(図面!I20="","",図面!I20) ->  | J20: =IF(図面!J20="","",図面!J20) ->  | K20: =IF(図面!K20="","",図面!K20) ->  | L20: =IF(図面!L20="","",図面!L20) ->  | M20: =IF(図面!M20="","",図面!M20) ->  | N20: =IF(図面!N20="","",図面!N20) ->  | O20: =IF(図面!O20="","",図面!O20) ->  | P20: =IF(図面!P20="","",図面!P20) ->  | Q20: =IF(図面!Q20="","",図面!Q20) ->  | R20: =IF(図面!R20="","",図面!R20) ->  | S20: =IF(図面!S20="","",図面!S20) ->  | T20: =IF(図面!T20="","",図面!T20) ->  | U20: =IF(図面!U20="","",図面!U20) ->  | V20: =IF(図面!V20="","",図面!V20) ->  | W20: =IF(図面!W20="","",図面!W20) ->  | X20: =IF(図面!X20="","",図面!X20) ->  | Y20: =IF(図面!Y20="","",図面!Y20) ->  | Z20: =IF(図面!Z20="","",図面!Z20) ->  | AA20: =IF(COUNTIF(面積計算!AG20:AI20,1),"●"," ") ->  | AC20: =SUMIF($D20:$Z20,"*↑あ*",$D$3:$Z$3)/1000*図面!$AK$19 -> 0 | AD20: =SUMIF($D20:$Z20,"*↓あ*",$D$3:$Z$3)/1000*図面!$AK$19 -> 0 | AE20: =SUMIF($D20:$Z20,"*↑い*",$D$3:$Z$3)/1000*図面!$AK$20 -> 0 | AF20: =SUMIF($D20:$Z20,"*↓い*",$D$3:$Z$3)/1000*図面!$AK$20 -> 0 | AG20: =SUMIF($D20:$Z20,"*↑う*",$D$3:$Z$3)/1000*図面!$AK$21 -> 0 | AH20: =SUMIF($D20:$Z20,"*↓う*",$D$3:$Z$3)/1000*図面!$AK$21 -> 0 | AI20: =SUMIF($D20:$Z20,"*↑え*",$D$3:$Z$3)/1000*図面!$AK$22 -> 0 | AJ20: =SUMIF($D20:$Z20,"*↓え*",$D$3:$Z$3)/1000*図面!$AK$22 -> 0 | AK20: =SUMIF($D20:$Z20,"*↑お*",$D$3:$Z$3)/1000*図面!$AK$23 -> 0 | AL20: =SUMIF($D20:$Z20,"*↓お*",$D$3:$Z$3)/1000*図面!AK$23 -> 0 | AM20: =SUMIF($D20:$Z20,"*↑か*",$D$3:$Z$3)/1000*図面!$AK$24 -> 0 | AN20: =SUMIF($D20:$Z20,"*↓か*",$D$3:$Z$3)/1000*図面!$AK$24 -> 0 | AO20: 0 | AP20: =IF(COUNTIF(面積計算!AG20,1),"上"," ") ->  | AQ20: =IF(COUNTIF(面積計算!AI20,1),"下"," ") ->  | AR20: 0 | AS20: 0 | AT20: 0 | AU20: 0 | AV20: 0 | AW20: 0
D21: =IF(COUNTIF(面積計算!D27:D29,1),"●"," ") ->  | E21: =IF(COUNTIF(面積計算!E27:E29,1),"●"," ") ->  | F21: =IF(COUNTIF(面積計算!F27:F29,1),"●"," ") ->  | G21: =IF(COUNTIF(面積計算!G27:G29,1),"●"," ") ->  | H21: =IF(COUNTIF(面積計算!H27:H29,1),"●"," ") ->  | I21: =IF(COUNTIF(面積計算!I27:I29,1),"●"," ") ->  | J21: =IF(COUNTIF(面積計算!J27:J29,1),"●"," ") ->  | K21: =IF(COUNTIF(面積計算!K27:K29,1),"●"," ") ->  | L21: =IF(COUNTIF(面積計算!L27:L29,1),"●"," ") ->  | M21: =IF(COUNTIF(面積計算!M27:M29,1),"●"," ") ->  | N21: =IF(COUNTIF(面積計算!N27:N29,1),"●"," ") ->  | O21: =IF(COUNTIF(面積計算!O27:O29,1),"●"," ") ->  | P21: =IF(COUNTIF(面積計算!P27:P29,1),"●"," ") ->  | Q21: =IF(COUNTIF(面積計算!Q27:Q29,1),"●"," ") ->  | R21: =IF(COUNTIF(面積計算!R27:R29,1),"●"," ") ->  | S21: =IF(COUNTIF(面積計算!S27:S29,1),"●"," ") ->  | T21: =IF(COUNTIF(面積計算!T27:T29,1),"●"," ") ->  | U21: =IF(COUNTIF(面積計算!U27:U29,1),"●"," ") ->  | V21: =IF(COUNTIF(面積計算!V27:V29,1),"●"," ") ->  | W21: =IF(COUNTIF(面積計算!W27:W29,1),"●"," ") ->  | X21: =IF(COUNTIF(面積計算!X27:X29,1),"●"," ") ->  | Y21: =IF(COUNTIF(面積計算!Y27:Y29,1),"●"," ") ->  | Z21: =IF(COUNTIF(面積計算!Z27:Z29,1),"●"," ") ->  | AO21: =SUM(AO4:AO20) -> 0 | AT21: =SUM(AT4:AT20) -> 0 | AW21: =SUM(AW4:AW20) -> 0
C23: →あ | D23: =SUMIF(D$4:D$20,"*→あ*",$C$4:$C$20)/1000*図面!$AK$19 -> 0 | E23: =SUMIF(E$4:E$20,"*→あ*",$C$4:$C$20)/1000*図面!$AK$19 -> 0 | F23: =SUMIF(F$4:F$20,"*→あ*",$C$4:$C$20)/1000*図面!$AK$19 -> 0 | G23: =SUMIF(G$4:G$20,"*→あ*",$C$4:$C$20)/1000*図面!$AK$19 -> 0 | H23: =SUMIF(H$4:H$20,"*→あ*",$C$4:$C$20)/1000*図面!$AK$19 -> 0 | I23: =SUMIF(I$4:I$20,"*→あ*",$C$4:$C$20)/1000*図面!$AK$19 -> 0 | J23: =SUMIF(J$4:J$20,"*→あ*",$C$4:$C$20)/1000*図面!$AK$19 -> 0 | K23: =SUMIF(K$4:K$20,"*→あ*",$C$4:$C$20)/1000*図面!$AK$19 -> 0 | L23: =SUMIF(L$4:L$20,"*→あ*",$C$4:$C$20)/1000*図面!$AK$19 -> 0 | M23: =SUMIF(M$4:M$20,"*→あ*",$C$4:$C$20)/1000*図面!$AK$19 -> 0 | N23: =SUMIF(N$4:N$20,"*→あ*",$C$4:$C$20)/1000*図面!$AK$19 -> 0 | O23: =SUMIF(O$4:O$20,"*→あ*",$C$4:$C$20)/1000*図面!$AK$19 -> 0 | P23: =SUMIF(P$4:P$20,"*→あ*",$C$4:$C$20)/1000*図面!$AK$19 -> 0 | Q23: =SUMIF(Q$4:Q$20,"*→あ*",$C$4:$C$20)/1000*図面!$AK$19 -> 0 | R23: =SUMIF(R$4:R$20,"*→あ*",$C$4:$C$20)/1000*図面!$AK$19 -> 0 | S23: =SUMIF(S$4:S$20,"*→あ*",$C$4:$C$20)/1000*図面!$AK$19 -> 0 | T23: =SUMIF(T$4:T$20,"*→あ*",$C$4:$C$20)/1000*図面!$AK$19 -> 0 | U23: =SUMIF(U$4:U$20,"*→あ*",$C$4:$C$20)/1000*図面!$AK$19 -> 0 | V23: =SUMIF(V$4:V$20,"*→あ*",$C$4:$C$20)/1000*図面!$AK$19 -> 0 | W23: =SUMIF(W$4:W$20,"*→あ*",$C$4:$C$20)/1000*図面!$AK$19 -> 0 | X23: =SUMIF(X$4:X$20,"*→あ*",$C$4:$C$20)/1000*図面!$AK$19 -> 0 | Y23: =SUMIF(Y$4:Y$20,"*→あ*",$C$4:$C$20)/1000*図面!$AK$19 -> 0 | Z23: =SUMIF(Z$4:Z$20,"*→あ*",$C$4:$C$20)/1000*図面!$AK$19 -> 0
C24: ←あ | D24: =SUMIF(D$4:D$20,"*←あ*",$C$4:$C$20)/1000*図面!$AK$19 -> 0 | E24: =SUMIF(E$4:E$20,"*←あ*",$C$4:$C$20)/1000*図面!$AK$19 -> 0 | F24: =SUMIF(F$4:F$20,"*←あ*",$C$4:$C$20)/1000*図面!$AK$19 -> 0 | G24: =SUMIF(G$4:G$20,"*←あ*",$C$4:$C$20)/1000*図面!$AK$19 -> 0 | H24: =SUMIF(H$4:H$20,"*←あ*",$C$4:$C$20)/1000*図面!$AK$19 -> 0 | I24: =SUMIF(I$4:I$20,"*←あ*",$C$4:$C$20)/1000*図面!$AK$19 -> 0 | J24: =SUMIF(J$4:J$20,"*←あ*",$C$4:$C$20)/1000*図面!$AK$19 -> 0 | K24: =SUMIF(K$4:K$20,"*←あ*",$C$4:$C$20)/1000*図面!$AK$19 -> 0 | L24: =SUMIF(L$4:L$20,"*←あ*",$C$4:$C$20)/1000*図面!$AK$19 -> 0 | M24: =SUMIF(M$4:M$20,"*←あ*",$C$4:$C$20)/1000*図面!$AK$19 -> 0 | N24: =SUMIF(N$4:N$20,"*←あ*",$C$4:$C$20)/1000*図面!$AK$19 -> 0 | O24: =SUMIF(O$4:O$20,"*←あ*",$C$4:$C$20)/1000*図面!$AK$19 -> 0 | P24: =SUMIF(P$4:P$20,"*←あ*",$C$4:$C$20)/1000*図面!$AK$19 -> 0 | Q24: =SUMIF(Q$4:Q$20,"*←あ*",$C$4:$C$20)/1000*図面!$AK$19 -> 0 | R24: =SUMIF(R$4:R$20,"*←あ*",$C$4:$C$20)/1000*図面!$AK$19 -> 0 | S24: =SUMIF(S$4:S$20,"*←あ*",$C$4:$C$20)/1000*図面!$AK$19 -> 0 | T24: =SUMIF(T$4:T$20,"*←あ*",$C$4:$C$20)/1000*図面!$AK$19 -> 0 | U24: =SUMIF(U$4:U$20,"*←あ*",$C$4:$C$20)/1000*図面!$AK$19 -> 0 | V24: =SUMIF(V$4:V$20,"*←あ*",$C$4:$C$20)/1000*図面!$AK$19 -> 0 | W24: =SUMIF(W$4:W$20,"*←あ*",$C$4:$C$20)/1000*図面!$AK$19 -> 0 | X24: =SUMIF(X$4:X$20,"*←あ*",$C$4:$C$20)/1000*図面!$AK$19 -> 0 | Y24: =SUMIF(Y$4:Y$20,"*←あ*",$C$4:$C$20)/1000*図面!$AK$19 -> 0 | Z24: =SUMIF(Z$4:Z$20,"*←あ*",$C$4:$C$20)/1000*図面!$AK$19 -> 0
C25: →い | D25: =SUMIF(D$4:D$20,"*→い*",$C$4:$C$20)/1000*図面!$AK$20 -> 0 | E25: =SUMIF(E$4:E$20,"*→い*",$C$4:$C$20)/1000*図面!$AK$20 -> 0 | F25: =SUMIF(F$4:F$20,"*→い*",$C$4:$C$20)/1000*図面!$AK$20 -> 0 | G25: =SUMIF(G$4:G$20,"*→い*",$C$4:$C$20)/1000*図面!$AK$20 -> 0 | H25: =SUMIF(H$4:H$20,"*→い*",$C$4:$C$20)/1000*図面!$AK$20 -> 0 | I25: =SUMIF(I$4:I$20,"*→い*",$C$4:$C$20)/1000*図面!$AK$20 -> 0 | J25: =SUMIF(J$4:J$20,"*→い*",$C$4:$C$20)/1000*図面!$AK$20 -> 0 | K25: =SUMIF(K$4:K$20,"*→い*",$C$4:$C$20)/1000*図面!$AK$20 -> 0 | L25: =SUMIF(L$4:L$20,"*→い*",$C$4:$C$20)/1000*図面!$AK$20 -> 0 | M25: =SUMIF(M$4:M$20,"*→い*",$C$4:$C$20)/1000*図面!$AK$20 -> 0 | N25: =SUMIF(N$4:N$20,"*→い*",$C$4:$C$20)/1000*図面!$AK$20 -> 0 | O25: =SUMIF(O$4:O$20,"*→い*",$C$4:$C$20)/1000*図面!$AK$20 -> 0 | P25: =SUMIF(P$4:P$20,"*→い*",$C$4:$C$20)/1000*図面!$AK$20 -> 0 | Q25: =SUMIF(Q$4:Q$20,"*→い*",$C$4:$C$20)/1000*図面!$AK$20 -> 0 | R25: =SUMIF(R$4:R$20,"*→い*",$C$4:$C$20)/1000*図面!$AK$20 -> 0 | S25: =SUMIF(S$4:S$20,"*→い*",$C$4:$C$20)/1000*図面!$AK$20 -> 0 | T25: =SUMIF(T$4:T$20,"*→い*",$C$4:$C$20)/1000*図面!$AK$20 -> 0 | U25: =SUMIF(U$4:U$20,"*→い*",$C$4:$C$20)/1000*図面!$AK$20 -> 0 | V25: =SUMIF(V$4:V$20,"*→い*",$C$4:$C$20)/1000*図面!$AK$20 -> 0 | W25: =SUMIF(W$4:W$20,"*→い*",$C$4:$C$20)/1000*図面!$AK$20 -> 0 | X25: =SUMIF(X$4:X$20,"*→い*",$C$4:$C$20)/1000*図面!$AK$20 -> 0 | Y25: =SUMIF(Y$4:Y$20,"*→い*",$C$4:$C$20)/1000*図面!$AK$20 -> 0 | Z25: =SUMIF(Z$4:Z$20,"*→い*",$C$4:$C$20)/1000*図面!$AK$20 -> 0
C26: ←い | D26: =SUMIF(D$4:D$20,"*←い*",$C$4:$C$20)/1000*図面!$AK$20 -> 0 | E26: =SUMIF(E$4:E$20,"*←い*",$C$4:$C$20)/1000*図面!$AK$20 -> 0 | F26: =SUMIF(F$4:F$20,"*←い*",$C$4:$C$20)/1000*図面!$AK$20 -> 0 | G26: =SUMIF(G$4:G$20,"*←い*",$C$4:$C$20)/1000*図面!$AK$20 -> 0 | H26: =SUMIF(H$4:H$20,"*←い*",$C$4:$C$20)/1000*図面!$AK$20 -> 0 | I26: =SUMIF(I$4:I$20,"*←い*",$C$4:$C$20)/1000*図面!$AK$20 -> 0 | J26: =SUMIF(J$4:J$20,"*←い*",$C$4:$C$20)/1000*図面!$AK$20 -> 0 | K26: =SUMIF(K$4:K$20,"*←い*",$C$4:$C$20)/1000*図面!$AK$20 -> 0 | L26: =SUMIF(L$4:L$20,"*←い*",$C$4:$C$20)/1000*図面!$AK$20 -> 0 | M26: =SUMIF(M$4:M$20,"*←い*",$C$4:$C$20)/1000*図面!$AK$20 -> 0 | N26: =SUMIF(N$4:N$20,"*←い*",$C$4:$C$20)/1000*図面!$AK$20 -> 0 | O26: =SUMIF(O$4:O$20,"*←い*",$C$4:$C$20)/1000*図面!$AK$20 -> 0 | P26: =SUMIF(P$4:P$20,"*←い*",$C$4:$C$20)/1000*図面!$AK$20 -> 0 | Q26: =SUMIF(Q$4:Q$20,"*←い*",$C$4:$C$20)/1000*図面!$AK$20 -> 0 | R26: =SUMIF(R$4:R$20,"*←い*",$C$4:$C$20)/1000*図面!$AK$20 -> 0 | S26: =SUMIF(S$4:S$20,"*←い*",$C$4:$C$20)/1000*図面!$AK$20 -> 0 | T26: =SUMIF(T$4:T$20,"*←い*",$C$4:$C$20)/1000*図面!$AK$20 -> 0 | U26: =SUMIF(U$4:U$20,"*←い*",$C$4:$C$20)/1000*図面!$AK$20 -> 0 | V26: =SUMIF(V$4:V$20,"*←い*",$C$4:$C$20)/1000*図面!$AK$20 -> 0 | W26: =SUMIF(W$4:W$20,"*←い*",$C$4:$C$20)/1000*図面!$AK$20 -> 0 | X26: =SUMIF(X$4:X$20,"*←い*",$C$4:$C$20)/1000*図面!$AK$20 -> 0 | Y26: =SUMIF(Y$4:Y$20,"*←い*",$C$4:$C$20)/1000*図面!$AK$20 -> 0 | Z26: =SUMIF(Z$4:Z$20,"*←い*",$C$4:$C$20)/1000*図面!$AK$20 -> 0
C27: →う | D27: =SUMIF(D$4:D$20,"*→う*",$C$4:$C$20)/1000*図面!$AK$21 -> 0 | E27: =SUMIF(E$4:E$20,"*→う*",$C$4:$C$20)/1000*図面!$AK$21 -> 0 | F27: =SUMIF(F$4:F$20,"*→う*",$C$4:$C$20)/1000*図面!$AK$21 -> 0 | G27: =SUMIF(G$4:G$20,"*→う*",$C$4:$C$20)/1000*図面!$AK$21 -> 0 | H27: =SUMIF(H$4:H$20,"*→う*",$C$4:$C$20)/1000*図面!$AK$21 -> 0 | I27: =SUMIF(I$4:I$20,"*→う*",$C$4:$C$20)/1000*図面!$AK$21 -> 0 | J27: =SUMIF(J$4:J$20,"*→う*",$C$4:$C$20)/1000*図面!$AK$21 -> 0 | K27: =SUMIF(K$4:K$20,"*→う*",$C$4:$C$20)/1000*図面!$AK$21 -> 0 | L27: =SUMIF(L$4:L$20,"*→う*",$C$4:$C$20)/1000*図面!$AK$21 -> 0 | M27: =SUMIF(M$4:M$20,"*→う*",$C$4:$C$20)/1000*図面!$AK$21 -> 0 | N27: =SUMIF(N$4:N$20,"*→う*",$C$4:$C$20)/1000*図面!$AK$21 -> 0 | O27: =SUMIF(O$4:O$20,"*→う*",$C$4:$C$20)/1000*図面!$AK$21 -> 0 | P27: =SUMIF(P$4:P$20,"*→う*",$C$4:$C$20)/1000*図面!$AK$21 -> 0 | Q27: =SUMIF(Q$4:Q$20,"*→う*",$C$4:$C$20)/1000*図面!$AK$21 -> 0 | R27: =SUMIF(R$4:R$20,"*→う*",$C$4:$C$20)/1000*図面!$AK$21 -> 0 | S27: =SUMIF(S$4:S$20,"*→う*",$C$4:$C$20)/1000*図面!$AK$21 -> 0 | T27: =SUMIF(T$4:T$20,"*→う*",$C$4:$C$20)/1000*図面!$AK$21 -> 0 | U27: =SUMIF(U$4:U$20,"*→う*",$C$4:$C$20)/1000*図面!$AK$21 -> 0 | V27: =SUMIF(V$4:V$20,"*→う*",$C$4:$C$20)/1000*図面!$AK$21 -> 0 | W27: =SUMIF(W$4:W$20,"*→う*",$C$4:$C$20)/1000*図面!$AK$21 -> 0 | X27: =SUMIF(X$4:X$20,"*→う*",$C$4:$C$20)/1000*図面!$AK$21 -> 0 | Y27: =SUMIF(Y$4:Y$20,"*→う*",$C$4:$C$20)/1000*図面!$AK$21 -> 0 | Z27: =SUMIF(Z$4:Z$20,"*→う*",$C$4:$C$20)/1000*図面!$AK$21 -> 0
C28: ←う | D28: =SUMIF(D$4:D$20,"*←う*",$C$4:$C$20)/1000*図面!$AK$21 -> 0 | E28: =SUMIF(E$4:E$20,"*←う*",$C$4:$C$20)/1000*図面!$AK$21 -> 0 | F28: =SUMIF(F$4:F$20,"*←う*",$C$4:$C$20)/1000*図面!$AK$21 -> 0 | G28: =SUMIF(G$4:G$20,"*←う*",$C$4:$C$20)/1000*図面!$AK$21 -> 0 | H28: =SUMIF(H$4:H$20,"*←う*",$C$4:$C$20)/1000*図面!$AK$21 -> 0 | I28: =SUMIF(I$4:I$20,"*←う*",$C$4:$C$20)/1000*図面!$AK$21 -> 0 | J28: =SUMIF(J$4:J$20,"*←う*",$C$4:$C$20)/1000*図面!$AK$21 -> 0 | K28: =SUMIF(K$4:K$20,"*←う*",$C$4:$C$20)/1000*図面!$AK$21 -> 0 | L28: =SUMIF(L$4:L$20,"*←う*",$C$4:$C$20)/1000*図面!$AK$21 -> 0 | M28: =SUMIF(M$4:M$20,"*←う*",$C$4:$C$20)/1000*図面!$AK$21 -> 0 | N28: =SUMIF(N$4:N$20,"*←う*",$C$4:$C$20)/1000*図面!$AK$21 -> 0 | O28: =SUMIF(O$4:O$20,"*←う*",$C$4:$C$20)/1000*図面!$AK$21 -> 0 | P28: =SUMIF(P$4:P$20,"*←う*",$C$4:$C$20)/1000*図面!$AK$21 -> 0 | Q28: =SUMIF(Q$4:Q$20,"*←う*",$C$4:$C$20)/1000*図面!$AK$21 -> 0 | R28: =SUMIF(R$4:R$20,"*←う*",$C$4:$C$20)/1000*図面!$AK$21 -> 0 | S28: =SUMIF(S$4:S$20,"*←う*",$C$4:$C$20)/1000*図面!$AK$21 -> 0 | T28: =SUMIF(T$4:T$20,"*←う*",$C$4:$C$20)/1000*図面!$AK$21 -> 0 | U28: =SUMIF(U$4:U$20,"*←う*",$C$4:$C$20)/1000*図面!$AK$21 -> 0 | V28: =SUMIF(V$4:V$20,"*←う*",$C$4:$C$20)/1000*図面!$AK$21 -> 0 | W28: =SUMIF(W$4:W$20,"*←う*",$C$4:$C$20)/1000*図面!$AK$21 -> 0 | X28: =SUMIF(X$4:X$20,"*←う*",$C$4:$C$20)/1000*図面!$AK$21 -> 0 | Y28: =SUMIF(Y$4:Y$20,"*←う*",$C$4:$C$20)/1000*図面!$AK$21 -> 0 | Z28: =SUMIF(Z$4:Z$20,"*←う*",$C$4:$C$20)/1000*図面!$AK$21 -> 0
C29: →え | D29: =SUMIF(D$4:D$20,"*→え*",$C$4:$C$20)/1000*図面!$AK$22 -> 0 | E29: =SUMIF(E$4:E$20,"*→え*",$C$4:$C$20)/1000*図面!$AK$22 -> 0 | F29: =SUMIF(F$4:F$20,"*→え*",$C$4:$C$20)/1000*図面!$AK$22 -> 0 | G29: =SUMIF(G$4:G$20,"*→え*",$C$4:$C$20)/1000*図面!$AK$22 -> 0 | H29: =SUMIF(H$4:H$20,"*→え*",$C$4:$C$20)/1000*図面!$AK$22 -> 0 | I29: =SUMIF(I$4:I$20,"*→え*",$C$4:$C$20)/1000*図面!$AK$22 -> 0 | J29: =SUMIF(J$4:J$20,"*→え*",$C$4:$C$20)/1000*図面!$AK$22 -> 0 | K29: =SUMIF(K$4:K$20,"*→え*",$C$4:$C$20)/1000*図面!$AK$22 -> 0 | L29: =SUMIF(L$4:L$20,"*→え*",$C$4:$C$20)/1000*図面!$AK$22 -> 0 | M29: =SUMIF(M$4:M$20,"*→え*",$C$4:$C$20)/1000*図面!$AK$22 -> 0 | N29: =SUMIF(N$4:N$20,"*→え*",$C$4:$C$20)/1000*図面!$AK$22 -> 0 | O29: =SUMIF(O$4:O$20,"*→え*",$C$4:$C$20)/1000*図面!$AK$22 -> 0 | P29: =SUMIF(P$4:P$20,"*→え*",$C$4:$C$20)/1000*図面!$AK$22 -> 0 | Q29: =SUMIF(Q$4:Q$20,"*→え*",$C$4:$C$20)/1000*図面!$AK$22 -> 0 | R29: =SUMIF(R$4:R$20,"*→え*",$C$4:$C$20)/1000*図面!$AK$22 -> 0 | S29: =SUMIF(S$4:S$20,"*→え*",$C$4:$C$20)/1000*図面!$AK$22 -> 0 | T29: =SUMIF(T$4:T$20,"*→え*",$C$4:$C$20)/1000*図面!$AK$22 -> 0 | U29: =SUMIF(U$4:U$20,"*→え*",$C$4:$C$20)/1000*図面!$AK$22 -> 0 | V29: =SUMIF(V$4:V$20,"*→え*",$C$4:$C$20)/1000*図面!$AK$22 -> 0 | W29: =SUMIF(W$4:W$20,"*→え*",$C$4:$C$20)/1000*図面!$AK$22 -> 0 | X29: =SUMIF(X$4:X$20,"*→え*",$C$4:$C$20)/1000*図面!$AK$22 -> 0 | Y29: =SUMIF(Y$4:Y$20,"*→え*",$C$4:$C$20)/1000*図面!$AK$22 -> 0 | Z29: =SUMIF(Z$4:Z$20,"*→え*",$C$4:$C$20)/1000*図面!$AK$22 -> 0
C30: ←え | D30: =SUMIF(D$4:D$20,"*←え*",$C$4:$C$20)/1000*図面!$AK$22 -> 0 | E30: =SUMIF(E$4:E$20,"*←え*",$C$4:$C$20)/1000*図面!$AK$22 -> 0 | F30: =SUMIF(F$4:F$20,"*←え*",$C$4:$C$20)/1000*図面!$AK$22 -> 0 | G30: =SUMIF(G$4:G$20,"*←え*",$C$4:$C$20)/1000*図面!$AK$22 -> 0 | H30: =SUMIF(H$4:H$20,"*←え*",$C$4:$C$20)/1000*図面!$AK$22 -> 0 | I30: =SUMIF(I$4:I$20,"*←え*",$C$4:$C$20)/1000*図面!$AK$22 -> 0 | J30: =SUMIF(J$4:J$20,"*←え*",$C$4:$C$20)/1000*図面!$AK$22 -> 0 | K30: =SUMIF(K$4:K$20,"*←え*",$C$4:$C$20)/1000*図面!$AK$22 -> 0 | L30: =SUMIF(L$4:L$20,"*←え*",$C$4:$C$20)/1000*図面!$AK$22 -> 0 | M30: =SUMIF(M$4:M$20,"*←え*",$C$4:$C$20)/1000*図面!$AK$22 -> 0 | N30: =SUMIF(N$4:N$20,"*←え*",$C$4:$C$20)/1000*図面!$AK$22 -> 0 | O30: =SUMIF(O$4:O$20,"*←え*",$C$4:$C$20)/1000*図面!$AK$22 -> 0 | P30: =SUMIF(P$4:P$20,"*←え*",$C$4:$C$20)/1000*図面!$AK$22 -> 0 | Q30: =SUMIF(Q$4:Q$20,"*←え*",$C$4:$C$20)/1000*図面!$AK$22 -> 0 | R30: =SUMIF(R$4:R$20,"*←え*",$C$4:$C$20)/1000*図面!$AK$22 -> 0 | S30: =SUMIF(S$4:S$20,"*←え*",$C$4:$C$20)/1000*図面!$AK$22 -> 0 | T30: =SUMIF(T$4:T$20,"*←え*",$C$4:$C$20)/1000*図面!$AK$22 -> 0 | U30: =SUMIF(U$4:U$20,"*←え*",$C$4:$C$20)/1000*図面!$AK$22 -> 0 | V30: =SUMIF(V$4:V$20,"*←え*",$C$4:$C$20)/1000*図面!$AK$22 -> 0 | W30: =SUMIF(W$4:W$20,"*←え*",$C$4:$C$20)/1000*図面!$AK$22 -> 0 | X30: =SUMIF(X$4:X$20,"*←え*",$C$4:$C$20)/1000*図面!$AK$22 -> 0 | Y30: =SUMIF(Y$4:Y$20,"*←え*",$C$4:$C$20)/1000*図面!$AK$22 -> 0 | Z30: =SUMIF(Z$4:Z$20,"*←え*",$C$4:$C$20)/1000*図面!$AK$22 -> 0
C31: →お | D31: =SUMIF(D$4:D$20,"*→お*",$C$4:$C$20)/1000*図面!$AK$23 -> 0 | E31: =SUMIF(E$4:E$20,"*→お*",$C$4:$C$20)/1000*図面!$AK$23 -> 0 | F31: =SUMIF(F$4:F$20,"*→お*",$C$4:$C$20)/1000*図面!$AK$23 -> 0 | G31: =SUMIF(G$4:G$20,"*→お*",$C$4:$C$20)/1000*図面!$AK$23 -> 0 | H31: =SUMIF(H$4:H$20,"*→お*",$C$4:$C$20)/1000*図面!$AK$23 -> 0 | I31: =SUMIF(I$4:I$20,"*→お*",$C$4:$C$20)/1000*図面!$AK$23 -> 0 | J31: =SUMIF(J$4:J$20,"*→お*",$C$4:$C$20)/1000*図面!$AK$23 -> 0 | K31: =SUMIF(K$4:K$20,"*→お*",$C$4:$C$20)/1000*図面!$AK$23 -> 0 | L31: =SUMIF(L$4:L$20,"*→お*",$C$4:$C$20)/1000*図面!$AK$23 -> 0 | M31: =SUMIF(M$4:M$20,"*→お*",$C$4:$C$20)/1000*図面!$AK$23 -> 0 | N31: =SUMIF(N$4:N$20,"*→お*",$C$4:$C$20)/1000*図面!$AK$23 -> 0 | O31: =SUMIF(O$4:O$20,"*→お*",$C$4:$C$20)/1000*図面!$AK$23 -> 0 | P31: =SUMIF(P$4:P$20,"*→お*",$C$4:$C$20)/1000*図面!$AK$23 -> 0 | Q31: =SUMIF(Q$4:Q$20,"*→お*",$C$4:$C$20)/1000*図面!$AK$23 -> 0 | R31: =SUMIF(R$4:R$20,"*→お*",$C$4:$C$20)/1000*図面!$AK$23 -> 0 | S31: =SUMIF(S$4:S$20,"*→お*",$C$4:$C$20)/1000*図面!$AK$23 -> 0 | T31: =SUMIF(T$4:T$20,"*→お*",$C$4:$C$20)/1000*図面!$AK$23 -> 0 | U31: =SUMIF(U$4:U$20,"*→お*",$C$4:$C$20)/1000*図面!$AK$23 -> 0 | V31: =SUMIF(V$4:V$20,"*→お*",$C$4:$C$20)/1000*図面!$AK$23 -> 0 | W31: =SUMIF(W$4:W$20,"*→お*",$C$4:$C$20)/1000*図面!$AK$23 -> 0 | X31: =SUMIF(X$4:X$20,"*→お*",$C$4:$C$20)/1000*図面!$AK$23 -> 0 | Y31: =SUMIF(Y$4:Y$20,"*→お*",$C$4:$C$20)/1000*図面!$AK$23 -> 0 | Z31: =SUMIF(Z$4:Z$20,"*→お*",$C$4:$C$20)/1000*図面!$AK$23 -> 0
C32: ←お | D32: =SUMIF(D$4:D$20,"*←お*",$C$4:$C$20)/1000*図面!$AK$23 -> 0 | E32: =SUMIF(E$4:E$20,"*←お*",$C$4:$C$20)/1000*図面!$AK$23 -> 0 | F32: =SUMIF(F$4:F$20,"*←お*",$C$4:$C$20)/1000*図面!$AK$23 -> 0 | G32: =SUMIF(G$4:G$20,"*←お*",$C$4:$C$20)/1000*図面!$AK$23 -> 0 | H32: =SUMIF(H$4:H$20,"*←お*",$C$4:$C$20)/1000*図面!$AK$23 -> 0 | I32: =SUMIF(I$4:I$20,"*←お*",$C$4:$C$20)/1000*図面!$AK$23 -> 0 | J32: =SUMIF(J$4:J$20,"*←お*",$C$4:$C$20)/1000*図面!$AK$23 -> 0 | K32: =SUMIF(K$4:K$20,"*←お*",$C$4:$C$20)/1000*図面!$AK$23 -> 0 | L32: =SUMIF(L$4:L$20,"*←お*",$C$4:$C$20)/1000*図面!$AK$23 -> 0 | M32: =SUMIF(M$4:M$20,"*←お*",$C$4:$C$20)/1000*図面!$AK$23 -> 0 | N32: =SUMIF(N$4:N$20,"*←お*",$C$4:$C$20)/1000*図面!$AK$23 -> 0 | O32: =SUMIF(O$4:O$20,"*←お*",$C$4:$C$20)/1000*図面!$AK$23 -> 0 | P32: =SUMIF(P$4:P$20,"*←お*",$C$4:$C$20)/1000*図面!$AK$23 -> 0 | Q32: =SUMIF(Q$4:Q$20,"*←お*",$C$4:$C$20)/1000*図面!$AK$23 -> 0 | R32: =SUMIF(R$4:R$20,"*←お*",$C$4:$C$20)/1000*図面!$AK$23 -> 0 | S32: =SUMIF(S$4:S$20,"*←お*",$C$4:$C$20)/1000*図面!$AK$23 -> 0 | T32: =SUMIF(T$4:T$20,"*←お*",$C$4:$C$20)/1000*図面!$AK$23 -> 0 | U32: =SUMIF(U$4:U$20,"*←お*",$C$4:$C$20)/1000*図面!$AK$23 -> 0 | V32: =SUMIF(V$4:V$20,"*←お*",$C$4:$C$20)/1000*図面!$AK$23 -> 0 | W32: =SUMIF(W$4:W$20,"*←お*",$C$4:$C$20)/1000*図面!$AK$23 -> 0 | X32: =SUMIF(X$4:X$20,"*←お*",$C$4:$C$20)/1000*図面!$AK$23 -> 0 | Y32: =SUMIF(Y$4:Y$20,"*←お*",$C$4:$C$20)/1000*図面!$AK$23 -> 0 | Z32: =SUMIF(Z$4:Z$20,"*←お*",$C$4:$C$20)/1000*図面!$AK$23 -> 0
C33: →か | D33: =SUMIF(D$4:D$20,"*→か*",$C$4:$C$20)/1000*図面!$AK$23 -> 0 | E33: =SUMIF(E$4:E$20,"*→か*",$C$4:$C$20)/1000*図面!$AK$23 -> 0 | F33: =SUMIF(F$4:F$20,"*→か*",$C$4:$C$20)/1000*図面!$AK$23 -> 0 | G33: =SUMIF(G$4:G$20,"*→か*",$C$4:$C$20)/1000*図面!$AK$23 -> 0 | H33: =SUMIF(H$4:H$20,"*→か*",$C$4:$C$20)/1000*図面!$AK$23 -> 0 | I33: =SUMIF(I$4:I$20,"*→か*",$C$4:$C$20)/1000*図面!$AK$23 -> 0 | J33: =SUMIF(J$4:J$20,"*→か*",$C$4:$C$20)/1000*図面!$AK$23 -> 0 | K33: =SUMIF(K$4:K$20,"*→か*",$C$4:$C$20)/1000*図面!$AK$23 -> 0 | L33: =SUMIF(L$4:L$20,"*→か*",$C$4:$C$20)/1000*図面!$AK$23 -> 0 | M33: =SUMIF(M$4:M$20,"*→か*",$C$4:$C$20)/1000*図面!$AK$23 -> 0 | N33: =SUMIF(N$4:N$20,"*→か*",$C$4:$C$20)/1000*図面!$AK$23 -> 0 | O33: =SUMIF(O$4:O$20,"*→か*",$C$4:$C$20)/1000*図面!$AK$23 -> 0 | P33: =SUMIF(P$4:P$20,"*→か*",$C$4:$C$20)/1000*図面!$AK$23 -> 0 | Q33: =SUMIF(Q$4:Q$20,"*→か*",$C$4:$C$20)/1000*図面!$AK$23 -> 0 | R33: =SUMIF(R$4:R$20,"*→か*",$C$4:$C$20)/1000*図面!$AK$23 -> 0 | S33: =SUMIF(S$4:S$20,"*→か*",$C$4:$C$20)/1000*図面!$AK$23 -> 0 | T33: =SUMIF(T$4:T$20,"*→か*",$C$4:$C$20)/1000*図面!$AK$23 -> 0 | U33: =SUMIF(U$4:U$20,"*→か*",$C$4:$C$20)/1000*図面!$AK$23 -> 0 | V33: =SUMIF(V$4:V$20,"*→か*",$C$4:$C$20)/1000*図面!$AK$23 -> 0 | W33: =SUMIF(W$4:W$20,"*→か*",$C$4:$C$20)/1000*図面!$AK$23 -> 0 | X33: =SUMIF(X$4:X$20,"*→か*",$C$4:$C$20)/1000*図面!$AK$23 -> 0 | Y33: =SUMIF(Y$4:Y$20,"*→か*",$C$4:$C$20)/1000*図面!$AK$23 -> 0 | Z33: =SUMIF(Z$4:Z$20,"*→か*",$C$4:$C$20)/1000*図面!$AK$23 -> 0
C34: ←か | D34: =SUMIF(D$4:D$20,"*←か*",$C$4:$C$20)/1000*図面!$AK$23 -> 0 | E34: =SUMIF(E$4:E$20,"*←か*",$C$4:$C$20)/1000*図面!$AK$23 -> 0 | F34: =SUMIF(F$4:F$20,"*←か*",$C$4:$C$20)/1000*図面!$AK$23 -> 0 | G34: =SUMIF(G$4:G$20,"*←か*",$C$4:$C$20)/1000*図面!$AK$23 -> 0 | H34: =SUMIF(H$4:H$20,"*←か*",$C$4:$C$20)/1000*図面!$AK$23 -> 0 | I34: =SUMIF(I$4:I$20,"*←か*",$C$4:$C$20)/1000*図面!$AK$23 -> 0 | J34: =SUMIF(J$4:J$20,"*←か*",$C$4:$C$20)/1000*図面!$AK$23 -> 0 | K34: =SUMIF(K$4:K$20,"*←か*",$C$4:$C$20)/1000*図面!$AK$23 -> 0 | L34: =SUMIF(L$4:L$20,"*←か*",$C$4:$C$20)/1000*図面!$AK$23 -> 0 | M34: =SUMIF(M$4:M$20,"*←か*",$C$4:$C$20)/1000*図面!$AK$23 -> 0 | N34: =SUMIF(N$4:N$20,"*←か*",$C$4:$C$20)/1000*図面!$AK$23 -> 0 | O34: =SUMIF(O$4:O$20,"*←か*",$C$4:$C$20)/1000*図面!$AK$23 -> 0 | P34: =SUMIF(P$4:P$20,"*←か*",$C$4:$C$20)/1000*図面!$AK$23 -> 0 | Q34: =SUMIF(Q$4:Q$20,"*←か*",$C$4:$C$20)/1000*図面!$AK$23 -> 0 | R34: =SUMIF(R$4:R$20,"*←か*",$C$4:$C$20)/1000*図面!$AK$23 -> 0 | S34: =SUMIF(S$4:S$20,"*←か*",$C$4:$C$20)/1000*図面!$AK$23 -> 0 | T34: =SUMIF(T$4:T$20,"*←か*",$C$4:$C$20)/1000*図面!$AK$23 -> 0 | U34: =SUMIF(U$4:U$20,"*←か*",$C$4:$C$20)/1000*図面!$AK$23 -> 0 | V34: =SUMIF(V$4:V$20,"*←か*",$C$4:$C$20)/1000*図面!$AK$23 -> 0 | W34: =SUMIF(W$4:W$20,"*←か*",$C$4:$C$20)/1000*図面!$AK$23 -> 0 | X34: =SUMIF(X$4:X$20,"*←か*",$C$4:$C$20)/1000*図面!$AK$23 -> 0 | Y34: =SUMIF(Y$4:Y$20,"*←か*",$C$4:$C$20)/1000*図面!$AK$23 -> 0 | Z34: =SUMIF(Z$4:Z$20,"*←か*",$C$4:$C$20)/1000*図面!$AK$23 -> 0
C35: 合計 | D35: =SUM(D23:D34) -> 0 | E35: =SUM(E23:E34) -> 0 | F35: 0 | G35: 0 | H35: 0 | I35: 0 | J35: 0 | K35: 0 | L35: 0 | M35: 0 | N35: 0 | O35: 0 | P35: 0 | Q35: 0 | R35: 0 | S35: 0 | T35: 0 | U35: 0 | V35: 0 | W35: 0 | X35: 0 | Y35: 0 | Z35: 0 | AA35: =SUM(D35:Z35) -> 0
D36: =IF(COUNTIF(面積計算!D27,1),"左"," ") ->  | E36: =IF(COUNTIF(面積計算!E27,1),"左"," ") ->  | F36: =IF(COUNTIF(面積計算!F27,1),"左"," ") ->  | G36: =IF(COUNTIF(面積計算!G27,1),"左"," ") ->  | H36: =IF(COUNTIF(面積計算!H27,1),"左"," ") ->  | I36: =IF(COUNTIF(面積計算!I27,1),"左"," ") ->  | J36: =IF(COUNTIF(面積計算!J27,1),"左"," ") ->  | K36: =IF(COUNTIF(面積計算!K27,1),"左"," ") ->  | L36: =IF(COUNTIF(面積計算!L27,1),"左"," ") ->  | M36: =IF(COUNTIF(面積計算!M27,1),"左"," ") ->  | N36: =IF(COUNTIF(面積計算!N27,1),"左"," ") ->  | O36: =IF(COUNTIF(面積計算!O27,1),"左"," ") ->  | P36: =IF(COUNTIF(面積計算!P27,1),"左"," ") ->  | Q36: =IF(COUNTIF(面積計算!Q27,1),"左"," ") ->  | R36: =IF(COUNTIF(面積計算!R27,1),"左"," ") ->  | S36: =IF(COUNTIF(面積計算!S27,1),"左"," ") ->  | T36: =IF(COUNTIF(面積計算!T27,1),"左"," ") ->  | U36: =IF(COUNTIF(面積計算!U27,1),"左"," ") ->  | V36: =IF(COUNTIF(面積計算!V27,1),"左"," ") ->  | W36: =IF(COUNTIF(面積計算!W27,1),"左"," ") ->  | X36: =IF(COUNTIF(面積計算!X27,1),"左"," ") ->  | Y36: =IF(COUNTIF(面積計算!Y27,1),"左"," ") ->  | Z36: =IF(COUNTIF(面積計算!Z27,1),"左"," ") -> 
D37: =IF(COUNTIF(面積計算!D29,1),"右"," ") ->  | E37: =IF(COUNTIF(面積計算!E29,1),"右"," ") ->  | F37: =IF(COUNTIF(面積計算!F29,1),"右"," ") ->  | G37: =IF(COUNTIF(面積計算!G29,1),"右"," ") ->  | H37: =IF(COUNTIF(面積計算!H29,1),"右"," ") ->  | I37: =IF(COUNTIF(面積計算!I29,1),"右"," ") ->  | J37: =IF(COUNTIF(面積計算!J29,1),"右"," ") ->  | K37: =IF(COUNTIF(面積計算!K29,1),"右"," ") ->  | L37: =IF(COUNTIF(面積計算!L29,1),"右"," ") ->  | M37: =IF(COUNTIF(面積計算!M29,1),"右"," ") ->  | N37: =IF(COUNTIF(面積計算!N29,1),"右"," ") ->  | O37: =IF(COUNTIF(面積計算!O29,1),"右"," ") ->  | P37: =IF(COUNTIF(面積計算!P29,1),"右"," ") ->  | Q37: =IF(COUNTIF(面積計算!Q29,1),"右"," ") ->  | R37: =IF(COUNTIF(面積計算!R29,1),"右"," ") ->  | S37: =IF(COUNTIF(面積計算!S29,1),"右"," ") ->  | T37: =IF(COUNTIF(面積計算!T29,1),"右"," ") ->  | U37: =IF(COUNTIF(面積計算!U29,1),"右"," ") ->  | V37: =IF(COUNTIF(面積計算!V29,1),"右"," ") ->  | W37: =IF(COUNTIF(面積計算!W29,1),"右"," ") ->  | X37: =IF(COUNTIF(面積計算!X29,1),"右"," ") ->  | Y37: =IF(COUNTIF(面積計算!Y29,1),"右"," ") ->  | Z37: =IF(COUNTIF(面積計算!Z29,1),"右"," ") -> 
C38: 左壁量 | D38: =IF(COUNTIF(C36:E36,"左"),D35,0) -> 0 | E38: =IF(COUNTIF(D36:F36,"左"),E35,0) -> 0 | F38: 0 | G38: 0 | H38: =IF(COUNTIF(G36:I36,"左"),H35,0) -> 0 | I38: =IF(COUNTIF(H36:J36,"左"),I35,0) -> 0 | J38: 0 | K38: 0 | L38: 0 | M38: 0 | N38: 0 | O38: 0 | P38: 0 | Q38: 0 | R38: =IF(COUNTIF(Q36:S36,"左"),R35,0) -> 0 | S38: 0 | T38: 0 | U38: 0 | V38: 0 | W38: 0 | X38: 0 | Y38: 0 | Z38: 0
C39: → | D39: =D23+D25+D27+D29+D31+D33 -> 0 | E39: =E23+E25+E27+E29+E31+E33 -> 0 | F39: 0 | G39: 0 | H39: 0 | I39: 0 | J39: 0 | K39: 0 | L39: 0 | M39: 0 | N39: 0 | O39: 0 | P39: 0 | Q39: 0 | R39: 0 | S39: 0 | T39: 0 | U39: 0 | V39: 0 | W39: 0 | X39: 0 | Y39: 0 | Z39: 0
C40: 補正左 | D40: =IF(AND(D36=" ",C36="左"),D38-D39,D38) -> 0 | E40: =IF(AND(E36=" ",D36="左"),E38-E39,E38) -> 0 | F40: 0 | G40: 0 | H40: 0 | I40: 0 | J40: 0 | K40: =IF(AND(K36=" ",J36="左"),K38-K39,K38) -> 0 | L40: =IF(AND(L36=" ",K36="左"),L38-L39,L38) -> 0 | M40: 0 | N40: 0 | O40: 0 | P40: 0 | Q40: 0 | R40: 0 | S40: =IF(AND(S36=" ",R36="左"),S38-S39,S38) -> 0 | T40: 0 | U40: 0 | V40: 0 | W40: 0 | X40: 0 | Y40: 0 | Z40: 0 | AA40: =SUM(D40:Z40) -> 0
C41: 右壁量 | D41: =IF(COUNTIF(C37:E37,"右"),D35,0) -> 0 | E41: =IF(COUNTIF(D37:F37,"右"),E35,0) -> 0 | F41: 0 | G41: 0 | H41: 0 | I41: 0 | J41: 0 | K41: 0 | L41: 0 | M41: 0 | N41: 0 | O41: 0 | P41: 0 | Q41: 0 | R41: 0 | S41: 0 | T41: 0 | U41: =IF(COUNTIF(T37:V37,"右"),U35,0) -> 0 | V41: 0 | W41: 0 | X41: 0 | Y41: 0 | Z41: 0
C42: ← | D42: =D24+D26+D28+D30+D32+D34 -> 0 | E42: =E24+E26+E28+E30+E32+E34 -> 0 | F42: 0 | G42: 0 | H42: 0 | I42: 0 | J42: 0 | K42: 0 | L42: 0 | M42: 0 | N42: 0 | O42: 0 | P42: 0 | Q42: 0 | R42: 0 | S42: 0 | T42: 0 | U42: 0 | V42: 0 | W42: 0 | X42: 0 | Y42: 0 | Z42: 0
C43: 補正右 | D43: =IF(AND(D37=" ",E37="右"),D41-D42,D41) -> 0 | E43: =IF(AND(E37=" ",F37="右"),E41-E42,E41) -> 0 | F43: 0 | G43: 0 | H43: 0 | I43: 0 | J43: 0 | K43: =IF(AND(K37=" ",L37="右"),K41-K42,K41) -> 0 | L43: 0 | M43: 0 | N43: 0 | O43: 0 | P43: 0 | Q43: 0 | R43: =IF(AND(R37=" ",S37="右"),R41-R42,R41) -> 0 | S43: =IF(AND(S37=" ",T37="右"),S41-S42,S41) -> 0 | T43: =IF(AND(T37=" ",U37="右"),T41-T42,T41) -> 0 | U43: =IF(AND(U37=" ",V37="右"),U41-U42,U41) -> 0 | V43: 0 | W43: 0 | X43: 0 | Y43: 0 | Z43: 0 | AA43: =SUM(D43:Z43) -> 0

Sheet 面積計算2階 (hidden)
AC2: 横面積合計 | AD2: 番号 | AE2: セル高さ | AF2: 上からの累計長さ | AG2: 倍率 | AH2: 下からの累計長さ | AI2: 倍率 | AK2: 1/4面積(上) | AL2: 1/4面積(下)
D3: =図面!D2 -> 910 | E3: =図面!E2 -> 910 | F3: =図面!F2 -> 910 | G3: =図面!G2 -> 910 | H3: =図面!H2 -> 910 | I3: =図面!I2 -> 910 | J3: =図面!J2 -> 910 | K3: =図面!K2 -> 910 | L3: =図面!L2 -> 910 | M3: =図面!M2 -> 910 | N3: =図面!N2 -> 910 | O3: =図面!O2 -> 910 | P3: =図面!P2 -> 910 | Q3: =図面!Q2 -> 910 | R3: =図面!R2 -> 910 | S3: =図面!S2 -> 910 | T3: =図面!T2 -> 910 | U3: =図面!U2 -> 910 | V3: =図面!V2 -> 910 | W3: =図面!W2 -> 910 | X3: =図面!X2 -> 910 | Y3: =図面!Y2 -> 910 | Z3: =図面!Z2 -> 910
C4: =図面!B4 -> 910 | D4: =$C4*D$3/1000000 -> 0.8281 | E4: =$C4*E$3/1000000 -> 0.8281 | F4: 0.8281 | G4: 0.8281 | H4: 0.8281 | I4: 0.8281 | J4: 0.8281 | K4: 0.8281 | L4: 0.8281 | M4: 0.8281 | N4: 0.8281 | O4: 0.8281 | P4: 0.8281 | Q4: 0.8281 | R4: 0.8281 | S4: 0.8281 | T4: 0.8281 | U4: =$C4*U$3/1000000 -> 0.8281 | V4: 0.8281 | W4: 0.8281 | X4: 0.8281 | Y4: 0.8281 | Z4: 0.8281 | AA4: =IF(COUNTIF(AG4:AI4,1),"●"," ") ->  | AC4: =SUM(D4:Z4)-sumColor(D4:Z4,$AB$1) -> 0 | AD4: =IF(AC4=0,"",SUMPRODUCT((AC$4:AC4<>0)*1)) ->  | AE4: =IF(AD4="","",C4) ->  | AF4: =IF(AD4="","",SUM(AE$4:AE4)) ->  | AG4: =IF(AF4="","",IF(AF4>$AL$25,($AL$25-AF3)/AE4,IF(AF4<=$AL$25,1," "))) ->  | AH4: =IF(AD4="","",SUM(AE4:AE$20)) ->  | AI4: =IF(AH4="","",IF(AH4>$AL$25,($AL$25-AH5)/AE4,IF(AH4<=$AL$25,1," "))) ->  | AK4: =IF(AD4="","",IF(AG4<=0," ",AC4*AG4)) ->  | AL4: =IF(AD4="","",IF(AI4<=0," ",AC4*AI4)) -> 
C5: =図面!B5 -> 910 | D5: 0.8281 | E5: 0.8281 | F5: 0.8281 | G5: 0.8281 | H5: 0.8281 | I5: 0.8281 | J5: 0.8281 | K5: 0.8281 | L5: 0.8281 | M5: 0.8281 | N5: 0.8281 | O5: 0.8281 | P5: 0.8281 | Q5: 0.8281 | R5: 0.8281 | S5: 0.8281 | T5: 0.8281 | U5: 0.8281 | V5: 0.8281 | W5: 0.8281 | X5: 0.8281 | Y5: 0.8281 | Z5: 0.8281 | AA5: =IF(COUNTIF(AG5:AI5,1),"●"," ") ->  | AC5: =SUM(D5:Z5)-sumColor(D5:Z5,$AB$1) -> 0 | AD5: =IF(AC5=0,"",SUMPRODUCT((AC$4:AC5<>0)*1)) ->  | AF5: =IF(AD5="","",SUM(AE$4:AE5)) ->  | AH5: =IF(AD5="","",SUM(AE5:AE$20)) -> 
C6: =図面!B6 -> 910 | D6: 0.8281 | E6: 0.8281 | F6: 0.8281 | G6: 0.8281 | H6: 0.8281 | I6: 0.8281 | J6: 0.8281 | K6: 0.8281 | L6: 0.8281 | M6: 0.8281 | N6: 0.8281 | O6: 0.8281 | P6: 0.8281 | Q6: 0.8281 | R6: 0.8281 | S6: 0.8281 | T6: 0.8281 | U6: 0.8281 | V6: 0.8281 | W6: 0.8281 | X6: 0.8281 | Y6: 0.8281 | Z6: 0.8281 | AC6: =SUM(D6:Z6)-sumColor(D6:Z6,$AB$1) -> 0 | AD6: =IF(AC6=0,"",SUMPRODUCT((AC$4:AC6<>0)*1)) ->  | AF6: =IF(AD6="","",SUM(AE$4:AE6)) ->  | AH6: =IF(AD6="","",SUM(AE6:AE$20)) -> 
C7: =図面!B7 -> 910 | D7: 0.8281 | E7: 0.8281 | F7: 0.8281 | G7: 0.8281 | H7: 0.8281 | I7: 0.8281 | J7: 0.8281 | K7: 0.8281 | L7: 0.8281 | M7: 0.8281 | N7: 0.8281 | O7: 0.8281 | P7: 0.8281 | Q7: 0.8281 | R7: 0.8281 | S7: 0.8281 | T7: 0.8281 | U7: 0.8281 | V7: 0.8281 | W7: 0.8281 | X7: 0.8281 | Y7: 0.8281 | Z7: 0.8281 | AC7: =SUM(D7:Z7)-sumColor(D7:Z7,$AB$1) -> 0 | AD7: =IF(AC7=0,"",SUMPRODUCT((AC$4:AC7<>0)*1)) ->  | AF7: =IF(AD7="","",SUM(AE$4:AE7)) ->  | AH7: =IF(AD7="","",SUM(AE7:AE$20)) -> 
C8: =図面!B8 -> 910 | D8: 0.8281 | E8: 0.8281 | F8: 0.8281 | G8: 0.8281 | H8: 0.8281 | I8: 0.8281 | J8: 0.8281 | K8: 0.8281 | L8: 0.8281 | M8: 0.8281 | N8: 0.8281 | O8: 0.8281 | P8: 0.8281 | Q8: 0.8281 | R8: 0.8281 | S8: 0.8281 | T8: 0.8281 | U8: 0.8281 | V8: 0.8281 | W8: 0.8281 | X8: 0.8281 | Y8: 0.8281 | Z8: 0.8281 | AC8: =SUM(D8:Z8)-sumColor(D8:Z8,$AB$1) -> 0 | AD8: =IF(AC8=0,"",SUMPRODUCT((AC$4:AC8<>0)*1)) ->  | AF8: =IF(AD8="","",SUM(AE$4:AE8)) ->  | AH8: =IF(AD8="","",SUM(AE8:AE$20)) -> 
C9: =図面!B9 -> 910 | D9: 0.8281 | E9: 0.8281 | F9: 0.8281 | G9: 0.8281 | H9: 0.8281 | I9: 0.8281 | J9: 0.8281 | K9: 0.8281 | L9: 0.8281 | M9: 0.8281 | N9: 0.8281 | O9: 0.8281 | P9: 0.8281 | Q9: 0.8281 | R9: 0.8281 | S9: 0.8281 | T9: 0.8281 | U9: 0.8281 | V9: 0.8281 | W9: 0.8281 | X9: 0.8281 | Y9: 0.8281 | Z9: 0.8281 | AC9: =SUM(D9:Z9)-sumColor(D9:Z9,$AB$1) -> 0 | AD9: =IF(AC9=0,"",SUMPRODUCT((AC$4:AC9<>0)*1)) ->  | AF9: =IF(AD9="","",SUM(AE$4:AE9)) ->  | AH9: =IF(AD9="","",SUM(AE9:AE$20)) -> 
C10: =図面!B10 -> 910 | D10: 0.8281 | E10: 0.8281 | F10: 0.8281 | G10: 0.8281 | H10: 0.8281 | I10: 0.8281 | J10: 0.8281 | K10: 0.8281 | L10: 0.8281 | M10: 0.8281 | N10: 0.8281 | O10: 0.8281 | P10: 0.8281 | Q10: 0.8281 | R10: 0.8281 | S10: 0.8281 | T10: 0.8281 | U10: 0.8281 | V10: 0.8281 | W10: 0.8281 | X10: 0.8281 | Y10: 0.8281 | Z10: 0.8281 | AC10: =SUM(D10:Z10)-sumColor(D10:Z10,$AB$1) -> 0 | AD10: =IF(AC10=0,"",SUMPRODUCT((AC$4:AC10<>0)*1)) ->  | AF10: =IF(AD10="","",SUM(AE$4:AE10)) ->  | AH10: =IF(AD10="","",SUM(AE10:AE$20)) -> 
C11: =図面!B11 -> 910 | D11: 0.8281 | E11: 0.8281 | F11: 0.8281 | G11: 0.8281 | H11: 0.8281 | I11: 0.8281 | J11: 0.8281 | K11: 0.8281 | L11: 0.8281 | M11: 0.8281 | N11: 0.8281 | O11: 0.8281 | P11: 0.8281 | Q11: 0.8281 | R11: 0.8281 | S11: 0.8281 | T11: 0.8281 | U11: 0.8281 | V11: 0.8281 | W11: 0.8281 | X11: 0.8281 | Y11: 0.8281 | Z11: 0.8281 | AC11: =SUM(D11:Z11)-sumColor(D11:Z11,$AB$1) -> 0 | AD11: =IF(AC11=0,"",SUMPRODUCT((AC$4:AC11<>0)*1)) ->  | AF11: =IF(AD11="","",SUM(AE$4:AE11)) ->  | AH11: =IF(AD11="","",SUM(AE11:AE$20)) -> 
C12: =図面!B12 -> 910 | D12: 0.8281 | E12: 0.8281 | F12: 0.8281 | G12: 0.8281 | H12: 0.8281 | I12: 0.8281 | J12: 0.8281 | K12: 0.8281 | L12: 0.8281 | M12: 0.8281 | N12: 0.8281 | O12: 0.8281 | P12: 0.8281 | Q12: 0.8281 | R12: 0.8281 | S12: 0.8281 | T12: 0.8281 | U12: 0.8281 | V12: 0.8281 | W12: 0.8281 | X12: 0.8281 | Y12: 0.8281 | Z12: 0.8281 | AC12: =SUM(D12:Z12)-sumColor(D12:Z12,$AB$1) -> 0 | AD12: =IF(AC12=0,"",SUMPRODUCT((AC$4:AC12<>0)*1)) ->  | AF12: =IF(AD12="","",SUM(AE$4:AE12)) ->  | AH12: =IF(AD12="","",SUM(AE12:AE$20)) -> 
C13: =図面!B13 -> 910 | D13: 0.8281 | E13: 0.8281 | F13: 0.8281 | G13: 0.8281 | H13: 0.8281 | I13: 0.8281 | J13: 0.8281 | K13: 0.8281 | L13: 0.8281 | M13: 0.8281 | N13: 0.8281 | O13: 0.8281 | P13: 0.8281 | Q13: 0.8281 | R13: 0.8281 | S13: 0.8281 | T13: 0.8281 | U13: 0.8281 | V13: 0.8281 | W13: 0.8281 | X13: 0.8281 | Y13: 0.8281 | Z13: 0.8281 | AC13: =SUM(D13:Z13)-sumColor(D13:Z13,$AB$1) -> 0 | AD13: =IF(AC13=0,"",SUMPRODUCT((AC$4:AC13<>0)*1)) ->  | AF13: =IF(AD13="","",SUM(AE$4:AE13)) ->  | AH13: =IF(AD13="","",SUM(AE13:AE$20)) -> 
C14: =図面!B14 -> 910 | D14: 0.8281 | E14: 0.8281 | F14: 0.8281 | G14: 0.8281 | H14: 0.8281 | I14: 0.8281 | J14: 0.8281 | K14: 0.8281 | L14: 0.8281 | M14: 0.8281 | N14: 0.8281 | O14: 0.8281 | P14: 0.8281 | Q14: 0.8281 | R14: 0.8281 | S14: 0.8281 | T14: 0.8281 | U14: 0.8281 | V14: 0.8281 | W14: 0.8281 | X14: 0.8281 | Y14: 0.8281 | Z14: 0.8281 | AC14: =SUM(D14:Z14)-sumColor(D14:Z14,$AB$1) -> 0 | AD14: =IF(AC14=0,"",SUMPRODUCT((AC$4:AC14<>0)*1)) ->  | AF14: =IF(AD14="","",SUM(AE$4:AE14)) ->  | AH14: =IF(AD14="","",SUM(AE14:AE$20)) -> 
C15: =図面!B15 -> 910 | D15: 0.8281 | E15: 0.8281 | F15: 0.8281 | G15: 0.8281 | H15: 0.8281 | I15: 0.8281 | J15: 0.8281 | K15: 0.8281 | L15: 0.8281 | M15: 0.8281 | N15: 0.8281 | O15: 0.8281 | P15: 0.8281 | Q15: 0.8281 | R15: 0.8281 | S15: 0.8281 | T15: 0.8281 | U15: 0.8281 | V15: 0.8281 | W15: 0.8281 | X15: 0.8281 | Y15: 0.8281 | Z15: 0.8281 | AC15: =SUM(D15:Z15)-sumColor(D15:Z15,$AB$1) -> 0 | AD15: =IF(AC15=0,"",SUMPRODUCT((AC$4:AC15<>0)*1)) ->  | AF15: =IF(AD15="","",SUM(AE$4:AE15)) ->  | AH15: =IF(AD15="","",SUM(AE15:AE$20)) -> 
C16: =図面!B16 -> 910 | D16: 0.8281 | E16: 0.8281 | F16: 0.8281 | G16: 0.8281 | H16: 0.8281 | I16: 0.8281 | J16: 0.8281 | K16: 0.8281 | L16: 0.8281 | M16: 0.8281 | N16: 0.8281 | O16: 0.8281 | P16: 0.8281 | Q16: 0.8281 | R16: 0.8281 | S16: 0.8281 | T16: 0.8281 | U16: 0.8281 | V16: 0.8281 | W16: 0.8281 | X16: 0.8281 | Y16: 0.8281 | Z16: 0.8281 | AC16: =SUM(D16:Z16)-sumColor(D16:Z16,$AB$1) -> 0 | AD16: =IF(AC16=0,"",SUMPRODUCT((AC$4:AC16<>0)*1)) ->  | AF16: =IF(AD16="","",SUM(AE$4:AE16)) ->  | AH16: =IF(AD16="","",SUM(AE16:AE$20)) -> 
C17: =図面!B17 -> 910 | D17: 0.8281 | E17: 0.8281 | F17: 0.8281 | G17: 0.8281 | H17: 0.8281 | I17: 0.8281 | J17: 0.8281 | K17: 0.8281 | L17: 0.8281 | M17: 0.8281 | N17: 0.8281 | O17: 0.8281 | P17: 0.8281 | Q17: 0.8281 | R17: 0.8281 | S17: 0.8281 | T17: 0.8281 | U17: 0.8281 | V17: 0.8281 | W17: 0.8281 | X17: 0.8281 | Y17: 0.8281 | Z17: 0.8281 | AC17: =SUM(D17:Z17)-sumColor(D17:Z17,$AB$1) -> 0 | AD17: =IF(AC17=0,"",SUMPRODUCT((AC$4:AC17<>0)*1)) ->  | AF17: =IF(AD17="","",SUM(AE$4:AE17)) ->  | AH17: =IF(AD17="","",SUM(AE17:AE$20)) -> 
C18: =図面!B18 -> 910 | D18: 0.8281 | E18: 0.8281 | F18: 0.8281 | G18: 0.8281 | H18: 0.8281 | I18: 0.8281 | J18: 0.8281 | K18: 0.8281 | L18: 0.8281 | M18: 0.8281 | N18: 0.8281 | O18: 0.8281 | P18: 0.8281 | Q18: 0.8281 | R18: 0.8281 | S18: 0.8281 | T18: 0.8281 | U18: 0.8281 | V18: 0.8281 | W18: 0.8281 | X18: 0.8281 | Y18: 0.8281 | Z18: 0.8281 | AC18: =SUM(D18:Z18)-sumColor(D18:Z18,$AB$1) -> 0 | AD18: =IF(AC18=0,"",SUMPRODUCT((AC$4:AC18<>0)*1)) ->  | AF18: =IF(AD18="","",SUM(AE$4:AE18)) ->  | AH18: =IF(AD18="","",SUM(AE18:AE$20)) ->  | AK18: =IF(AD18="","",IF(AG18<=0," ",AC18*AG18)) ->  | AL18: =IF(AD18="","",IF(AI18<=0," ",AC18*AI18)) -> 
C19: =図面!B19 -> 910 | D19: 0.8281 | E19: 0.8281 | F19: 0.8281 | G19: 0.8281 | H19: 0.8281 | I19: 0.8281 | J19: 0.8281 | K19: 0.8281 | L19: 0.8281 | M19: 0.8281 | N19: 0.8281 | O19: 0.8281 | P19: 0.8281 | Q19: 0.8281 | R19: 0.8281 | S19: 0.8281 | T19: =$C19*T$3/1000000 -> 0.8281 | U19: 0.8281 | V19: 0.8281 | W19: 0.8281 | X19: 0.8281 | Y19: 0.8281 | Z19: 0.8281 | AC19: =SUM(D19:Z19)-sumColor(D19:Z19,$AB$1) -> 0 | AD19: =IF(AC19=0,"",SUMPRODUCT((AC$4:AC19<>0)*1)) ->  | AF19: =IF(AD19="","",SUM(AE$4:AE19)) ->  | AH19: =IF(AD19="","",SUM(AE19:AE$20)) ->  | AK19: =IF(AD19="","",IF(AG19<=0," ",AC19*AG19)) ->  | AL19: =IF(AD19="","",IF(AI19<=0," ",AC19*AI19)) -> 
C20: =図面!B20 -> 910 | D20: 0.8281 | E20: =$C20*E$3/1000000 -> 0.8281 | F20: 0.8281 | G20: 0.8281 | H20: 0.8281 | I20: 0.8281 | J20: 0.8281 | K20: 0.8281 | L20: 0.8281 | M20: 0.8281 | N20: 0.8281 | O20: 0.8281 | P20: 0.8281 | Q20: 0.8281 | R20: 0.8281 | S20: 0.8281 | T20: 0.8281 | U20: 0.8281 | V20: 0.8281 | W20: 0.8281 | X20: 0.8281 | Y20: 0.8281 | Z20: 0.8281 | AC20: =SUM(D20:Z20)-sumColor(D20:Z20,$AB$1) -> 0 | AD20: =IF(AC20=0,"",SUMPRODUCT((AC$4:AC20<>0)*1)) ->  | AF20: =IF(AD20="","",SUM(AE$4:AE20)) ->  | AH20: =IF(AD20="","",SUM(AE20:AE$20)) ->  | AI20: =IF(AH20="","",IF(AH20>$AL$25,($AL$25-#REF!)/AE20,IF(AH20<=$AL$25,1," "))) ->  | AK20: =IF(AD20="","",IF(AG20<=0," ",AC20*AG20)) ->  | AL20: =IF(AD20="","",IF(AI20<=0," ",AC20*AI20)) -> 
D21: =IF(COUNTIF(D27:D29,1),"●"," ") ->  | E21: =IF(COUNTIF(E27:E29,1),"●"," ") ->  | AC21: =SUMIF(AC4:AC20,">0") -> 0 | AK21: =SUMIF(AK4:AK20,">0") -> 0 | AL21: =SUMIF(AL4:AL20,">0") -> 0
B23: 縦面積合計 | D23: =SUM(D4:D20)-sumColor(D4:D20,$AA$1) -> 0 | E23: =SUM(E4:E20)-sumColor(E4:E20,$AA$1) -> 0 | F23: =SUM(F4:F20)-sumColor(F4:F20,$AA$1) -> 0 | G23: =SUM(G4:G20)-sumColor(G4:G20,$AA$1) -> 0 | H23: =SUM(H4:H20)-sumColor(H4:H20,$AA$1) -> 0 | I23: =SUM(I4:I20)-sumColor(I4:I20,$AA$1) -> 0 | J23: =SUM(J4:J20)-sumColor(J4:J20,$AA$1) -> 0 | K23: =SUM(K4:K20)-sumColor(K4:K20,$AA$1) -> 0 | L23: =SUM(L4:L20)-sumColor(L4:L20,$AA$1) -> 0 | M23: =SUM(M4:M20)-sumColor(M4:M20,$AA$1) -> 0 | N23: =SUM(N4:N20)-sumColor(N4:N20,$AA$1) -> 0 | O23: =SUM(O4:O20)-sumColor(O4:O20,$AA$1) -> 0 | P23: =SUM(P4:P20)-sumColor(P4:P20,$AA$1) -> 0 | Q23: =SUM(Q4:Q20)-sumColor(Q4:Q20,$AA$1) -> 0 | R23: =SUM(R4:R20)-sumColor(R4:R20,$AA$1) -> 0 | S23: =SUM(S4:S20)-sumColor(S4:S20,$AA$1) -> 0 | T23: =SUM(T4:T20)-sumColor(T4:T20,$AA$1) -> 0 | U23: =SUM(U4:U20)-sumColor(U4:U20,$AA$1) -> 0 | V23: =SUM(V4:V20)-sumColor(V4:V20,$AA$1) -> 0 | W23: =SUM(W4:W20)-sumColor(W4:W20,$AA$1) -> 0 | X23: =SUM(X4:X20)-sumColor(X4:X20,$AA$1) -> 0 | Y23: =SUM(Y4:Y20)-sumColor(Y4:Y20,$AA$1) -> 0 | Z23: =SUM(Z4:Z20)-sumColor(Z4:Z20,$AA$1) -> 0 | AA23: =SUMIF(D23:Z23,">0") -> 0
B24: 番号 | D24: =IF(D23=0,"",SUMPRODUCT(($D23:D23<>0)*1)) ->  | E24: =IF(E23=0,"",SUMPRODUCT(($D23:E23<>0)*1)) ->  | F24: =IF(F23=0,"",SUMPRODUCT(($D23:F23<>0)*1)) ->  | G24: =IF(G23=0,"",SUMPRODUCT(($D23:G23<>0)*1)) ->  | H24: =IF(H23=0,"",SUMPRODUCT(($D23:H23<>0)*1)) ->  | I24: =IF(I23=0,"",SUMPRODUCT(($D23:I23<>0)*1)) ->  | J24: =IF(J23=0,"",SUMPRODUCT(($D23:J23<>0)*1)) ->  | K24: =IF(K23=0,"",SUMPRODUCT(($D23:K23<>0)*1)) ->  | L24: =IF(L23=0,"",SUMPRODUCT(($D23:L23<>0)*1)) ->  | M24: =IF(M23=0,"",SUMPRODUCT(($D23:M23<>0)*1)) ->  | N24: =IF(N23=0,"",SUMPRODUCT(($D23:N23<>0)*1)) ->  | O24: =IF(O23=0,"",SUMPRODUCT(($D23:O23<>0)*1)) ->  | P24: =IF(P23=0,"",SUMPRODUCT(($D23:P23<>0)*1)) ->  | Q24: =IF(Q23=0,"",SUMPRODUCT(($D23:Q23<>0)*1)) ->  | R24: =IF(R23=0,"",SUMPRODUCT(($D23:R23<>0)*1)) ->  | S24: =IF(S23=0,"",SUMPRODUCT(($D23:S23<>0)*1)) ->  | T24: =IF(T23=0,"",SUMPRODUCT(($D23:T23<>0)*1)) ->  | U24: =IF(U23=0,"",SUMPRODUCT(($D23:U23<>0)*1)) ->  | V24: =IF(V23=0,"",SUMPRODUCT(($D23:V23<>0)*1)) ->  | W24: =IF(W23=0,"",SUMPRODUCT(($D23:W23<>0)*1)) ->  | X24: =IF(X23=0,"",SUMPRODUCT(($D23:X23<>0)*1)) ->  | Y24: =IF(Y23=0,"",SUMPRODUCT(($D23:Y23<>0)*1)) ->  | Z24: =IF(Z23=0,"",SUMPRODUCT(($D23:Z23<>0)*1)) -> 
B25: セル高さ | D25: =IF(D24="","",D3) ->  | AE25: 横方向４分割線位置 | AF25: =SUM(AE4:AE20) -> 0 | AH25: / | AI25: 4 | AJ25: ＝ | AL25: =AF25/AI25 -> 0
B26: 左からの累計長さ | D26: =IF(D24="","",SUM($D25:D25)) ->  | E26: =IF(E24="","",SUM($D25:E25)) ->  | F26: =IF(F24="","",SUM($D25:F25)) ->  | G26: =IF(G24="","",SUM($D25:G25)) ->  | H26: =IF(H24="","",SUM($D25:H25)) ->  | I26: =IF(I24="","",SUM($D25:I25)) ->  | J26: =IF(J24="","",SUM($D25:J25)) ->  | K26: =IF(K24="","",SUM($D25:K25)) ->  | L26: =IF(L24="","",SUM($D25:L25)) ->  | M26: =IF(M24="","",SUM($D25:M25)) ->  | N26: =IF(N24="","",SUM($D25:N25)) ->  | O26: =IF(O24="","",SUM($D25:O25)) ->  | P26: =IF(P24="","",SUM($D25:P25)) ->  | Q26: =IF(Q24="","",SUM($D25:Q25)) ->  | R26: =IF(R24="","",SUM($D25:R25)) ->  | S26: =IF(S24="","",SUM($D25:S25)) ->  | T26: =IF(T24="","",SUM($D25:T25)) ->  | U26: =IF(U24="","",SUM($D25:U25)) ->  | V26: =IF(V24="","",SUM($D25:V25)) ->  | W26: =IF(W24="","",SUM($D25:W25)) ->  | X26: =IF(X24="","",SUM($D25:X25)) ->  | Y26: =IF(Y24="","",SUM($D25:Y25)) ->  | Z26: =IF(Z24="","",SUM($D25:Z25)) ->  | AE26: 縦方向４分割線位置 | AF26: =SUM(D25:Z25) -> 0 | AH26: / | AI26: 4 | AJ26: ＝ | AL26: =AF26/AI26 -> 0
B27: 倍率 | D27: =IF(D26="","",IF(D26>$AL$26,($AL$26-C26)/D25,IF(D26<=$AL$26,1," "))) -> 
B28: 右からの累計長さ | D28: =IF(D24="","",SUM(D25:$Z25)) ->  | E28: =IF(E24="","",SUM(E25:$Z25)) ->  | F28: =IF(F24="","",SUM(F25:$Z25)) ->  | G28: =IF(G24="","",SUM(G25:$Z25)) ->  | H28: =IF(H24="","",SUM(H25:$Z25)) ->  | I28: =IF(I24="","",SUM(I25:$Z25)) ->  | J28: =IF(J24="","",SUM(J25:$Z25)) ->  | K28: =IF(K24="","",SUM(K25:$Z25)) ->  | L28: =IF(L24="","",SUM(L25:$Z25)) ->  | M28: =IF(M24="","",SUM(M25:$Z25)) ->  | N28: =IF(N24="","",SUM(N25:$Z25)) ->  | O28: =IF(O24="","",SUM(O25:$Z25)) ->  | P28: =IF(P24="","",SUM(P25:$Z25)) ->  | Q28: =IF(Q24="","",SUM(Q25:$Z25)) ->  | R28: =IF(R24="","",SUM(R25:$Z25)) ->  | S28: =IF(S24="","",SUM(S25:$Z25)) ->  | T28: =IF(T24="","",SUM(T25:$Z25)) ->  | U28: =IF(U24="","",SUM(U25:$Z25)) ->  | V28: =IF(V24="","",SUM(V25:$Z25)) ->  | W28: =IF(W24="","",SUM(W25:$Z25)) ->  | X28: =IF(X24="","",SUM(X25:$Z25)) ->  | Y28: =IF(Y24="","",SUM(Y25:$Z25)) ->  | Z28: =IF(Z24="","",SUM(Z25:$Z25)) -> 
B29: 倍率 | D29: =IF(D28="","",IF(D28>$AL$26,($AL$26-E28)/D25,IF(D28<=$AL$26,1," "))) ->  | Z29: =IF(Z28="","",IF(Z28>$AL$26,($AL$26-#REF!)/Z25,IF(Z28<=$AL$26,1," "))) -> 
B31: 面積(左) | D31: =IF(D24="","",IF(D27<=0," ",D23*D27)) ->  | E31: =IF(E24="","",IF(E27<=0," ",E23*E27)) ->  | J31: =IF(J24="","",IF(J27<=0," ",J23*J27)) ->  | X31: =IF(X24="","",IF(X27<=0," ",X23*X27)) ->  | Y31: =IF(Y24="","",IF(Y27<=0," ",Y23*Y27)) ->  | Z31: =IF(Z24="","",IF(Z27<=0," ",Z23*Z27)) ->  | AA31: =SUMIF(D31:Z31,">0") -> 0
B32: 面積(右) | D32: =IF(D24="","",IF(D29<=0," ",D23*D29)) ->  | E32: =IF(E24="","",IF(E29<=0," ",E23*E29)) ->  | X32: =IF(X24="","",IF(X29<=0," ",X23*X29)) ->  | Y32: =IF(Y24="","",IF(Y29<=0," ",Y23*Y29)) ->  | Z32: =IF(Z24="","",IF(Z29<=0," ",Z23*Z29)) ->  | AA32: =SUMIF(D32:Z32,">0") -> 0

Sheet 壁量計算2階 (hidden)
D3: =図面!D2 -> 910 | E3: =図面!E2 -> 910 | F3: =図面!F2 -> 910 | G3: =図面!G2 -> 910 | H3: =図面!H2 -> 910 | I3: =図面!I2 -> 910 | J3: =図面!J2 -> 910 | K3: =図面!K2 -> 910 | L3: =図面!L2 -> 910 | M3: =図面!M2 -> 910 | N3: =図面!N2 -> 910 | O3: =図面!O2 -> 910 | P3: =図面!P2 -> 910 | Q3: =図面!Q2 -> 910 | R3: =図面!R2 -> 910 | S3: =図面!S2 -> 910 | T3: =図面!T2 -> 910 | U3: =図面!U2 -> 910 | V3: =図面!V2 -> 910 | W3: =図面!W2 -> 910 | X3: =図面!X2 -> 910 | Y3: =図面!Y2 -> 910 | Z3: =図面!Z2 -> 910 | AC3: ↑あ | AD3: ↓あ | AE3: ↑い | AF3: ↓い | AG3: ↑う | AH3: ↓う | AI3: ↑え | AJ3: ↓え | AK3: ↑お | AL3: ↓お | AM3: ↑か | AN3: ↓か | AO3: 合計 | AR3: 上壁量 | AS3: ↓ | AT3: 補正上 | AU3: 下壁量 | AV3: ↑ | AW3: 補正下
C4: =図面!B4 -> 910 | D4: =IF(図面2階!D4="","",図面2階!D4) ->  | E4: =IF(図面2階!E4="","",図面2階!E4) ->  | F4: =IF(図面2階!F4="","",図面2階!F4) ->  | G4: =IF(図面2階!G4="","",図面2階!G4) ->  | H4: =IF(図面2階!H4="","",図面2階!H4) ->  | I4: =IF(図面2階!I4="","",図面2階!I4) ->  | J4: =IF(図面2階!J4="","",図面2階!J4) ->  | K4: =IF(図面2階!K4="","",図面2階!K4) ->  | L4: =IF(図面2階!L4="","",図面2階!L4) ->  | M4: =IF(図面2階!M4="","",図面2階!M4) ->  | N4: =IF(図面2階!N4="","",図面2階!N4) ->  | O4: =IF(図面2階!O4="","",図面2階!O4) ->  | P4: =IF(図面2階!P4="","",図面2階!P4) ->  | Q4: =IF(図面2階!Q4="","",図面2階!Q4) ->  | R4: =IF(図面2階!R4="","",図面2階!R4) ->  | S4: =IF(図面2階!S4="","",図面2階!S4) ->  | T4: =IF(図面2階!T4="","",図面2階!T4) ->  | U4: =IF(図面2階!U4="","",図面2階!U4) ->  | V4: =IF(図面2階!V4="","",図面2階!V4) ->  | W4: =IF(図面2階!W4="","",図面2階!W4) ->  | X4: =IF(図面2階!X4="","",図面2階!X4) ->  | Y4: =IF(図面2階!Y4="","",図面2階!Y4) ->  | Z4: =IF(図面2階!Z4="","",図面2階!Z4) ->  | AA4: =IF(COUNTIF(面積計算2階!AG4:AI4,1),"●"," ") ->  | AC4: =SUMIF($D4:$Z4,"*↑あ*",$D$3:$Z$3)/1000*図面!$AK$19 -> 0 | AD4: =SUMIF($D4:$Z4,"*↓あ*",$D$3:$Z$3)/1000*図面!$AK$19 -> 0 | AE4: =SUMIF($D4:$Z4,"*↑い*",$D$3:$Z$3)/1000*図面!$AK$20 -> 0 | AF4: =SUMIF($D4:$Z4,"*↓い*",$D$3:$Z$3)/1000*図面!$AK$20 -> 0 | AG4: =SUMIF($D4:$Z4,"*↑う*",$D$3:$Z$3)/1000*図面!$AK$21 -> 0 | AH4: =SUMIF($D4:$Z4,"*↓う*",$D$3:$Z$3)/1000*図面!$AK$21 -> 0 | AI4: =SUMIF($D4:$Z4,"*↑え*",$D$3:$Z$3)/1000*図面!$AK$22 -> 0 | AJ4: =SUMIF($D4:$Z4,"*↓え*",$D$3:$Z$3)/1000*図面!$AK$22 -> 0 | AK4: =SUMIF($D4:$Z4,"*↑お*",$D$3:$Z$3)/1000*図面!$AK$23 -> 0 | AL4: =SUMIF($D4:$Z4,"*↓お*",$D$3:$Z$3)/1000*図面!AK$23 -> 0 | AM4: =SUMIF($D4:$Z4,"*↑か*",$D$3:$Z$3)/1000*図面!$AK$24 -> 0 | AN4: =SUMIF($D4:$Z4,"*↓か*",$D$3:$Z$3)/1000*図面!$AK$24 -> 0 | AO4: =SUM(AC4:AN4) -> 0 | AP4: =IF(COUNTIF(面積計算2階!AG4,1),"上"," ") ->  | AQ4: =IF(COUNTIF(面積計算2階!AI4,1),"下"," ") ->  | AR4: =IF(COUNTIF(AP3:AP5,"上"),AO4,0) -> 0 | AS4: =AD4+AF4+AH4+AJ4+AL4+AN4 -> 0 | AT4: =IF(AND(AP4=" ",AP3="上"),AR4-AS4,AR4) -> 0 | AU4: =IF(COUNTIF(AQ3:AQ5,"下"),AO4,0) -> 0 | AV4: =AC4+AE4+AG4+AI4+AK4+AM4 -> 0 | AW4: =IF(AND(AQ4=" ",AQ5="下"),AU4-AV4,AU4) -> 0
C5: =図面!B5 -> 910 | D5: =IF(図面2階!D5="","",図面2階!D5) ->  | E5: =IF(図面2階!E5="","",図面2階!E5) ->  | F5: =IF(図面2階!F5="","",図面2階!F5) ->  | G5: =IF(図面2階!G5="","",図面2階!G5) ->  | H5: =IF(図面2階!H5="","",図面2階!H5) ->  | I5: =IF(図面2階!I5="","",図面2階!I5) ->  | J5: =IF(図面2階!J5="","",図面2階!J5) ->  | K5: =IF(図面2階!K5="","",図面2階!K5) ->  | L5: =IF(図面2階!L5="","",図面2階!L5) ->  | M5: =IF(図面2階!M5="","",図面2階!M5) ->  | N5: =IF(図面2階!N5="","",図面2階!N5) ->  | O5: =IF(図面2階!O5="","",図面2階!O5) ->  | P5: =IF(図面2階!P5="","",図面2階!P5) ->  | Q5: =IF(図面2階!Q5="","",図面2階!Q5) ->  | R5: =IF(図面2階!R5="","",図面2階!R5) ->  | S5: =IF(図面2階!S5="","",図面2階!S5) ->  | T5: =IF(図面2階!T5="","",図面2階!T5) ->  | U5: =IF(図面2階!U5="","",図面2階!U5) ->  | V5: =IF(図面2階!V5="","",図面2階!V5) ->  | W5: =IF(図面2階!W5="","",図面2階!W5) ->  | X5: =IF(図面2階!X5="","",図面2階!X5) ->  | Y5: =IF(図面2階!Y5="","",図面2階!Y5) ->  | Z5: =IF(図面2階!Z5="","",図面2階!Z5) ->  | AA5: =IF(COUNTIF(面積計算2階!AG5:AI5,1),"●"," ") ->  | AC5: =SUMIF($D5:$Z5,"*↑あ*",$D$3:$Z$3)/1000*図面!$AK$19 -> 0 | AD5: =SUMIF($D5:$Z5,"*↓あ*",$D$3:$Z$3)/1000*図面!$AK$19 -> 0 | AE5: =SUMIF($D5:$Z5,"*↑い*",$D$3:$Z$3)/1000*図面!$AK$20 -> 0 | AF5: =SUMIF($D5:$Z5,"*↓い*",$D$3:$Z$3)/1000*図面!$AK$20 -> 0 | AG5: =SUMIF($D5:$Z5,"*↑う*",$D$3:$Z$3)/1000*図面!$AK$21 -> 0 | AH5: =SUMIF($D5:$Z5,"*↓う*",$D$3:$Z$3)/1000*図面!$AK$21 -> 0 | AI5: =SUMIF($D5:$Z5,"*↑え*",$D$3:$Z$3)/1000*図面!$AK$22 -> 0 | AJ5: =SUMIF($D5:$Z5,"*↓え*",$D$3:$Z$3)/1000*図面!$AK$22 -> 0 | AK5: =SUMIF($D5:$Z5,"*↑お*",$D$3:$Z$3)/1000*図面!$AK$23 -> 0 | AL5: =SUMIF($D5:$Z5,"*↓お*",$D$3:$Z$3)/1000*図面!AK$23 -> 0 | AM5: =SUMIF($D5:$Z5,"*↑か*",$D$3:$Z$3)/1000*図面!$AK$24 -> 0 | AN5: =SUMIF($D5:$Z5,"*↓か*",$D$3:$Z$3)/1000*図面!$AK$24 -> 0 | AO5: =SUM(AC5:AN5) -> 0 | AP5: =IF(COUNTIF(面積計算2階!AG5,1),"上"," ") ->  | AQ5: =IF(COUNTIF(面積計算2階!AI5,1),"下"," ") ->  | AR5: =IF(COUNTIF(AP4:AP6,"上"),AO5,0) -> 0 | AS5: =AD5+AF5+AH5+AJ5+AL5+AN5 -> 0 | AT5: =IF(AND(AP5=" ",AP4="上"),AR5-AS5,AR5) -> 0 | AU5: 0 | AV5: =AC5+AE5+AG5+AI5+AK5+AM5 -> 0 | AW5: 0
C6: =図面!B6 -> 910 | D6: =IF(図面2階!D6="","",図面2階!D6) ->  | E6: =IF(図面2階!E6="","",図面2階!E6) ->  | F6: =IF(図面2階!F6="","",図面2階!F6) ->  | G6: =IF(図面2階!G6="","",図面2階!G6) ->  | H6: =IF(図面2階!H6="","",図面2階!H6) ->  | I6: =IF(図面2階!I6="","",図面2階!I6) ->  | J6: =IF(図面2階!J6="","",図面2階!J6) ->  | K6: =IF(図面2階!K6="","",図面2階!K6) ->  | L6: =IF(図面2階!L6="","",図面2階!L6) ->  | M6: =IF(図面2階!M6="","",図面2階!M6) ->  | N6: =IF(図面2階!N6="","",図面2階!N6) ->  | O6: =IF(図面2階!O6="","",図面2階!O6) ->  | P6: =IF(図面2階!P6="","",図面2階!P6) ->  | Q6: =IF(図面2階!Q6="","",図面2階!Q6) ->  | R6: =IF(図面2階!R6="","",図面2階!R6) ->  | S6: =IF(図面2階!S6="","",図面2階!S6) ->  | T6: =IF(図面2階!T6="","",図面2階!T6) ->  | U6: =IF(図面2階!U6="","",図面2階!U6) ->  | V6: =IF(図面2階!V6="","",図面2階!V6) ->  | W6: =IF(図面2階!W6="","",図面2階!W6) ->  | X6: =IF(図面2階!X6="","",図面2階!X6) ->  | Y6: =IF(図面2階!Y6="","",図面2階!Y6) ->  | Z6: =IF(図面2階!Z6="","",図面2階!Z6) ->  | AA6: =IF(COUNTIF(面積計算2階!AG6:AI6,1),"●"," ") ->  | AC6: =SUMIF($D6:$Z6,"*↑あ*",$D$3:$Z$3)/1000*図面!$AK$19 -> 0 | AD6: =SUMIF($D6:$Z6,"*↓あ*",$D$3:$Z$3)/1000*図面!$AK$19 -> 0 | AE6: =SUMIF($D6:$Z6,"*↑い*",$D$3:$Z$3)/1000*図面!$AK$20 -> 0 | AF6: =SUMIF($D6:$Z6,"*↓い*",$D$3:$Z$3)/1000*図面!$AK$20 -> 0 | AG6: =SUMIF($D6:$Z6,"*↑う*",$D$3:$Z$3)/1000*図面!$AK$21 -> 0 | AH6: =SUMIF($D6:$Z6,"*↓う*",$D$3:$Z$3)/1000*図面!$AK$21 -> 0 | AI6: =SUMIF($D6:$Z6,"*↑え*",$D$3:$Z$3)/1000*図面!$AK$22 -> 0 | AJ6: =SUMIF($D6:$Z6,"*↓え*",$D$3:$Z$3)/1000*図面!$AK$22 -> 0 | AK6: =SUMIF($D6:$Z6,"*↑お*",$D$3:$Z$3)/1000*図面!$AK$23 -> 0 | AL6: =SUMIF($D6:$Z6,"*↓お*",$D$3:$Z$3)/1000*図面!AK$23 -> 0 | AM6: =SUMIF($D6:$Z6,"*↑か*",$D$3:$Z$3)/1000*図面!$AK$24 -> 0 | AN6: =SUMIF($D6:$Z6,"*↓か*",$D$3:$Z$3)/1000*図面!$AK$24 -> 0 | AO6: 0 | AP6: =IF(COUNTIF(面積計算2階!AG6,1),"上"," ") ->  | AQ6: =IF(COUNTIF(面積計算2階!AI6,1),"下"," ") ->  | AR6: =IF(COUNTIF(AP5:AP7,"上"),AO6,0) -> 0 | AS6: 0 | AT6: =IF(AND(AP6=" ",AP5="上"),AR6-AS6,AR6) -> 0 | AU6: 0 | AV6: 0 | AW6: 0
C7: =図面!B7 -> 910 | D7: =IF(図面2階!D7="","",図面2階!D7) ->  | E7: =IF(図面2階!E7="","",図面2階!E7) ->  | F7: =IF(図面2階!F7="","",図面2階!F7) ->  | G7: =IF(図面2階!G7="","",図面2階!G7) ->  | H7: =IF(図面2階!H7="","",図面2階!H7) ->  | I7: =IF(図面2階!I7="","",図面2階!I7) ->  | J7: =IF(図面2階!J7="","",図面2階!J7) ->  | K7: =IF(図面2階!K7="","",図面2階!K7) ->  | L7: =IF(図面2階!L7="","",図面2階!L7) ->  | M7: =IF(図面2階!M7="","",図面2階!M7) ->  | N7: =IF(図面2階!N7="","",図面2階!N7) ->  | O7: =IF(図面2階!O7="","",図面2階!O7) ->  | P7: =IF(図面2階!P7="","",図面2階!P7) ->  | Q7: =IF(図面2階!Q7="","",図面2階!Q7) ->  | R7: =IF(図面2階!R7="","",図面2階!R7) ->  | S7: =IF(図面2階!S7="","",図面2階!S7) ->  | T7: =IF(図面2階!T7="","",図面2階!T7) ->  | U7: =IF(図面2階!U7="","",図面2階!U7) ->  | V7: =IF(図面2階!V7="","",図面2階!V7) ->  | W7: =IF(図面2階!W7="","",図面2階!W7) ->  | X7: =IF(図面2階!X7="","",図面2階!X7) ->  | Y7: =IF(図面2階!Y7="","",図面2階!Y7) ->  | Z7: =IF(図面2階!Z7="","",図面2階!Z7) ->  | AA7: =IF(COUNTIF(面積計算2階!AG7:AI7,1),"●"," ") ->  | AC7: =SUMIF($D7:$Z7,"*↑あ*",$D$3:$Z$3)/1000*図面!$AK$19 -> 0 | AD7: =SUMIF($D7:$Z7,"*↓あ*",$D$3:$Z$3)/1000*図面!$AK$19 -> 0 | AE7: =SUMIF($D7:$Z7,"*↑い*",$D$3:$Z$3)/1000*図面!$AK$20 -> 0 | AF7: =SUMIF($D7:$Z7,"*↓い*",$D$3:$Z$3)/1000*図面!$AK$20 -> 0 | AG7: =SUMIF($D7:$Z7,"*↑う*",$D$3:$Z$3)/1000*図面!$AK$21 -> 0 | AH7: =SUMIF($D7:$Z7,"*↓う*",$D$3:$Z$3)/1000*図面!$AK$21 -> 0 | AI7: =SUMIF($D7:$Z7,"*↑え*",$D$3:$Z$3)/1000*図面!$AK$22 -> 0 | AJ7: =SUMIF($D7:$Z7,"*↓え*",$D$3:$Z$3)/1000*図面!$AK$22 -> 0 | AK7: =SUMIF($D7:$Z7,"*↑お*",$D$3:$Z$3)/1000*図面!$AK$23 -> 0 | AL7: =SUMIF($D7:$Z7,"*↓お*",$D$3:$Z$3)/1000*図面!AK$23 -> 0 | AM7: =SUMIF($D7:$Z7,"*↑か*",$D$3:$Z$3)/1000*図面!$AK$24 -> 0 | AN7: =SUMIF($D7:$Z7,"*↓か*",$D$3:$Z$3)/1000*図面!$AK$24 -> 0 | AO7: 0 | AP7: =IF(COUNTIF(面積計算2階!AG7,1),"上"," ") ->  | AQ7: =IF(COUNTIF(面積計算2階!AI7,1),"下"," ") ->  | AR7: =IF(COUNTIF(AP6:AP8,"上"),AO7,0) -> 0 | AS7: =AD7+AF7+AH7+AJ7+AL7+AN7 -> 0 | AT7: =IF(AND(AP7=" ",AP6="上"),AR7-AS7,AR7) -> 0 | AU7: 0 | AV7: 0 | AW7: =IF(AND(AQ7=" ",AQ8="下"),AU7-AV7,AU7) -> 0
C8: =図面!B8 -> 910 | D8: =IF(図面2階!D8="","",図面2階!D8) ->  | E8: =IF(図面2階!E8="","",図面2階!E8) ->  | F8: =IF(図面2階!F8="","",図面2階!F8) ->  | G8: =IF(図面2階!G8="","",図面2階!G8) ->  | H8: =IF(図面2階!H8="","",図面2階!H8) ->  | I8: =IF(図面2階!I8="","",図面2階!I8) ->  | J8: =IF(図面2階!J8="","",図面2階!J8) ->  | K8: =IF(図面2階!K8="","",図面2階!K8) ->  | L8: =IF(図面2階!L8="","",図面2階!L8) ->  | M8: =IF(図面2階!M8="","",図面2階!M8) ->  | N8: =IF(図面2階!N8="","",図面2階!N8) ->  | O8: =IF(図面2階!O8="","",図面2階!O8) ->  | P8: =IF(図面2階!P8="","",図面2階!P8) ->  | Q8: =IF(図面2階!Q8="","",図面2階!Q8) ->  | R8: =IF(図面2階!R8="","",図面2階!R8) ->  | S8: =IF(図面2階!S8="","",図面2階!S8) ->  | T8: =IF(図面2階!T8="","",図面2階!T8) ->  | U8: =IF(図面2階!U8="","",図面2階!U8) ->  | V8: =IF(図面2階!V8="","",図面2階!V8) ->  | W8: =IF(図面2階!W8="","",図面2階!W8) ->  | X8: =IF(図面2階!X8="","",図面2階!X8) ->  | Y8: =IF(図面2階!Y8="","",図面2階!Y8) ->  | Z8: =IF(図面2階!Z8="","",図面2階!Z8) ->  | AA8: =IF(COUNTIF(面積計算2階!AG8:AI8,1),"●"," ") ->  | AC8: =SUMIF($D8:$Z8,"*↑あ*",$D$3:$Z$3)/1000*図面!$AK$19 -> 0 | AD8: =SUMIF($D8:$Z8,"*↓あ*",$D$3:$Z$3)/1000*図面!$AK$19 -> 0 | AE8: =SUMIF($D8:$Z8,"*↑い*",$D$3:$Z$3)/1000*図面!$AK$20 -> 0 | AF8: =SUMIF($D8:$Z8,"*↓い*",$D$3:$Z$3)/1000*図面!$AK$20 -> 0 | AG8: =SUMIF($D8:$Z8,"*↑う*",$D$3:$Z$3)/1000*図面!$AK$21 -> 0 | AH8: =SUMIF($D8:$Z8,"*↓う*",$D$3:$Z$3)/1000*図面!$AK$21 -> 0 | AI8: =SUMIF($D8:$Z8,"*↑え*",$D$3:$Z$3)/1000*図面!$AK$22 -> 0 | AJ8: =SUMIF($D8:$Z8,"*↓え*",$D$3:$Z$3)/1000*図面!$AK$22 -> 0 | AK8: =SUMIF($D8:$Z8,"*↑お*",$D$3:$Z$3)/1000*図面!$AK$23 -> 0 | AL8: =SUMIF($D8:$Z8,"*↓お*",$D$3:$Z$3)/1000*図面!AK$23 -> 0 | AM8: =SUMIF($D8:$Z8,"*↑か*",$D$3:$Z$3)/1000*図面!$AK$24 -> 0 | AN8: =SUMIF($D8:$Z8,"*↓か*",$D$3:$Z$3)/1000*図面!$AK$24 -> 0 | AO8: 0 | AP8: =IF(COUNTIF(面積計算2階!AG8,1),"上"," ") ->  | AQ8: =IF(COUNTIF(面積計算2階!AI8,1),"下"," ") ->  | AR8: =IF(COUNTIF(AP7:AP9,"上"),AO8,0) -> 0 | AS8: 0 | AT8: =IF(AND(AP8=" ",AP7="上"),AR8-AS8,AR8) -> 0 | AU8: 0 | AV8: 0 | AW8: 0
C9: =図面!B9 -> 910 | D9: =IF(図面2階!D9="","",図面2階!D9) ->  | E9: =IF(図面2階!E9="","",図面2階!E9) ->  | F9: =IF(図面2階!F9="","",図面2階!F9) ->  | G9: =IF(図面2階!G9="","",図面2階!G9) ->  | H9: =IF(図面2階!H9="","",図面2階!H9) ->  | I9: =IF(図面2階!I9="","",図面2階!I9) ->  | J9: =IF(図面2階!J9="","",図面2階!J9) ->  | K9: =IF(図面2階!K9="","",図面2階!K9) ->  | L9: =IF(図面2階!L9="","",図面2階!L9) ->  | M9: =IF(図面2階!M9="","",図面2階!M9) ->  | N9: =IF(図面2階!N9="","",図面2階!N9) ->  | O9: =IF(図面2階!O9="","",図面2階!O9) ->  | P9: =IF(図面2階!P9="","",図面2階!P9) ->  | Q9: =IF(図面2階!Q9="","",図面2階!Q9) ->  | R9: =IF(図面2階!R9="","",図面2階!R9) ->  | S9: =IF(図面2階!S9="","",図面2階!S9) ->  | T9: =IF(図面2階!T9="","",図面2階!T9) ->  | U9: =IF(図面2階!U9="","",図面2階!U9) ->  | V9: =IF(図面2階!V9="","",図面2階!V9) ->  | W9: =IF(図面2階!W9="","",図面2階!W9) ->  | X9: =IF(図面2階!X9="","",図面2階!X9) ->  | Y9: =IF(図面2階!Y9="","",図面2階!Y9) ->  | Z9: =IF(図面2階!Z9="","",図面2階!Z9) ->  | AA9: =IF(COUNTIF(面積計算2階!AG9:AI9,1),"●"," ") ->  | AC9: =SUMIF($D9:$Z9,"*↑あ*",$D$3:$Z$3)/1000*図面!$AK$19 -> 0 | AD9: =SUMIF($D9:$Z9,"*↓あ*",$D$3:$Z$3)/1000*図面!$AK$19 -> 0 | AE9: =SUMIF($D9:$Z9,"*↑い*",$D$3:$Z$3)/1000*図面!$AK$20 -> 0 | AF9: =SUMIF($D9:$Z9,"*↓い*",$D$3:$Z$3)/1000*図面!$AK$20 -> 0 | AG9: =SUMIF($D9:$Z9,"*↑う*",$D$3:$Z$3)/1000*図面!$AK$21 -> 0 | AH9: =SUMIF($D9:$Z9,"*↓う*",$D$3:$Z$3)/1000*図面!$AK$21 -> 0 | AI9: =SUMIF($D9:$Z9,"*↑え*",$D$3:$Z$3)/1000*図面!$AK$22 -> 0 | AJ9: =SUMIF($D9:$Z9,"*↓え*",$D$3:$Z$3)/1000*図面!$AK$22 -> 0 | AK9: =SUMIF($D9:$Z9,"*↑お*",$D$3:$Z$3)/1000*図面!$AK$23 -> 0 | AL9: =SUMIF($D9:$Z9,"*↓お*",$D$3:$Z$3)/1000*図面!AK$23 -> 0 | AM9: =SUMIF($D9:$Z9,"*↑か*",$D$3:$Z$3)/1000*図面!$AK$24 -> 0 | AN9: =SUMIF($D9:$Z9,"*↓か*",$D$3:$Z$3)/1000*図面!$AK$24 -> 0 | AO9: 0 | AP9: =IF(COUNTIF(面積計算2階!AG9,1),"上"," ") ->  | AQ9: =IF(COUNTIF(面積計算2階!AI9,1),"下"," ") ->  | AR9: =IF(COUNTIF(AP8:AP10,"上"),AO9,0) -> 0 | AS9: 0 | AT9: =IF(AND(AP9=" ",AP8="上"),AR9-AS9,AR9) -> 0 | AU9: 0 | AV9: 0 | AW9: 0
C10: =図面!B10 -> 910 | D10: =IF(図面2階!D10="","",図面2階!D10) ->  | E10: =IF(図面2階!E10="","",図面2階!E10) ->  | F10: =IF(図面2階!F10="","",図面2階!F10) ->  | G10: =IF(図面2階!G10="","",図面2階!G10) ->  | H10: =IF(図面2階!H10="","",図面2階!H10) ->  | I10: =IF(図面2階!I10="","",図面2階!I10) ->  | J10: =IF(図面2階!J10="","",図面2階!J10) ->  | K10: =IF(図面2階!K10="","",図面2階!K10) ->  | L10: =IF(図面2階!L10="","",図面2階!L10) ->  | M10: =IF(図面2階!M10="","",図面2階!M10) ->  | N10: =IF(図面2階!N10="","",図面2階!N10) ->  | O10: =IF(図面2階!O10="","",図面2階!O10) ->  | P10: =IF(図面2階!P10="","",図面2階!P10) ->  | Q10: =IF(図面2階!Q10="","",図面2階!Q10) ->  | R10: =IF(図面2階!R10="","",図面2階!R10) ->  | S10: =IF(図面2階!S10="","",図面2階!S10) ->  | T10: =IF(図面2階!T10="","",図面2階!T10) ->  | U10: =IF(図面2階!U10="","",図面2階!U10) ->  | V10: =IF(図面2階!V10="","",図面2階!V10) ->  | W10: =IF(図面2階!W10="","",図面2階!W10) ->  | X10: =IF(図面2階!X10="","",図面2階!X10) ->  | Y10: =IF(図面2階!Y10="","",図面2階!Y10) ->  | Z10: =IF(図面2階!Z10="","",図面2階!Z10) ->  | AA10: =IF(COUNTIF(面積計算2階!AG10:AI10,1),"●"," ") ->  | AC10: =SUMIF($D10:$Z10,"*↑あ*",$D$3:$Z$3)/1000*図面!$AK$19 -> 0 | AD10: =SUMIF($D10:$Z10,"*↓あ*",$D$3:$Z$3)/1000*図面!$AK$19 -> 0 | AE10: =SUMIF($D10:$Z10,"*↑い*",$D$3:$Z$3)/1000*図面!$AK$20 -> 0 | AF10: =SUMIF($D10:$Z10,"*↓い*",$D$3:$Z$3)/1000*図面!$AK$20 -> 0 | AG10: =SUMIF($D10:$Z10,"*↑う*",$D$3:$Z$3)/1000*図面!$AK$21 -> 0 | AH10: =SUMIF($D10:$Z10,"*↓う*",$D$3:$Z$3)/1000*図面!$AK$21 -> 0 | AI10: =SUMIF($D10:$Z10,"*↑え*",$D$3:$Z$3)/1000*図面!$AK$22 -> 0 | AJ10: =SUMIF($D10:$Z10,"*↓え*",$D$3:$Z$3)/1000*図面!$AK$22 -> 0 | AK10: =SUMIF($D10:$Z10,"*↑お*",$D$3:$Z$3)/1000*図面!$AK$23 -> 0 | AL10: =SUMIF($D10:$Z10,"*↓お*",$D$3:$Z$3)/1000*図面!AK$23 -> 0 | AM10: =SUMIF($D10:$Z10,"*↑か*",$D$3:$Z$3)/1000*図面!$AK$24 -> 0 | AN10: =SUMIF($D10:$Z10,"*↓か*",$D$3:$Z$3)/1000*図面!$AK$24 -> 0 | AO10: 0 | AP10: =IF(COUNTIF(面積計算2階!AG10,1),"上"," ") ->  | AQ10: =IF(COUNTIF(面積計算2階!AI10,1),"下"," ") ->  | AR10: 0 | AS10: 0 | AT10: 0 | AU10: 0 | AV10: 0 | AW10: 0
C11: =図面!B11 -> 910 | D11: =IF(図面2階!D11="","",図面2階!D11) ->  | E11: =IF(図面2階!E11="","",図面2階!E11) ->  | F11: =IF(図面2階!F11="","",図面2階!F11) ->  | G11: =IF(図面2階!G11="","",図面2階!G11) ->  | H11: =IF(図面2階!H11="","",図面2階!H11) ->  | I11: =IF(図面2階!I11="","",図面2階!I11) ->  | J11: =IF(図面2階!J11="","",図面2階!J11) ->  | K11: =IF(図面2階!K11="","",図面2階!K11) ->  | L11: =IF(図面2階!L11="","",図面2階!L11) ->  | M11: =IF(図面2階!M11="","",図面2階!M11) ->  | N11: =IF(図面2階!N11="","",図面2階!N11) ->  | O11: =IF(図面2階!O11="","",図面2階!O11) ->  | P11: =IF(図面2階!P11="","",図面2階!P11) ->  | Q11: =IF(図面2階!Q11="","",図面2階!Q11) ->  | R11: =IF(図面2階!R11="","",図面2階!R11) ->  | S11: =IF(図面2階!S11="","",図面2階!S11) ->  | T11: =IF(図面2階!T11="","",図面2階!T11) ->  | U11: =IF(図面2階!U11="","",図面2階!U11) ->  | V11: =IF(図面2階!V11="","",図面2階!V11) ->  | W11: =IF(図面2階!W11="","",図面2階!W11) ->  | X11: =IF(図面2階!X11="","",図面2階!X11) ->  | Y11: =IF(図面2階!Y11="","",図面2階!Y11) ->  | Z11: =IF(図面2階!Z11="","",図面2階!Z11) ->  | AA11: =IF(COUNTIF(面積計算2階!AG11:AI11,1),"●"," ") ->  | AC11: =SUMIF($D11:$Z11,"*↑あ*",$D$3:$Z$3)/1000*図面!$AK$19 -> 0 | AD11: =SUMIF($D11:$Z11,"*↓あ*",$D$3:$Z$3)/1000*図面!$AK$19 -> 0 | AE11: =SUMIF($D11:$Z11,"*↑い*",$D$3:$Z$3)/1000*図面!$AK$20 -> 0 | AF11: =SUMIF($D11:$Z11,"*↓い*",$D$3:$Z$3)/1000*図面!$AK$20 -> 0 | AG11: =SUMIF($D11:$Z11,"*↑う*",$D$3:$Z$3)/1000*図面!$AK$21 -> 0 | AH11: =SUMIF($D11:$Z11,"*↓う*",$D$3:$Z$3)/1000*図面!$AK$21 -> 0 | AI11: =SUMIF($D11:$Z11,"*↑え*",$D$3:$Z$3)/1000*図面!$AK$22 -> 0 | AJ11: =SUMIF($D11:$Z11,"*↓え*",$D$3:$Z$3)/1000*図面!$AK$22 -> 0 | AK11: =SUMIF($D11:$Z11,"*↑お*",$D$3:$Z$3)/1000*図面!$AK$23 -> 0 | AL11: =SUMIF($D11:$Z11,"*↓お*",$D$3:$Z$3)/1000*図面!AK$23 -> 0 | AM11: =SUMIF($D11:$Z11,"*↑か*",$D$3:$Z$3)/1000*図面!$AK$24 -> 0 | AN11: =SUMIF($D11:$Z11,"*↓か*",$D$3:$Z$3)/1000*図面!$AK$24 -> 0 | AO11: 0 | AP11: =IF(COUNTIF(面積計算2階!AG11,1),"上"," ") ->  | AQ11: =IF(COUNTIF(面積計算2階!AI11,1),"下"," ") ->  | AR11: 0 | AS11: 0 | AT11: 0 | AU11: 0 | AV11: 0 | AW11: 0
C12: =図面!B12 -> 910 | D12: =IF(図面2階!D12="","",図面2階!D12) ->  | E12: =IF(図面2階!E12="","",図面2階!E12) ->  | F12: =IF(図面2階!F12="","",図面2階!F12) ->  | G12: =IF(図面2階!G12="","",図面2階!G12) ->  | H12: =IF(図面2階!H12="","",図面2階!H12) ->  | I12: =IF(図面2階!I12="","",図面2階!I12) ->  | J12: =IF(図面2階!J12="","",図面2階!J12) ->  | K12: =IF(図面2階!K12="","",図面2階!K12) ->  | L12: =IF(図面2階!L12="","",図面2階!L12) ->  | M12: =IF(図面2階!M12="","",図面2階!M12) ->  | N12: =IF(図面2階!N12="","",図面2階!N12) ->  | O12: =IF(図面2階!O12="","",図面2階!O12) ->  | P12: =IF(図面2階!P12="","",図面2階!P12) ->  | Q12: =IF(図面2階!Q12="","",図面2階!Q12) ->  | R12: =IF(図面2階!R12="","",図面2階!R12) ->  | S12: =IF(図面2階!S12="","",図面2階!S12) ->  | T12: =IF(図面2階!T12="","",図面2階!T12) ->  | U12: =IF(図面2階!U12="","",図面2階!U12) ->  | V12: =IF(図面2階!V12="","",図面2階!V12) ->  | W12: =IF(図面2階!W12="","",図面2階!W12) ->  | X12: =IF(図面2階!X12="","",図面2階!X12) ->  | Y12: =IF(図面2階!Y12="","",図面2階!Y12) ->  | Z12: =IF(図面2階!Z12="","",図面2階!Z12) ->  | AA12: =IF(COUNTIF(面積計算2階!AG12:AI12,1),"●"," ") ->  | AC12: =SUMIF($D12:$Z12,"*↑あ*",$D$3:$Z$3)/1000*図面!$AK$19 -> 0 | AD12: =SUMIF($D12:$Z12,"*↓あ*",$D$3:$Z$3)/1000*図面!$AK$19 -> 0 | AE12: =SUMIF($D12:$Z12,"*↑い*",$D$3:$Z$3)/1000*図面!$AK$20 -> 0 | AF12: =SUMIF($D12:$Z12,"*↓い*",$D$3:$Z$3)/1000*図面!$AK$20 -> 0 | AG12: =SUMIF($D12:$Z12,"*↑う*",$D$3:$Z$3)/1000*図面!$AK$21 -> 0 | AH12: =SUMIF($D12:$Z12,"*↓う*",$D$3:$Z$3)/1000*図面!$AK$21 -> 0 | AI12: =SUMIF($D12:$Z12,"*↑え*",$D$3:$Z$3)/1000*図面!$AK$22 -> 0 | AJ12: =SUMIF($D12:$Z12,"*↓え*",$D$3:$Z$3)/1000*図面!$AK$22 -> 0 | AK12: =SUMIF($D12:$Z12,"*↑お*",$D$3:$Z$3)/1000*図面!$AK$23 -> 0 | AL12: =SUMIF($D12:$Z12,"*↓お*",$D$3:$Z$3)/1000*図面!AK$23 -> 0 | AM12: =SUMIF($D12:$Z12,"*↑か*",$D$3:$Z$3)/1000*図面!$AK$24 -> 0 | AN12: =SUMIF($D12:$Z12,"*↓か*",$D$3:$Z$3)/1000*図面!$AK$24 -> 0 | AO12: 0 | AP12: =IF(COUNTIF(面積計算2階!AG12,1),"上"," ") ->  | AQ12: =IF(COUNTIF(面積計算2階!AI12,1),"下"," ") ->  | AR12: 0 | AS12: 0 | AT12: 0 | AU12: =IF(COUNTIF(AQ11:AQ13,"下"),AO12,0) -> 0 | AV12: 0 | AW12: 0
C13: =図面!B13 -> 910 | D13: =IF(図面2階!D13="","",図面2階!D13) ->  | E13: =IF(図面2階!E13="","",図面2階!E13) ->  | F13: =IF(図面2階!F13="","",図面2階!F13) ->  | G13: =IF(図面2階!G13="","",図面2階!G13) ->  | H13: =IF(図面2階!H13="","",図面2階!H13) ->  | I13: =IF(図面2階!I13="","",図面2階!I13) ->  | J13: =IF(図面2階!J13="","",図面2階!J13) ->  | K13: =IF(図面2階!K13="","",図面2階!K13) ->  | L13: =IF(図面2階!L13="","",図面2階!L13) ->  | M13: =IF(図面2階!M13="","",図面2階!M13) ->  | N13: =IF(図面2階!N13="","",図面2階!N13) ->  | O13: =IF(図面2階!O13="","",図面2階!O13) ->  | P13: =IF(図面2階!P13="","",図面2階!P13) ->  | Q13: =IF(図面2階!Q13="","",図面2階!Q13) ->  | R13: =IF(図面2階!R13="","",図面2階!R13) ->  | S13: =IF(図面2階!S13="","",図面2階!S13) ->  | T13: =IF(図面2階!T13="","",図面2階!T13) ->  | U13: =IF(図面2階!U13="","",図面2階!U13) ->  | V13: =IF(図面2階!V13="","",図面2階!V13) ->  | W13: =IF(図面2階!W13="","",図面2階!W13) ->  | X13: =IF(図面2階!X13="","",図面2階!X13) ->  | Y13: =IF(図面2階!Y13="","",図面2階!Y13) ->  | Z13: =IF(図面2階!Z13="","",図面2階!Z13) ->  | AA13: =IF(COUNTIF(面積計算2階!AG13:AI13,1),"●"," ") ->  | AC13: =SUMIF($D13:$Z13,"*↑あ*",$D$3:$Z$3)/1000*図面!$AK$19 -> 0 | AD13: =SUMIF($D13:$Z13,"*↓あ*",$D$3:$Z$3)/1000*図面!$AK$19 -> 0 | AE13: =SUMIF($D13:$Z13,"*↑い*",$D$3:$Z$3)/1000*図面!$AK$20 -> 0 | AF13: =SUMIF($D13:$Z13,"*↓い*",$D$3:$Z$3)/1000*図面!$AK$20 -> 0 | AG13: =SUMIF($D13:$Z13,"*↑う*",$D$3:$Z$3)/1000*図面!$AK$21 -> 0 | AH13: =SUMIF($D13:$Z13,"*↓う*",$D$3:$Z$3)/1000*図面!$AK$21 -> 0 | AI13: =SUMIF($D13:$Z13,"*↑え*",$D$3:$Z$3)/1000*図面!$AK$22 -> 0 | AJ13: =SUMIF($D13:$Z13,"*↓え*",$D$3:$Z$3)/1000*図面!$AK$22 -> 0 | AK13: =SUMIF($D13:$Z13,"*↑お*",$D$3:$Z$3)/1000*図面!$AK$23 -> 0 | AL13: =SUMIF($D13:$Z13,"*↓お*",$D$3:$Z$3)/1000*図面!AK$23 -> 0 | AM13: =SUMIF($D13:$Z13,"*↑か*",$D$3:$Z$3)/1000*図面!$AK$24 -> 0 | AN13: =SUMIF($D13:$Z13,"*↓か*",$D$3:$Z$3)/1000*図面!$AK$24 -> 0 | AO13: =SUM(AC13:AN13) -> 0 | AP13: =IF(COUNTIF(面積計算2階!AG13,1),"上"," ") ->  | AQ13: =IF(COUNTIF(面積計算2階!AI13,1),"下"," ") ->  | AR13: 0 | AS13: 0 | AT13: 0 | AU13: =IF(COUNTIF(AQ12:AQ14,"下"),AO13,0) -> 0 | AV13: 0 | AW13: 0
C14: =図面!B14 -> 910 | D14: =IF(図面2階!D14="","",図面2階!D14) ->  | E14: =IF(図面2階!E14="","",図面2階!E14) ->  | F14: =IF(図面2階!F14="","",図面2階!F14) ->  | G14: =IF(図面2階!G14="","",図面2階!G14) ->  | H14: =IF(図面2階!H14="","",図面2階!H14) ->  | I14: =IF(図面2階!I14="","",図面2階!I14) ->  | J14: =IF(図面2階!J14="","",図面2階!J14) ->  | K14: =IF(図面2階!K14="","",図面2階!K14) ->  | L14: =IF(図面2階!L14="","",図面2階!L14) ->  | M14: =IF(図面2階!M14="","",図面2階!M14) ->  | N14: =IF(図面2階!N14="","",図面2階!N14) ->  | O14: =IF(図面2階!O14="","",図面2階!O14) ->  | P14: =IF(図面2階!P14="","",図面2階!P14) ->  | Q14: =IF(図面2階!Q14="","",図面2階!Q14) ->  | R14: =IF(図面2階!R14="","",図面2階!R14) ->  | S14: =IF(図面2階!S14="","",図面2階!S14) ->  | T14: =IF(図面2階!T14="","",図面2階!T14) ->  | U14: =IF(図面2階!U14="","",図面2階!U14) ->  | V14: =IF(図面2階!V14="","",図面2階!V14) ->  | W14: =IF(図面2階!W14="","",図面2階!W14) ->  | X14: =IF(図面2階!X14="","",図面2階!X14) ->  | Y14: =IF(図面2階!Y14="","",図面2階!Y14) ->  | Z14: =IF(図面2階!Z14="","",図面2階!Z14) ->  | AA14: =IF(COUNTIF(面積計算2階!AG14:AI14,1),"●"," ") ->  | AC14: =SUMIF($D14:$Z14,"*↑あ*",$D$3:$Z$3)/1000*図面!$AK$19 -> 0 | AD14: =SUMIF($D14:$Z14,"*↓あ*",$D$3:$Z$3)/1000*図面!$AK$19 -> 0 | AE14: =SUMIF($D14:$Z14,"*↑い*",$D$3:$Z$3)/1000*図面!$AK$20 -> 0 | AF14: =SUMIF($D14:$Z14,"*↓い*",$D$3:$Z$3)/1000*図面!$AK$20 -> 0 | AG14: =SUMIF($D14:$Z14,"*↑う*",$D$3:$Z$3)/1000*図面!$AK$21 -> 0 | AH14: =SUMIF($D14:$Z14,"*↓う*",$D$3:$Z$3)/1000*図面!$AK$21 -> 0 | AI14: =SUMIF($D14:$Z14,"*↑え*",$D$3:$Z$3)/1000*図面!$AK$22 -> 0 | AJ14: =SUMIF($D14:$Z14,"*↓え*",$D$3:$Z$3)/1000*図面!$AK$22 -> 0 | AK14: =SUMIF($D14:$Z14,"*↑お*",$D$3:$Z$3)/1000*図面!$AK$23 -> 0 | AL14: =SUMIF($D14:$Z14,"*↓お*",$D$3:$Z$3)/1000*図面!AK$23 -> 0 | AM14: =SUMIF($D14:$Z14,"*↑か*",$D$3:$Z$3)/1000*図面!$AK$24 -> 0 | AN14: =SUMIF($D14:$Z14,"*↓か*",$D$3:$Z$3)/1000*図面!$AK$24 -> 0 | AO14: 0 | AP14: =IF(COUNTIF(面積計算2階!AG14,1),"上"," ") ->  | AQ14: =IF(COUNTIF(面積計算2階!AI14,1),"下"," ") ->  | AR14: 0 | AS14: 0 | AT14: 0 | AU14: 0 | AV14: 0 | AW14: 0
C15: =図面!B15 -> 910 | D15: =IF(図面2階!D15="","",図面2階!D15) ->  | E15: =IF(図面2階!E15="","",図面2階!E15) ->  | F15: =IF(図面2階!F15="","",図面2階!F15) ->  | G15: =IF(図面2階!G15="","",図面2階!G15) ->  | H15: =IF(図面2階!H15="","",図面2階!H15) ->  | I15: =IF(図面2階!I15="","",図面2階!I15) ->  | J15: =IF(図面2階!J15="","",図面2階!J15) ->  | K15: =IF(図面2階!K15="","",図面2階!K15) ->  | L15: =IF(図面2階!L15="","",図面2階!L15) ->  | M15: =IF(図面2階!M15="","",図面2階!M15) ->  | N15: =IF(図面2階!N15="","",図面2階!N15) ->  | O15: =IF(図面2階!O15="","",図面2階!O15) ->  | P15: =IF(図面2階!P15="","",図面2階!P15) ->  | Q15: =IF(図面2階!Q15="","",図面2階!Q15) ->  | R15: =IF(図面2階!R15="","",図面2階!R15) ->  | S15: =IF(図面2階!S15="","",図面2階!S15) ->  | T15: =IF(図面2階!T15="","",図面2階!T15) ->  | U15: =IF(図面2階!U15="","",図面2階!U15) ->  | V15: =IF(図面2階!V15="","",図面2階!V15) ->  | W15: =IF(図面2階!W15="","",図面2階!W15) ->  | X15: =IF(図面2階!X15="","",図面2階!X15) ->  | Y15: =IF(図面2階!Y15="","",図面2階!Y15) ->  | Z15: =IF(図面2階!Z15="","",図面2階!Z15) ->  | AA15: =IF(COUNTIF(面積計算2階!AG15:AI15,1),"●"," ") ->  | AC15: =SUMIF($D15:$Z15,"*↑あ*",$D$3:$Z$3)/1000*図面!$AK$19 -> 0 | AD15: =SUMIF($D15:$Z15,"*↓あ*",$D$3:$Z$3)/1000*図面!$AK$19 -> 0 | AE15: =SUMIF($D15:$Z15,"*↑い*",$D$3:$Z$3)/1000*図面!$AK$20 -> 0 | AF15: =SUMIF($D15:$Z15,"*↓い*",$D$3:$Z$3)/1000*図面!$AK$20 -> 0 | AG15: =SUMIF($D15:$Z15,"*↑う*",$D$3:$Z$3)/1000*図面!$AK$21 -> 0 | AH15: =SUMIF($D15:$Z15,"*↓う*",$D$3:$Z$3)/1000*図面!$AK$21 -> 0 | AI15: =SUMIF($D15:$Z15,"*↑え*",$D$3:$Z$3)/1000*図面!$AK$22 -> 0 | AJ15: =SUMIF($D15:$Z15,"*↓え*",$D$3:$Z$3)/1000*図面!$AK$22 -> 0 | AK15: =SUMIF($D15:$Z15,"*↑お*",$D$3:$Z$3)/1000*図面!$AK$23 -> 0 | AL15: =SUMIF($D15:$Z15,"*↓お*",$D$3:$Z$3)/1000*図面!AK$23 -> 0 | AM15: =SUMIF($D15:$Z15,"*↑か*",$D$3:$Z$3)/1000*図面!$AK$24 -> 0 | AN15: =SUMIF($D15:$Z15,"*↓か*",$D$3:$Z$3)/1000*図面!$AK$24 -> 0 | AO15: 0 | AP15: =IF(COUNTIF(面積計算2階!AG15,1),"上"," ") ->  | AQ15: =IF(COUNTIF(面積計算2階!AI15,1),"下"," ") ->  | AR15: 0 | AS15: 0 | AT15: 0 | AU15: 0 | AV15: 0 | AW15: 0
C16: =図面!B16 -> 910 | D16: =IF(図面2階!D16="","",図面2階!D16) ->  | E16: =IF(図面2階!E16="","",図面2階!E16) ->  | F16: =IF(図面2階!F16="","",図面2階!F16) ->  | G16: =IF(図面2階!G16="","",図面2階!G16) ->  | H16: =IF(図面2階!H16="","",図面2階!H16) ->  | I16: =IF(図面2階!I16="","",図面2階!I16) ->  | J16: =IF(図面2階!J16="","",図面2階!J16) ->  | K16: =IF(図面2階!K16="","",図面2階!K16) ->  | L16: =IF(図面2階!L16="","",図面2階!L16) ->  | M16: =IF(図面2階!M16="","",図面2階!M16) ->  | N16: =IF(図面2階!N16="","",図面2階!N16) ->  | O16: =IF(図面2階!O16="","",図面2階!O16) ->  | P16: =IF(図面2階!P16="","",図面2階!P16) ->  | Q16: =IF(図面2階!Q16="","",図面2階!Q16) ->  | R16: =IF(図面2階!R16="","",図面2階!R16) ->  | S16: =IF(図面2階!S16="","",図面2階!S16) ->  | T16: =IF(図面2階!T16="","",図面2階!T16) ->  | U16: =IF(図面2階!U16="","",図面2階!U16) ->  | V16: =IF(図面2階!V16="","",図面2階!V16) ->  | W16: =IF(図面2階!W16="","",図面2階!W16) ->  | X16: =IF(図面2階!X16="","",図面2階!X16) ->  | Y16: =IF(図面2階!Y16="","",図面2階!Y16) ->  | Z16: =IF(図面2階!Z16="","",図面2階!Z16) ->  | AA16: =IF(COUNTIF(面積計算2階!AG16:AI16,1),"●"," ") ->  | AC16: =SUMIF($D16:$Z16,"*↑あ*",$D$3:$Z$3)/1000*図面!$AK$19 -> 0 | AD16: =SUMIF($D16:$Z16,"*↓あ*",$D$3:$Z$3)/1000*図面!$AK$19 -> 0 | AE16: =SUMIF($D16:$Z16,"*↑い*",$D$3:$Z$3)/1000*図面!$AK$20 -> 0 | AF16: =SUMIF($D16:$Z16,"*↓い*",$D$3:$Z$3)/1000*図面!$AK$20 -> 0 | AG16: =SUMIF($D16:$Z16,"*↑う*",$D$3:$Z$3)/1000*図面!$AK$21 -> 0 | AH16: =SUMIF($D16:$Z16,"*↓う*",$D$3:$Z$3)/1000*図面!$AK$21 -> 0 | AI16: =SUMIF($D16:$Z16,"*↑え*",$D$3:$Z$3)/1000*図面!$AK$22 -> 0 | AJ16: =SUMIF($D16:$Z16,"*↓え*",$D$3:$Z$3)/1000*図面!$AK$22 -> 0 | AK16: =SUMIF($D16:$Z16,"*↑お*",$D$3:$Z$3)/1000*図面!$AK$23 -> 0 | AL16: =SUMIF($D16:$Z16,"*↓お*",$D$3:$Z$3)/1000*図面!AK$23 -> 0 | AM16: =SUMIF($D16:$Z16,"*↑か*",$D$3:$Z$3)/1000*図面!$AK$24 -> 0 | AN16: =SUMIF($D16:$Z16,"*↓か*",$D$3:$Z$3)/1000*図面!$AK$24 -> 0 | AO16: 0 | AP16: =IF(COUNTIF(面積計算2階!AG16,1),"上"," ") ->  | AQ16: =IF(COUNTIF(面積計算2階!AI16,1),"下"," ") ->  | AR16: 0 | AS16: 0 | AT16: 0 | AU16: 0 | AV16: 0 | AW16: 0
C17: =図面!B17 -> 910 | D17: =IF(図面2階!D17="","",図面2階!D17) ->  | E17: =IF(図面2階!E17="","",図面2階!E17) ->  | F17: =IF(図面2階!F17="","",図面2階!F17) ->  | G17: =IF(図面2階!G17="","",図面2階!G17) ->  | H17: =IF(図面2階!H17="","",図面2階!H17) ->  | I17: =IF(図面2階!I17="","",図面2階!I17) ->  | J17: =IF(図面2階!J17="","",図面2階!J17) ->  | K17: =IF(図面2階!K17="","",図面2階!K17) ->  | L17: =IF(図面2階!L17="","",図面2階!L17) ->  | M17: =IF(図面2階!M17="","",図面2階!M17) ->  | N17: =IF(図面2階!N17="","",図面2階!N17) ->  | O17: =IF(図面2階!O17="","",図面2階!O17) ->  | P17: =IF(図面2階!P17="","",図面2階!P17) ->  | Q17: =IF(図面2階!Q17="","",図面2階!Q17) ->  | R17: =IF(図面2階!R17="","",図面2階!R17) ->  | S17: =IF(図面2階!S17="","",図面2階!S17) ->  | T17: =IF(図面2階!T17="","",図面2階!T17) ->  | U17: =IF(図面2階!U17="","",図面2階!U17) ->  | V17: =IF(図面2階!V17="","",図面2階!V17) ->  | W17: =IF(図面2階!W17="","",図面2階!W17) ->  | X17: =IF(図面2階!X17="","",図面2階!X17) ->  | Y17: =IF(図面2階!Y17="","",図面2階!Y17) ->  | Z17: =IF(図面2階!Z17="","",図面2階!Z17) ->  | AA17: =IF(COUNTIF(面積計算2階!AG17:AI17,1),"●"," ") ->  | AC17: =SUMIF($D17:$Z17,"*↑あ*",$D$3:$Z$3)/1000*図面!$AK$19 -> 0 | AD17: =SUMIF($D17:$Z17,"*↓あ*",$D$3:$Z$3)/1000*図面!$AK$19 -> 0 | AE17: =SUMIF($D17:$Z17,"*↑い*",$D$3:$Z$3)/1000*図面!$AK$20 -> 0 | AF17: =SUMIF($D17:$Z17,"*↓い*",$D$3:$Z$3)/1000*図面!$AK$20 -> 0 | AG17: =SUMIF($D17:$Z17,"*↑う*",$D$3:$Z$3)/1000*図面!$AK$21 -> 0 | AH17: =SUMIF($D17:$Z17,"*↓う*",$D$3:$Z$3)/1000*図面!$AK$21 -> 0 | AI17: =SUMIF($D17:$Z17,"*↑え*",$D$3:$Z$3)/1000*図面!$AK$22 -> 0 | AJ17: =SUMIF($D17:$Z17,"*↓え*",$D$3:$Z$3)/1000*図面!$AK$22 -> 0 | AK17: =SUMIF($D17:$Z17,"*↑お*",$D$3:$Z$3)/1000*図面!$AK$23 -> 0 | AL17: =SUMIF($D17:$Z17,"*↓お*",$D$3:$Z$3)/1000*図面!AK$23 -> 0 | AM17: =SUMIF($D17:$Z17,"*↑か*",$D$3:$Z$3)/1000*図面!$AK$24 -> 0 | AN17: =SUMIF($D17:$Z17,"*↓か*",$D$3:$Z$3)/1000*図面!$AK$24 -> 0 | AO17: 0 | AP17: =IF(COUNTIF(面積計算2階!AG17,1),"上"," ") ->  | AQ17: =IF(COUNTIF(面積計算2階!AI17,1),"下"," ") ->  | AR17: 0 | AS17: 0 | AT17: 0 | AU17: 0 | AV17: 0 | AW17: 0
C18: =図面!B18 -> 910 | D18: =IF(図面2階!D18="","",図面2階!D18) ->  | E18: =IF(図面2階!E18="","",図面2階!E18) ->  | F18: =IF(図面2階!F18="","",図面2階!F18) ->  | G18: =IF(図面2階!G18="","",図面2階!G18) ->  | H18: =IF(図面2階!H18="","",図面2階!H18) ->  | I18: =IF(図面2階!I18="","",図面2階!I18) ->  | J18: =IF(図面2階!J18="","",図面2階!J18) ->  | K18: =IF(図面2階!K18="","",図面2階!K18) ->  | L18: =IF(図面2階!L18="","",図面2階!L18) ->  | M18: =IF(図面2階!M18="","",図面2階!M18) ->  | N18: =IF(図面2階!N18="","",図面2階!N18) ->  | O18: =IF(図面2階!O18="","",図面2階!O18) ->  | P18: =IF(図面2階!P18="","",図面2階!P18) ->  | Q18: =IF(図面2階!Q18="","",図面2階!Q18) ->  | R18: =IF(図面2階!R18="","",図面2階!R18) ->  | S18: =IF(図面2階!S18="","",図面2階!S18) ->  | T18: =IF(図面2階!T18="","",図面2階!T18) ->  | U18: =IF(図面2階!U18="","",図面2階!U18) ->  | V18: =IF(図面2階!V18="","",図面2階!V18) ->  | W18: =IF(図面2階!W18="","",図面2階!W18) ->  | X18: =IF(図面2階!X18="","",図面2階!X18) ->  | Y18: =IF(図面2階!Y18="","",図面2階!Y18) ->  | Z18: =IF(図面2階!Z18="","",図面2階!Z18) ->  | AA18: =IF(COUNTIF(面積計算2階!AG18:AI18,1),"●"," ") ->  | AC18: =SUMIF($D18:$Z18,"*↑あ*",$D$3:$Z$3)/1000*図面!$AK$19 -> 0 | AD18: =SUMIF($D18:$Z18,"*↓あ*",$D$3:$Z$3)/1000*図面!$AK$19 -> 0 | AE18: =SUMIF($D18:$Z18,"*↑い*",$D$3:$Z$3)/1000*図面!$AK$20 -> 0 | AF18: =SUMIF($D18:$Z18,"*↓い*",$D$3:$Z$3)/1000*図面!$AK$20 -> 0 | AG18: =SUMIF($D18:$Z18,"*↑う*",$D$3:$Z$3)/1000*図面!$AK$21 -> 0 | AH18: =SUMIF($D18:$Z18,"*↓う*",$D$3:$Z$3)/1000*図面!$AK$21 -> 0 | AI18: =SUMIF($D18:$Z18,"*↑え*",$D$3:$Z$3)/1000*図面!$AK$22 -> 0 | AJ18: =SUMIF($D18:$Z18,"*↓え*",$D$3:$Z$3)/1000*図面!$AK$22 -> 0 | AK18: =SUMIF($D18:$Z18,"*↑お*",$D$3:$Z$3)/1000*図面!$AK$23 -> 0 | AL18: =SUMIF($D18:$Z18,"*↓お*",$D$3:$Z$3)/1000*図面!AK$23 -> 0 | AM18: =SUMIF($D18:$Z18,"*↑か*",$D$3:$Z$3)/1000*図面!$AK$24 -> 0 | AN18: =SUMIF($D18:$Z18,"*↓か*",$D$3:$Z$3)/1000*図面!$AK$24 -> 0 | AO18: 0 | AP18: =IF(COUNTIF(面積計算2階!AG18,1),"上"," ") ->  | AQ18: =IF(COUNTIF(面積計算2階!AI18,1),"下"," ") ->  | AR18: 0 | AS18: 0 | AT18: 0 | AU18: 0 | AV18: 0 | AW18: 0
C19: =図面!B19 -> 910 | D19: =IF(図面2階!D19="","",図面2階!D19) ->  | E19: =IF(図面2階!E19="","",図面2階!E19) ->  | F19: =IF(図面2階!F19="","",図面2階!F19) ->  | G19: =IF(図面2階!G19="","",図面2階!G19) ->  | H19: =IF(図面2階!H19="","",図面2階!H19) ->  | I19: =IF(図面2階!I19="","",図面2階!I19) ->  | J19: =IF(図面2階!J19="","",図面2階!J19) ->  | K19: =IF(図面2階!K19="","",図面2階!K19) ->  | L19: =IF(図面2階!L19="","",図面2階!L19) ->  | M19: =IF(図面2階!M19="","",図面2階!M19) ->  | N19: =IF(図面2階!N19="","",図面2階!N19) ->  | O19: =IF(図面2階!O19="","",図面2階!O19) ->  | P19: =IF(図面2階!P19="","",図面2階!P19) ->  | Q19: =IF(図面2階!Q19="","",図面2階!Q19) ->  | R19: =IF(図面2階!R19="","",図面2階!R19) ->  | S19: =IF(図面2階!S19="","",図面2階!S19) ->  | T19: =IF(図面2階!T19="","",図面2階!T19) ->  | U19: =IF(図面2階!U19="","",図面2階!U19) ->  | V19: =IF(図面2階!V19="","",図面2階!V19) ->  | W19: =IF(図面2階!W19="","",図面2階!W19) ->  | X19: =IF(図面2階!X19="","",図面2階!X19) ->  | Y19: =IF(図面2階!Y19="","",図面2階!Y19) ->  | Z19: =IF(図面2階!Z19="","",図面2階!Z19) ->  | AA19: =IF(COUNTIF(面積計算2階!AG19:AI19,1),"●"," ") ->  | AC19: =SUMIF($D19:$Z19,"*↑あ*",$D$3:$Z$3)/1000*図面!$AK$19 -> 0 | AD19: =SUMIF($D19:$Z19,"*↓あ*",$D$3:$Z$3)/1000*図面!$AK$19 -> 0 | AE19: =SUMIF($D19:$Z19,"*↑い*",$D$3:$Z$3)/1000*図面!$AK$20 -> 0 | AF19: =SUMIF($D19:$Z19,"*↓い*",$D$3:$Z$3)/1000*図面!$AK$20 -> 0 | AG19: =SUMIF($D19:$Z19,"*↑う*",$D$3:$Z$3)/1000*図面!$AK$21 -> 0 | AH19: =SUMIF($D19:$Z19,"*↓う*",$D$3:$Z$3)/1000*図面!$AK$21 -> 0 | AI19: =SUMIF($D19:$Z19,"*↑え*",$D$3:$Z$3)/1000*図面!$AK$22 -> 0 | AJ19: =SUMIF($D19:$Z19,"*↓え*",$D$3:$Z$3)/1000*図面!$AK$22 -> 0 | AK19: =SUMIF($D19:$Z19,"*↑お*",$D$3:$Z$3)/1000*図面!$AK$23 -> 0 | AL19: =SUMIF($D19:$Z19,"*↓お*",$D$3:$Z$3)/1000*図面!AK$23 -> 0 | AM19: =SUMIF($D19:$Z19,"*↑か*",$D$3:$Z$3)/1000*図面!$AK$24 -> 0 | AN19: =SUMIF($D19:$Z19,"*↓か*",$D$3:$Z$3)/1000*図面!$AK$24 -> 0 | AO19: 0 | AP19: =IF(COUNTIF(面積計算2階!AG19,1),"上"," ") ->  | AQ19: =IF(COUNTIF(面積計算2階!AI19,1),"下"," ") ->  | AR19: 0 | AS19: 0 | AT19: 0 | AU19: 0 | AV19: 0 | AW19: 0
C20: =図面!B20 -> 910 | D20: =IF(図面2階!D20="","",図面2階!D20) ->  | E20: =IF(図面2階!E20="","",図面2階!E20) ->  | F20: =IF(図面2階!F20="","",図面2階!F20) ->  | G20: =IF(図面2階!G20="","",図面2階!G20) ->  | H20: =IF(図面2階!H20="","",図面2階!H20) ->  | I20: =IF(図面2階!I20="","",図面2階!I20) ->  | J20: =IF(図面2階!J20="","",図面2階!J20) ->  | K20: =IF(図面2階!K20="","",図面2階!K20) ->  | L20: =IF(図面2階!L20="","",図面2階!L20) ->  | M20: =IF(図面2階!M20="","",図面2階!M20) ->  | N20: =IF(図面2階!N20="","",図面2階!N20) ->  | O20: =IF(図面2階!O20="","",図面2階!O20) ->  | P20: =IF(図面2階!P20="","",図面2階!P20) ->  | Q20: =IF(図面2階!Q20="","",図面2階!Q20) ->  | R20: =IF(図面2階!R20="","",図面2階!R20) ->  | S20: =IF(図面2階!S20="","",図面2階!S20) ->  | T20: =IF(図面2階!T20="","",図面2階!T20) ->  | U20: =IF(図面2階!U20="","",図面2階!U20) ->  | V20: =IF(図面2階!V20="","",図面2階!V20) ->  | W20: =IF(図面2階!W20="","",図面2階!W20) ->  | X20: =IF(図面2階!X20="","",図面2階!X20) ->  | Y20: =IF(図面2階!Y20="","",図面2階!Y20) ->  | Z20: =IF(図面2階!Z20="","",図面2階!Z20) ->  | AA20: =IF(COUNTIF(面積計算2階!AG20:AI20,1),"●"," ") ->  | AC20: =SUMIF($D20:$Z20,"*↑あ*",$D$3:$Z$3)/1000*図面!$AK$19 -> 0 | AD20: =SUMIF($D20:$Z20,"*↓あ*",$D$3:$Z$3)/1000*図面!$AK$19 -> 0 | AE20: =SUMIF($D20:$Z20,"*↑い*",$D$3:$Z$3)/1000*図面!$AK$20 -> 0 | AF20: =SUMIF($D20:$Z20,"*↓い*",$D$3:$Z$3)/1000*図面!$AK$20 -> 0 | AG20: =SUMIF($D20:$Z20,"*↑う*",$D$3:$Z$3)/1000*図面!$AK$21 -> 0 | AH20: =SUMIF($D20:$Z20,"*↓う*",$D$3:$Z$3)/1000*図面!$AK$21 -> 0 | AI20: =SUMIF($D20:$Z20,"*↑え*",$D$3:$Z$3)/1000*図面!$AK$22 -> 0 | AJ20: =SUMIF($D20:$Z20,"*↓え*",$D$3:$Z$3)/1000*図面!$AK$22 -> 0 | AK20: =SUMIF($D20:$Z20,"*↑お*",$D$3:$Z$3)/1000*図面!$AK$23 -> 0 | AL20: =SUMIF($D20:$Z20,"*↓お*",$D$3:$Z$3)/1000*図面!AK$23 -> 0 | AM20: =SUMIF($D20:$Z20,"*↑か*",$D$3:$Z$3)/1000*図面!$AK$24 -> 0 | AN20: =SUMIF($D20:$Z20,"*↓か*",$D$3:$Z$3)/1000*図面!$AK$24 -> 0 | AO20: 0 | AP20: =IF(COUNTIF(面積計算2階!AG20,1),"上"," ") ->  | AQ20: =IF(COUNTIF(面積計算2階!AI20,1),"下"," ") ->  | AR20: 0 | AS20: 0 | AT20: 0 | AU20: 0 | AV20: 0 | AW20: 0
D21: =IF(COUNTIF(面積計算2階!D27:D29,1),"●"," ") ->  | E21: =IF(COUNTIF(面積計算2階!E27:E29,1),"●"," ") ->  | F21: =IF(COUNTIF(面積計算2階!F27:F29,1),"●"," ") ->  | G21: =IF(COUNTIF(面積計算2階!G27:G29,1),"●"," ") ->  | H21: =IF(COUNTIF(面積計算2階!H27:H29,1),"●"," ") ->  | I21: =IF(COUNTIF(面積計算2階!I27:I29,1),"●"," ") ->  | J21: =IF(COUNTIF(面積計算2階!J27:J29,1),"●"," ") ->  | K21: =IF(COUNTIF(面積計算2階!K27:K29,1),"●"," ") ->  | L21: =IF(COUNTIF(面積計算2階!L27:L29,1),"●"," ") ->  | M21: =IF(COUNTIF(面積計算2階!M27:M29,1),"●"," ") ->  | N21: =IF(COUNTIF(面積計算2階!N27:N29,1),"●"," ") ->  | O21: =IF(COUNTIF(面積計算2階!O27:O29,1),"●"," ") ->  | P21: =IF(COUNTIF(面積計算2階!P27:P29,1),"●"," ") ->  | Q21: =IF(COUNTIF(面積計算2階!Q27:Q29,1),"●"," ") ->  | R21: =IF(COUNTIF(面積計算2階!R27:R29,1),"●"," ") ->  | S21: =IF(COUNTIF(面積計算2階!S27:S29,1),"●"," ") ->  | T21: =IF(COUNTIF(面積計算2階!T27:T29,1),"●"," ") ->  | U21: =IF(COUNTIF(面積計算2階!U27:U29,1),"●"," ") ->  | V21: =IF(COUNTIF(面積計算2階!V27:V29,1),"●"," ") ->  | W21: =IF(COUNTIF(面積計算2階!W27:W29,1),"●"," ") ->  | X21: =IF(COUNTIF(面積計算2階!X27:X29,1),"●"," ") ->  | Y21: =IF(COUNTIF(面積計算2階!Y27:Y29,1),"●"," ") ->  | Z21: =IF(COUNTIF(面積計算2階!Z27:Z29,1),"●"," ") ->  | AO21: =SUM(AO4:AO20) -> 0 | AT21: =SUM(AT4:AT20) -> 0 | AW21: =SUM(AW4:AW20) -> 0
C23: →あ | D23: =SUMIF(D$4:D$20,"*→あ*",$C$4:$C$20)/1000*図面!$AK$19 -> 0 | E23: =SUMIF(E$4:E$20,"*→あ*",$C$4:$C$20)/1000*図面!$AK$19 -> 0 | F23: =SUMIF(F$4:F$20,"*→あ*",$C$4:$C$20)/1000*図面!$AK$19 -> 0 | G23: =SUMIF(G$4:G$20,"*→あ*",$C$4:$C$20)/1000*図面!$AK$19 -> 0 | H23: =SUMIF(H$4:H$20,"*→あ*",$C$4:$C$20)/1000*図面!$AK$19 -> 0 | I23: =SUMIF(I$4:I$20,"*→あ*",$C$4:$C$20)/1000*図面!$AK$19 -> 0 | J23: =SUMIF(J$4:J$20,"*→あ*",$C$4:$C$20)/1000*図面!$AK$19 -> 0 | K23: =SUMIF(K$4:K$20,"*→あ*",$C$4:$C$20)/1000*図面!$AK$19 -> 0 | L23: =SUMIF(L$4:L$20,"*→あ*",$C$4:$C$20)/1000*図面!$AK$19 -> 0 | M23: =SUMIF(M$4:M$20,"*→あ*",$C$4:$C$20)/1000*図面!$AK$19 -> 0 | N23: =SUMIF(N$4:N$20,"*→あ*",$C$4:$C$20)/1000*図面!$AK$19 -> 0 | O23: =SUMIF(O$4:O$20,"*→あ*",$C$4:$C$20)/1000*図面!$AK$19 -> 0 | P23: =SUMIF(P$4:P$20,"*→あ*",$C$4:$C$20)/1000*図面!$AK$19 -> 0 | Q23: =SUMIF(Q$4:Q$20,"*→あ*",$C$4:$C$20)/1000*図面!$AK$19 -> 0 | R23: =SUMIF(R$4:R$20,"*→あ*",$C$4:$C$20)/1000*図面!$AK$19 -> 0 | S23: =SUMIF(S$4:S$20,"*→あ*",$C$4:$C$20)/1000*図面!$AK$19 -> 0 | T23: =SUMIF(T$4:T$20,"*→あ*",$C$4:$C$20)/1000*図面!$AK$19 -> 0 | U23: =SUMIF(U$4:U$20,"*→あ*",$C$4:$C$20)/1000*図面!$AK$19 -> 0 | V23: =SUMIF(V$4:V$20,"*→あ*",$C$4:$C$20)/1000*図面!$AK$19 -> 0 | W23: =SUMIF(W$4:W$20,"*→あ*",$C$4:$C$20)/1000*図面!$AK$19 -> 0 | X23: =SUMIF(X$4:X$20,"*→あ*",$C$4:$C$20)/1000*図面!$AK$19 -> 0 | Y23: =SUMIF(Y$4:Y$20,"*→あ*",$C$4:$C$20)/1000*図面!$AK$19 -> 0 | Z23: =SUMIF(Z$4:Z$20,"*→あ*",$C$4:$C$20)/1000*図面!$AK$19 -> 0
C24: ←あ | D24: =SUMIF(D$4:D$20,"*←あ*",$C$4:$C$20)/1000*図面!$AK$19 -> 0 | E24: =SUMIF(E$4:E$20,"*←あ*",$C$4:$C$20)/1000*図面!$AK$19 -> 0 | F24: =SUMIF(F$4:F$20,"*←あ*",$C$4:$C$20)/1000*図面!$AK$19 -> 0 | G24: =SUMIF(G$4:G$20,"*←あ*",$C$4:$C$20)/1000*図面!$AK$19 -> 0 | H24: =SUMIF(H$4:H$20,"*←あ*",$C$4:$C$20)/1000*図面!$AK$19 -> 0 | I24: =SUMIF(I$4:I$20,"*←あ*",$C$4:$C$20)/1000*図面!$AK$19 -> 0 | J24: =SUMIF(J$4:J$20,"*←あ*",$C$4:$C$20)/1000*図面!$AK$19 -> 0 | K24: =SUMIF(K$4:K$20,"*←あ*",$C$4:$C$20)/1000*図面!$AK$19 -> 0 | L24: =SUMIF(L$4:L$20,"*←あ*",$C$4:$C$20)/1000*図面!$AK$19 -> 0 | M24: =SUMIF(M$4:M$20,"*←あ*",$C$4:$C$20)/1000*図面!$AK$19 -> 0 | N24: =SUMIF(N$4:N$20,"*←あ*",$C$4:$C$20)/1000*図面!$AK$19 -> 0 | O24: =SUMIF(O$4:O$20,"*←あ*",$C$4:$C$20)/1000*図面!$AK$19 -> 0 | P24: =SUMIF(P$4:P$20,"*←あ*",$C$4:$C$20)/1000*図面!$AK$19 -> 0 | Q24: =SUMIF(Q$4:Q$20,"*←あ*",$C$4:$C$20)/1000*図面!$AK$19 -> 0 | R24: =SUMIF(R$4:R$20,"*←あ*",$C$4:$C$20)/1000*図面!$AK$19 -> 0 | S24: =SUMIF(S$4:S$20,"*←あ*",$C$4:$C$20)/1000*図面!$AK$19 -> 0 | T24: =SUMIF(T$4:T$20,"*←あ*",$C$4:$C$20)/1000*図面!$AK$19 -> 0 | U24: =SUMIF(U$4:U$20,"*←あ*",$C$4:$C$20)/1000*図面!$AK$19 -> 0 | V24: =SUMIF(V$4:V$20,"*←あ*",$C$4:$C$20)/1000*図面!$AK$19 -> 0 | W24: =SUMIF(W$4:W$20,"*←あ*",$C$4:$C$20)/1000*図面!$AK$19 -> 0 | X24: =SUMIF(X$4:X$20,"*←あ*",$C$4:$C$20)/1000*図面!$AK$19 -> 0 | Y24: =SUMIF(Y$4:Y$20,"*←あ*",$C$4:$C$20)/1000*図面!$AK$19 -> 0 | Z24: =SUMIF(Z$4:Z$20,"*←あ*",$C$4:$C$20)/1000*図面!$AK$19 -> 0
C25: →い | D25: =SUMIF(D$4:D$20,"*→い*",$C$4:$C$20)/1000*図面!$AK$20 -> 0 | E25: =SUMIF(E$4:E$20,"*→い*",$C$4:$C$20)/1000*図面!$AK$20 -> 0 | F25: =SUMIF(F$4:F$20,"*→い*",$C$4:$C$20)/1000*図面!$AK$20 -> 0 | G25: =SUMIF(G$4:G$20,"*→い*",$C$4:$C$20)/1000*図面!$AK$20 -> 0 | H25: =SUMIF(H$4:H$20,"*→い*",$C$4:$C$20)/1000*図面!$AK$20 -> 0 | I25: =SUMIF(I$4:I$20,"*→い*",$C$4:$C$20)/1000*図面!$AK$20 -> 0 | J25: =SUMIF(J$4:J$20,"*→い*",$C$4:$C$20)/1000*図面!$AK$20 -> 0 | K25: =SUMIF(K$4:K$20,"*→い*",$C$4:$C$20)/1000*図面!$AK$20 -> 0 | L25: =SUMIF(L$4:L$20,"*→い*",$C$4:$C$20)/1000*図面!$AK$20 -> 0 | M25: =SUMIF(M$4:M$20,"*→い*",$C$4:$C$20)/1000*図面!$AK$20 -> 0 | N25: =SUMIF(N$4:N$20,"*→い*",$C$4:$C$20)/1000*図面!$AK$20 -> 0 | O25: =SUMIF(O$4:O$20,"*→い*",$C$4:$C$20)/1000*図面!$AK$20 -> 0 | P25: =SUMIF(P$4:P$20,"*→い*",$C$4:$C$20)/1000*図面!$AK$20 -> 0 | Q25: =SUMIF(Q$4:Q$20,"*→い*",$C$4:$C$20)/1000*図面!$AK$20 -> 0 | R25: =SUMIF(R$4:R$20,"*→い*",$C$4:$C$20)/1000*図面!$AK$20 -> 0 | S25: =SUMIF(S$4:S$20,"*→い*",$C$4:$C$20)/1000*図面!$AK$20 -> 0 | T25: =SUMIF(T$4:T$20,"*→い*",$C$4:$C$20)/1000*図面!$AK$20 -> 0 | U25: =SUMIF(U$4:U$20,"*→い*",$C$4:$C$20)/1000*図面!$AK$20 -> 0 | V25: =SUMIF(V$4:V$20,"*→い*",$C$4:$C$20)/1000*図面!$AK$20 -> 0 | W25: =SUMIF(W$4:W$20,"*→い*",$C$4:$C$20)/1000*図面!$AK$20 -> 0 | X25: =SUMIF(X$4:X$20,"*→い*",$C$4:$C$20)/1000*図面!$AK$20 -> 0 | Y25: =SUMIF(Y$4:Y$20,"*→い*",$C$4:$C$20)/1000*図面!$AK$20 -> 0 | Z25: =SUMIF(Z$4:Z$20,"*→い*",$C$4:$C$20)/1000*図面!$AK$20 -> 0
C26: ←い | D26: =SUMIF(D$4:D$20,"*←い*",$C$4:$C$20)/1000*図面!$AK$20 -> 0 | E26: =SUMIF(E$4:E$20,"*←い*",$C$4:$C$20)/1000*図面!$AK$20 -> 0 | F26: =SUMIF(F$4:F$20,"*←い*",$C$4:$C$20)/1000*図面!$AK$20 -> 0 | G26: =SUMIF(G$4:G$20,"*←い*",$C$4:$C$20)/1000*図面!$AK$20 -> 0 | H26: =SUMIF(H$4:H$20,"*←い*",$C$4:$C$20)/1000*図面!$AK$20 -> 0 | I26: =SUMIF(I$4:I$20,"*←い*",$C$4:$C$20)/1000*図面!$AK$20 -> 0 | J26: =SUMIF(J$4:J$20,"*←い*",$C$4:$C$20)/1000*図面!$AK$20 -> 0 | K26: =SUMIF(K$4:K$20,"*←い*",$C$4:$C$20)/1000*図面!$AK$20 -> 0 | L26: =SUMIF(L$4:L$20,"*←い*",$C$4:$C$20)/1000*図面!$AK$20 -> 0 | M26: =SUMIF(M$4:M$20,"*←い*",$C$4:$C$20)/1000*図面!$AK$20 -> 0 | N26: =SUMIF(N$4:N$20,"*←い*",$C$4:$C$20)/1000*図面!$AK$20 -> 0 | O26: =SUMIF(O$4:O$20,"*←い*",$C$4:$C$20)/1000*図面!$AK$20 -> 0 | P26: =SUMIF(P$4:P$20,"*←い*",$C$4:$C$20)/1000*図面!$AK$20 -> 0 | Q26: =SUMIF(Q$4:Q$20,"*←い*",$C$4:$C$20)/1000*図面!$AK$20 -> 0 | R26: =SUMIF(R$4:R$20,"*←い*",$C$4:$C$20)/1000*図面!$AK$20 -> 0 | S26: =SUMIF(S$4:S$20,"*←い*",$C$4:$C$20)/1000*図面!$AK$20 -> 0 | T26: =SUMIF(T$4:T$20,"*←い*",$C$4:$C$20)/1000*図面!$AK$20 -> 0 | U26: =SUMIF(U$4:U$20,"*←い*",$C$4:$C$20)/1000*図面!$AK$20 -> 0 | V26: =SUMIF(V$4:V$20,"*←い*",$C$4:$C$20)/1000*図面!$AK$20 -> 0 | W26: =SUMIF(W$4:W$20,"*←い*",$C$4:$C$20)/1000*図面!$AK$20 -> 0 | X26: =SUMIF(X$4:X$20,"*←い*",$C$4:$C$20)/1000*図面!$AK$20 -> 0 | Y26: =SUMIF(Y$4:Y$20,"*←い*",$C$4:$C$20)/1000*図面!$AK$20 -> 0 | Z26: =SUMIF(Z$4:Z$20,"*←い*",$C$4:$C$20)/1000*図面!$AK$20 -> 0
C27: →う | D27: =SUMIF(D$4:D$20,"*→う*",$C$4:$C$20)/1000*図面!$AK$21 -> 0 | E27: =SUMIF(E$4:E$20,"*→う*",$C$4:$C$20)/1000*図面!$AK$21 -> 0 | F27: =SUMIF(F$4:F$20,"*→う*",$C$4:$C$20)/1000*図面!$AK$21 -> 0 | G27: =SUMIF(G$4:G$20,"*→う*",$C$4:$C$20)/1000*図面!$AK$21 -> 0 | H27: =SUMIF(H$4:H$20,"*→う*",$C$4:$C$20)/1000*図面!$AK$21 -> 0 | I27: =SUMIF(I$4:I$20,"*→う*",$C$4:$C$20)/1000*図面!$AK$21 -> 0 | J27: =SUMIF(J$4:J$20,"*→う*",$C$4:$C$20)/1000*図面!$AK$21 -> 0 | K27: =SUMIF(K$4:K$20,"*→う*",$C$4:$C$20)/1000*図面!$AK$21 -> 0 | L27: =SUMIF(L$4:L$20,"*→う*",$C$4:$C$20)/1000*図面!$AK$21 -> 0 | M27: =SUMIF(M$4:M$20,"*→う*",$C$4:$C$20)/1000*図面!$AK$21 -> 0 | N27: =SUMIF(N$4:N$20,"*→う*",$C$4:$C$20)/1000*図面!$AK$21 -> 0 | O27: =SUMIF(O$4:O$20,"*→う*",$C$4:$C$20)/1000*図面!$AK$21 -> 0 | P27: =SUMIF(P$4:P$20,"*→う*",$C$4:$C$20)/1000*図面!$AK$21 -> 0 | Q27: =SUMIF(Q$4:Q$20,"*→う*",$C$4:$C$20)/1000*図面!$AK$21 -> 0 | R27: =SUMIF(R$4:R$20,"*→う*",$C$4:$C$20)/1000*図面!$AK$21 -> 0 | S27: =SUMIF(S$4:S$20,"*→う*",$C$4:$C$20)/1000*図面!$AK$21 -> 0 | T27: =SUMIF(T$4:T$20,"*→う*",$C$4:$C$20)/1000*図面!$AK$21 -> 0 | U27: =SUMIF(U$4:U$20,"*→う*",$C$4:$C$20)/1000*図面!$AK$21 -> 0 | V27: =SUMIF(V$4:V$20,"*→う*",$C$4:$C$20)/1000*図面!$AK$21 -> 0 | W27: =SUMIF(W$4:W$20,"*→う*",$C$4:$C$20)/1000*図面!$AK$21 -> 0 | X27: =SUMIF(X$4:X$20,"*→う*",$C$4:$C$20)/1000*図面!$AK$21 -> 0 | Y27: =SUMIF(Y$4:Y$20,"*→う*",$C$4:$C$20)/1000*図面!$AK$21 -> 0 | Z27: =SUMIF(Z$4:Z$20,"*→う*",$C$4:$C$20)/1000*図面!$AK$21 -> 0
C28: ←う | D28: =SUMIF(D$4:D$20,"*←う*",$C$4:$C$20)/1000*図面!$AK$21 -> 0 | E28: =SUMIF(E$4:E$20,"*←う*",$C$4:$C$20)/1000*図面!$AK$21 -> 0 | F28: =SUMIF(F$4:F$20,"*←う*",$C$4:$C$20)/1000*図面!$AK$21 -> 0 | G28: =SUMIF(G$4:G$20,"*←う*",$C$4:$C$20)/1000*図面!$AK$21 -> 0 | H28: =SUMIF(H$4:H$20,"*←う*",$C$4:$C$20)/1000*図面!$AK$21 -> 0 | I28: =SUMIF(I$4:I$20,"*←う*",$C$4:$C$20)/1000*図面!$AK$21 -> 0 | J28: =SUMIF(J$4:J$20,"*←う*",$C$4:$C$20)/1000*図面!$AK$21 -> 0 | K28: =SUMIF(K$4:K$20,"*←う*",$C$4:$C$20)/1000*図面!$AK$21 -> 0 | L28: =SUMIF(L$4:L$20,"*←う*",$C$4:$C$20)/1000*図面!$AK$21 -> 0 | M28: =SUMIF(M$4:M$20,"*←う*",$C$4:$C$20)/1000*図面!$AK$21 -> 0 | N28: =SUMIF(N$4:N$20,"*←う*",$C$4:$C$20)/1000*図面!$AK$21 -> 0 | O28: =SUMIF(O$4:O$20,"*←う*",$C$4:$C$20)/1000*図面!$AK$21 -> 0 | P28: =SUMIF(P$4:P$20,"*←う*",$C$4:$C$20)/1000*図面!$AK$21 -> 0 | Q28: =SUMIF(Q$4:Q$20,"*←う*",$C$4:$C$20)/1000*図面!$AK$21 -> 0 | R28: =SUMIF(R$4:R$20,"*←う*",$C$4:$C$20)/1000*図面!$AK$21 -> 0 | S28: =SUMIF(S$4:S$20,"*←う*",$C$4:$C$20)/1000*図面!$AK$21 -> 0 | T28: =SUMIF(T$4:T$20,"*←う*",$C$4:$C$20)/1000*図面!$AK$21 -> 0 | U28: =SUMIF(U$4:U$20,"*←う*",$C$4:$C$20)/1000*図面!$AK$21 -> 0 | V28: =SUMIF(V$4:V$20,"*←う*",$C$4:$C$20)/1000*図面!$AK$21 -> 0 | W28: =SUMIF(W$4:W$20,"*←う*",$C$4:$C$20)/1000*図面!$AK$21 -> 0 | X28: =SUMIF(X$4:X$20,"*←う*",$C$4:$C$20)/1000*図面!$AK$21 -> 0 | Y28: =SUMIF(Y$4:Y$20,"*←う*",$C$4:$C$20)/1000*図面!$AK$21 -> 0 | Z28: =SUMIF(Z$4:Z$20,"*←う*",$C$4:$C$20)/1000*図面!$AK$21 -> 0
C29: →え | D29: =SUMIF(D$4:D$20,"*→え*",$C$4:$C$20)/1000*図面!$AK$22 -> 0 | E29: =SUMIF(E$4:E$20,"*→え*",$C$4:$C$20)/1000*図面!$AK$22 -> 0 | F29: =SUMIF(F$4:F$20,"*→え*",$C$4:$C$20)/1000*図面!$AK$22 -> 0 | G29: =SUMIF(G$4:G$20,"*→え*",$C$4:$C$20)/1000*図面!$AK$22 -> 0 | H29: =SUMIF(H$4:H$20,"*→え*",$C$4:$C$20)/1000*図面!$AK$22 -> 0 | I29: =SUMIF(I$4:I$20,"*→え*",$C$4:$C$20)/1000*図面!$AK$22 -> 0 | J29: =SUMIF(J$4:J$20,"*→え*",$C$4:$C$20)/1000*図面!$AK$22 -> 0 | K29: =SUMIF(K$4:K$20,"*→え*",$C$4:$C$20)/1000*図面!$AK$22 -> 0 | L29: =SUMIF(L$4:L$20,"*→え*",$C$4:$C$20)/1000*図面!$AK$22 -> 0 | M29: =SUMIF(M$4:M$20,"*→え*",$C$4:$C$20)/1000*図面!$AK$22 -> 0 | N29: =SUMIF(N$4:N$20,"*→え*",$C$4:$C$20)/1000*図面!$AK$22 -> 0 | O29: =SUMIF(O$4:O$20,"*→え*",$C$4:$C$20)/1000*図面!$AK$22 -> 0 | P29: =SUMIF(P$4:P$20,"*→え*",$C$4:$C$20)/1000*図面!$AK$22 -> 0 | Q29: =SUMIF(Q$4:Q$20,"*→え*",$C$4:$C$20)/1000*図面!$AK$22 -> 0 | R29: =SUMIF(R$4:R$20,"*→え*",$C$4:$C$20)/1000*図面!$AK$22 -> 0 | S29: =SUMIF(S$4:S$20,"*→え*",$C$4:$C$20)/1000*図面!$AK$22 -> 0 | T29: =SUMIF(T$4:T$20,"*→え*",$C$4:$C$20)/1000*図面!$AK$22 -> 0 | U29: =SUMIF(U$4:U$20,"*→え*",$C$4:$C$20)/1000*図面!$AK$22 -> 0 | V29: =SUMIF(V$4:V$20,"*→え*",$C$4:$C$20)/1000*図面!$AK$22 -> 0 | W29: =SUMIF(W$4:W$20,"*→え*",$C$4:$C$20)/1000*図面!$AK$22 -> 0 | X29: =SUMIF(X$4:X$20,"*→え*",$C$4:$C$20)/1000*図面!$AK$22 -> 0 | Y29: =SUMIF(Y$4:Y$20,"*→え*",$C$4:$C$20)/1000*図面!$AK$22 -> 0 | Z29: =SUMIF(Z$4:Z$20,"*→え*",$C$4:$C$20)/1000*図面!$AK$22 -> 0
C30: ←え | D30: =SUMIF(D$4:D$20,"*←え*",$C$4:$C$20)/1000*図面!$AK$22 -> 0 | E30: =SUMIF(E$4:E$20,"*←え*",$C$4:$C$20)/1000*図面!$AK$22 -> 0 | F30: =SUMIF(F$4:F$20,"*←え*",$C$4:$C$20)/1000*図面!$AK$22 -> 0 | G30: =SUMIF(G$4:G$20,"*←え*",$C$4:$C$20)/1000*図面!$AK$22 -> 0 | H30: =SUMIF(H$4:H$20,"*←え*",$C$4:$C$20)/1000*図面!$AK$22 -> 0 | I30: =SUMIF(I$4:I$20,"*←え*",$C$4:$C$20)/1000*図面!$AK$22 -> 0 | J30: =SUMIF(J$4:J$20,"*←え*",$C$4:$C$20)/1000*図面!$AK$22 -> 0 | K30: =SUMIF(K$4:K$20,"*←え*",$C$4:$C$20)/1000*図面!$AK$22 -> 0 | L30: =SUMIF(L$4:L$20,"*←え*",$C$4:$C$20)/1000*図面!$AK$22 -> 0 | M30: =SUMIF(M$4:M$20,"*←え*",$C$4:$C$20)/1000*図面!$AK$22 -> 0 | N30: =SUMIF(N$4:N$20,"*←え*",$C$4:$C$20)/1000*図面!$AK$22 -> 0 | O30: =SUMIF(O$4:O$20,"*←え*",$C$4:$C$20)/1000*図面!$AK$22 -> 0 | P30: =SUMIF(P$4:P$20,"*←え*",$C$4:$C$20)/1000*図面!$AK$22 -> 0 | Q30: =SUMIF(Q$4:Q$20,"*←え*",$C$4:$C$20)/1000*図面!$AK$22 -> 0 | R30: =SUMIF(R$4:R$20,"*←え*",$C$4:$C$20)/1000*図面!$AK$22 -> 0 | S30: =SUMIF(S$4:S$20,"*←え*",$C$4:$C$20)/1000*図面!$AK$22 -> 0 | T30: =SUMIF(T$4:T$20,"*←え*",$C$4:$C$20)/1000*図面!$AK$22 -> 0 | U30: =SUMIF(U$4:U$20,"*←え*",$C$4:$C$20)/1000*図面!$AK$22 -> 0 | V30: =SUMIF(V$4:V$20,"*←え*",$C$4:$C$20)/1000*図面!$AK$22 -> 0 | W30: =SUMIF(W$4:W$20,"*←え*",$C$4:$C$20)/1000*図面!$AK$22 -> 0 | X30: =SUMIF(X$4:X$20,"*←え*",$C$4:$C$20)/1000*図面!$AK$22 -> 0 | Y30: =SUMIF(Y$4:Y$20,"*←え*",$C$4:$C$20)/1000*図面!$AK$22 -> 0 | Z30: =SUMIF(Z$4:Z$20,"*←え*",$C$4:$C$20)/1000*図面!$AK$22 -> 0
C31: →お | D31: =SUMIF(D$4:D$20,"*→お*",$C$4:$C$20)/1000*図面!$AK$23 -> 0 | E31: =SUMIF(E$4:E$20,"*→お*",$C$4:$C$20)/1000*図面!$AK$23 -> 0 | F31: =SUMIF(F$4:F$20,"*→お*",$C$4:$C$20)/1000*図面!$AK$23 -> 0 | G31: =SUMIF(G$4:G$20,"*→お*",$C$4:$C$20)/1000*図面!$AK$23 -> 0 | H31: =SUMIF(H$4:H$20,"*→お*",$C$4:$C$20)/1000*図面!$AK$23 -> 0 | I31: =SUMIF(I$4:I$20,"*→お*",$C$4:$C$20)/1000*図面!$AK$23 -> 0 | J31: =SUMIF(J$4:J$20,"*→お*",$C$4:$C$20)/1000*図面!$AK$23 -> 0 | K31: =SUMIF(K$4:K$20,"*→お*",$C$4:$C$20)/1000*図面!$AK$23 -> 0 | L31: =SUMIF(L$4:L$20,"*→お*",$C$4:$C$20)/1000*図面!$AK$23 -> 0 | M31: =SUMIF(M$4:M$20,"*→お*",$C$4:$C$20)/1000*図面!$AK$23 -> 0 | N31: =SUMIF(N$4:N$20,"*→お*",$C$4:$C$20)/1000*図面!$AK$23 -> 0 | O31: =SUMIF(O$4:O$20,"*→お*",$C$4:$C$20)/1000*図面!$AK$23 -> 0 | P31: =SUMIF(P$4:P$20,"*→お*",$C$4:$C$20)/1000*図面!$AK$23 -> 0 | Q31: =SUMIF(Q$4:Q$20,"*→お*",$C$4:$C$20)/1000*図面!$AK$23 -> 0 | R31: =SUMIF(R$4:R$20,"*→お*",$C$4:$C$20)/1000*図面!$AK$23 -> 0 | S31: =SUMIF(S$4:S$20,"*→お*",$C$4:$C$20)/1000*図面!$AK$23 -> 0 | T31: =SUMIF(T$4:T$20,"*→お*",$C$4:$C$20)/1000*図面!$AK$23 -> 0 | U31: =SUMIF(U$4:U$20,"*→お*",$C$4:$C$20)/1000*図面!$AK$23 -> 0 | V31: =SUMIF(V$4:V$20,"*→お*",$C$4:$C$20)/1000*図面!$AK$23 -> 0 | W31: =SUMIF(W$4:W$20,"*→お*",$C$4:$C$20)/1000*図面!$AK$23 -> 0 | X31: =SUMIF(X$4:X$20,"*→お*",$C$4:$C$20)/1000*図面!$AK$23 -> 0 | Y31: =SUMIF(Y$4:Y$20,"*→お*",$C$4:$C$20)/1000*図面!$AK$23 -> 0 | Z31: =SUMIF(Z$4:Z$20,"*→お*",$C$4:$C$20)/1000*図面!$AK$23 -> 0
C32: ←お | D32: =SUMIF(D$4:D$20,"*←お*",$C$4:$C$20)/1000*図面!$AK$23 -> 0 | E32: =SUMIF(E$4:E$20,"*←お*",$C$4:$C$20)/1000*図面!$AK$23 -> 0 | F32: =SUMIF(F$4:F$20,"*←お*",$C$4:$C$20)/1000*図面!$AK$23 -> 0 | G32: =SUMIF(G$4:G$20,"*←お*",$C$4:$C$20)/1000*図面!$AK$23 -> 0 | H32: =SUMIF(H$4:H$20,"*←お*",$C$4:$C$20)/1000*図面!$AK$23 -> 0 | I32: =SUMIF(I$4:I$20,"*←お*",$C$4:$C$20)/1000*図面!$AK$23 -> 0 | J32: =SUMIF(J$4:J$20,"*←お*",$C$4:$C$20)/1000*図面!$AK$23 -> 0 | K32: =SUMIF(K$4:K$20,"*←お*",$C$4:$C$20)/1000*図面!$AK$23 -> 0 | L32: =SUMIF(L$4:L$20,"*←お*",$C$4:$C$20)/1000*図面!$AK$23 -> 0 | M32: =SUMIF(M$4:M$20,"*←お*",$C$4:$C$20)/1000*図面!$AK$23 -> 0 | N32: =SUMIF(N$4:N$20,"*←お*",$C$4:$C$20)/1000*図面!$AK$23 -> 0 | O32: =SUMIF(O$4:O$20,"*←お*",$C$4:$C$20)/1000*図面!$AK$23 -> 0 | P32: =SUMIF(P$4:P$20,"*←お*",$C$4:$C$20)/1000*図面!$AK$23 -> 0 | Q32: =SUMIF(Q$4:Q$20,"*←お*",$C$4:$C$20)/1000*図面!$AK$23 -> 0 | R32: =SUMIF(R$4:R$20,"*←お*",$C$4:$C$20)/1000*図面!$AK$23 -> 0 | S32: =SUMIF(S$4:S$20,"*←お*",$C$4:$C$20)/1000*図面!$AK$23 -> 0 | T32: =SUMIF(T$4:T$20,"*←お*",$C$4:$C$20)/1000*図面!$AK$23 -> 0 | U32: =SUMIF(U$4:U$20,"*←お*",$C$4:$C$20)/1000*図面!$AK$23 -> 0 | V32: =SUMIF(V$4:V$20,"*←お*",$C$4:$C$20)/1000*図面!$AK$23 -> 0 | W32: =SUMIF(W$4:W$20,"*←お*",$C$4:$C$20)/1000*図面!$AK$23 -> 0 | X32: =SUMIF(X$4:X$20,"*←お*",$C$4:$C$20)/1000*図面!$AK$23 -> 0 | Y32: =SUMIF(Y$4:Y$20,"*←お*",$C$4:$C$20)/1000*図面!$AK$23 -> 0 | Z32: =SUMIF(Z$4:Z$20,"*←お*",$C$4:$C$20)/1000*図面!$AK$23 -> 0
C33: →か | D33: =SUMIF(D$4:D$20,"*→か*",$C$4:$C$20)/1000*図面!$AK$23 -> 0 | E33: =SUMIF(E$4:E$20,"*→か*",$C$4:$C$20)/1000*図面!$AK$23 -> 0 | F33: =SUMIF(F$4:F$20,"*→か*",$C$4:$C$20)/1000*図面!$AK$23 -> 0 | G33: =SUMIF(G$4:G$20,"*→か*",$C$4:$C$20)/1000*図面!$AK$23 -> 0 | H33: =SUMIF(H$4:H$20,"*→か*",$C$4:$C$20)/1000*図面!$AK$23 -> 0 | I33: =SUMIF(I$4:I$20,"*→か*",$C$4:$C$20)/1000*図面!$AK$23 -> 0 | J33: =SUMIF(J$4:J$20,"*→か*",$C$4:$C$20)/1000*図面!$AK$23 -> 0 | K33: =SUMIF(K$4:K$20,"*→か*",$C$4:$C$20)/1000*図面!$AK$23 -> 0 | L33: =SUMIF(L$4:L$20,"*→か*",$C$4:$C$20)/1000*図面!$AK$23 -> 0 | M33: =SUMIF(M$4:M$20,"*→か*",$C$4:$C$20)/1000*図面!$AK$23 -> 0 | N33: =SUMIF(N$4:N$20,"*→か*",$C$4:$C$20)/1000*図面!$AK$23 -> 0 | O33: =SUMIF(O$4:O$20,"*→か*",$C$4:$C$20)/1000*図面!$AK$23 -> 0 | P33: =SUMIF(P$4:P$20,"*→か*",$C$4:$C$20)/1000*図面!$AK$23 -> 0 | Q33: =SUMIF(Q$4:Q$20,"*→か*",$C$4:$C$20)/1000*図面!$AK$23 -> 0 | R33: =SUMIF(R$4:R$20,"*→か*",$C$4:$C$20)/1000*図面!$AK$23 -> 0 | S33: =SUMIF(S$4:S$20,"*→か*",$C$4:$C$20)/1000*図面!$AK$23 -> 0 | T33: =SUMIF(T$4:T$20,"*→か*",$C$4:$C$20)/1000*図面!$AK$23 -> 0 | U33: =SUMIF(U$4:U$20,"*→か*",$C$4:$C$20)/1000*図面!$AK$23 -> 0 | V33: =SUMIF(V$4:V$20,"*→か*",$C$4:$C$20)/1000*図面!$AK$23 -> 0 | W33: =SUMIF(W$4:W$20,"*→か*",$C$4:$C$20)/1000*図面!$AK$23 -> 0 | X33: =SUMIF(X$4:X$20,"*→か*",$C$4:$C$20)/1000*図面!$AK$23 -> 0 | Y33: =SUMIF(Y$4:Y$20,"*→か*",$C$4:$C$20)/1000*図面!$AK$23 -> 0 | Z33: =SUMIF(Z$4:Z$20,"*→か*",$C$4:$C$20)/1000*図面!$AK$23 -> 0
C34: ←か | D34: =SUMIF(D$4:D$20,"*←か*",$C$4:$C$20)/1000*図面!$AK$23 -> 0 | E34: =SUMIF(E$4:E$20,"*←か*",$C$4:$C$20)/1000*図面!$AK$23 -> 0 | F34: =SUMIF(F$4:F$20,"*←か*",$C$4:$C$20)/1000*図面!$AK$23 -> 0 | G34: =SUMIF(G$4:G$20,"*←か*",$C$4:$C$20)/1000*図面!$AK$23 -> 0 | H34: =SUMIF(H$4:H$20,"*←か*",$C$4:$C$20)/1000*図面!$AK$23 -> 0 | I34: =SUMIF(I$4:I$20,"*←か*",$C$4:$C$20)/1000*図面!$AK$23 -> 0 | J34: =SUMIF(J$4:J$20,"*←か*",$C$4:$C$20)/1000*図面!$AK$23 -> 0 | K34: =SUMIF(K$4:K$20,"*←か*",$C$4:$C$20)/1000*図面!$AK$23 -> 0 | L34: =SUMIF(L$4:L$20,"*←か*",$C$4:$C$20)/1000*図面!$AK$23 -> 0 | M34: =SUMIF(M$4:M$20,"*←か*",$C$4:$C$20)/1000*図面!$AK$23 -> 0 | N34: =SUMIF(N$4:N$20,"*←か*",$C$4:$C$20)/1000*図面!$AK$23 -> 0 | O34: =SUMIF(O$4:O$20,"*←か*",$C$4:$C$20)/1000*図面!$AK$23 -> 0 | P34: =SUMIF(P$4:P$20,"*←か*",$C$4:$C$20)/1000*図面!$AK$23 -> 0 | Q34: =SUMIF(Q$4:Q$20,"*←か*",$C$4:$C$20)/1000*図面!$AK$23 -> 0 | R34: =SUMIF(R$4:R$20,"*←か*",$C$4:$C$20)/1000*図面!$AK$23 -> 0 | S34: =SUMIF(S$4:S$20,"*←か*",$C$4:$C$20)/1000*図面!$AK$23 -> 0 | T34: =SUMIF(T$4:T$20,"*←か*",$C$4:$C$20)/1000*図面!$AK$23 -> 0 | U34: =SUMIF(U$4:U$20,"*←か*",$C$4:$C$20)/1000*図面!$AK$23 -> 0 | V34: =SUMIF(V$4:V$20,"*←か*",$C$4:$C$20)/1000*図面!$AK$23 -> 0 | W34: =SUMIF(W$4:W$20,"*←か*",$C$4:$C$20)/1000*図面!$AK$23 -> 0 | X34: =SUMIF(X$4:X$20,"*←か*",$C$4:$C$20)/1000*図面!$AK$23 -> 0 | Y34: =SUMIF(Y$4:Y$20,"*←か*",$C$4:$C$20)/1000*図面!$AK$23 -> 0 | Z34: =SUMIF(Z$4:Z$20,"*←か*",$C$4:$C$20)/1000*図面!$AK$23 -> 0
C35: 合計 | D35: =SUM(D23:D34) -> 0 | E35: =SUM(E23:E34) -> 0 | F35: 0 | G35: 0 | H35: 0 | I35: 0 | J35: 0 | K35: 0 | L35: 0 | M35: 0 | N35: 0 | O35: 0 | P35: 0 | Q35: 0 | R35: 0 | S35: 0 | T35: 0 | U35: 0 | V35: 0 | W35: 0 | X35: 0 | Y35: 0 | Z35: 0 | AA35: =SUM(D35:Z35) -> 0
D36: =IF(COUNTIF(面積計算!D27,1),"左"," ") ->  | E36: =IF(COUNTIF(面積計算!E27,1),"左"," ") ->  | F36: =IF(COUNTIF(面積計算!F27,1),"左"," ") ->  | G36: =IF(COUNTIF(面積計算!G27,1),"左"," ") ->  | H36: =IF(COUNTIF(面積計算!H27,1),"左"," ") ->  | I36: =IF(COUNTIF(面積計算!I27,1),"左"," ") ->  | J36: =IF(COUNTIF(面積計算!J27,1),"左"," ") ->  | K36: =IF(COUNTIF(面積計算!K27,1),"左"," ") ->  | L36: =IF(COUNTIF(面積計算!L27,1),"左"," ") ->  | M36: =IF(COUNTIF(面積計算!M27,1),"左"," ") ->  | N36: =IF(COUNTIF(面積計算!N27,1),"左"," ") ->  | O36: =IF(COUNTIF(面積計算!O27,1),"左"," ") ->  | P36: =IF(COUNTIF(面積計算!P27,1),"左"," ") ->  | Q36: =IF(COUNTIF(面積計算!Q27,1),"左"," ") ->  | R36: =IF(COUNTIF(面積計算!R27,1),"左"," ") ->  | S36: =IF(COUNTIF(面積計算!S27,1),"左"," ") ->  | T36: =IF(COUNTIF(面積計算!T27,1),"左"," ") ->  | U36: =IF(COUNTIF(面積計算!U27,1),"左"," ") ->  | V36: =IF(COUNTIF(面積計算!V27,1),"左"," ") ->  | W36: =IF(COUNTIF(面積計算!W27,1),"左"," ") ->  | X36: =IF(COUNTIF(面積計算!X27,1),"左"," ") ->  | Y36: =IF(COUNTIF(面積計算!Y27,1),"左"," ") ->  | Z36: =IF(COUNTIF(面積計算!Z27,1),"左"," ") -> 
D37: =IF(COUNTIF(面積計算!D29,1),"右"," ") ->  | E37: =IF(COUNTIF(面積計算!E29,1),"右"," ") ->  | F37: =IF(COUNTIF(面積計算!F29,1),"右"," ") ->  | G37: =IF(COUNTIF(面積計算!G29,1),"右"," ") ->  | H37: =IF(COUNTIF(面積計算!H29,1),"右"," ") ->  | I37: =IF(COUNTIF(面積計算!I29,1),"右"," ") ->  | J37: =IF(COUNTIF(面積計算!J29,1),"右"," ") ->  | K37: =IF(COUNTIF(面積計算!K29,1),"右"," ") ->  | L37: =IF(COUNTIF(面積計算!L29,1),"右"," ") ->  | M37: =IF(COUNTIF(面積計算!M29,1),"右"," ") ->  | N37: =IF(COUNTIF(面積計算!N29,1),"右"," ") ->  | O37: =IF(COUNTIF(面積計算!O29,1),"右"," ") ->  | P37: =IF(COUNTIF(面積計算!P29,1),"右"," ") ->  | Q37: =IF(COUNTIF(面積計算!Q29,1),"右"," ") ->  | R37: =IF(COUNTIF(面積計算!R29,1),"右"," ") ->  | S37: =IF(COUNTIF(面積計算!S29,1),"右"," ") ->  | T37: =IF(COUNTIF(面積計算!T29,1),"右"," ") ->  | U37: =IF(COUNTIF(面積計算!U29,1),"右"," ") ->  | V37: =IF(COUNTIF(面積計算!V29,1),"右"," ") ->  | W37: =IF(COUNTIF(面積計算!W29,1),"右"," ") ->  | X37: =IF(COUNTIF(面積計算!X29,1),"右"," ") ->  | Y37: =IF(COUNTIF(面積計算!Y29,1),"右"," ") ->  | Z37: =IF(COUNTIF(面積計算!Z29,1),"右"," ") -> 
C38: 左壁量 | D38: =IF(COUNTIF(C36:E36,"左"),D35,0) -> 0 | E38: =IF(COUNTIF(D36:F36,"左"),E35,0) -> 0 | F38: 0 | G38: 0 | H38: =IF(COUNTIF(G36:I36,"左"),H35,0) -> 0 | I38: =IF(COUNTIF(H36:J36,"左"),I35,0) -> 0 | J38: 0 | K38: 0 | L38: 0 | M38: 0 | N38: 0 | O38: 0 | P38: 0 | Q38: 0 | R38: 0 | S38: 0 | T38: 0 | U38: 0 | V38: 0 | W38: 0 | X38: 0 | Y38: 0 | Z38: 0
C39: → | D39: =D23+D25+D27+D29+D31+D33 -> 0 | E39: =E23+E25+E27+E29+E31+E33 -> 0 | F39: 0 | G39: 0 | H39: 0 | I39: 0 | J39: 0 | K39: 0 | L39: 0 | M39: 0 | N39: 0 | O39: 0 | P39: 0 | Q39: 0 | R39: 0 | S39: 0 | T39: 0 | U39: 0 | V39: 0 | W39: 0 | X39: 0 | Y39: 0 | Z39: 0
C40: 補正左 | D40: =IF(AND(D36=" ",C36="左"),D38-D39,D38) -> 0 | E40: =IF(AND(E36=" ",D36="左"),E38-E39,E38) -> 0 | F40: 0 | G40: 0 | H40: 0 | I40: 0 | J40: 0 | K40: =IF(AND(K36=" ",J36="左"),K38-K39,K38) -> 0 | L40: =IF(AND(L36=" ",K36="左"),L38-L39,L38) -> 0 | M40: 0 | N40: 0 | O40: 0 | P40: 0 | Q40: 0 | R40: 0 | S40: 0 | T40: 0 | U40: 0 | V40: 0 | W40: 0 | X40: 0 | Y40: 0 | Z40: 0 | AA40: =SUM(D40:Z40) -> 0
C41: 右壁量 | D41: =IF(COUNTIF(C37:E37,"右"),D35,0) -> 0 | E41: =IF(COUNTIF(D37:F37,"右"),E35,0) -> 0 | F41: 0 | G41: 0 | H41: 0 | I41: 0 | J41: 0 | K41: 0 | L41: 0 | M41: 0 | N41: 0 | O41: 0 | P41: 0 | Q41: 0 | R41: 0 | S41: 0 | T41: 0 | U41: 0 | V41: 0 | W41: 0 | X41: 0 | Y41: 0 | Z41: 0
C42: ← | D42: =D24+D26+D28+D30+D32+D34 -> 0 | E42: =E24+E26+E28+E30+E32+E34 -> 0 | F42: 0 | G42: 0 | H42: 0 | I42: 0 | J42: 0 | K42: 0 | L42: 0 | M42: 0 | N42: 0 | O42: 0 | P42: 0 | Q42: 0 | R42: 0 | S42: 0 | T42: 0 | U42: 0 | V42: 0 | W42: 0 | X42: 0 | Y42: 0 | Z42: 0
C43: 補正右 | D43: =IF(AND(D37=" ",E37="右"),D41-D42,D41) -> 0 | E43: =IF(AND(E37=" ",F37="右"),E41-E42,E41) -> 0 | F43: 0 | G43: 0 | H43: 0 | I43: 0 | J43: 0 | K43: =IF(AND(K37=" ",L37="右"),K41-K42,K41) -> 0 | L43: 0 | M43: 0 | N43: 0 | O43: 0 | P43: 0 | Q43: 0 | R43: =IF(AND(R37=" ",S37="右"),R41-R42,R41) -> 0 | S43: =IF(AND(S37=" ",T37="右"),S41-S42,S41) -> 0 | T43: =IF(AND(T37=" ",U37="右"),T41-T42,T41) -> 0 | U43: =IF(AND(U37=" ",V37="右"),U41-U42,U41) -> 0 | V43: 0 | W43: 0 | X43: 0 | Y43: 0 | Z43: 0 | AA43: =SUM(D43:Z43) -> 0

Sheet 桁行軸組 (hidden)
AD2: ↓あ | AE2: 1 | AF2: 右 | AG2: 2 | AH2: 右上 | AJ2: ↑あ | AK2: 1 | AL2: 右 | AM2: 2
J3: ↓え | K3: ↓え | N3: ↓え | Q3: ↓え | AD3: ↓い | AE3: 2 | AF3: 左 | AG3: 2 | AH3: 左上 | AJ3: ↑い | AK3: 2 | AL3: 左 | AM3: 2
I4: →え | N4: ←い | R4: ←え | AD4: ↓う | AE4: 3 | AF4: タスキ | AG4: 4 | AH4: タスキ | AJ4: ↑う | AK4: 3 | AL4: タスキ | AM4: 4
AD5: ↓え | AE5: 4 | AF5: 面材 | AG5: 2.5 | AH5: 面材 | AJ5: ↑え | AK5: 4 | AL5: 面材 | AM5: 2.5
D6: =IF(OR(COUNTIF(C3:C4,"→*")>0,COUNTIF(C3:D3,"↓*")>0,COUNTIF(C4:D4,"↑*")>0,COUNTIF(D3:D4,"←*")>0,COUNTIF(D4,"｀柱")>0),"柱","無") -> 無 | E6: =IF(OR(COUNTIF(D3:D4,"→*")>0,COUNTIF(D3:E3,"↓*")>0,COUNTIF(D4:E4,"↑*")>0,COUNTIF(E3:E4,"←*")>0,COUNTIF(E4,"｀柱")>0),"柱","無") -> 無 | F6: 無 | G6: 無 | H6: 無 | I6: 無 | J6: 柱 | K6: 柱 | L6: 柱 | M6: =IF(OR(COUNTIF(L3:L4,"→*")>0,COUNTIF(L3:M3,"↓*")>0,COUNTIF(L4:M4,"↑*")>0,COUNTIF(M3:M4,"←*")>0,COUNTIF(M4,"｀柱")>0),"柱","無") -> 無 | N6: =IF(OR(COUNTIF(M3:M4,"→*")>0,COUNTIF(M3:N3,"↓*")>0,COUNTIF(M4:N4,"↑*")>0,COUNTIF(N3:N4,"←*")>0,COUNTIF(N4,"｀柱")>0),"柱","無") -> 柱 | O6: 柱 | P6: 無 | Q6: 柱 | R6: 柱 | S6: 無 | T6: 無 | U6: 無 | V6: 無 | W6: 無 | X6: 無 | Y6: 無 | Z6: 無 | AD6: ↓お | AE6: 5 | AF6: 右 | AG6: 4.5 | AH6: 右面 | AJ6: ↑お | AK6: 5 | AL6: 右 | AM6: 4.5
D7: =IF(ColorCount(D3:D4,$AC$4)<2,IFERROR(VLOOKUP(D3,$AD$2:$AE$8,2,0),"0")," ") ->  | E7: =IF(ColorCount(E3:E4,$AC$4)<2,IFERROR(VLOOKUP(E3,$AD$2:$AE$8,2,0),"0")," ") ->  | F7: =IF(ColorCount(F3:F4,$AC$4)<2,IFERROR(VLOOKUP(F3,$AD$2:$AE$8,2,0),"0")," ") ->  | G7: =IF(ColorCount(G3:G4,$AC$4)<2,IFERROR(VLOOKUP(G3,$AD$2:$AE$8,2,0),"0")," ") ->  | H7: =IF(ColorCount(H3:H4,$AC$4)<2,IFERROR(VLOOKUP(H3,$AD$2:$AE$8,2,0),"0")," ") ->  | I7: =IF(ColorCount(I3:I4,$AC$4)<2,IFERROR(VLOOKUP(I3,$AD$2:$AE$8,2,0),"0")," ") ->  | J7: =IF(ColorCount(J3:J4,$AC$4)<2,IFERROR(VLOOKUP(J3,$AD$2:$AE$8,2,0),"0")," ") -> 4 | K7: =IF(ColorCount(K3:K4,$AC$4)<2,IFERROR(VLOOKUP(K3,$AD$2:$AE$8,2,0),"0")," ") -> 4 | L7: =IF(ColorCount(L3:L4,$AC$4)<2,IFERROR(VLOOKUP(L3,$AD$2:$AE$8,2,0),"0")," ") -> 0 | M7: =IF(ColorCount(M3:M4,$AC$4)<2,IFERROR(VLOOKUP(M3,$AD$2:$AE$8,2,0),"0")," ") -> 0 | N7: =IF(ColorCount(N3:N4,$AC$4)<2,IFERROR(VLOOKUP(N3,$AD$2:$AE$8,2,0),"0")," ") -> 4 | O7: =IF(ColorCount(O3:O4,$AC$4)<2,IFERROR(VLOOKUP(O3,$AD$2:$AE$8,2,0),"0")," ") -> 0 | P7: =IF(ColorCount(P3:P4,$AC$4)<2,IFERROR(VLOOKUP(P3,$AD$2:$AE$8,2,0),"0")," ") -> 0 | Q7: =IF(ColorCount(Q3:Q4,$AC$4)<2,IFERROR(VLOOKUP(Q3,$AD$2:$AE$8,2,0),"0")," ") -> 4 | R7: =IF(ColorCount(R3:R4,$AC$4)<2,IFERROR(VLOOKUP(R3,$AD$2:$AE$8,2,0),"0")," ") ->  | S7: =IF(ColorCount(S3:S4,$AC$4)<2,IFERROR(VLOOKUP(S3,$AD$2:$AE$8,2,0),"0")," ") ->  | T7: =IF(ColorCount(T3:T4,$AC$4)<2,IFERROR(VLOOKUP(T3,$AD$2:$AE$8,2,0),"0")," ") ->  | U7: =IF(ColorCount(U3:U4,$AC$4)<2,IFERROR(VLOOKUP(U3,$AD$2:$AE$8,2,0),"0")," ") ->  | V7: =IF(ColorCount(V3:V4,$AC$4)<2,IFERROR(VLOOKUP(V3,$AD$2:$AE$8,2,0),"0")," ") ->  | W7: =IF(ColorCount(W3:W4,$AC$4)<2,IFERROR(VLOOKUP(W3,$AD$2:$AE$8,2,0),"0")," ") ->  | X7: =IF(ColorCount(X3:X4,$AC$4)<2,IFERROR(VLOOKUP(X3,$AD$2:$AE$8,2,0),"0")," ") ->  | Y7: =IF(ColorCount(Y3:Y4,$AC$4)<2,IFERROR(VLOOKUP(Y3,$AD$2:$AE$8,2,0),"0")," ") ->  | Z7: =IF(ColorCount(Z3:Z4,$AC$4)<2,IFERROR(VLOOKUP(Z3,$AD$2:$AE$8,2,0),"0")," ") ->  | AD7: ↓か | AE7: 6 | AF7: 左 | AG7: 4.5 | AH7: 左面 | AJ7: ↑か | AK7: 6 | AL7: 左 | AM7: 4.5
D8: =IF(ColorCount(D3:D4,$AC$4)<2,IFERROR(VLOOKUP(D4,$AJ$2:$AK$8,2,0),"0")," ") ->  | E8: =IF(ColorCount(E3:E4,$AC$4)<2,IFERROR(VLOOKUP(E4,$AJ$2:$AK$8,2,0),"0")," ") ->  | F8: =IF(ColorCount(F3:F4,$AC$4)<2,IFERROR(VLOOKUP(F4,$AJ$2:$AK$8,2,0),"0")," ") ->  | G8: =IF(ColorCount(G3:G4,$AC$4)<2,IFERROR(VLOOKUP(G4,$AJ$2:$AK$8,2,0),"0")," ") ->  | H8: =IF(ColorCount(H3:H4,$AC$4)<2,IFERROR(VLOOKUP(H4,$AJ$2:$AK$8,2,0),"0")," ") ->  | I8: =IF(ColorCount(I3:I4,$AC$4)<2,IFERROR(VLOOKUP(I4,$AJ$2:$AK$8,2,0),"0")," ") ->  | J8: =IF(ColorCount(J3:J4,$AC$4)<2,IFERROR(VLOOKUP(J4,$AJ$2:$AK$8,2,0),"0")," ") -> 0 | K8: =IF(ColorCount(K3:K4,$AC$4)<2,IFERROR(VLOOKUP(K4,$AJ$2:$AK$8,2,0),"0")," ") -> 0 | L8: =IF(ColorCount(L3:L4,$AC$4)<2,IFERROR(VLOOKUP(L4,$AJ$2:$AK$8,2,0),"0")," ") -> 0 | M8: =IF(ColorCount(M3:M4,$AC$4)<2,IFERROR(VLOOKUP(M4,$AJ$2:$AK$8,2,0),"0")," ") -> 0 | N8: =IF(ColorCount(N3:N4,$AC$4)<2,IFERROR(VLOOKUP(N4,$AJ$2:$AK$8,2,0),"0")," ") -> 0 | O8: =IF(ColorCount(O3:O4,$AC$4)<2,IFERROR(VLOOKUP(O4,$AJ$2:$AK$8,2,0),"0")," ") -> 0 | P8: =IF(ColorCount(P3:P4,$AC$4)<2,IFERROR(VLOOKUP(P4,$AJ$2:$AK$8,2,0),"0")," ") -> 0 | Q8: =IF(ColorCount(Q3:Q4,$AC$4)<2,IFERROR(VLOOKUP(Q4,$AJ$2:$AK$8,2,0),"0")," ") -> 0 | R8: =IF(ColorCount(R3:R4,$AC$4)<2,IFERROR(VLOOKUP(R4,$AJ$2:$AK$8,2,0),"0")," ") ->  | S8: =IF(ColorCount(S3:S4,$AC$4)<2,IFERROR(VLOOKUP(S4,$AJ$2:$AK$8,2,0),"0")," ") ->  | T8: =IF(ColorCount(T3:T4,$AC$4)<2,IFERROR(VLOOKUP(T4,$AJ$2:$AK$8,2,0),"0")," ") ->  | U8: =IF(ColorCount(U3:U4,$AC$4)<2,IFERROR(VLOOKUP(U4,$AJ$2:$AK$8,2,0),"0")," ") ->  | V8: =IF(ColorCount(V3:V4,$AC$4)<2,IFERROR(VLOOKUP(V4,$AJ$2:$AK$8,2,0),"0")," ") ->  | W8: =IF(ColorCount(W3:W4,$AC$4)<2,IFERROR(VLOOKUP(W4,$AJ$2:$AK$8,2,0),"0")," ") ->  | X8: =IF(ColorCount(X3:X4,$AC$4)<2,IFERROR(VLOOKUP(X4,$AJ$2:$AK$8,2,0),"0")," ") ->  | Y8: =IF(ColorCount(Y3:Y4,$AC$4)<2,IFERROR(VLOOKUP(Y4,$AJ$2:$AK$8,2,0),"0")," ") ->  | Z8: =IF(ColorCount(Z3:Z4,$AC$4)<2,IFERROR(VLOOKUP(Z4,$AJ$2:$AK$8,2,0),"0")," ") ->  | AD8: 0 | AE8: 0 | AF8: 無 | AG8: 0 | AH8: 無 | AJ8: 0 | AK8: 0 | AL8: 無 | AM8: 0
D9: =IF(D7=" ","",D7+D8) ->  | E9: =IF(E7=" ","",E7+E8) ->  | F9: =IF(F7=" ","",F7+F8) ->  | G9: =IF(G7=" ","",G7+G8) ->  | H9: =IF(H7=" ","",H7+H8) ->  | I9: =IF(I7=" ","",I7+I8) ->  | J9: 4 | K9: =IF(K7=" ","",K7+K8) -> 4 | L9: 0 | M9: 0 | N9: 4 | O9: 0 | P9: 0 | Q9: 4 | AF9: 0 | AG9: 0
D10: =IF(D7=" ",0,VLOOKUP(D7+D8,$AE$2:$AF$8,2,0)) -> 0 | E10: 0 | F10: 0 | G10: 0 | H10: 0 | I10: 0 | J10: 面材 | K10: 面材 | L10: 無 | M10: 無 | N10: 面材 | O10: 無 | P10: 無 | Q10: 面材 | R10: 0 | S10: 0 | T10: 0 | U10: 0 | V10: 0 | W10: 0 | X10: 0 | Y10: 0 | Z10: 0 | AD10: N値 | AG10: 必要耐力（kN) | AI10: 金物等（これらと同等以上の接合方法を含む）
D11: =IF(D7=" ","無",VLOOKUP(D7+D8,$AE$2:$AF$8,2,0)) -> 無 | E11: 無 | F11: 無 | G11: 無 | H11: 無 | I11: 無 | J11: 面材 | K11: 面材 | L11: 無 | M11: 無 | N11: 面材 | O11: 無 | P11: 無 | Q11: 面材 | R11: 無 | S11: 無 | T11: 無 | U11: 無 | V11: 無 | W11: 無 | X11: 無 | Y11: 無 | Z11: 無 | AD11: 0 | AE11: 以下 | AF11: い | AG11: 0 | AI11: 短ほぞ差し、かすがい打
C12: 倍率 | D12: =IF(D10=0,"",VLOOKUP(D9,$AE$2:$AG$9,3,0)) ->  | J12: 2.5 | K12: 2.5 | L12: 0 | M12: 0 | N12: 2.5 | O12: 0 | P12: 0 | Q12: 2.5 | AD12: 0.65 | AE12: 以下 | AF12: ろ | AG12: 3.4 | AI12: 長ほぞ差し込み栓打、L字形かど金物くぎCN65×5本
C13: 出隅(0.8)他(0.5) | D13: =IF(ColorCount(C3:D4,$C$2)=3,0.8,IF(AND(D10=0,C10=0),"",0.5)) ->  | E13: =IF(ColorCount(D3:E4,$C$2)=3,0.8,IF(AND(E10=0,D10=0),"",0.5)) ->  | F13: =IF(ColorCount(E3:F4,$C$2)=3,0.8,IF(AND(F10=0,E10=0),"",0.5)) ->  | G13: =IF(ColorCount(F3:G4,$C$2)=3,0.8,IF(AND(G10=0,F10=0),"",0.5)) ->  | H13: =IF(ColorCount(G3:H4,$C$2)=3,0.8,IF(AND(H10=0,G10=0),"",0.5)) ->  | I13: =IF(ColorCount(H3:I4,$C$2)=3,0.8,IF(AND(I10=0,H10=0),"",0.5)) ->  | J13: =IF(ColorCount(I3:J4,$C$2)=3,0.8,IF(AND(J10=0,I10=0),"",0.5)) -> 0.8 | K13: =IF(ColorCount(J3:K4,$C$2)=3,0.8,IF(AND(K10=0,J10=0),"",0.5)) -> 0.5 | L13: =IF(ColorCount(K3:L4,$C$2)=3,0.8,IF(AND(L10=0,K10=0),"",0.5)) -> 0.5 | M13: =IF(ColorCount(L3:M4,$C$2)=3,0.8,IF(AND(M10=0,L10=0),"",0.5)) -> 0.5 | N13: =IF(ColorCount(M3:N4,$C$2)=3,0.8,IF(AND(N10=0,M10=0),"",0.5)) -> 0.5 | O13: =IF(ColorCount(N3:O4,$C$2)=3,0.8,IF(AND(O10=0,N10=0),"",0.5)) -> 0.5 | P13: =IF(ColorCount(O3:P4,$C$2)=3,0.8,IF(AND(P10=0,O10=0),"",0.5)) -> 0.5 | Q13: =IF(ColorCount(P3:Q4,$C$2)=3,0.8,IF(AND(Q10=0,P10=0),"",0.5)) -> 0.5 | R13: =IF(ColorCount(Q3:R4,$C$2)=3,0.8,IF(AND(R10=0,Q10=0),"",0.5)) -> 0.8 | S13: =IF(ColorCount(R3:S4,$C$2)=3,0.8,IF(AND(S10=0,R10=0),"",0.5)) ->  | T13: =IF(ColorCount(S3:T4,$C$2)=3,0.8,IF(AND(T10=0,S10=0),"",0.5)) ->  | U13: =IF(ColorCount(T3:U4,$C$2)=3,0.8,IF(AND(U10=0,T10=0),"",0.5)) ->  | V13: =IF(ColorCount(U3:V4,$C$2)=3,0.8,IF(AND(V10=0,U10=0),"",0.5)) ->  | W13: =IF(ColorCount(V3:W4,$C$2)=3,0.8,IF(AND(W10=0,V10=0),"",0.5)) ->  | X13: =IF(ColorCount(W3:X4,$C$2)=3,0.8,IF(AND(X10=0,W10=0),"",0.5)) ->  | Y13: =IF(ColorCount(X3:Y4,$C$2)=3,0.8,IF(AND(Y10=0,X10=0),"",0.5)) ->  | Z13: =IF(ColorCount(Y3:Z4,$C$2)=3,0.8,IF(AND(Z10=0,Y10=0),"",0.5)) ->  | AD13: 1 | AE13: 以下 | AF13: は | AG13: 5.1 | AI13: T字形かど金物くぎCN65×5本、山形プレート金物くぎCN90×8本
C14: 柱頭補正値 | D14: =IF(OR(AND(C11="右",OR(D11="面材",D11="無")),AND(OR(C11="面材",C11="無"),D11="左")),0.5,"") ->  | AD14: 1.4 | AE14: 以下 | AF14: に | AG14: 7.5 | AI14: 羽子板ボルトφ12mm、短冊金物
C15: 柱脚補正値 | D15: =IF(OR(AND(C11="左",OR(D11="面材",D11="無")),AND(OR(C11="面材",C11="無"),D11="右")),-0.5,"") ->  | AD15: 1.6 | AE15: 以下 | AF15: ほ | AG15: 8.5 | AI15: 羽子板ボルトφ12mmに長さ50mm径4.5mmのスクリュー釘
C16: 両端片筋かい補正値 | D16: =IF(OR(AND(C11="右",D11="右"),AND(C11="左",D11="左"),AND(C11="右",D11="左"),AND(C11="左",D11="右")),1,"") ->  | AD16: 1.8 | AE16: 以下 | AF16: へ | AG16: 10 | AI16: 10kN用引き寄せ金物
C17: タスキ+片筋かい補正値 | D17: =IF(OR(AND(C11="タスキ",OR(D11="右",D11="左")),AND(OR(C11="右",C11="左"),D11="タスキ")),0.5,"") ->  | AD17: 2.8 | AE17: 以下 | AF17: と | AG17: 15 | AI17: 15kN用引き寄せ金物
D18: =IF(D13=""," ",IF(AND(OR(D19="",D19="無"),D6="柱"),"←柱",D19)) ->  | E18: =IF(E13=""," ",IF(AND(OR(E19="",E19="無"),E6="柱"),"←柱",E19)) ->  | J18: =IF(J13=""," ",IF(AND(OR(J19="",J19="無"),J6="柱"),"←柱",J19)) -> 面材 | K18: 面材 | L18: ←柱 | M18: 無 | N18: 面材 | O18: ←柱 | P18: 無 | Q18: 面材 | R18: ←柱
D19: =IF(D9="","",VLOOKUP(D9,$AE$2:$AH$8,4,0)) ->  | J19: =IF(J9="","",VLOOKUP(J9,$AE$2:$AH$8,4,0)) -> 面材 | K19: 面材 | L19: 無 | M19: 無 | N19: 面材 | O19: 無 | P19: 無 | Q19: 面材 | AD19: 3.7 | AE19: 以下 | AF19: ち | AG19: 20 | AI19: 20kN用引き寄せ金物
B20: A2 | C20: 左右倍率大 | D20: =IF(D13="","",MAX(C12,D12)) ->  | J20: 2.5 | K20: 2.5 | L20: 2.5 | M20: 0 | N20: 2.5 | O20: 2.5 | P20: 0 | Q20: 2.5 | R20: 2.5 | AD20: 5.6 | AE20: 以下 | AF20: ぬ | AG20: 30 | AI20: 30kN用引き寄せ金物
C21: 左右倍率小 | D21: =IF(D13="","",MINA(C12,D12)) ->  | J21: 0 | K21: 2.5 | L21: 0 | M21: 0 | N21: 0 | O21: 0 | P21: 0 | Q21: 0 | R21: 0 | AD21: 5.6 | AE21: 超 | AF21: - | AG21: N×5.3 | AI21: N×5.3kNに見合う金物
C22: 補正値 | D22: =IF(D13="","",SUM(D14:D17)) ->  | J22: 0 | K22: 0 | L22: =IF(L13="","",SUM(L14:L17)) -> 0 | M22: 0 | N22: 0 | O22: 0 | P22: 0 | Q22: 0 | R22: 0
B23: B2 | C23: 出隅(0.8)他(0.5) | D23: =IF(AND(D20=0,D21=0,D6="無"),"",D13) ->  | J23: 0.8 | K23: 0.5 | L23: =IF(AND(L20=0,L21=0,L6="無"),"",L13) -> 0.5 | M23: =IF(AND(M20=0,M21=0,M6="無"),"",M13) ->  | N23: =IF(AND(N20=0,N21=0,N6="無"),"",N13) -> 0.5 | O23: 0.5 | Q23: =IF(AND(Q20=0,Q21=0,Q6="無"),"",Q13) -> 0.5 | R23: 0.8
B24: L | C24: 出隅(0.4)他(0.6) | D24: =IF(D23="","",IF(D23=0.8,0.4,(IF(D23=0.5,0.6,0)))) ->  | J24: =IF(J23="","",IF(J23=0.8,0.4,(IF(J23=0.5,0.6,0)))) -> 0.4 | K24: 0.6 | L24: 0.6 | N24: =IF(N23="","",IF(N23=0.8,0.4,(IF(N23=0.5,0.6,0)))) -> 0.6 | O24: =IF(O23="","",IF(O23=0.8,0.4,(IF(O23=0.5,0.6,0)))) -> 0.6 | Q24: =IF(Q23="","",IF(Q23=0.8,0.4,(IF(Q23=0.5,0.6,0)))) -> 0.6 | R24: 0.4
B25: N | C25: N値 | D25: =IF(D24="","",(D20-D21+D22)*D23-D24) ->  | J25: =IF(J24="","",(J20-J21+J22)*J23-J24) -> 1.6 | K25: -0.6 | L25: =IF(L24="","",(L20-L21+L22)*L23-L24) -> 0.65 | M25: =IF(M24="","",(M20-M21+M22)*M23-M24) ->  | N25: 0.65 | O25: 0.65 | Q25: 0.65 | R25: 1.6 | T25: =IF(T24="","",(T20-T21+T22)*T23-T24) ->  | AC25: =(K20-K21+K22)*K23 -> 0
C26: 金物 | D26: =IF(D25=""," ",IF(D25<=0,"い",IF(D25<=0.65,"ろ",IF(D25<=1,"は",IF(D25<=1.4,"に",IF(D25<=1.6,"ほ",IF(D25<=1.8,"へ",IF(D25<=2.8,"と",IF(D25<=3.7,"ち",IF(D25<=4.7,"り",IF(D25<=5.6,"ぬ",IF(D25>5.6,"-")))))))))))) ->  | E26: =IF(E25=""," ",IF(E25<=0,"い",IF(E25<=0.65,"ろ",IF(E25<=1,"は",IF(E25<=1.4,"に",IF(E25<=1.6,"ほ",IF(E25<=1.8,"へ",IF(E25<=2.8,"と",IF(E25<=3.7,"ち",IF(E25<=4.7,"り",IF(E25<=5.6,"ぬ",IF(E25>5.6,"-")))))))))))) ->  | J26: =IF(J25=""," ",IF(J25<=0,"い",IF(J25<=0.65,"ろ",IF(J25<=1,"は",IF(J25<=1.4,"に",IF(J25<=1.6,"ほ",IF(J25<=1.8,"へ",IF(J25<=2.8,"と",IF(J25<=3.7,"ち",IF(J25<=4.7,"り",IF(J25<=5.6,"ぬ",IF(J25>5.6,"-")))))))))))) -> ほ | K26: い | L26: ろ | N26: ろ | O26: ろ | Q26: ろ | R26: ほ
J31: ↓え | M31: ↓え | Q31: ↓え | S31: ↓え
I32: →え | N32: ←い | P32: ｀柱 | R32: ←い | T32: ←え
D34: =IF(OR(COUNTIF(C31:C32,"→*")>0,COUNTIF(C31:D31,"↓*")>0,COUNTIF(C32:D32,"↑*")>0,COUNTIF(D31:D32,"←*")>0,COUNTIF(D32,"｀柱")>0),"柱","無") -> 無 | E34: 無 | F34: 無 | G34: 無 | H34: 無 | I34: 無 | J34: 柱 | K34: 柱 | L34: 無 | M34: 柱 | N34: 柱 | O34: 無 | P34: 柱 | Q34: 柱 | R34: 柱 | S34: 柱 | T34: 柱 | U34: 無 | V34: 無 | W34: 無 | X34: 無 | Y34: 無 | Z34: 無
D35: =IF(ColorCount(D31:D32,$AC$4)<2,IFERROR(VLOOKUP(D31,$AD$2:$AE$8,2,0),"0")," ") ->  | E35: =IF(ColorCount(E31:E32,$AC$4)<2,IFERROR(VLOOKUP(E31,$AD$2:$AE$8,2,0),"0")," ") ->  | F35: =IF(ColorCount(F31:F32,$AC$4)<2,IFERROR(VLOOKUP(F31,$AD$2:$AE$8,2,0),"0")," ") ->  | G35: =IF(ColorCount(G31:G32,$AC$4)<2,IFERROR(VLOOKUP(G31,$AD$2:$AE$8,2,0),"0")," ") ->  | H35: =IF(ColorCount(H31:H32,$AC$4)<2,IFERROR(VLOOKUP(H31,$AD$2:$AE$8,2,0),"0")," ") ->  | I35: =IF(ColorCount(I31:I32,$AC$4)<2,IFERROR(VLOOKUP(I31,$AD$2:$AE$8,2,0),"0")," ") ->  | J35: =IF(ColorCount(J31:J32,$AC$4)<2,IFERROR(VLOOKUP(J31,$AD$2:$AE$8,2,0),"0")," ") -> 4 | K35: =IF(ColorCount(K31:K32,$AC$4)<2,IFERROR(VLOOKUP(K31,$AD$2:$AE$8,2,0),"0")," ") -> 0 | L35: =IF(ColorCount(L31:L32,$AC$4)<2,IFERROR(VLOOKUP(L31,$AD$2:$AE$8,2,0),"0")," ") -> 0 | M35: =IF(ColorCount(M31:M32,$AC$4)<2,IFERROR(VLOOKUP(M31,$AD$2:$AE$8,2,0),"0")," ") -> 4 | N35: =IF(ColorCount(N31:N32,$AC$4)<2,IFERROR(VLOOKUP(N31,$AD$2:$AE$8,2,0),"0")," ") -> 0 | O35: =IF(ColorCount(O31:O32,$AC$4)<2,IFERROR(VLOOKUP(O31,$AD$2:$AE$8,2,0),"0")," ") -> 0 | P35: =IF(ColorCount(P31:P32,$AC$4)<2,IFERROR(VLOOKUP(P31,$AD$2:$AE$8,2,0),"0")," ") -> 0 | Q35: =IF(ColorCount(Q31:Q32,$AC$4)<2,IFERROR(VLOOKUP(Q31,$AD$2:$AE$8,2,0),"0")," ") -> 4 | R35: =IF(ColorCount(R31:R32,$AC$4)<2,IFERROR(VLOOKUP(R31,$AD$2:$AE$8,2,0),"0")," ") -> 0 | S35: =IF(ColorCount(S31:S32,$AC$4)<2,IFERROR(VLOOKUP(S31,$AD$2:$AE$8,2,0),"0")," ") -> 4 | T35: =IF(ColorCount(T31:T32,$AC$4)<2,IFERROR(VLOOKUP(T31,$AD$2:$AE$8,2,0),"0")," ") ->  | U35: =IF(ColorCount(U31:U32,$AC$4)<2,IFERROR(VLOOKUP(U31,$AD$2:$AE$8,2,0),"0")," ") ->  | V35: =IF(ColorCount(V31:V32,$AC$4)<2,IFERROR(VLOOKUP(V31,$AD$2:$AE$8,2,0),"0")," ") ->  | W35: =IF(ColorCount(W31:W32,$AC$4)<2,IFERROR(VLOOKUP(W31,$AD$2:$AE$8,2,0),"0")," ") ->  | X35: =IF(ColorCount(X31:X32,$AC$4)<2,IFERROR(VLOOKUP(X31,$AD$2:$AE$8,2,0),"0")," ") ->  | Y35: =IF(ColorCount(Y31:Y32,$AC$4)<2,IFERROR(VLOOKUP(Y31,$AD$2:$AE$8,2,0),"0")," ") ->  | Z35: =IF(ColorCount(Z31:Z32,$AC$4)<2,IFERROR(VLOOKUP(Z31,$AD$2:$AE$8,2,0),"0")," ") -> 
D36: =IF(ColorCount(D31:D32,$AC$4)<2,IFERROR(VLOOKUP(D32,$AJ$2:$AK$8,2,0),"0")," ") ->  | E36: =IF(ColorCount(E31:E32,$AC$4)<2,IFERROR(VLOOKUP(E32,$AJ$2:$AK$8,2,0),"0")," ") ->  | F36: =IF(ColorCount(F31:F32,$AC$4)<2,IFERROR(VLOOKUP(F32,$AJ$2:$AK$8,2,0),"0")," ") ->  | G36: =IF(ColorCount(G31:G32,$AC$4)<2,IFERROR(VLOOKUP(G32,$AJ$2:$AK$8,2,0),"0")," ") ->  | H36: =IF(ColorCount(H31:H32,$AC$4)<2,IFERROR(VLOOKUP(H32,$AJ$2:$AK$8,2,0),"0")," ") ->  | I36: =IF(ColorCount(I31:I32,$AC$4)<2,IFERROR(VLOOKUP(I32,$AJ$2:$AK$8,2,0),"0")," ") ->  | J36: =IF(ColorCount(J31:J32,$AC$4)<2,IFERROR(VLOOKUP(J32,$AJ$2:$AK$8,2,0),"0")," ") -> 0 | K36: =IF(ColorCount(K31:K32,$AC$4)<2,IFERROR(VLOOKUP(K32,$AJ$2:$AK$8,2,0),"0")," ") -> 0 | L36: =IF(ColorCount(L31:L32,$AC$4)<2,IFERROR(VLOOKUP(L32,$AJ$2:$AK$8,2,0),"0")," ") -> 0 | M36: =IF(ColorCount(M31:M32,$AC$4)<2,IFERROR(VLOOKUP(M32,$AJ$2:$AK$8,2,0),"0")," ") -> 0 | N36: =IF(ColorCount(N31:N32,$AC$4)<2,IFERROR(VLOOKUP(N32,$AJ$2:$AK$8,2,0),"0")," ") -> 0 | O36: =IF(ColorCount(O31:O32,$AC$4)<2,IFERROR(VLOOKUP(O32,$AJ$2:$AK$8,2,0),"0")," ") -> 0 | P36: =IF(ColorCount(P31:P32,$AC$4)<2,IFERROR(VLOOKUP(P32,$AJ$2:$AK$8,2,0),"0")," ") -> 0 | Q36: =IF(ColorCount(Q31:Q32,$AC$4)<2,IFERROR(VLOOKUP(Q32,$AJ$2:$AK$8,2,0),"0")," ") -> 0 | R36: =IF(ColorCount(R31:R32,$AC$4)<2,IFERROR(VLOOKUP(R32,$AJ$2:$AK$8,2,0),"0")," ") -> 0 | S36: =IF(ColorCount(S31:S32,$AC$4)<2,IFERROR(VLOOKUP(S32,$AJ$2:$AK$8,2,0),"0")," ") -> 0 | T36: =IF(ColorCount(T31:T32,$AC$4)<2,IFERROR(VLOOKUP(T32,$AJ$2:$AK$8,2,0),"0")," ") ->  | U36: =IF(ColorCount(U31:U32,$AC$4)<2,IFERROR(VLOOKUP(U32,$AJ$2:$AK$8,2,0),"0")," ") ->  | V36: =IF(ColorCount(V31:V32,$AC$4)<2,IFERROR(VLOOKUP(V32,$AJ$2:$AK$8,2,0),"0")," ") ->  | W36: =IF(ColorCount(W31:W32,$AC$4)<2,IFERROR(VLOOKUP(W32,$AJ$2:$AK$8,2,0),"0")," ") ->  | X36: =IF(ColorCount(X31:X32,$AC$4)<2,IFERROR(VLOOKUP(X32,$AJ$2:$AK$8,2,0),"0")," ") ->  | Y36: =IF(ColorCount(Y31:Y32,$AC$4)<2,IFERROR(VLOOKUP(Y32,$AJ$2:$AK$8,2,0),"0")," ") ->  | Z36: =IF(ColorCount(Z31:Z32,$AC$4)<2,IFERROR(VLOOKUP(Z32,$AJ$2:$AK$8,2,0),"0")," ") -> 
D37: =IF(D35=" ","",D35+D36) ->  | E37: =IF(E35=" ","",E35+E36) ->  | F37: =IF(F35=" ","",F35+F36) ->  | G37: =IF(G35=" ","",G35+G36) ->  | H37: =IF(H35=" ","",H35+H36) ->  | I37: =IF(I35=" ","",I35+I36) ->  | J37: 4 | K37: 0 | L37: 0 | M37: 4 | N37: 0 | O37: 0 | P37: 0 | Q37: 4 | R37: 0 | S37: 4
D38: =IF(D35=" ",0,VLOOKUP(D35+D36,$AE$2:$AF$8,2,0)) -> 0 | E38: 0 | F38: 0 | G38: 0 | H38: 0 | I38: 0 | J38: 面材 | K38: 無 | L38: 無 | M38: 面材 | N38: 無 | O38: 無 | P38: 無 | Q38: 面材 | R38: 無 | S38: 面材 | T38: 0 | U38: 0 | V38: 0 | W38: 0 | X38: 0 | Y38: 0 | Z38: 0
D39: =IF(D35=" ","無",VLOOKUP(D35+D36,$AE$2:$AF$8,2,0)) -> 無 | E39: 無 | F39: 無 | G39: 無 | H39: 無 | I39: 無 | J39: 面材 | K39: 無 | L39: 無 | M39: 面材 | N39: 無 | O39: 無 | P39: 無 | Q39: 面材 | R39: 無 | S39: 面材 | T39: 無 | U39: 無 | V39: 無 | W39: 無 | X39: 無 | Y39: 無 | Z39: 無
C40: 倍率 | D40: =IF(D38=0,"",VLOOKUP(D37,$AE$2:$AG$9,3,0)) ->  | J40: 2.5 | K40: 0 | L40: 0 | M40: 2.5 | N40: 0 | O40: 0 | P40: 0 | Q40: 2.5 | R40: 0 | S40: 2.5
C41: 出隅(0.8)他(0.5) | D41: =IF(ColorCount(C31:D32,$AC$4)=3,0.8,IF(AND(D38=0,C38=0),"",0.5)) ->  | E41: =IF(ColorCount(D31:E32,$AC$4)=3,0.8,IF(AND(E38=0,D38=0),"",0.5)) ->  | F41: =IF(ColorCount(E31:F32,$AC$4)=3,0.8,IF(AND(F38=0,E38=0),"",0.5)) ->  | G41: =IF(ColorCount(F31:G32,$AC$4)=3,0.8,IF(AND(G38=0,F38=0),"",0.5)) ->  | H41: =IF(ColorCount(G31:H32,$AC$4)=3,0.8,IF(AND(H38=0,G38=0),"",0.5)) ->  | I41: =IF(ColorCount(H31:I32,$AC$4)=3,0.8,IF(AND(I38=0,H38=0),"",0.5)) ->  | J41: =IF(ColorCount(I31:J32,$AC$4)=3,0.8,IF(AND(J38=0,I38=0),"",0.5)) -> 0.8 | K41: =IF(ColorCount(J31:K32,$AC$4)=3,0.8,IF(AND(K38=0,J38=0),"",0.5)) -> 0.5 | L41: =IF(ColorCount(K31:L32,$AC$4)=3,0.8,IF(AND(L38=0,K38=0),"",0.5)) -> 0.5 | M41: =IF(ColorCount(L31:M32,$AC$4)=3,0.8,IF(AND(M38=0,L38=0),"",0.5)) -> 0.5 | N41: =IF(ColorCount(M31:N32,$AC$4)=3,0.8,IF(AND(N38=0,M38=0),"",0.5)) -> 0.5 | O41: =IF(ColorCount(N31:O32,$AC$4)=3,0.8,IF(AND(O38=0,N38=0),"",0.5)) -> 0.5 | P41: =IF(ColorCount(O31:P32,$AC$4)=3,0.8,IF(AND(P38=0,O38=0),"",0.5)) -> 0.5 | Q41: =IF(ColorCount(P31:Q32,$AC$4)=3,0.8,IF(AND(Q38=0,P38=0),"",0.5)) -> 0.5 | R41: =IF(ColorCount(Q31:R32,$AC$4)=3,0.8,IF(AND(R38=0,Q38=0),"",0.5)) -> 0.5 | S41: =IF(ColorCount(R31:S32,$AC$4)=3,0.8,IF(AND(S38=0,R38=0),"",0.5)) -> 0.5 | T41: =IF(ColorCount(S31:T32,$AC$4)=3,0.8,IF(AND(T38=0,S38=0),"",0.5)) -> 0.8 | U41: =IF(ColorCount(T31:U32,$AC$4)=3,0.8,IF(AND(U38=0,T38=0),"",0.5)) ->  | V41: =IF(ColorCount(U31:V32,$AC$4)=3,0.8,IF(AND(V38=0,U38=0),"",0.5)) ->  | W41: =IF(ColorCount(V31:W32,$AC$4)=3,0.8,IF(AND(W38=0,V38=0),"",0.5)) ->  | X41: =IF(ColorCount(W31:X32,$AC$4)=3,0.8,IF(AND(X38=0,W38=0),"",0.5)) ->  | Y41: =IF(ColorCount(X31:Y32,$AC$4)=3,0.8,IF(AND(Y38=0,X38=0),"",0.5)) ->  | Z41: =IF(ColorCount(Y31:Z32,$AC$4)=3,0.8,IF(AND(Z38=0,Y38=0),"",0.5)) -> 
C42: 柱頭補正値 | D42: =IF(OR(AND(C39="右",OR(D39="面材",D39="無")),AND(OR(C39="面材",C39="無"),D39="左")),0.5,"") ->  | I42: =IF(OR(AND(H39="右",OR(I39="面材",I39="無")),AND(OR(H39="面材",H39="無"),I39="左")),0.5,"") ->  | L42: =IF(OR(AND(K39="右",OR(L39="面材",L39="無")),AND(OR(K39="面材",K39="無"),L39="左")),0.5,"") ->  | M42: =IF(OR(AND(L39="右",OR(M39="面材",M39="無")),AND(OR(L39="面材",L39="無"),M39="左")),0.5,"") -> 
C43: 柱脚補正値 | D43: =IF(OR(AND(C39="左",OR(D39="面材",D39="無")),AND(OR(C39="面材",C39="無"),D39="右")),-0.5,"") ->  | L43: =IF(OR(AND(K39="左",OR(L39="面材",L39="無")),AND(OR(K39="面材",K39="無"),L39="右")),-0.5,"") ->  | M43: =IF(OR(AND(L39="左",OR(M39="面材",M39="無")),AND(OR(L39="面材",L39="無"),M39="右")),-0.5,"") -> 
C44: 両端片筋かい補正値 | D44: =IF(OR(AND(C39="右",D39="右"),AND(C39="左",D39="左"),AND(C39="右",D39="左"),AND(C39="左",D39="右")),1,"") ->  | J44: =IF(OR(AND(I39="右",J39="右"),AND(I39="左",J39="左"),AND(I39="右",J39="左"),AND(I39="左",J39="右")),1,"") ->  | O44: =IF(OR(AND(N39="右",O39="右"),AND(N39="左",O39="左"),AND(N39="右",O39="左"),AND(N39="左",O39="右")),1,"") -> 
C45: タスキ+片筋かい補正値 | D45: =IF(OR(AND(C39="タスキ",OR(D39="右",D39="左")),AND(OR(C39="右",C39="左"),D39="タスキ")),0.5,"") ->  | J45: =IF(OR(AND(I39="タスキ",OR(J39="右",J39="左")),AND(OR(I39="右",I39="左"),J39="タスキ")),0.5,"") ->  | K45: =IF(OR(AND(J39="タスキ",OR(K39="右",K39="左")),AND(OR(J39="右",J39="左"),K39="タスキ")),0.5,"") ->  | O45: =IF(OR(AND(N39="タスキ",OR(O39="右",O39="左")),AND(OR(N39="右",N39="左"),O39="タスキ")),0.5,"") -> 
D46: =IF(D37="","",VLOOKUP(D37,$AE$2:$AH$8,4,0)) ->  | J46: 面材 | K46: 無 | L46: 無 | M46: 面材 | N46: =IF(N37="","",VLOOKUP(N37,$AE$2:$AH$8,4,0)) -> 無 | O46: 無 | P46: 無 | Q46: 面材 | R46: 無 | S46: 面材
C47: 2階 | D47: =D18 ->  | J47: =J18 -> 面材 | K47: =K18 -> 面材 | L47: ←柱 | M47: 無 | N47: 面材 | O47: ←柱 | P47: 無 | Q47: 面材 | R47: ←柱
C48: 1階 | D48: =IF(D41=""," ",IF(AND(OR(D46="",D46="無"),D34="柱"),"←柱",D46)) ->  | J48: 面材 | K48: ←柱 | L48: 無 | M48: 面材 | N48: ←柱 | O48: 無 | P48: ←柱 | Q48: 面材 | R48: ←柱 | S48: 面材 | T48: ←柱
D50: =IF(AND(AND(D47<>"無",D47<>"←柱"),D48="←柱",E48="無"),E56,0) -> 0 | E50: 0 | F50: 0 | G50: 0 | H50: 0 | I50: 0 | J50: 0 | K50: 1.25 | L50: 0 | M50: 0 | N50: 1.25 | O50: 0 | P50: 0 | Q50: 0 | R50: 0 | S50: 0 | T50: 0 | U50: 0 | V50: 0 | W50: 0 | X50: 0 | Y50: 0 | Z50: =IF(AND(AND(Z47<>"無",Z47<>"←柱"),Z48="←柱",AA48="無"),AA49,0) -> 0 | AA50: 右
D51: =IF(AND(AND(C47<>"無",C47<>"←柱"),C48="無",D48<>"無"),C56,0) -> 0 | E51: 0 | F51: 0 | G51: 0 | H51: 0 | I51: 0 | J51: 0 | K51: =IF(AND(AND(J47<>"無",J47<>"←柱"),J48="無",K48<>"無"),J56,0) -> 0 | L51: =IF(AND(AND(K47<>"無",K47<>"←柱"),K48="無",L48<>"無"),K56,0) -> 0 | M51: 0 | N51: 0 | O51: 0 | P51: 0 | Q51: =IF(AND(AND(P47<>"無",P47<>"←柱"),P48="無",Q48<>"無"),P56,0) -> 0 | R51: =IF(AND(AND(Q47<>"無",Q47<>"←柱"),Q48="無",R48<>"無"),Q56,0) -> 0 | S51: =IF(AND(AND(R47<>"無",R47<>"←柱"),R48="無",S48<>"無"),R56,0) -> 0 | T51: 0 | U51: 0 | V51: 0 | W51: 0 | X51: =IF(AND(AND(W47<>"無",W47<>"←柱"),W48="無",X48<>"無"),W56,0) -> 0 | Y51: 0 | Z51: 0 | AA51: 左
C52: 柱右上壁 | D52: =IF(AND(OR(C47="無",C47="←柱"),D47="無",AND(E47<>"無",E47<>"←柱"),OR(C48="無",C48="←柱"),D48="←柱",E48="無"),E56,0) -> 0 | E52: 0 | F52: 0 | G52: 0 | H52: 0 | I52: 0 | J52: 0 | K52: 0 | L52: 0 | M52: 0 | N52: 0 | O52: 0 | P52: 0 | Q52: 0 | R52: 0 | S52: 0 | T52: 0 | U52: 0 | V52: 0 | W52: 0 | X52: 0 | Y52: 0 | Z52: =IF(AND(OR(Y47="無",Y47="←柱"),Z47="無",AND(AA47<>"無",AA47<>"←柱"),OR(Y48="無",Y48="←柱"),Z48="←柱",AA48="無"),AA49,0) -> 0 | AA52: 右
C53: 柱左上壁 | D53: =IF(AND(AND(B47<>"無",B37<>"←柱"),C47="←柱",OR(D47="無",D47="←柱"),OR(B48="無",B48="←柱"),C48="無",D48="←柱"),C56,0) -> 0 | E53: 0 | F53: 0 | G53: 0 | H53: 0 | I53: 0 | J53: 0 | K53: 0 | L53: 0 | M53: 0 | N53: 0 | O53: 0 | P53: 1.25 | Q53: 0 | R53: 0 | S53: 0 | T53: 0 | U53: 0 | V53: 0 | W53: 0 | X53: 0 | Y53: 0 | Z53: 0 | AA53: 左
C54: 壁左柱左上壁 | D54: =IF(AND(AND(B47<>"無",B47<>"←柱"),C47="←柱",AND(D48<>"無",D48<>"←柱"),OR(B48="無",B48="←柱"),C48="無"),C56,0) -> 0 | E54: 0 | F54: 0 | G54: 0 | H54: 0 | I54: 0 | J54: 0 | K54: 0 | L54: 0 | M54: 1.25 | N54: 0 | O54: 0 | P54: 0 | Q54: 0 | R54: 0 | S54: 0 | T54: 0 | U54: 0 | V54: 0 | W54: 0 | X54: 0 | Y54: 0 | Z54: 0 | AA54: 左
C55: 壁右柱右上壁 | D55: =IF(AND(OR(D47="無",D47="←柱"),AND(E47<>"無",E47<>"←柱"),AND(C48<>"無",C48<>"←柱"),D48="←柱",E48="無"),E56,0) -> 0 | E55: 0 | F55: 0 | G55: 0 | H55: 0 | I55: 0 | J55: 0 | K55: 0 | L55: 0 | M55: 0 | N55: 0 | O55: 0 | P55: 0 | Q55: 0 | R55: 0 | S55: 0 | T55: 0 | U55: 0 | V55: 0 | W55: 0 | X55: 0 | Y55: 0 | Z55: =IF(AND(OR(Z47="無",Z47="←柱"),AND(AA47<>"無",AA47<>"←柱"),AND(Y48<>"無",Y48<>"←柱"),Z48="←柱",AA48="無"),AA49,0) -> 0 | AA55: 右
C56: 通常 | D56: =IF(D25="","",(D20-D21+D22)*D23) ->  | J56: =IF(J25="","",(J20-J21+J22)*J23) -> 2 | K56: 0 | L56: =IF(L25="","",(L20-L21+L22)*L23) -> 1.25 | M56: =IF(M25="","",(M20-M21+M22)*M23) ->  | N56: 1.25 | O56: 1.25 | Q56: 1.25 | R56: =IF(R25="","",(R20-R21+R22)*R23) -> 2
C57: 柱ずれ補正(A2×B2) | D57: =IF(D59="","",MAX(D50:D55)) ->  | I57: =IF(I59="","",MAX(I50:I55)) ->  | J57: =IF(J59="","",MAX(J50:J55)) -> 0 | K57: 1.25 | L57: 0 | M57: 1.25 | N57: 1.25 | O57: 0 | P57: 1.25 | Q57: 0 | R57: 0 | S57: 0 | T57: 0
C58: 数値大 | D58: =IF(D60="","",MAX(D56:D57)) ->  | J58: =IF(J60="","",MAX(J56:J57)) -> 2 | K58: =IF(K60="","",MAX(K56:K57)) -> 1.25 | L58: 1.25 | M58: 1.25 | N58: 1.25 | O58: 1.25 | P58: 1.25 | Q58: 1.25 | R58: 2 | S58: 0 | T58: =IF(T60="","",MAX(T56:T57)) -> 0
B59: A1 | C59: 左右倍率大 | D59: =IF(D41="","",MAX(C40,D40)) ->  | E59: =IF(E41="","",MAX(D40,E40)) ->  | J59: 2.5 | K59: 2.5 | L59: 0 | M59: 2.5 | N59: =IF(N41="","",MAX(M40,N40)) -> 2.5 | O59: 0 | P59: 0 | Q59: =IF(Q41="","",MAX(P40,Q40)) -> 2.5 | R59: 2.5 | S59: 2.5 | T59: 2.5
C60: 左右倍率小 | D60: =IF(D41="","",MINA(C40,D40)) ->  | J60: 0 | K60: 0 | L60: 0 | M60: 0 | N60: 0 | O60: 0 | P60: 0 | Q60: 0 | R60: 0 | S60: 0 | T60: 0
C61: 補正値 | D61: =IF(D41="","",SUM(D42:D45)) ->  | J61: =IF(J41="","",SUM(J42:J45)) -> 0 | K61: 0 | L61: 0 | M61: 0 | N61: 0 | O61: 0 | P61: 0 | Q61: 0 | R61: 0 | S61: 0 | T61: 0
B62: B1 | C62: 出隅(0.8)他(0.5) | D62: =IF(AND(D59=0,D60=0,D34="無"),0,D41) ->  | J62: =IF(AND(J59=0,J60=0,J34="無"),0,J41) -> 0.8 | K62: =IF(AND(K59=0,K60=0,K34="無"),0,K41) -> 0.5 | L62: 0 | M62: 0.5 | N62: 0.5 | O62: 0 | P62: 0.5 | Q62: 0.5 | R62: 0.5 | S62: 0.5 | T62: 0.8
B63: L | C63: 出隅(0.4)他(0.6)出隅(1.0)他(1.6) | D63: =IF(D47<>" "," ",IF(D62=0.8,0.4,(IF(D62=0.5,0.6," ")))) ->  | J63: =IF(J47<>" "," ",IF(J62=0.8,0.4,(IF(J62=0.5,0.6," ")))) ->  | S63: 0.6 | T63: 0.4 | U63: =IF(U47<>" "," ",IF(U62=0.8,0.4,(IF(U62=0.5,0.6," ")))) ->  | V63: =IF(V47<>" "," ",IF(V62=0.8,0.4,(IF(V62=0.5,0.6," ")))) -> 
C64: 柱補正 | D64: =IF(D47=" "," ",IF(AND(D34="柱",D41=0.5),1.6,(IF(AND(D34="柱",D41=0.8),1,0)))) ->  | J64: 1 | K64: 1.6 | L64: 0 | M64: 1.6 | N64: 1.6 | O64: =IF(O47=" "," ",IF(AND(O34="柱",O41=0.5),1.6,(IF(AND(O34="柱",O41=0.8),1,0)))) -> 0 | P64: 1.6 | Q64: 1.6 | R64: 1.6 | S64: =IF(S47=" "," ",IF(AND(S34="柱",S41=0.5),1.6,(IF(AND(S34="柱",S41=0.8),1,0)))) ->  | T64: =IF(T47=" "," ",IF(AND(T34="柱",T41=0.5),1.6,(IF(AND(T34="柱",T41=0.8),1,0)))) -> 
B65: N | C65: N値平家 | D65: =IF(D63<1,(D59-D60+D61)*D62-D63,"") ->  | J65: =IF(J63<1,(J59-J60+J61)*J62-J63,"") ->  | P65: =IF(P63<1,(P59-P60+P61)*P62-P63,"") ->  | S65: 0.65 | T65: =IF(T63<1,(T59-T60+T61)*T62-T63,"") -> 1.6
C66: N値2階 | D66: =IF(OR(D64=" ",D64=0),"",(D59-D60+D61)*D62+D58-D64) ->  | E66: =IF(OR(E64=" ",E64=0),"",(E59-E60+E61)*E62+E58-E64) ->  | J66: =IF(OR(J64=" ",J64=0),"",(J59-J60+J61)*J62+J58-J64) -> 3 | K66: 0.9 | L66: =IF(OR(L64=" ",L64=0),"",(L59-L60+L61)*L62+L58-L64) ->  | M66: =IF(OR(M64=" ",M64=0),"",(M59-M60+M61)*M62+M58-M64) -> 0.9 | N66: 0.9 | P66: -0.35 | Q66: 0.9 | R66: 1.65
C67: N値数値大 | D67: =IF(AND(D65="",D66="")," ",MAX(D65,D66)) ->  | E67: =IF(AND(E65="",E66="")," ",MAX(E65,E66)) ->  | I67: =IF(AND(I65="",I66="")," ",MAX(I65,I66)) ->  | J67: =IF(AND(J65="",J66="")," ",MAX(J65,J66)) -> 3 | K67: =IF(AND(K65="",K66="")," ",MAX(K65,K66)) -> 0.9 | M67: 0.9 | N67: 0.9 | P67: -0.35 | Q67: 0.9 | R67: 1.65 | S67: 0.65 | T67: 1.6
C68: 最終N値（1階、2階で数値大） | D68: =IF(D67=" "," ",IF(D57>0,MAX(C25,E25,D67),MAX(D67,D25))) ->  | J68: =IF(J67=" "," ",IF(J57>0,MAX(I25,K25,J67),MAX(J67,J25))) -> 3 | K68: =IF(K67=" "," ",IF(K57>0,MAX(J25,L25,K67),MAX(K67,K25))) -> 1.6 | L68: =IF(L67=" "," ",IF(L57>0,MAX(K25,M25,L67),MAX(L67,L25))) ->  | M68: 0.9 | N68: 0.9 | P68: 0.65 | Q68: 0.9 | R68: 1.65 | S68: 0.65 | T68: 1.6
C69: 金物 | D69: =IF(D68=""," ",IF(D68<=0,"い",IF(D68<=0.65,"ろ",IF(D68<=1,"は",IF(D68<=1.4,"に",IF(D68<=1.6,"ほ",IF(D68<=1.8,"へ",IF(D68<=2.8,"と",IF(D68<=3.7,"ち",IF(D68<=4.7,"り",IF(D68<=5.6,"ぬ",IF(D68>5.6," ")))))))))))) ->  | E69: =IF(E68=""," ",IF(E68<=0,"い",IF(E68<=0.65,"ろ",IF(E68<=1,"は",IF(E68<=1.4,"に",IF(E68<=1.6,"ほ",IF(E68<=1.8,"へ",IF(E68<=2.8,"と",IF(E68<=3.7,"ち",IF(E68<=4.7,"り",IF(E68<=5.6,"ぬ",IF(E68>5.6," ")))))))))))) ->  | J69: ち | K69: ほ | M69: は | N69: は | P69: ろ | Q69: は | R69: へ | S69: ろ | T69: ほ

Sheet 梁間軸組 (hidden)
S3: A1 | V3: B1 | W3: L | X3: N | Y3: 金物 | BE3: A1 | BH3: B1 | BI3: L | BK3: N | BL3: N | BO3: 金物
E4: =IF(OR(COUNTIF(C4:C5,"→*")>0,COUNTIF(C4:D4,"↓*")>0,COUNTIF(C5:D5,"↑*")>0,COUNTIF(D4:D5,"←*")>0,COUNTIF(D5,"｀柱")>0),"柱","無") -> 無 | F4: =IF(ColorCount(C4:D4,$B$3)<2,IFERROR(VLOOKUP(C4,$B$28:$C$34,2,0),"0")," ") ->  | G4: =IF(ColorCount(C4:D4,$B$3)<2,IFERROR(VLOOKUP(D4,$H$28:$I$34,2,0),"0")," ") ->  | H4: =IF(F4=" ","",F4+G4) ->  | I4: =IF(F4=" ",0,VLOOKUP(F4+G4,$C$28:$D$34,2,0)) -> 0 | J4: =IF(F4=" ","無",VLOOKUP(F4+G4,$C$28:$D$34,2,0)) -> 無 | K4: =IF(I4=0,"",VLOOKUP(H4,$C$28:$E$34,3,0)) ->  | L4: =IF(ColorCount(C4:D5,$B$4)=3,0.8,IF(AND(I5=0,I4=0),"",0.5)) ->  | M4: =IF(OR(AND(J5="左",OR(J4="面材",J4="無")),AND(OR(J5="面材",J5="無"),J4="右")),-0.5,"") ->  | N4: =IF(OR(AND(J5="右",OR(J4="面材",J4="無")),AND(OR(J5="面材",J5="無"),J4="左")),0.5,"") ->  | O4: =IF(OR(AND(J5="右",J4="右"),AND(J5="左",J4="左"),AND(J5="右",J4="左"),AND(J5="左",J4="右")),1,"") ->  | P4: =IF(OR(AND(J5="タスキ",OR(J4="右",J4="左")),AND(OR(J5="右",J5="左"),J4="タスキ")),0.5,"") ->  | Q4: =IF(L4=""," ",IF(AND(OR(R4="",R4="無"),E4="柱"),"↓柱",R4)) ->  | R4: =IF(H4="","",VLOOKUP(H4,$C$28:$F$34,4,0)) ->  | S4: =IF(L4="","",MAX(K5,K4)) ->  | T4: =IF(L4="","",MINA(K5,K4)) ->  | U4: =IF(L4="","",SUM(M4:P4)) ->  | V4: =IF(AND(S4=0,T4=0,E4="無"),"",L4) ->  | W4: =IF(V4="","",IF(V4=0.8,0.4,(IF(V4=0.5,0.6,0)))) ->  | X4: =IF(W4="","",(S4-T4+U4)*V4-W4) ->  | Y4: =IF(X4=""," ",IF(X4<=0,"い",IF(X4<=0.65,"ろ",IF(X4<=1,"は",IF(X4<=1.4,"に",IF(X4<=1.6,"ほ",IF(X4<=1.8,"へ",IF(X4<=2.8,"と",IF(X4<=3.7,"ち",IF(X4<=4.7,"り",IF(X4<=5.6,"ぬ",IF(X4>5.6," ")))))))))))) ->  | AF4: =IF(OR(COUNTIF(AD4:AD5,"→*")>0,COUNTIF(AD4:AE4,"↓*")>0,COUNTIF(AD5:AE5,"↑*")>0,COUNTIF(AE4:AE5,"←*")>0,COUNTIF(AE5,"｀柱")>0),"柱","無") -> 無 | AG4: =IF(ColorCount(AD4:AE4,$AC$3)<2,IFERROR(VLOOKUP(AD4,$B$28:$C$34,2,0),"0")," ") ->  | AH4: =IF(ColorCount(AD4:AE4,$AC$3)<2,IFERROR(VLOOKUP(AE4,$H$28:$I$34,2,0),"0")," ") ->  | AI4: =IF(AG4=" ","",AG4+AH4) ->  | AJ4: =IF(AG4=" ",0,VLOOKUP(AG4+AH4,$C$28:$D$34,2,0)) -> 0 | AK4: =IF(AG4=" ","無",VLOOKUP(AG4+AH4,$C$28:$D$34,2,0)) -> 無 | AL4: =IF(AJ4=0,"",VLOOKUP(AI4,$C$28:$E$34,3,0)) ->  | AM4: =IF(ColorCount(AD4:AE5,$AC$4)=3,0.8,IF(AND(AJ5=0,AJ4=0),"",0.5)) ->  | AN4: =IF(OR(AND(AK5="左",OR(AK4="面材",AK4="無")),AND(OR(AK5="面材",AK5="無"),AK4="右")),-0.5,"") ->  | AO4: =IF(OR(AND(AK5="右",OR(AK4="面材",AK4="無")),AND(OR(AK5="面材",AK5="無"),AK4="左")),0.5,"") ->  | AP4: =IF(OR(AND(AK5="右",AK4="右"),AND(AK5="左",AK4="左"),AND(AK5="右",AK4="左"),AND(AK5="左",AK4="右")),1,"") ->  | AQ4: =IF(OR(AND(AK5="タスキ",OR(AK4="右",AK4="左")),AND(OR(AK5="右",AK5="左"),AK4="タスキ")),0.5,"") ->  | AR4: =IF(AI4="","",VLOOKUP(AI4,$C$28:$F$34,4,0)) ->  | AS4: =Q4 ->  | AT4: =IF(AM4=""," ",IF(AND(OR(AR4="",AR4="無"),AF4="柱"),"↓柱",AR4)) ->  | AV4: =IF(AND(AND(AS4<>"無",AS4<>"↓柱"),AT4="↓柱",AT3="無"),#REF!,0) -> 0 | AW4: =IF(AND(AND(AS5<>"無",AS5<>"↓柱"),AT5="無",AT4<>"無"),BB5,0) -> 0 | AX4: =IF(AND(OR(AS5="無",AS5="↓柱"),AS4="無",AND(AS3<>"無",AS3<>"↓柱"),OR(AT5="無",AT5="↓柱"),AT4="↓柱",AT3="無"),#REF!,0) -> 0 | AY4: =IF(AND(AND(AS6<>"無",AS6<>"↓柱"),AS5="↓柱",OR(AS4="無",AS4="↓柱"),OR(AT6="無",AT6="↓柱"),AT5="無",AT4="↓柱"),BB5,0) -> 0 | AZ4: =IF(AND(AND(AS6<>"無",AS6<>"↓柱"),AS5="↓柱",AND(AT4<>"無",AT4<>"↓柱"),OR(AT6="無",AT6="↓柱"),AT5="無"),BB5,0) -> 0 | BA4: =IF(AND(OR(AS4="無",AS4="↓柱"),AND(AS3<>"無",AS3<>"↓柱"),AND(AT5<>"無",AT5<>"↓柱"),AT4="↓柱",AT3="無"),#REF!,0) -> 0 | BB4: =IF(X4="","",(S4-T4+U4)*V4) ->  | BC4: =IF(BE4="","",MAX(AV4:BA4)) ->  | BD4: =IF(BE4="","",MAX(BB4:BC4)) ->  | BE4: =IF(AM4="","",MAX(AL5,AL4)) ->  | BF4: =IF(AM4="","",MINA(AL5,AL4)) ->  | BG4: =IF(AM4="","",SUM(AN4:AQ4)) ->  | BH4: =IF(AND(BE4=0,BF4=0,AF4="無"),0,AM4) ->  | BI4: =IF(AS4<>" "," ",IF(BH4=0.8,0.4,(IF(BH4=0.5,0.6," ")))) ->  | BJ4: =IF(AS4=" "," ",IF(AND(AF4="柱",AM4=0.5),1.6,(IF(AND(AF4="柱",AM4=0.8),1,0)))) ->  | BK4: =IF(BI4<1,(BE4-BF4+BG4)*BH4-BI4,"") ->  | BL4: =IF(OR(BJ4=" ",BJ4=0),"",(BE4-BF4+BG4)*BH4+BD4-BJ4) ->  | BM4: =IF(AND(BK4="",BL4="")," ",MAX(BK4,BL4)) ->  | BN4: =IF(BM4=" "," ",IF(BC4>0,MAX(X3,X5,BM4),MAX(X4,BM4))) ->  | BO4: =IF(BN4=""," ",IF(BN4<=0,"い",IF(BN4<=0.65,"ろ",IF(BN4<=1,"は",IF(BN4<=1.4,"に",IF(BN4<=1.6,"ほ",IF(BN4<=1.8,"へ",IF(BN4<=2.8,"と",IF(BN4<=3.7,"ち",IF(BN4<=4.7,"り",IF(BN4<=5.6,"ぬ",IF(BN4>5.6," ")))))))))))) -> 
E5: =IF(OR(COUNTIF(C5:C6,"→*")>0,COUNTIF(C5:D5,"↓*")>0,COUNTIF(C6:D6,"↑*")>0,COUNTIF(D5:D6,"←*")>0,COUNTIF(D6,"｀柱")>0),"柱","無") -> 無 | F5: =IF(ColorCount(C5:D5,$B$3)<2,IFERROR(VLOOKUP(C5,$B$28:$C$34,2,0),"0")," ") ->  | G5: =IF(ColorCount(C5:D5,$B$3)<2,IFERROR(VLOOKUP(D5,$H$28:$I$34,2,0),"0")," ") ->  | H5: =IF(F5=" ","",F5+G5) ->  | I5: 0 | J5: 無 | L5: =IF(ColorCount(C5:D6,$B$4)=3,0.8,IF(AND(I6=0,I5=0),"",0.5)) ->  | M5: =IF(OR(AND(J6="左",OR(J5="面材",J5="無")),AND(OR(J6="面材",J6="無"),J5="右")),-0.5,"") ->  | N5: =IF(OR(AND(J6="右",OR(J5="面材",J5="無")),AND(OR(J6="面材",J6="無"),J5="左")),0.5,"") ->  | O5: =IF(OR(AND(J6="右",J5="右"),AND(J6="左",J5="左"),AND(J6="右",J5="左"),AND(J6="左",J5="右")),1,"") ->  | P5: =IF(OR(AND(J6="タスキ",OR(J5="右",J5="左")),AND(OR(J6="右",J6="左"),J5="タスキ")),0.5,"") ->  | T5: =IF(L5="","",MINA(K6,K5)) ->  | AF5: =IF(OR(COUNTIF(AD5:AD6,"→*")>0,COUNTIF(AD5:AE5,"↓*")>0,COUNTIF(AD6:AE6,"↑*")>0,COUNTIF(AE5:AE6,"←*")>0,COUNTIF(AE6,"｀柱")>0),"柱","無") -> 無 | AG5: =IF(ColorCount(AD5:AE5,$AC$3)<2,IFERROR(VLOOKUP(AD5,$B$28:$C$34,2,0),"0")," ") ->  | AH5: =IF(ColorCount(AD5:AE5,$AC$3)<2,IFERROR(VLOOKUP(AE5,$H$28:$I$34,2,0),"0")," ") ->  | AI5: =IF(AG5=" ","",AG5+AH5) ->  | AJ5: 0 | AK5: 無 | AM5: =IF(ColorCount(AD5:AE6,$AC$4)=3,0.8,IF(AND(AJ6=0,AJ5=0),"",0.5)) ->  | AV5: =IF(AND(AND(AS5<>"無",AS5<>"↓柱"),AT5="↓柱",AT4="無"),BB4,0) -> 0 | AW5: 0 | AX5: =IF(AND(OR(AS6="無",AS6="↓柱"),AS5="無",AND(AS4<>"無",AS4<>"↓柱"),OR(AT6="無",AT6="↓柱"),AT5="↓柱",AT4="無"),BB4,0) -> 0 | AY5: 0 | AZ5: 0 | BA5: =IF(AND(OR(AS5="無",AS5="↓柱"),AND(AS4<>"無",AS4<>"↓柱"),AND(AT6<>"無",AT6<>"↓柱"),AT5="↓柱",AT4="無"),BB4,0) -> 0
E6: 無 | F6: =IF(ColorCount(C6:D6,$B$3)<2,IFERROR(VLOOKUP(C6,$B$28:$C$34,2,0),"0")," ") ->  | G6: =IF(ColorCount(C6:D6,$B$3)<2,IFERROR(VLOOKUP(D6,$H$28:$I$34,2,0),"0")," ") ->  | I6: 0 | J6: 無 | L6: =IF(ColorCount(C6:D7,$B$4)=3,0.8,IF(AND(I7=0,I6=0),"",0.5)) ->  | T6: =IF(L6="","",MINA(K7,K6)) ->  | AF6: 無 | AG6: =IF(ColorCount(AD6:AE6,$AC$3)<2,IFERROR(VLOOKUP(AD6,$B$28:$C$34,2,0),"0")," ") ->  | AH6: =IF(ColorCount(AD6:AE6,$AC$3)<2,IFERROR(VLOOKUP(AE6,$H$28:$I$34,2,0),"0")," ") ->  | AJ6: 0 | AK6: 無 | AM6: =IF(ColorCount(AD6:AE7,$AC$4)=3,0.8,IF(AND(AJ7=0,AJ6=0),"",0.5)) ->  | AV6: 0 | AW6: 0 | AX6: 0 | AY6: 0 | AZ6: 0 | BA6: 0
D7: ↓え | E7: 柱 | F7: =IF(ColorCount(C7:D7,$B$3)<2,IFERROR(VLOOKUP(C7,$B$28:$C$34,2,0),"0")," ") ->  | G7: =IF(ColorCount(C7:D7,$B$3)<2,IFERROR(VLOOKUP(D7,$H$28:$I$34,2,0),"0")," ") ->  | I7: =IF(F7=" ",0,VLOOKUP(F7+G7,$C$28:$D$34,2,0)) -> 0 | J7: 無 | L7: =IF(ColorCount(C7:D8,$B$4)=3,0.8,IF(AND(I8=0,I7=0),"",0.5)) -> 0.5 | M7: -0.5 | N7: =IF(OR(AND(J8="右",OR(J7="面材",J7="無")),AND(OR(J8="面材",J8="無"),J7="左")),0.5,"") ->  | Q7: ↓柱 | S7: 2 | T7: =IF(L7="","",MINA(K8,K7)) -> 0 | U7: -0.5 | V7: 0.5 | W7: 0.6 | X7: 0.15 | Y7: ろ | AD7: ↓え | AF7: 柱 | AG7: =IF(ColorCount(AD7:AE7,$AC$3)<2,IFERROR(VLOOKUP(AD7,$B$28:$C$34,2,0),"0")," ") ->  | AH7: =IF(ColorCount(AD7:AE7,$AC$3)<2,IFERROR(VLOOKUP(AE7,$H$28:$I$34,2,0),"0")," ") ->  | AJ7: 0 | AK7: 無 | AM7: =IF(ColorCount(AD7:AE8,$AC$4)=3,0.8,IF(AND(AJ8=0,AJ7=0),"",0.5)) -> 0.5 | AN7: -0.5 | AS7: ↓柱 | AT7: ↓柱 | AV7: 0 | AW7: 0 | AX7: 0 | AY7: 0 | AZ7: 0 | BA7: 0 | BB7: 0.75 | BC7: 0 | BD7: 0.75 | BE7: 2 | BF7: 0 | BG7: -0.5 | BH7: 0.5 | BJ7: 1.6 | BL7: -0.1 | BM7: -0.1 | BN7: 0.15 | BO7: ろ
D8: ←い | E8: 柱 | F8: =IF(ColorCount(C8:D8,$B$3)<2,IFERROR(VLOOKUP(C8,$B$28:$C$34,2,0),"0")," ") -> 0 | G8: =IF(ColorCount(C8:D8,$B$3)<2,IFERROR(VLOOKUP(D8,$H$28:$I$34,2,0),"0")," ") -> 2 | H8: 2 | I8: 左 | J8: 左 | K8: 2 | L8: =IF(ColorCount(C8:D9,$B$4)=3,0.8,IF(AND(I9=0,I8=0),"",0.5)) -> 0.5 | O8: 1 | Q8: =IF(L8=""," ",IF(AND(OR(R8="",R8="無"),E8="柱"),"↓柱",R8)) -> 左上 | R8: 左上 | S8: 2 | T8: =IF(L8="","",MINA(K9,K8)) -> 2 | U8: 1 | V8: 0.5 | W8: 0.6 | X8: -0.1 | Y8: い | AE8: ←い | AF8: 柱 | AG8: =IF(ColorCount(AD8:AE8,$AC$3)<2,IFERROR(VLOOKUP(AD8,$B$28:$C$34,2,0),"0")," ") -> 0 | AH8: =IF(ColorCount(AD8:AE8,$AC$3)<2,IFERROR(VLOOKUP(AE8,$H$28:$I$34,2,0),"0")," ") -> 2 | AI8: 2 | AJ8: 左 | AK8: 左 | AL8: 2 | AM8: =IF(ColorCount(AD8:AE9,$AC$4)=3,0.8,IF(AND(AJ9=0,AJ8=0),"",0.5)) -> 0.5 | AP8: 1 | AR8: 左上 | AS8: 左上 | AT8: 左上 | AV8: 0 | AW8: 0 | AX8: 0 | AY8: 0 | AZ8: 0 | BA8: 0 | BB8: 0.5 | BC8: 0 | BD8: =IF(BE8="","",MAX(BB8:BC8)) -> 0.5 | BE8: 2 | BF8: 2 | BG8: 1 | BH8: 0.5 | BJ8: 1.6 | BK8: =IF(BI8<1,(BE8-BF8+BG8)*BH8-BI8,"") ->  | BL8: -0.6 | BM8: -0.6 | BN8: =IF(BM8=" "," ",IF(BC8>0,MAX(X7,X9,BM8),MAX(X8,BM8))) -> -0.1 | BO8: い
D9: ←あ | E9: 柱 | F9: =IF(ColorCount(C9:D9,$B$3)<2,IFERROR(VLOOKUP(C9,$B$28:$C$34,2,0),"0")," ") -> 0 | G9: =IF(ColorCount(C9:D9,$B$3)<2,IFERROR(VLOOKUP(D9,$H$28:$I$34,2,0),"0")," ") -> 1 | H9: 1 | I9: 右 | J9: 右 | K9: 2 | L9: =IF(ColorCount(C9:D10,$B$4)=3,0.8,IF(AND(I10=0,I9=0),"",0.5)) -> 0.5 | M9: -0.5 | Q9: =IF(L9=""," ",IF(AND(OR(R9="",R9="無"),E9="柱"),"↓柱",R9)) -> 右上 | R9: 右上 | S9: 2 | T9: 0 | U9: -0.5 | V9: 0.5 | W9: 0.6 | X9: 0.15 | Y9: ろ | AE9: ←あ | AF9: 柱 | AG9: =IF(ColorCount(AD9:AE9,$AC$3)<2,IFERROR(VLOOKUP(AD9,$B$28:$C$34,2,0),"0")," ") -> 0 | AH9: =IF(ColorCount(AD9:AE9,$AC$3)<2,IFERROR(VLOOKUP(AE9,$H$28:$I$34,2,0),"0")," ") -> 1 | AI9: 1 | AJ9: 右 | AK9: 右 | AL9: 2 | AM9: =IF(ColorCount(AD9:AE10,$AC$4)=3,0.8,IF(AND(AJ10=0,AJ9=0),"",0.5)) -> 0.5 | AN9: -0.5 | AR9: 右上 | AS9: 右上 | AT9: 右上 | AV9: 0 | AW9: 0 | AX9: 0 | AY9: 0 | AZ9: 0 | BA9: 0 | BB9: 0.75 | BC9: 0 | BD9: =IF(BE9="","",MAX(BB9:BC9)) -> 0.75 | BE9: 2 | BF9: 0 | BG9: -0.5 | BH9: 0.5 | BJ9: 1.6 | BL9: -0.1 | BM9: -0.1 | BN9: =IF(BM9=" "," ",IF(BC9>0,MAX(X8,X10,BM9),MAX(X9,BM9))) -> 0.15 | BO9: ろ
C10: ↑い | E10: 柱 | F10: =IF(ColorCount(C10:D10,$B$3)<2,IFERROR(VLOOKUP(C10,$B$28:$C$34,2,0),"0")," ") -> 0 | G10: =IF(ColorCount(C10:D10,$B$3)<2,IFERROR(VLOOKUP(D10,$H$28:$I$34,2,0),"0")," ") -> 0 | H10: 0 | I10: 無 | J10: 無 | K10: 0 | L10: =IF(ColorCount(C10:D11,$B$4)=3,0.8,IF(AND(I11=0,I10=0),"",0.5)) -> 0.5 | Q10: ↓柱 | R10: 無 | S10: =IF(L10="","",MAX(K11,K10)) -> 0 | T10: 0 | U10: 0 | V10: 0.5 | W10: 0.6 | X10: -0.6 | Y10: い | AD10: ↑い | AF10: 無 | AG10: =IF(ColorCount(AD10:AE10,$AC$3)<2,IFERROR(VLOOKUP(AD10,$B$28:$C$34,2,0),"0")," ") -> 0 | AH10: =IF(ColorCount(AD10:AE10,$AC$3)<2,IFERROR(VLOOKUP(AE10,$H$28:$I$34,2,0),"0")," ") -> 0 | AI10: 0 | AJ10: 無 | AK10: 無 | AL10: 0 | AM10: =IF(ColorCount(AD10:AE11,$AC$4)=3,0.8,IF(AND(AJ11=0,AJ10=0),"",0.5)) -> 0.5 | AR10: 無 | AS10: ↓柱 | AT10: 無 | AV10: 0 | AW10: 0 | AX10: 0 | AY10: 0 | AZ10: 0 | BA10: 0 | BB10: 0 | BC10: 0 | BD10: 0 | BE10: 0 | BF10: 0 | BG10: 0 | BH10: =IF(AND(BE10=0,BF10=0,AF10="無"),0,AM10) -> 0 | BJ10: 0
D11: ｀柱 | E11: 無 | F11: =IF(ColorCount(C11:D11,$B$3)<2,IFERROR(VLOOKUP(C11,$B$28:$C$34,2,0),"0")," ") -> 0 | G11: =IF(ColorCount(C11:D11,$B$3)<2,IFERROR(VLOOKUP(D11,$H$28:$I$34,2,0),"0")," ") -> 0 | H11: 0 | I11: 無 | J11: 無 | K11: 0 | L11: =IF(ColorCount(C11:D12,$B$4)=3,0.8,IF(AND(I12=0,I11=0),"",0.5)) -> 0.5 | Q11: 無 | R11: 無 | S11: 0 | T11: 0 | U11: 0 | W11: =IF(V11="","",IF(V11=0.8,0.4,(IF(V11=0.5,0.6,0)))) ->  | AF11: 無 | AG11: =IF(ColorCount(AD11:AE11,$AC$3)<2,IFERROR(VLOOKUP(AD11,$B$28:$C$34,2,0),"0")," ") -> 0 | AH11: =IF(ColorCount(AD11:AE11,$AC$3)<2,IFERROR(VLOOKUP(AE11,$H$28:$I$34,2,0),"0")," ") -> 0 | AI11: 0 | AJ11: 無 | AK11: 無 | AL11: 0 | AM11: =IF(ColorCount(AD11:AE12,$AC$4)=3,0.8,IF(AND(AJ12=0,AJ11=0),"",0.5)) -> 0.5 | AR11: 無 | AS11: 無 | AT11: 無 | AV11: 0 | AW11: 0 | AX11: 0 | AY11: 0 | AZ11: 0 | BA11: 0 | BC11: 0 | BD11: 0 | BE11: 0 | BF11: 0 | BG11: 0 | BH11: =IF(AND(BE11=0,BF11=0,AF11="無"),0,AM11) -> 0 | BJ11: 0
E12: 柱 | F12: =IF(ColorCount(C12:D12,$B$3)<2,IFERROR(VLOOKUP(C12,$B$28:$C$34,2,0),"0")," ") -> 0 | G12: =IF(ColorCount(C12:D12,$B$3)<2,IFERROR(VLOOKUP(D12,$H$28:$I$34,2,0),"0")," ") -> 0 | H12: 0 | I12: 無 | J12: 無 | K12: 0 | L12: =IF(ColorCount(C12:D13,$B$4)=3,0.8,IF(AND(I13=0,I12=0),"",0.5)) -> 0.5 | N12: 0.5 | Q12: ↓柱 | R12: 無 | S12: =IF(L12="","",MAX(K13,K12)) -> 2 | T12: 0 | U12: 0.5 | V12: =IF(AND(S12=0,T12=0,E12="無"),"",L12) -> 0.5 | W12: =IF(V12="","",IF(V12=0.8,0.4,(IF(V12=0.5,0.6,0)))) -> 0.6 | X12: =IF(W12="","",(S12-T12+U12)*V12-W12) -> 0.65 | Y12: ろ | AF12: 柱 | AG12: =IF(ColorCount(AD12:AE12,$AC$3)<2,IFERROR(VLOOKUP(AD12,$B$28:$C$34,2,0),"0")," ") -> 0 | AH12: =IF(ColorCount(AD12:AE12,$AC$3)<2,IFERROR(VLOOKUP(AE12,$H$28:$I$34,2,0),"0")," ") -> 0 | AI12: 0 | AJ12: 無 | AK12: 無 | AL12: 0 | AM12: =IF(ColorCount(AD12:AE13,$AC$4)=3,0.8,IF(AND(AJ13=0,AJ12=0),"",0.5)) -> 0.5 | AO12: 0.5 | AR12: 無 | AS12: ↓柱 | AT12: ↓柱 | AV12: 0 | AW12: 0 | AX12: 0 | AY12: 0 | AZ12: 0 | BA12: 0 | BB12: =IF(X12="","",(S12-T12+U12)*V12) -> 1.25 | BC12: 0 | BD12: 1.25 | BE12: 2 | BF12: 0 | BG12: 0.5 | BH12: 0.5 | BJ12: 1.6 | BL12: 0.9 | BM12: 0.9 | BN12: 0.9 | BO12: は
D13: ←あ | E13: 柱 | F13: =IF(ColorCount(C13:D13,$B$3)<2,IFERROR(VLOOKUP(C13,$B$28:$C$34,2,0),"0")," ") -> 0 | G13: =IF(ColorCount(C13:D13,$B$3)<2,IFERROR(VLOOKUP(D13,$H$28:$I$34,2,0),"0")," ") -> 1 | H13: 1 | I13: 右 | J13: 右 | K13: 2 | L13: =IF(ColorCount(C13:D14,$B$4)=3,0.8,IF(AND(I14=0,I13=0),"",0.5)) -> 0.5 | M13: -0.5 | Q13: 右上 | R13: 右上 | S13: 2 | T13: 0 | U13: -0.5 | V13: =IF(AND(S13=0,T13=0,E13="無"),"",L13) -> 0.5 | W13: 0.6 | X13: =IF(W13="","",(S13-T13+U13)*V13-W13) -> 0.15 | Y13: ろ | AE13: ←あ | AF13: 柱 | AG13: =IF(ColorCount(AD13:AE13,$AC$3)<2,IFERROR(VLOOKUP(AD13,$B$28:$C$34,2,0),"0")," ") -> 0 | AH13: =IF(ColorCount(AD13:AE13,$AC$3)<2,IFERROR(VLOOKUP(AE13,$H$28:$I$34,2,0),"0")," ") -> 1 | AI13: 1 | AJ13: 右 | AK13: 右 | AL13: 2 | AM13: =IF(ColorCount(AD13:AE14,$AC$4)=3,0.8,IF(AND(AJ14=0,AJ13=0),"",0.5)) -> 0.5 | AN13: -0.5 | AR13: 右上 | AS13: 右上 | AT13: 右上 | AV13: 0 | AW13: 0 | AX13: 0 | AY13: 0 | AZ13: 0 | BA13: 0 | BB13: =IF(X13="","",(S13-T13+U13)*V13) -> 0.75 | BC13: 0 | BD13: 0.75 | BE13: =IF(AM13="","",MAX(AL14,AL13)) -> 2 | BF13: 0 | BG13: -0.5 | BH13: 0.5 | BJ13: 1.6 | BK13: =IF(BI13<1,(BE13-BF13+BG13)*BH13-BI13,"") ->  | BL13: -0.1 | BM13: -0.1 | BN13: 0.15 | BO13: ろ
C14: ↑え | E14: 無 | F14: =IF(ColorCount(C14:D14,$B$3)<2,IFERROR(VLOOKUP(C14,$B$28:$C$34,2,0),"0")," ") ->  | G14: =IF(ColorCount(C14:D14,$B$3)<2,IFERROR(VLOOKUP(D14,$H$28:$I$34,2,0),"0")," ") ->  | I14: 0 | J14: 無 | L14: =IF(ColorCount(C14:D15,$B$4)=3,0.8,IF(AND(I15=0,I14=0),"",0.5)) ->  | AD14: ↑え | AF14: 無 | AG14: =IF(ColorCount(AD14:AE14,$AC$3)<2,IFERROR(VLOOKUP(AD14,$B$28:$C$34,2,0),"0")," ") ->  | AH14: =IF(ColorCount(AD14:AE14,$AC$3)<2,IFERROR(VLOOKUP(AE14,$H$28:$I$34,2,0),"0")," ") ->  | AJ14: 0 | AK14: 無 | AM14: =IF(ColorCount(AD14:AE15,$AC$4)=3,0.8,IF(AND(AJ15=0,AJ14=0),"",0.5)) ->  | AV14: 0 | AW14: 0 | AX14: 0 | AY14: 0 | AZ14: 0 | BA14: 0
E15: 無 | F15: =IF(ColorCount(C15:D15,$B$3)<2,IFERROR(VLOOKUP(C15,$B$28:$C$34,2,0),"0")," ") ->  | G15: =IF(ColorCount(C15:D15,$B$3)<2,IFERROR(VLOOKUP(D15,$H$28:$I$34,2,0),"0")," ") ->  | I15: 0 | J15: 無 | L15: =IF(ColorCount(C15:D16,$B$4)=3,0.8,IF(AND(I16=0,I15=0),"",0.5)) ->  | AF15: 無 | AG15: =IF(ColorCount(AD15:AE15,$AC$3)<2,IFERROR(VLOOKUP(AD15,$B$28:$C$34,2,0),"0")," ") ->  | AH15: =IF(ColorCount(AD15:AE15,$AC$3)<2,IFERROR(VLOOKUP(AE15,$H$28:$I$34,2,0),"0")," ") ->  | AJ15: 0 | AK15: 無 | AM15: =IF(ColorCount(AD15:AE16,$AC$4)=3,0.8,IF(AND(AJ16=0,AJ15=0),"",0.5)) ->  | AV15: 0 | AW15: 0 | AX15: 0 | AY15: 0 | AZ15: 0 | BA15: 0
E16: 無 | F16: =IF(ColorCount(C16:D16,$B$3)<2,IFERROR(VLOOKUP(C16,$B$28:$C$34,2,0),"0")," ") ->  | G16: =IF(ColorCount(C16:D16,$B$3)<2,IFERROR(VLOOKUP(D16,$H$28:$I$34,2,0),"0")," ") ->  | I16: 0 | J16: 無 | L16: =IF(ColorCount(C16:D17,$B$4)=3,0.8,IF(AND(I17=0,I16=0),"",0.5)) ->  | AF16: 無 | AG16: =IF(ColorCount(AD16:AE16,$AC$3)<2,IFERROR(VLOOKUP(AD16,$B$28:$C$34,2,0),"0")," ") ->  | AH16: =IF(ColorCount(AD16:AE16,$AC$3)<2,IFERROR(VLOOKUP(AE16,$H$28:$I$34,2,0),"0")," ") ->  | AJ16: 0 | AK16: 無 | AM16: =IF(ColorCount(AD16:AE17,$AC$4)=3,0.8,IF(AND(AJ17=0,AJ16=0),"",0.5)) ->  | AV16: 0 | AW16: 0 | AX16: 0 | AY16: 0 | AZ16: 0 | BA16: 0
E17: 無 | F17: =IF(ColorCount(C17:D17,$B$3)<2,IFERROR(VLOOKUP(C17,$B$28:$C$34,2,0),"0")," ") ->  | G17: =IF(ColorCount(C17:D17,$B$3)<2,IFERROR(VLOOKUP(D17,$H$28:$I$34,2,0),"0")," ") ->  | I17: 0 | J17: 無 | L17: =IF(ColorCount(C17:D18,$B$4)=3,0.8,IF(AND(I18=0,I17=0),"",0.5)) ->  | AF17: 無 | AG17: =IF(ColorCount(AD17:AE17,$AC$3)<2,IFERROR(VLOOKUP(AD17,$B$28:$C$34,2,0),"0")," ") ->  | AH17: =IF(ColorCount(AD17:AE17,$AC$3)<2,IFERROR(VLOOKUP(AE17,$H$28:$I$34,2,0),"0")," ") ->  | AJ17: 0 | AK17: 無 | AM17: =IF(ColorCount(AD17:AE18,$AC$4)=3,0.8,IF(AND(AJ18=0,AJ17=0),"",0.5)) ->  | AV17: 0 | AW17: 0 | AX17: 0 | AY17: 0 | AZ17: 0 | BA17: 0
E18: 無 | F18: =IF(ColorCount(C18:D18,$B$3)<2,IFERROR(VLOOKUP(C18,$B$28:$C$34,2,0),"0")," ") ->  | G18: =IF(ColorCount(C18:D18,$B$3)<2,IFERROR(VLOOKUP(D18,$H$28:$I$34,2,0),"0")," ") ->  | I18: 0 | J18: 無 | L18: =IF(ColorCount(C18:D19,$B$4)=3,0.8,IF(AND(I19=0,I18=0),"",0.5)) ->  | AF18: 無 | AG18: =IF(ColorCount(AD18:AE18,$AC$3)<2,IFERROR(VLOOKUP(AD18,$B$28:$C$34,2,0),"0")," ") ->  | AH18: =IF(ColorCount(AD18:AE18,$AC$3)<2,IFERROR(VLOOKUP(AE18,$H$28:$I$34,2,0),"0")," ") ->  | AJ18: 0 | AK18: 無 | AM18: =IF(ColorCount(AD18:AE19,$AC$4)=3,0.8,IF(AND(AJ19=0,AJ18=0),"",0.5)) ->  | AV18: 0 | AW18: 0 | AX18: 0 | AY18: 0 | AZ18: 0 | BA18: 0
E19: 無 | F19: =IF(ColorCount(C19:D19,$B$3)<2,IFERROR(VLOOKUP(C19,$B$28:$C$34,2,0),"0")," ") ->  | G19: =IF(ColorCount(C19:D19,$B$3)<2,IFERROR(VLOOKUP(D19,$H$28:$I$34,2,0),"0")," ") ->  | I19: 0 | J19: 無 | L19: =IF(ColorCount(C19:D20,$B$4)=3,0.8,IF(AND(I20=0,I19=0),"",0.5)) ->  | AF19: 無 | AG19: =IF(ColorCount(AD19:AE19,$AC$3)<2,IFERROR(VLOOKUP(AD19,$B$28:$C$34,2,0),"0")," ") ->  | AH19: =IF(ColorCount(AD19:AE19,$AC$3)<2,IFERROR(VLOOKUP(AE19,$H$28:$I$34,2,0),"0")," ") ->  | AJ19: 0 | AK19: 無 | AM19: =IF(ColorCount(AD19:AE20,$AC$4)=3,0.8,IF(AND(AJ20=0,AJ19=0),"",0.5)) ->  | AV19: 0 | AW19: 0 | AX19: 0 | AY19: 0 | AZ19: 0 | BA19: 0
E20: 無 | F20: =IF(ColorCount(C20:D20,$B$3)<2,IFERROR(VLOOKUP(C20,$B$28:$C$34,2,0),"0")," ") ->  | G20: =IF(ColorCount(C20:D20,$B$3)<2,IFERROR(VLOOKUP(D20,$H$28:$I$34,2,0),"0")," ") ->  | I20: =IF(F20=" ",0,VLOOKUP(F20+G20,$C$28:$D$34,2,0)) -> 0 | J20: 無 | L20: =IF(ColorCount(C20:D21,$B$4)=3,0.8,IF(AND(I21=0,I20=0),"",0.5)) ->  | U20: =IF(L20="","",SUM(M20:P20)) ->  | Y20: =IF(X20=""," ",IF(X20<=0,"い",IF(X20<=0.65,"ろ",IF(X20<=1,"は",IF(X20<=1.4,"に",IF(X20<=1.6,"ほ",IF(X20<=1.8,"へ",IF(X20<=2.8,"と",IF(X20<=3.7,"ち",IF(X20<=4.7,"り",IF(X20<=5.6,"ぬ",IF(X20>5.6," ")))))))))))) ->  | AF20: 無 | AG20: =IF(ColorCount(AD20:AE20,$AC$3)<2,IFERROR(VLOOKUP(AD20,$B$28:$C$34,2,0),"0")," ") ->  | AH20: =IF(ColorCount(AD20:AE20,$AC$3)<2,IFERROR(VLOOKUP(AE20,$H$28:$I$34,2,0),"0")," ") ->  | AJ20: 0 | AK20: 無 | AM20: =IF(ColorCount(AD20:AE21,$AC$4)=3,0.8,IF(AND(AJ21=0,AJ20=0),"",0.5)) ->  | AV20: 0 | AW20: 0 | AX20: 0 | AY20: 0 | AZ20: 0 | BA20: 0 | BH20: =AM20 ->  | BI20: =IF(AS20<>" "," ",IF(BH20=0.8,0.4,(IF(BH20=0.5,0.6," ")))) ->  | BJ20: =IF(AS20=" "," ",IF(AND(AF20="柱",AM20=0.5),1.6,(IF(AND(AF20="柱",AM20=0.8),1,0)))) ->  | BK20: =IF(BI20<1,(BE20-BF20+BG20)*BH20-BI20,"") ->  | BL20: =IF(OR(BJ20=" ",BJ20=0),"",(BE20-BF20+BG20)*BH20+BD20-BJ20) ->  | BM20: =IF(AND(BK20="",BL20="")," ",MAX(BK20,BL20)) ->  | BO20: =IF(BN20=""," ",IF(BN20<=0,"い",IF(BN20<=0.65,"ろ",IF(BN20<=1,"は",IF(BN20<=1.4,"に",IF(BN20<=1.6,"ほ",IF(BN20<=1.8,"へ",IF(BN20<=2.8,"と",IF(BN20<=3.7,"ち",IF(BN20<=4.7,"り",IF(BN20<=5.6,"ぬ",IF(BN20>5.6," ")))))))))))) -> 
K21: 倍 率 | L21: 出隅(0.8)他(0.5) | M21: 柱 頭 補 正 値 | N21: 柱 脚 補 正 値 | O21: 両 端 片 筋 補 正 値 | P21: タ ス キ + 片 筋 補 正 値 | S21: 左 右 倍 率 大 | T21: 左右倍率小 | U21: 補正値 | V21: 出 隅 0.8 他 0.5 | W21: 出 隅 0.4 他 0.6 | X21: N値 | Y21: 金物 | AL21: 倍 率 | AM21: 出隅(0.8)他(0.5) | AN21: 柱 頭 補 正 値 | AO21: 柱 脚 補 正 値 | AP21: 両 端 片 筋 補 正 値 | AQ21: タ ス キ + 片 筋 補 正 値 | AX21: 柱右上壁 | AY21: 柱左上壁 | AZ21: 壁左柱左上壁 | BA21: 壁右柱右上壁 | BB21: 通常 | BC21: 柱ずれ集計 | BD21: 計算値大 | BE21: 左 右 倍 率 大 | BF21: 左右倍率小 | BG21: 補正値 | BH21: 出 隅 0.8 他 0.5 | BI21: 出 隅 0.4 他 0.6 | BJ21: 出 隅 1.0 他 1.6 | BK21: N値平家 | BL21: N値２階 | BM21: N値数値大 | BN21: 最終N値 | BO21: 金物
B28: →あ | C28: 1 | D28: 右 | E28: 2 | F28: 右上 | H28: ←あ | I28: 1 | J28: 右 | K28: 2
B29: →い | C29: 2 | D29: 左 | E29: 2 | F29: 左上 | H29: ←い | I29: 2 | J29: 左 | K29: 2
B30: →う | C30: 3 | D30: タスキ | E30: 4 | F30: タスキ | H30: ←う | I30: 3 | J30: タスキ | K30: 4
B31: →え | C31: 4 | D31: 面材 | E31: 2.5 | F31: 面材 | H31: ←え | I31: 4 | J31: 面材 | K31: 2.5
B32: →お | C32: 5 | D32: 右 | E32: 4.5 | F32: 右面 | H32: ←お | I32: 5 | J32: 右 | K32: 4.5
B33: →か | C33: 6 | D33: 左 | E33: 4.5 | F33: 左面 | H33: ←か | I33: 6 | J33: 左 | K33: 4.5
B34: 0 | C34: 0 | D34: 無 | E34: 0 | F34: 無 | H34: 0 | I34: 0 | J34: 無 | K34: 0
B36: N値 | E36: 必要耐力（kN) | G36: 金物等（これらと同等以上の接合方法を含む）
B37: 0 | C37: 以下 | D37: い | E37: 0 | G37: 短ほぞ差し、かすがい打
B38: 0.65 | C38: 以下 | D38: ろ | E38: 3.4 | G38: 長ほぞ差し込み栓打、L字形かど金物くぎCN65×5本
B39: 1 | C39: 以下 | D39: は | E39: 5.1 | G39: T字形かど金物くぎCN65×5本、山形プレート金物くぎCN90×8本
B40: 1.4 | C40: 以下 | D40: に | E40: 7.5 | G40: 羽子板ボルトφ12mm、短冊金物
B41: 1.6 | C41: 以下 | D41: ほ | E41: 8.5 | G41: 羽子板ボルトφ12mmに長さ50mm径4.5mmのスクリュー釘
B42: 1.8 | C42: 以下 | D42: へ | E42: 10 | G42: 10kN用引き寄せ金物
B43: 2.8 | C43: 以下 | D43: と | E43: 15 | G43: 15kN用引き寄せ金物
B44: 3.7 | C44: 以下 | D44: ち | E44: 20 | G44: 20kN用引き寄せ金物
B45: 4.7 | C45: 以下 | D45: り | E45: 25 | G45: 25kN用引き寄せ金物
B46: 5.6 | C46: 以下 | D46: ぬ | E46: 30 | G46: 30kN用引き寄せ金物
B47: 5.6 | C47: 超 | D47: - | E47: N×5.3 | G47: N×5.3kNに見合う金物

Sheet 部品

Sheet グリッド調整
C1: 3 | D1: 尺 | I1: 1 | J1: 尺 | O1: 2 | P1: 尺 | U1: 4 | V1: 尺 | AA1: 5 | AB1: 尺
A2: ↑基本とする幅 | B2: 30 | D2: ←①基本にしたいグリッド幅にB列の幅を動かす。その時のピルセル数を隣のセルに入力する。 | H2: =B2/3 -> 10 | J2: ←②表示されてるピルセル数にH列の幅を動かし合わせる。 | N2: =B2*(2/3) -> 20 | P2: ←③表示されてるピルセル数にN列の幅を動かし合わせる。 | T2: =B2*(4/3) -> 40 | V2: ←④表示されてるピルセル数にT列の幅を動かし合わせる。 | Z2: =B2*(5/3) -> 50 | AB2: ←⑤表示されてるピルセル数にZ列の幅を動かし合わせる。
B3: 3.57 | H3: 0.83 | N3: 2.14 | T3: 5 | Z3: 6.43
B4: =B3/C1 -> 1.19 | H4: =H3/I1 -> 0.83 | N4: =N3/O1 -> 1.07 | T4: =T3/U1 -> 1.25 | Z4: =Z3/AA1 -> 1.286
B7: =B2 -> 30 | D7: 30 | E7: =D7/A8 -> 10
A8: 3 | N8: ←最後にこのボタンを押す。
A9: 尺 | B9: ←⑥表示されてるピルセル数に5行目の高さを動かし合わせる。
C29: 列グリッド倍率
C30: 303 | D30: 1尺 | E30: =グリッド調整!H4 -> 0.83
C31: 606 | D31: 2尺 | E31: =グリッド調整!N4 -> 1.07
C32: 910 | D32: 3尺 | E32: =グリッド調整!B4 -> 1.19
C33: 1213 | D33: 4尺 | E33: =グリッド調整!T4 -> 1.25
C34: 1515 | D34: 5尺 | E34: =グリッド調整!Z4 -> 1.286
C35: 行グリッド倍率
C36: 910 | D36: 3尺 | E36: =グリッド調整!E7 -> 10
